Workbook

Sheet Menu
Z1: 2
Z4: 2
A6: Panhandle Extension District - 1
D8: Budgets
D11: Forage Crops
D13: =+AlfalfaEstablish!A3 -> Alfalfa Establishment, Sprinkler Irrigated (NG), Fall Seeding Only
D14: =AlfalfaHay!A3 -> Alfalfa, Sprinkler Irrigated (NG)
D15: =CornSilage!A3 -> Corn Silage, Bt, Sprinkler Irrigated (NG)
D16: =SudangrassDryland!A3 -> Sorghum Sudangrass, Dryland, Grazing
D17: =SudangrassSprinkler!A3 -> Sorghum Sudangrass, Sprinkler Irrigated (NG), Grazing
B18: Comparative Returns | D18: =SorghumSilage!A3 -> Sorghum Silage, Sprinkler Irrigated
D19: =TriticaleSilage!A3 -> Triticale Silage, Sprinkler Irrigated (NG)
D21: Field Crops - Irrigated
D23: =CornSprinkler!A3 -> Bt Corn for Grain, Sprinkler Irrigated (NG)
D24: =CornStripTill!A3 -> Bt Corn for Grain, Strip Till
D25: =CottonIrrigated!A3 -> Cotton, Sprinkler Irrigated (Roundup Ready Flex)
D26: =Peanuts!A3 -> Peanuts, Runner, Sprinkler Irrigated
D27: =SorghumSprinkler!A3 -> Continuous Sorghum, Sprinkler Irrigated (NG)
D28: =SeedSorghum!A3 -> Seed Sorghum, Sprinkler Irrigated (NG)
D29: =SoybeansSprinkler!A3 -> Soybeans, Roundup Ready, Sprinkler Irrigated (NG)
D30: =SunflowersOilseed!A3 -> Oilseed Sunflowers, Sprinkler Irrigated, Strip Tillage
D31: =SunflowersConfectionary!A3 -> Confectionary Sunflowers, Sprinkler Irrigated, Strip Tillage
D32: =WheatSprinkler!A3 -> Continuous Wheat, Sprinkler Irrigated (NG)
D33: =CanolaIrrigated!A3 -> Roundup Ready Canola, Sprinkler Irrigated (NG)
D35: Field Crops - Dryland
D37: =CottonDryland!A3 -> Cotton, Dryland (Roundup Ready Flex)
D38: =SorghumRotation!A3 -> Rotation, Sorghum-Fallow-Wheat, Minimum Till, Sorghum
D39: =FallowRotation!A3 -> Rotation, Sorghum-Fallow-Wheat, Minimum Till, Fallow
D40: =WheatRotation!A3 -> Rotation, Sorghum-Fallow-Wheat, Minimum Till, Wheat with Grazing
D41: =SorghumDryland!A3 -> Sorghum, Dryland, Continuous, Minimum Tillage
D42: =SunflowersDryland!A3 -> Oilseed Sunflowers, Dryland, Strip Tillage
D43: =WheatDryland!A3 -> Continuous Wheat, Dryland, Grazed
D44: =CanolaDryland!A3 -> Roundup Ready Canola, Dryland
D46: Livestock
D48: =+CowCalf!A3 -> Cow-Calf Budget
D49: =+StockersSummer!A3 -> Summer Stocker Calf Budget
D50: =+StockersWinter!A3 -> Winter Stocker Calf Budget
D52: Other Budgets
D54: ='Livestock Budget'!A3 -> Livestock Enterprise
D55: ='Crop Budget'!A3 -> Crop Enterprise
A69: Developed by Steve Amosson, Regents Fellow, Professor and Extension Economist, Texas A&M AgriLife Extension, 806-677-5600.

Sheet AlfalfaEstablish
A1: Projections for Planning Purposes Only -- Not to be Used without Updating
A2: 2018 Estimated Costs and Returns per Acre
A3: Alfalfa Establishment, Sprinkler Irrigated (NG), Fall Seeding Only
A4: Enter your name for this budget in the cell above.
A5: Enter Your Values in the cells highlighed in MAROON.
E6: Your Acres | R6: Your
C7: Crop Acres | D7: 122 | L7: Your | Q7: Enterprise | R7: Enterprise
E8: Your | H8: Your | I8: Cash | J8: Your | K8: Landlord | L8: Landlord | N8: Your | P8: Your | Q8: Total | R8: Total
A9: REVENUE | D9: Quantity | E9: Quantity | F9: Units | G9: $/Unit | H9: $/Unit | I9: Total | J9: Total | K9: Share | L9: Share | M9: Landlord | N9: Landlord | O9: Tenant | P9: Tenant | Q9: (122 acres) | R9: ="(" & E7 & " acres)" -> ( acres)
B10: 0 | D10: 0 | G10: 0 | I10: 0 | J10: =E10*H10 -> 0 | K10: 0 | M10: 0 | N10: =J10*L10 -> 0 | O10: 0 | P10: =+J10-N10 -> 0 | Q10: 0 | R10: =+J10*E$7 -> 0
D11: 0 | G11: 0 | I11: 0 | J11: 0 | K11: 0 | M11: 0 | N11: 0 | O11: 0 | P11: 0 | Q11: 0 | R11: 0
D12: 0 | G12: 0 | I12: 0 | J12: 0 | K12: 0 | M12: 0 | N12: 0 | O12: 0 | P12: 0 | Q12: 0 | R12: 0
A13: Total Revenue | I13: 0 | J13: =SUM(J10:J12) -> 0 | M13: 0 | N13: =SUM(N10:N12) -> 0 | O13: 0 | P13: =SUM(P10:P12) -> 0 | Q13: 0 | R13: =SUM(R10:R12) -> 0
Q14: Enterprise | R14: Enterprise
A15: VARIABLE COSTS | D15: Quantity | E15: Quantity | F15: Units | G15: $/Unit | H15: $/Unit | I15: Total | J15: Total | K15: Share | L15: Share | M15: Landlord | N15: Landlord | O15: Tenant | P15: Tenant | Q15: Total | R15: Total
A16: Production Costs
B17: Custom
C18: Fertilizer Application | D18: 1 | F18: Acre | G18: 5.12 | I18: 5.12 | J18: =E18*H18 -> 0 | K18: 0 | M18: 0 | N18: =J18*L18 -> 0 | O18: 5.12 | P18: =+J18-N18 -> 0 | Q18: 624.64 | R18: =+J18*E$7 -> 0
B19: Fertilizer
C20: Fertilizer (P) - Dry | D20: 80 | F20: Pound | G20: 0.43 | I20: 34.4 | J20: 0 | K20: 0 | M20: 0 | N20: 0 | O20: 34.4 | P20: 0 | Q20: 4196.8 | R20: 0
B21: Herbicide
C22: Herbicide and Application Alfalfa | D22: 1 | F22: Acre | G22: 22.37 | I22: 22.37 | J22: 0 | K22: 0 | M22: 0 | N22: 0 | O22: 22.37 | P22: 0 | Q22: 2729.14 | R22: 0
B23: Seed
C24: Seed - Alfalfa | D24: 18 | F24: Pound | G24: 5.5 | I24: 99 | J24: 0 | K24: 0 | M24: 0 | N24: 0 | O24: 99 | P24: 0 | Q24: 12078 | R24: 0
D25: 0 | G25: 0 | I25: 0 | J25: 0 | K25: 0 | M25: 0 | N25: 0 | O25: 0 | P25: 0 | Q25: 0 | R25: 0
D26: 0 | G26: 0 | I26: 0 | J26: 0 | K26: 0 | M26: 0 | N26: 0 | O26: 0 | P26: 0 | Q26: 0 | R26: 0
D27: 0 | G27: 0 | I27: 0 | J27: =E27*H27 -> 0 | K27: 0 | M27: 0 | N27: =J27*L27 -> 0 | O27: 0 | P27: =+J27-N27 -> 0 | Q27: 0 | R27: =+J27*E$7 -> 0
B28: Irrigation
C29: Energy Cost | D29: 6 | F29: AcreInch | G29: 3.5 | I29: 21 | J29: =E29*H29 -> 0 | K29: 0 | M29: 0 | N29: =J29*L29 -> 0 | O29: 21 | P29: =+J29-N29 -> 0 | Q29: 2562 | R29: =+J29*E$7 -> 0
C30: Irrigation Labor | D30: 0.384 | F30: Hour | G30: 12.64 | I30: 4.85376 | J30: 0 | K30: 0 | M30: 0 | N30: 0 | O30: 4.85376 | P30: 0 | Q30: 592.15872 | R30: 0
B31: Machinery Labor
C32: Tractors/Self-Propelled | D32: 0.64 | F32: Hour | G32: 12.44 | I32: 7.9616 | J32: =E32*H32 -> 0 | K32: 0 | M32: 0 | N32: =J32*L32 -> 0 | O32: 7.9616 | P32: =+J32-N32 -> 0 | Q32: 971.3152 | R32: =+J32*E$7 -> 0
C33: Other Labor | D33: 0.73 | F33: Hour | G33: 12.44 | I33: 9.0812 | J33: =E33*H33 -> 0 | K33: 0 | M33: 0 | N33: =J33*L33 -> 0 | O33: 9.0812 | P33: =+J33-N33 -> 0 | Q33: 1107.9064 | R33: =+J33*E$7 -> 0
B35: Diesel Fuel
C36: Pickup/General Use Equipment | D36: 1 | F36: Acre | G36: 0 | I36: 0 | J36: =E36*H36 -> 0 | K36: 0 | M36: 0 | N36: =J36*L36 -> 0 | O36: 0 | P36: =+J36-N36 -> 0 | Q36: 0 | R36: =+J36*E$7 -> 0
C37: Tractors/Self-Propelled | D37: 2.96 | F37: Gallon | G37: 1.99 | I37: 5.8904 | J37: =E37*H37 -> 0 | K37: 0 | M37: 0 | N37: =J37*L37 -> 0 | O37: 5.8904 | P37: =+J37-N37 -> 0 | Q37: 718.6288 | R37: =+J37*E$7 -> 0
B39: Gasoline
C40: Pickup/General Use Equipment | D40: 1 | F40: Acre | G40: 4.303278689 | I40: 4.303278689 | J40: =E40*H40 -> 0 | K40: 0 | M40: 0 | N40: =J40*L40 -> 0 | O40: 4.303278689 | P40: =+J40-N40 -> 0 | Q40: 525 | R40: =+J40*E$7 -> 0
C41: Tractors/Self-Propelled | D41: 0 | F41: Gallon | G41: 2.1 | I41: 0 | J41: =E41*H41 -> 0 | K41: 0 | M41: 0 | N41: =J41*L41 -> 0 | O41: 0 | P41: =+J41-N41 -> 0 | Q41: 0 | R41: =+J41*E$7 -> 0
B43: Repairs & Maintenance
C44: Pickup/General Use Equipment | D44: 1 | F44: Acre | G44: 2.508196721 | I44: 2.508196721 | J44: =E44*H44 -> 0 | K44: 0 | M44: 0 | N44: =J44*L44 -> 0 | O44: 2.508196721 | P44: =+J44-N44 -> 0 | Q44: 306 | R44: =+J44*E$7 -> 0
C45: Irrigation Equipment | D45: 1 | F45: Acre | G45: 24.24 | I45: 24.24 | J45: 0 | K45: 0 | M45: 0 | N45: 0 | O45: 24.24 | P45: 0 | Q45: 2957.28 | R45: 0
C46: Tractors/Self-Propelled | D46: 1 | F46: Acre | G46: 4.655879494 | I46: 4.655879494 | J46: 0 | K46: 0 | M46: 0 | N46: 0 | O46: 4.655879494 | P46: 0 | Q46: 568.0172983 | R46: 0
C47: Implements | D47: 1 | F47: Acre | G47: 13.49192208 | I47: 13.49192208 | J47: 0 | K47: 0 | M47: 0 | N47: 0 | O47: 13.49192208 | P47: 0 | Q47: 1646.014494 | R47: 0
I48: 0 | J48: 0 | K48: 0 | M48: 0 | N48: 0 | O48: 0 | P48: 0 | Q48: 0 | R48: =+J48*E$7 -> 0
I49: 0 | J49: 0 | K49: 0 | M49: 0 | N49: 0 | O49: 0 | P49: 0 | Q49: 0 | R49: 0
B50: Interest on Credit Line | G50: 0.0574 | I50: 5.220735905 | J50: =+SUM(J17:J49)/2*H50 -> 0 | M50: 0 | N50: =+SUM(N17:N49)/2*L50 -> 0 | O50: 5.220735905 | P50: =+SUM(P17:P49)/2*L50 -> 0 | Q50: 636.9297804 | R50: =+J50*E$7 -> 0
A51: Total Variable Costs | I51: 264.0969729 | J51: =SUM(J18:J50) -> 0 | M51: 0 | N51: =SUM(N18:N50) -> 0 | O51: 264.0969729 | P51: =SUM(P18:P50) -> 0 | Q51: 32219.83069 | R51: =SUM(R18:R50) -> 0
A52: Planned Returns Above Variable Costs: | I52: -264.0969729 | J52: =+J13-J51 -> 0 | M52: 0 | N52: =+N13-N51 -> 0 | O52: -264.0969729 | P52: =+P13-P51 -> 0 | Q52: -32219.83069 | R52: =+R13-R51 -> 0
B53: Breakeven Price to Cover Variable Costs | G53: n/a | H53: =IF(E10=0,"n/a",(YVarExp-(YTotExp+YTotRet-J10))/E10) -> n/a
Q54: Enterprise | R54: Enterprise
A55: FIXED COSTS | D55: Quantity | E55: Quantity | F55: Units | G55: $/Unit | H55: $/Unit | J55: Total | K55: Share | L55: Share | M55: Landlord | N55: Landlord | O55: Tenant | P55: Tenant | Q55: Total | R55: Total
B56: Machinery Depreciation
C57: Pickup/General Use Equipment | D57: 1 | F57: Acre | G57: 2.633606557 | I57: 2.633606557 | J57: =E57*H57 -> 0 | K57: 0 | M57: 0 | N57: =J57*L57 -> 0 | O57: 2.633606557 | P57: =+J57-N57 -> 0 | Q57: 321.3 | R57: =+J57*E$7 -> 0
C58: Irrigation Equipment | D58: 1 | F58: Acre | G58: 11.83401639 | I58: 11.83401639 | J58: 0 | K58: 0 | M58: 0 | N58: =J58*L58 -> 0 | O58: 11.83401639 | P58: 0 | Q58: 1443.75 | R58: 0
C59: Tractors/Self-Propelled | D59: 1 | F59: Acre | G59: 4.529612438 | I59: 4.529612438 | J59: 0 | K59: 0 | M59: 0 | N59: =J59*L59 -> 0 | O59: 4.529612438 | P59: 0 | Q59: 552.6127174 | R59: 0
C60: Implements | D60: 1 | F60: Acre | G60: 16.56303691 | I60: 16.56303691 | J60: 0 | K60: 0 | M60: 0 | N60: =J60*L60 -> 0 | O60: 16.56303691 | P60: 0 | Q60: 2020.690503 | R60: 0
B61: Equipment Investment
C62: Pickup/General Use Equipment | D62: 18.18442623 | F62: Dollars | G62: 0.0601 | I62: 1.092884016 | J62: =E62*H62 -> 0 | K62: 0 | M62: 0 | N62: =J62*L62 -> 0 | O62: 1.092884016 | P62: =+J62-N62 -> 0 | Q62: 133.33185 | R62: =+J62*E$7 -> 0
C63: Irrigation Equipment | D63: 142.9303279 | F63: Dollars | G63: 0.0601 | I63: 8.590112705 | J63: 0 | K63: 0 | M63: 0 | N63: =J63*L63 -> 0 | O63: 8.590112705 | P63: 0 | Q63: 1047.99375 | R63: 0
C64: Tractors/Self-Propelled | D64: 35.28714206 | F64: Dollars | G64: 0.0601 | I64: 2.120757238 | J64: 0 | K64: 0 | M64: 0 | N64: =J64*L64 -> 0 | O64: 2.120757238 | P64: 0 | Q64: 258.732383 | R64: 0
C65: Implements | D65: 70.85299123 | F65: Dollars | G65: 0.0601 | I65: 4.258264773 | J65: 0 | K65: 0 | M65: 0 | N65: =J65*L65 -> 0 | O65: 4.258264773 | P65: 0 | Q65: 519.5083023 | R65: 0
B66: Salaried Labor | D66: 1 | F66: Acre | G66: 0 | I66: 0 | J66: 0 | K66: 0 | M66: 0 | N66: =J66*L66 -> 0 | O66: 0 | P66: =+J66-N66 -> 0 | Q66: 0 | R66: =+J66*E$7 -> 0
B67: Management Fee, Owner/Operator Labor | D67: 1 | F67: Acre | G67: 0 | I67: 0 | J67: 0 | K67: 0 | M67: 0 | N67: 0 | O67: 0 | P67: 0 | Q67: 0 | R67: 0
B68: Allocated Establishment Cost | D68: 1 | F68: Acre | G68: 0 | I68: 0 | J68: 0 | K68: 0 | M68: 0 | N68: 0 | O68: 0 | P68: 0 | Q68: 0 | R68: 0
B69: Cash Rent - Alfalfa | D69: 1 | F69: Acre | G69: 120 | I69: 120 | J69: 0 | K69: 0 | M69: 0 | N69: 0 | O69: 120 | P69: 0 | Q69: 14640 | R69: 0
B70: Property Taxes | D70: 1 | F70: Acre | G70: 0 | I70: 0 | J70: =E70*H70 -> 0 | K70: 0 | M70: 0 | N70: 0 | O70: 0 | P70: 0 | Q70: 0 | R70: =+J70*E$7 -> 0
B71: Whole Farm Insurance | D71: 1 | F71: Acre | G71: 0 | I71: 0 | J71: 0 | K71: 0 | M71: 0 | N71: 0 | O71: 0 | P71: 0 | Q71: 0 | R71: 0
D72: 1 | G72: 0 | I72: 0 | J72: 0 | K72: 0 | M72: 0 | N72: 0 | O72: 0 | P72: 0 | Q72: 0 | R72: 0
D73: 1 | G73: 0 | I73: 0 | J73: 0 | K73: 0 | M73: 0 | N73: 0 | O73: 0 | P73: 0 | Q73: 0 | R73: 0
A74: Total Fixed Costs | I74: 171.622291 | J74: =+SUM(J57:J73) -> 0 | M74: 0 | N74: =+SUM(N57:N73) -> 0 | O74: 171.622291 | P74: =+SUM(P57:P73) -> 0 | Q74: 20937.91951 | R74: =+SUM(R57:R73) -> 0
A75: Total Specified Costs | I75: 435.7192639 | J75: =+J51+J74 -> 0 | M75: 0 | N75: =+N51+N74 -> 0 | O75: 435.7192639 | P75: =+P51+P74 -> 0 | Q75: 53157.7502 | R75: =+R51+R74 -> 0
A77: Returns Above Specified Costs | I77: -435.7192639 | J77: =+J13-J75 -> 0 | M77: 0 | N77: =+N13-N75 -> 0 | O77: -435.7192639 | P77: =+P13-P75 -> 0 | Q77: -53157.7502 | R77: =+R13-R75 -> 0
A79: Breakeven Price to Cover Total Costs | G79: n/a | H79: =IF(E10=0,"n/a",(YTotExp-(YTotExp+YTotRet-J10))/E10) -> n/a
D81: Example Breakeven Prices
B82: Example | C82: Example | D82: To Cover | G82: To Cover
B83: Yield | C83: Yield | D83: Variable | G83: Total
B84: Percent | D84: Costs | G84: Costs
B85: 0.75 | C85: 0 | D85: 0 | G85: 0
B86: 0.9 | C86: 0 | D86: 0 | G86: 0
B87: 1 | C87: 0 | D87: 0 | G87: 0
B88: 1.1 | C88: 0 | D88: 0 | G88: 0
B89: 1.25 | C89: 0 | D89: 0 | G89: 0
D91: Your Breakeven Prices
B92: Your | C92: Your | E92: To Cover | H92: To Cover
B93: Yield | C93: Yield | E93: Variable | H93: Total
B94: Percent | E94: Costs | H94: Costs
B95: 0.75 | C95: =E10*YPER1 -> 0 | E95: =IF($E$10=0,0,(YVarExp-(YTotExp+YTotRet-J10))/($E$10*YPER1)) -> 0 | H95: =IF($E$10=0,0,(YTotExp-(YTotExp+YTotRet-J10))/($E$10*YPER1)) -> 0
B96: 0.9 | C96: =E10*YPER2 -> 0 | E96: =IF($E$10=0,0,(YVarExp-(YTotExp+YTotRet-J10))/($E$10*YPER2)) -> 0 | H96: =IF($E$10=0,0,(YTotExp-(YTotExp+YTotRet-J10))/($E$10*YPER2)) -> 0
B97: 1 | C97: =+E10 -> 0 | E97: =IF($E$10=0,0,(YVarExp-(YTotExp+YTotRet-J10))/($E$10*YPER3)) -> 0 | H97: =IF($E$10=0,0,(YTotExp-(YTotExp+YTotRet-J10))/($E$10*YPER3)) -> 0
B98: 1.1 | C98: =E10*YPER4 -> 0 | E98: =IF($E$10=0,0,(YVarExp-(YTotExp+YTotRet-J10))/($E$10*YPER4)) -> 0 | H98: =IF($E$10=0,0,(YTotExp-(YTotExp+YTotRet-J10))/($E$10*YPER4)) -> 0
B99: 1.25 | C99: =E10*YPER5 -> 0 | E99: =IF($E$10=0,0,(YVarExp-(YTotExp+YTotRet-J10))/($E$10*YPER5)) -> 0 | H99: =IF($E$10=0,0,(YTotExp-(YTotExp+YTotRet-J10))/($E$10*YPER5)) -> 0
A101: Developed by Steve Amosson, Regents Fellow, Professor and Extension Economist, Texas A&M AgriLife Extension, 806-677-5600.
A103: Information presented is prepared solely as a general guide and not intended to recognize or predict the costs and returns from any one operation. Brand names are mentioned only as examples and imply no endorsement.

Sheet AlfalfaHay
A1: Projections for Planning Purposes Only -- Not to be Used without Updating
A2: 2018 Estimated Costs and Returns per Acre
A3: Alfalfa, Sprinkler Irrigated (NG)
A4: Enter your name for this budget in the cell above.
A5: Enter Your Values in the cells highlighed in MAROON.
E6: Your Acres | R6: Your
C7: Crop Acres | D7: 122 | L7: Your | Q7: Enterprise | R7: Enterprise
E8: Your | H8: Your | I8: Cash | J8: Your | K8: Landlord | L8: Landlord | N8: Your | P8: Your | Q8: Total | R8: Total
A9: REVENUE | D9: Quantity | E9: Quantity | F9: Units | G9: $/Unit | H9: $/Unit | I9: Total | J9: Total | K9: Share | L9: Share | M9: Landlord | N9: Landlord | O9: Tenant | P9: Tenant | Q9: (122 acres) | R9: ="(" & E7 & " acres)" -> ( acres)
B10: Hay - Alfalfa | D10: 5.5 | F10: Ton | G10: 190 | I10: 1045 | J10: =E10*H10 -> 0 | K10: 0 | M10: 0 | N10: =J10*L10 -> 0 | O10: 1045 | P10: =+J10-N10 -> 0 | Q10: 127490 | R10: =+J10*E$7 -> 0
D11: 0 | G11: 0 | I11: 0 | J11: 0 | K11: 0 | M11: 0 | N11: 0 | O11: 0 | P11: =+J11-N11 -> 0 | Q11: 0 | R11: 0
D12: 0 | G12: 0 | I12: 0 | J12: 0 | K12: 0 | M12: 0 | N12: 0 | O12: 0 | P12: 0 | Q12: 0 | R12: 0
A13: Total Revenue | I13: 1045 | J13: =SUM(J10:J12) -> 0 | M13: 0 | N13: =SUM(N10:N12) -> 0 | O13: 1045 | P13: =SUM(P10:P12) -> 0 | Q13: 127490 | R13: =SUM(R10:R12) -> 0
Q14: Enterprise | R14: Enterprise
A15: VARIABLE COSTS | D15: Quantity | E15: Quantity | F15: Units | G15: $/Unit | H15: $/Unit | I15: Total | J15: Total | K15: Share | L15: Share | M15: Landlord | N15: Landlord | O15: Tenant | P15: Tenant | Q15: Total | R15: Total
A16: Production Costs
B17: Custom
C18: Fertilizer Application | D18: 1 | F18: Acre | G18: 5.12 | I18: 5.12 | J18: =E18*H18 -> 0 | K18: 0 | M18: 0 | N18: =J18*L18 -> 0 | O18: 5.12 | P18: =+J18-N18 -> 0 | Q18: 624.64 | R18: =+J18*E$7 -> 0
C19: Custom Baling | D19: 5.5 | F19: Ton | G19: 40.97 | I19: 225.335 | J19: 0 | K19: 0 | M19: 0 | N19: 0 | O19: 225.335 | P19: 0 | Q19: 27490.87 | R19: 0
B20: Fertilizer
C21: Fertilizer (P) - Liquid | D21: 60 | F21: Pound | G21: 0.47 | I21: 28.2 | J21: 0 | K21: 0 | M21: 0 | N21: 0 | O21: 28.2 | P21: 0 | Q21: 3440.4 | R21: 0
B22: Herbicide
C23: Herbicide and Application Alfalfa | D23: 1 | F23: Acre | G23: 22.37 | I23: 22.37 | J23: 0 | K23: 0 | M23: 0 | N23: 0 | O23: 22.37 | P23: 0 | Q23: 2729.14 | R23: 0
B24: Insecticide
C25: Insecticide Application Alfalfa | D25: 1 | F25: Acre | G25: 10.13 | I25: 10.13 | J25: 0 | K25: 0 | M25: 0 | N25: 0 | O25: 10.13 | P25: 0 | Q25: 1235.86 | R25: 0
D26: 0 | G26: 0 | I26: 0 | J26: 0 | K26: 0 | M26: 0 | N26: 0 | O26: 0 | P26: 0 | Q26: 0 | R26: 0
D27: 0 | G27: 0 | I27: 0 | J27: 0 | K27: 0 | M27: 0 | N27: 0 | O27: 0 | P27: 0 | Q27: 0 | R27: 0
D28: 0 | G28: 0 | I28: 0 | J28: =E28*H28 -> 0 | K28: 0 | M28: 0 | N28: =J28*L28 -> 0 | O28: 0 | P28: =+J28-N28 -> 0 | Q28: 0 | R28: =+J28*E$7 -> 0
B29: Irrigation
C30: Energy Cost | D30: 24 | F30: AcreInch | G30: 3.5 | I30: 84 | J30: =E30*H30 -> 0 | K30: 0 | M30: 0 | N30: =J30*L30 -> 0 | O30: 84 | P30: =+J30-N30 -> 0 | Q30: 10248 | R30: =+J30*E$7 -> 0
C31: Irrigation Labor | D31: 1.536 | F31: Hour | G31: 12.64 | I31: 19.41504 | J31: 0 | K31: 0 | M31: 0 | N31: 0 | O31: 19.41504 | P31: 0 | Q31: 2368.63488 | R31: 0
B32: Machinery Labor
C33: Tractors/Self-Propelled | D33: 0 | F33: Hour | G33: 12.44 | I33: 0 | J33: =E33*H33 -> 0 | K33: 0 | M33: 0 | N33: =J33*L33 -> 0 | O33: 0 | P33: =+J33-N33 -> 0 | Q33: 0 | R33: =+J33*E$7 -> 0
C34: Other Labor | D34: 0 | F34: Hour | G34: 12.44 | I34: 0 | J34: =E34*H34 -> 0 | K34: 0 | M34: 0 | N34: =J34*L34 -> 0 | O34: 0 | P34: =+J34-N34 -> 0 | Q34: 0 | R34: =+J34*E$7 -> 0
B36: Diesel Fuel
C37: Pickup/General Use Equipment | D37: 1 | F37: Acre | G37: 0 | I37: 0 | J37: =E37*H37 -> 0 | K37: 0 | M37: 0 | N37: =J37*L37 -> 0 | O37: 0 | P37: =+J37-N37 -> 0 | Q37: 0 | R37: =+J37*E$7 -> 0
C38: Tractors/Self-Propelled | D38: 0 | F38: Gallon | G38: 1.99 | I38: 0 | J38: =E38*H38 -> 0 | K38: 0 | M38: 0 | N38: =J38*L38 -> 0 | O38: 0 | P38: =+J38-N38 -> 0 | Q38: 0 | R38: =+J38*E$7 -> 0
B40: Gasoline
C41: Pickup/General Use Equipment | D41: 1 | F41: Acre | G41: 4.303278689 | I41: 4.303278689 | J41: =E41*H41 -> 0 | K41: 0 | M41: 0 | N41: =J41*L41 -> 0 | O41: 4.303278689 | P41: =+J41-N41 -> 0 | Q41: 525 | R41: =+J41*E$7 -> 0
C42: Tractors/Self-Propelled | D42: 0 | F42: Gallon | G42: 2.1 | I42: 0 | J42: =E42*H42 -> 0 | K42: 0 | M42: 0 | N42: =J42*L42 -> 0 | O42: 0 | P42: =+J42-N42 -> 0 | Q42: 0 | R42: =+J42*E$7 -> 0
B44: Repairs & Maintenance
C45: Pickup/General Use Equipment | D45: 1 | F45: Acre | G45: 2.508196721 | I45: 2.508196721 | J45: =E45*H45 -> 0 | K45: 0 | M45: 0 | N45: =J45*L45 -> 0 | O45: 2.508196721 | P45: =+J45-N45 -> 0 | Q45: 306 | R45: =+J45*E$7 -> 0
C46: Irrigation Equipment | D46: 1 | F46: Acre | G46: 96.96 | I46: 96.96 | J46: 0 | K46: 0 | M46: 0 | N46: 0 | O46: 96.96 | P46: 0 | Q46: 11829.12 | R46: 0
C47: Tractors/Self-Propelled | D47: 1 | F47: Acre | G47: 0 | I47: 0 | J47: 0 | K47: 0 | M47: 0 | N47: 0 | O47: 0 | P47: 0 | Q47: 0 | R47: 0
C48: Implements | D48: 1 | F48: Acre | G48: 0 | I48: 0 | J48: 0 | K48: 0 | M48: 0 | N48: 0 | O48: 0 | P48: 0 | Q48: 0 | R48: 0
I49: 0 | J49: 0 | K49: 0 | M49: 0 | N49: 0 | O49: 0 | P49: 0 | Q49: 0 | R49: 0
I50: 0 | J50: 0 | K50: 0 | M50: 0 | N50: 0 | O50: 0 | P50: 0 | Q50: 0 | R50: 0
B51: Interest on Credit Line | G51: 0.0574 | I51: 4.983776205 | J51: =+SUM(J17:J50)/2*H51 -> 0 | M51: 0 | N51: =+SUM(N17:N50)/2*L51 -> 0 | O51: 4.983776205 | P51: =+SUM(P17:P50)/2*L51 -> 0 | Q51: 608.020697 | R51: =+J51*E$7 -> 0
A52: Total Variable Costs | I52: 503.3252916 | J52: =SUM(J18:J51) -> 0 | M52: 0 | N52: =SUM(N18:N51) -> 0 | O52: 503.3252916 | P52: =SUM(P18:P51) -> 0 | Q52: 61405.68558 | R52: =SUM(R18:R51) -> 0
A53: Planned Returns Above Variable Costs: | I53: 541.6747084 | J53: =+J13-J52 -> 0 | M53: 0 | N53: =+N13-N52 -> 0 | O53: 541.6747084 | P53: =+P13-P52 -> 0 | Q53: 66084.31442 | R53: =+R13-R52 -> 0
B54: Breakeven Price to Cover Variable Costs | G54: 91.51368938 | H54: =IF(E10=0,"n/a",(YVarExp-(YTotExp+YTotRet-J10))/E10) -> n/a | I54: Ton
Q55: Enterprise | R55: Enterprise
A56: FIXED COSTS | D56: Quantity | E56: Quantity | F56: Units | G56: $/Unit | H56: $/Unit | I56: Total | J56: Total | K56: Share | L56: Share | M56: Landlord | N56: Landlord | O56: Tenant | P56: Tenant | Q56: Total | R56: Total
B57: Machinery Depreciation
C58: Pickup/General Use Equipment | D58: 1 | F58: Acre | G58: 2.633606557 | I58: 2.633606557 | J58: =E58*H58 -> 0 | K58: 0 | M58: 0 | N58: =J58*L58 -> 0 | O58: 2.633606557 | P58: =+J58-N58 -> 0 | Q58: 321.3 | R58: =+J58*E$7 -> 0
C59: Irrigation Equipment | D59: 1 | F59: Acre | G59: 47.33606557 | I59: 47.33606557 | J59: 0 | K59: 0 | M59: 0 | N59: =J59*L59 -> 0 | O59: 47.33606557 | P59: 0 | Q59: 5775 | R59: 0
B60: Equipment Investment
C61: Pickup/General Use Equipment | D61: 18.18442623 | F61: Dollars | G61: 0.0601 | I61: 1.092884016 | J61: =E61*H61 -> 0 | K61: 0 | M61: 0 | N61: =J61*L61 -> 0 | O61: 1.092884016 | P61: =+J61-N61 -> 0 | Q61: 133.33185 | R61: =+J61*E$7 -> 0
C62: Irrigation Equipment | D62: 571.7213115 | F62: Dollars | G62: 0.0601 | I62: 34.36045082 | J62: 0 | K62: 0 | M62: 0 | N62: =J62*L62 -> 0 | O62: 34.36045082 | P62: 0 | Q62: 4191.975 | R62: 0
B63: Salaried Labor | D63: 1 | F63: Acre | G63: 0 | I63: 0 | J63: 0 | K63: 0 | M63: 0 | N63: =J63*L63 -> 0 | O63: 0 | P63: =+J63-N63 -> 0 | Q63: 0 | R63: =+J63*E$7 -> 0
B64: Management Fee, Owner/Operator Labor | D64: 1 | F64: Acre | G64: 0 | I64: 0 | J64: 0 | K64: 0 | M64: 0 | N64: 0 | O64: 0 | P64: 0 | Q64: 0 | R64: 0
B65: Allocated Establishment Cost | D65: 1 | F65: Acre | G65: 72 | I65: 72 | J65: 0 | K65: 0 | M65: 0 | N65: 0 | O65: 72 | P65: 0 | Q65: 8784 | R65: 0
B66: Cash Rent - Alfalfa | D66: 1 | F66: Acre | G66: 120 | I66: 120 | J66: 0 | K66: 0 | M66: 0 | N66: 0 | O66: 120 | P66: 0 | Q66: 14640 | R66: 0
B67: Property Taxes | D67: 1 | F67: Acre | G67: 0 | I67: 0 | J67: 0 | K67: 0 | M67: 0 | N67: 0 | O67: 0 | P67: 0 | Q67: 0 | R67: 0
B68: Whole Farm Insurance | D68: 1 | F68: Acre | G68: 0 | I68: 0 | J68: 0 | K68: 0 | M68: 0 | N68: 0 | O68: 0 | P68: 0 | Q68: 0 | R68: 0
D69: 1 | G69: 0 | I69: 0 | J69: 0 | K69: 0 | M69: 0 | N69: 0 | O69: 0 | P69: 0 | Q69: 0 | R69: 0
D70: 1 | G70: 0 | I70: 0 | J70: =E70*H70 -> 0 | K70: 0 | M70: 0 | N70: 0 | O70: 0 | P70: 0 | Q70: 0 | R70: 0
A71: Total Fixed Costs | I71: 277.423007 | J71: =+SUM(J58:J70) -> 0 | M71: 0 | N71: =+SUM(N58:N70) -> 0 | O71: 277.423007 | P71: =+SUM(P58:P70) -> 0 | Q71: 33845.60685 | R71: =+SUM(R58:R70) -> 0
A72: Total Specified Costs | I72: 780.7482986 | J72: =+J52+J71 -> 0 | M72: 0 | N72: =+N52+N71 -> 0 | O72: 780.7482986 | P72: =+P52+P71 -> 0 | Q72: 95251.29243 | R72: =+R52+R71 -> 0
A74: Returns Above Specified Costs | I74: 264.2517014 | J74: =+J13-J72 -> 0 | M74: 0 | N74: =+N13-N72 -> 0 | O74: 264.2517014 | P74: =+P13-P72 -> 0 | Q74: 32238.70757 | R74: =+R13-R72 -> 0
A76: Breakeven Price to Cover Total Costs | G76: 141.9542361 | H76: =IF(E10=0,"n/a",(YTotExp-(YTotExp+YTotRet-J10))/E10) -> n/a | I76: Ton
D78: Example Breakeven Prices
B79: Example | C79: Example | D79: To Cover | G79: To Cover
B80: Yield | C80: Yield | D80: Variable | G80: Total
B81: Percent | C81: Ton | D81: Costs | G81: Costs
B82: 0.75 | C82: 4.125 | D82: 122.0182525 | G82: 189.2723148
B83: 0.9 | C83: 4.95 | D83: 101.6818771 | G83: 157.726929
B84: 1 | C84: 5.5 | D84: 91.51368938 | G84: 141.9542361
B85: 1.1 | C85: 6.05 | D85: 83.19426308 | G85: 129.0493056
B86: 1.25 | C86: 6.875 | D86: 73.21095151 | G86: 113.5633889
D88: Your Breakeven Prices
B89: Your | C89: Your | E89: To Cover | H89: To Cover
B90: Yield | C90: Yield | E90: Variable | H90: Total
B91: Percent | C91: Ton | E91: Costs | H91: Costs
B92: 0.75 | C92: =E10*YPER1 -> 0 | E92: =IF($E$10=0,0,(YVarExp-(YTotExp+YTotRet-J10))/($E$10*YPER1)) -> 0 | H92: =IF($E$10=0,0,(YTotExp-(YTotExp+YTotRet-J10))/($E$10*YPER1)) -> 0
B93: 0.9 | C93: =E10*YPER2 -> 0 | E93: =IF($E$10=0,0,(YVarExp-(YTotExp+YTotRet-J10))/($E$10*YPER2)) -> 0 | H93: =IF($E$10=0,0,(YTotExp-(YTotExp+YTotRet-J10))/($E$10*YPER2)) -> 0
B94: 1 | C94: =+E10 -> 0 | E94: =IF($E$10=0,0,(YVarExp-(YTotExp+YTotRet-J10))/($E$10*YPER3)) -> 0 | H94: =IF($E$10=0,0,(YTotExp-(YTotExp+YTotRet-J10))/($E$10*YPER3)) -> 0
B95: 1.1 | C95: =E10*YPER4 -> 0 | E95: =IF($E$10=0,0,(YVarExp-(YTotExp+YTotRet-J10))/($E$10*YPER4)) -> 0 | H95: =IF($E$10=0,0,(YTotExp-(YTotExp+YTotRet-J10))/($E$10*YPER4)) -> 0
B96: 1.25 | C96: =E10*YPER5 -> 0 | E96: =IF($E$10=0,0,(YVarExp-(YTotExp+YTotRet-J10))/($E$10*YPER5)) -> 0 | H96: =IF($E$10=0,0,(YTotExp-(YTotExp+YTotRet-J10))/($E$10*YPER5)) -> 0
A98: Developed by Steve Amosson, Regents Fellow, Professor and Extension Economist, Texas A&M AgriLife Extension, 806-677-5600.
A100: Information presented is prepared solely as a general guide and not intended to recognize or predict the costs and returns from any one operation. Brand names are mentioned only as examples and imply no endorsement.

Sheet CornSprinkler
A1: Projections for Planning Purposes Only -- Not to be Used without Updating
A2: 2018 Estimated Costs and Returns per Acre
A3: Bt Corn for Grain, Sprinkler Irrigated (NG)
A4: Enter your name for this budget in the cell above.
A5: Enter Your Values in the cells highlighed in MAROON.
E6: Your Acres | R6: Your
C7: Crop Acres | D7: 122 | L7: Your | Q7: Enterprise | R7: Enterprise
E8: Your | H8: Your | I8: Cash | J8: Your | K8: Landlord | L8: Landlord | N8: Your | P8: Your | Q8: Total | R8: Total
A9: REVENUE | D9: Quantity | E9: Quantity | F9: Units | G9: $/Unit | H9: $/Unit | I9: Total | J9: Total | K9: Share | L9: Share | M9: Landlord | N9: Landlord | O9: Tenant | P9: Tenant | Q9: (122 acres) | R9: ="(" & E7 & " acres)" -> ( acres)
B10: Corn | D10: 225 | F10: Bushel | G10: 3.85 | I10: 866.25 | J10: =E10*H10 -> 0 | K10: 0 | M10: 0 | N10: =J10*L10 -> 0 | O10: 866.25 | P10: =+J10-N10 -> 0 | Q10: 105682.5 | R10: =+J10*E$7 -> 0
D11: 0 | G11: 0 | I11: 0 | J11: 0 | K11: 0 | M11: 0 | N11: 0 | O11: 0 | P11: =+J11-N11 -> 0 | Q11: 0 | R11: 0
D12: 0 | G12: 0 | I12: 0 | J12: 0 | K12: 0 | M12: 0 | N12: 0 | O12: 0 | P12: 0 | Q12: 0 | R12: 0
A13: Total Revenue | I13: 866.25 | J13: =SUM(J10:J12) -> 0 | M13: 0 | N13: =SUM(N10:N12) -> 0 | O13: 866.25 | P13: =SUM(P10:P12) -> 0 | Q13: 105682.5 | R13: =SUM(R10:R12) -> 0
Q14: Enterprise | R14: Enterprise
A15: VARIABLE COSTS | D15: Quantity | E15: Quantity | F15: Units | G15: $/Unit | H15: $/Unit | I15: Total | J15: Total | K15: Share | L15: Share | M15: Landlord | N15: Landlord | O15: Tenant | P15: Tenant | Q15: Total | R15: Total
A16: Production Costs
B17: Custom
C18: Fertilizer Application - ANH3 | D18: 1 | F18: Acre | G18: 15.36 | I18: 15.36 | J18: =E18*H18 -> 0 | K18: 0 | M18: 0 | N18: =J18*L18 -> 0 | O18: 15.36 | P18: =+J18-N18 -> 0 | Q18: 1873.92 | R18: =+J18*E$7 -> 0
C19: Crop Consultant | D19: 1 | F19: Acre | G19: 8.19 | I19: 8.19 | J19: 0 | K19: 0 | M19: 0 | N19: 0 | O19: 8.19 | P19: 0 | Q19: 999.18 | R19: 0
C20: Harvest and Haul - Corn | D20: 225 | F20: Bushel | G20: 0.41 | I20: 92.25 | J20: 0 | K20: 0 | M20: 0 | N20: 0 | O20: 92.25 | P20: 0 | Q20: 11254.5 | R20: 0
B21: Fertilizer
C22: Fertilizer (P) - Liquid | D22: 60 | F22: Pound | G22: 0.47 | I22: 28.2 | J22: 0 | K22: 0 | M22: 0 | N22: 0 | O22: 28.2 | P22: 0 | Q22: 3440.4 | R22: 0
C23: Fertilizer (N) - ANH3 | D23: 126 | F23: Pound | G23: 0.24 | I23: 30.24 | J23: 0 | K23: 0 | M23: 0 | N23: 0 | O23: 30.24 | P23: 0 | Q23: 3689.28 | R23: 0
C24: Fertilizer (N) - Liquid | D24: 78 | F24: Pound | G24: 0.4 | I24: 31.2 | J24: 0 | K24: 0 | M24: 0 | N24: 0 | O24: 31.2 | P24: 0 | Q24: 3806.4 | R24: 0
B25: Herbicide
C26: Herbicide - Corn Preplant | D26: 1 | F26: Acre | G26: 17.57 | I26: 17.57 | J26: 0 | K26: 0 | M26: 0 | N26: 0 | O26: 17.57 | P26: 0 | Q26: 2143.54 | R26: 0
C27: Herbicide - Corn Postplant | D27: 1 | F27: Acre | G27: 15.86 | I27: 15.86 | J27: 0 | K27: 0 | M27: 0 | N27: 0 | O27: 15.86 | P27: 0 | Q27: 1934.92 | R27: 0
B28: Insecticide
C29: Miticide | D29: 1 | F29: Acre | G29: 21.04 | I29: 21.04 | J29: 0 | K29: 0 | M29: 0 | N29: 0 | O29: 21.04 | P29: 0 | Q29: 2566.88 | R29: 0
B30: Miscellaneous
C31: Crop Insurance Corn Irrigated | D31: 1 | F31: Acre | G31: 40.15 | I31: 40.15 | J31: 0 | K31: 0 | M31: 0 | N31: 0 | O31: 40.15 | P31: 0 | Q31: 4898.3 | R31: 0
B32: Seed
C33: Seed - Bt Corn for Grain | D33: 0.38 | F33: Bag | G33: 260 | I33: 98.8 | J33: 0 | K33: 0 | M33: 0 | N33: 0 | O33: 98.8 | P33: 0 | Q33: 12053.6 | R33: 0
D34: 0 | G34: 0 | I34: 0 | J34: 0 | K34: 0 | M34: 0 | N34: 0 | O34: 0 | P34: 0 | Q34: 0 | R34: 0
D35: 0 | G35: 0 | I35: 0 | J35: 0 | K35: 0 | M35: 0 | N35: 0 | O35: 0 | P35: 0 | Q35: 0 | R35: 0
D36: 0 | G36: 0 | I36: 0 | J36: =E36*H36 -> 0 | K36: 0 | M36: 0 | N36: =J36*L36 -> 0 | O36: 0 | P36: =+J36-N36 -> 0 | Q36: 0 | R36: =+J36*E$7 -> 0
B37: Irrigation
C38: Energy Cost | D38: 22 | F38: AcreInch | G38: 3.5 | I38: 77 | J38: =E38*H38 -> 0 | K38: 0 | M38: 0 | N38: =J38*L38 -> 0 | O38: 77 | P38: =+J38-N38 -> 0 | Q38: 9394 | R38: =+J38*E$7 -> 0
C39: Irrigation Labor | D39: 1.408 | F39: Hour | G39: 12.64 | I39: 17.79712 | J39: 0 | K39: 0 | M39: 0 | N39: 0 | O39: 17.79712 | P39: 0 | Q39: 2171.24864 | R39: 0
B40: Machinery Labor
C41: Tractors/Self-Propelled | D41: 0.46 | F41: Hour | G41: 12.44 | I41: 5.7224 | J41: =E41*H41 -> 0 | K41: 0 | M41: 0 | N41: =J41*L41 -> 0 | O41: 5.7224 | P41: =+J41-N41 -> 0 | Q41: 698.1328 | R41: =+J41*E$7 -> 0
C42: Other Labor | D42: 0.52 | F42: Hour | G42: 12.44 | I42: 6.4688 | J42: =E42*H42 -> 0 | K42: 0 | M42: 0 | N42: =J42*L42 -> 0 | O42: 6.4688 | P42: =+J42-N42 -> 0 | Q42: 789.1936 | R42: =+J42*E$7 -> 0
B44: Diesel Fuel
C45: Pickup/General Use Equipment | D45: 1 | F45: Acre | G45: 0 | I45: 0 | J45: =E45*H45 -> 0 | K45: 0 | M45: 0 | N45: =J45*L45 -> 0 | O45: 0 | P45: =+J45-N45 -> 0 | Q45: 0 | R45: =+J45*E$7 -> 0
C46: Tractors/Self-Propelled | D46: 2.66 | F46: Gallon | G46: 1.99 | I46: 5.2934 | J46: =E46*H46 -> 0 | K46: 0 | M46: 0 | N46: =J46*L46 -> 0 | O46: 5.2934 | P46: =+J46-N46 -> 0 | Q46: 645.7948 | R46: =+J46*E$7 -> 0
B48: Gasoline
C49: Pickup/General Use Equipment | D49: 1 | F49: Acre | G49: 6.454918033 | I49: 6.454918033 | J49: =E49*H49 -> 0 | K49: 0 | M49: 0 | N49: =J49*L49 -> 0 | O49: 6.454918033 | P49: =+J49-N49 -> 0 | Q49: 787.5 | R49: =+J49*E$7 -> 0
C50: Tractors/Self-Propelled | D50: 0 | F50: Gallon | G50: 2.1 | I50: 0 | J50: =E50*H50 -> 0 | K50: 0 | M50: 0 | N50: =J50*L50 -> 0 | O50: 0 | P50: =+J50-N50 -> 0 | Q50: 0 | R50: =+J50*E$7 -> 0
B52: Repairs & Maintenance
C53: Pickup/General Use Equipment | D53: 1 | F53: Acre | G53: 3.762295082 | I53: 3.762295082 | J53: =E53*H53 -> 0 | K53: 0 | M53: 0 | N53: =J53*L53 -> 0 | O53: 3.762295082 | P53: =+J53-N53 -> 0 | Q53: 459 | R53: =+J53*E$7 -> 0
C54: Irrigation Equipment | D54: 1 | F54: Acre | G54: 88.88 | I54: 88.88 | J54: 0 | K54: 0 | M54: 0 | N54: 0 | O54: 88.88 | P54: 0 | Q54: 10843.36 | R54: 0
C55: Tractors/Self-Propelled | D55: 1 | F55: Acre | G55: 4.752702603 | I55: 4.752702603 | J55: 0 | K55: 0 | M55: 0 | N55: 0 | O55: 4.752702603 | P55: 0 | Q55: 579.8297176 | R55: 0
C56: Implements | D56: 1 | F56: Acre | G56: 9.85350014 | I56: 9.85350014 | J56: 0 | K56: 0 | M56: 0 | N56: 0 | O56: 9.85350014 | P56: 0 | Q56: 1202.127017 | R56: 0
I57: 0 | J57: 0 | K57: 0 | M57: 0 | N57: 0 | O57: 0 | P57: 0 | Q57: 0 | R57: 0
I58: 0 | J58: 0 | K58: 0 | M58: 0 | N58: 0 | O58: 0 | P58: 0 | Q58: 0 | R58: 0
B59: Interest on Credit Line | G59: 0.0574 | I59: 10.81696163 | J59: =+SUM(J17:J58)/2*H59 -> 0 | M59: 0 | N59: =+SUM(N17:N58)/2*L59 -> 0 | O59: 10.81696163 | P59: =+SUM(P17:P58)/2*L59 -> 0 | Q59: 1319.669319 | R59: =+J59*E$7 -> 0
A60: Total Variable Costs | I60: 635.6620975 | J60: =SUM(J18:J59) -> 0 | M60: 0 | N60: =SUM(N18:N59) -> 0 | O60: 635.6620975 | P60: =SUM(P18:P59) -> 0 | Q60: 77550.77589 | R60: =SUM(R18:R59) -> 0
A61: Planned Returns Above Variable Costs: | I61: 230.5879025 | J61: =+J13-J60 -> 0 | M61: 0 | N61: =+N13-N60 -> 0 | O61: 230.5879025 | P61: =+P13-P60 -> 0 | Q61: 28131.72411 | R61: =+R13-R60 -> 0
B62: Breakeven Price to Cover Variable Costs | G62: 2.825164878 | H62: =IF(E10=0,"n/a",(YVarExp-(YTotExp+YTotRet-J10))/E10) -> n/a | I62: Bushel
Q63: Enterprise | R63: Enterprise
A64: FIXED COSTS | D64: Quantity | E64: Quantity | F64: Units | G64: $/Unit | H64: $/Unit | I64: Total | J64: Total | K64: Share | L64: Share | M64: Landlord | N64: Landlord | O64: Tenant | P64: Tenant | Q64: Total | R64: Total
B65: Machinery Depreciation
C66: Pickup/General Use Equipment | D66: 1 | F66: Acre | G66: 3.950409836 | I66: 3.950409836 | J66: =E66*H66 -> 0 | K66: 0 | M66: 0 | N66: =J66*L66 -> 0 | O66: 3.950409836 | P66: =+J66-N66 -> 0 | Q66: 481.95 | R66: =+J66*E$7 -> 0
C67: Irrigation Equipment | D67: 1 | F67: Acre | G67: 47.33606557 | I67: 47.33606557 | J67: 0 | K67: 0 | M67: 0 | N67: =J67*L67 -> 0 | O67: 47.33606557 | P67: 0 | Q67: 5775 | R67: 0
C68: Tractors/Self-Propelled | D68: 1 | F68: Acre | G68: 4.698730692 | I68: 4.698730692 | J68: 0 | K68: 0 | M68: 0 | N68: =J68*L68 -> 0 | O68: 4.698730692 | P68: 0 | Q68: 573.2451445 | R68: 0
C69: Implements | D69: 1 | F69: Acre | G69: 12.43543379 | I69: 12.43543379 | J69: 0 | K69: 0 | M69: 0 | N69: =J69*L69 -> 0 | O69: 12.43543379 | P69: 0 | Q69: 1517.122922 | R69: 0
B70: Equipment Investment
C71: Pickup/General Use Equipment | D71: 27.27663934 | F71: Dollars | G71: 0.0601 | I71: 1.639326025 | J71: =E71*H71 -> 0 | K71: 0 | M71: 0 | N71: =J71*L71 -> 0 | O71: 1.639326025 | P71: =+J71-N71 -> 0 | Q71: 199.997775 | R71: =+J71*E$7 -> 0
C72: Irrigation Equipment | D72: 571.7213115 | F72: Dollars | G72: 0.0601 | I72: 34.36045082 | J72: 0 | K72: 0 | M72: 0 | N72: =J72*L72 -> 0 | O72: 34.36045082 | P72: 0 | Q72: 4191.975 | R72: 0
C73: Tractors/Self-Propelled | D73: 36.60462781 | F73: Dollars | G73: 0.0601 | I73: 2.199938132 | J73: 0 | K73: 0 | M73: 0 | N73: =J73*L73 -> 0 | O73: 2.199938132 | P73: 0 | Q73: 268.3924521 | R73: 0
C74: Implements | D74: 53.19602232 | F74: Dollars | G74: 0.0601 | I74: 3.197080942 | J74: 0 | K74: 0 | M74: 0 | N74: =J74*L74 -> 0 | O74: 3.197080942 | P74: 0 | Q74: 390.0438749 | R74: 0
B75: Salaried Labor | D75: 1 | F75: Acre | G75: 0 | I75: 0 | J75: 0 | K75: 0 | M75: 0 | N75: =J75*L75 -> 0 | O75: 0 | P75: =+J75-N75 -> 0 | Q75: 0 | R75: =+J75*E$7 -> 0
B76: Management Fee, Owner/Operator Labor | D76: 1 | F76: Acre | G76: 0 | I76: 0 | J76: 0 | K76: 0 | M76: 0 | N76: 0 | O76: 0 | P76: 0 | Q76: 0 | R76: 0
B77: Allocated Establishment Cost | D77: 1 | F77: Acre | G77: 0 | I77: 0 | J77: 0 | K77: 0 | M77: 0 | N77: 0 | O77: 0 | P77: 0 | Q77: 0 | R77: 0
B78: Cash Rent - Corn | D78: 1 | F78: Acre | G78: 120 | I78: 120 | J78: 0 | K78: 0 | M78: 0 | N78: 0 | O78: 120 | P78: 0 | Q78: 14640 | R78: 0
B79: Property Taxes | D79: 1 | F79: Acre | G79: 0 | I79: 0 | J79: 0 | K79: 0 | M79: 0 | N79: 0 | O79: 0 | P79: 0 | Q79: 0 | R79: 0
B80: Whole Farm Insurance | D80: 1 | F80: Acre | G80: 0 | I80: 0 | J80: 0 | K80: 0 | M80: 0 | N80: 0 | O80: 0 | P80: 0 | Q80: 0 | R80: 0
D81: 1 | G81: 0 | I81: 0 | J81: 0 | K81: 0 | M81: 0 | N81: 0 | O81: 0 | P81: 0 | Q81: 0 | R81: 0
D82: 1 | G82: 0 | I82: 0 | J82: =E82*H82 -> 0 | K82: 0 | M82: 0 | N82: 0 | O82: 0 | P82: 0 | Q82: 0 | R82: 0
A83: Total Fixed Costs | I83: 229.8174358 | J83: =+SUM(J66:J82) -> 0 | M83: 0 | N83: =+SUM(N66:N82) -> 0 | O83: 229.8174358 | P83: =+SUM(P66:P82) -> 0 | Q83: 28037.72717 | R83: =+SUM(R66:R82) -> 0
A84: Total Specified Costs | I84: 865.4795333 | J84: =+J60+J83 -> 0 | M84: 0 | N84: =+N60+N83 -> 0 | O84: 865.4795333 | P84: =+P60+P83 -> 0 | Q84: 105588.5031 | R84: =+R60+R83 -> 0
A86: Returns Above Specified Costs | I86: 0.7704667048 | J86: =+J13-J84 -> 0 | M86: 0 | N86: =+N13-N84 -> 0 | O86: 0.7704667048 | P86: =+P13-P84 -> 0 | Q86: 93.99693798 | R86: =+R13-R84 -> 0
A88: Breakeven Price to Cover Total Costs | G88: 3.846575704 | H88: =IF(E10=0,"n/a",(YTotExp-(YTotExp+YTotRet-J10))/E10) -> n/a | I88: Bushel
D90: Example Breakeven Prices
B91: Example | C91: Example | D91: To Cover | G91: To Cover
B92: Yield | C92: Yield | D92: Variable | G92: Total
B93: Percent | C93: Bushel | D93: Costs | G93: Costs
B94: 0.75 | C94: 168.75 | D94: 3.766886504 | G94: 5.128767605
B95: 0.9 | C95: 202.5 | D95: 3.139072086 | G95: 4.273973004
B96: 1 | C96: 225 | D96: 2.825164878 | G96: 3.846575704
B97: 1.1 | C97: 247.5 | D97: 2.568331707 | G97: 3.496887003
B98: 1.25 | C98: 281.25 | D98: 2.260131902 | G98: 3.077260563
D100: Your Breakeven Prices
B101: Your | C101: Your | E101: To Cover | H101: To Cover
B102: Yield | C102: Yield | E102: Variable | H102: Total
B103: Percent | C103: Bushel | E103: Costs | H103: Costs
B104: 0.75 | C104: =E10*YPER1 -> 0 | E104: =IF($E$10=0,0,(YVarExp-(YTotExp+YTotRet-J10))/($E$10*YPER1)) -> 0 | H104: =IF($E$10=0,0,(YTotExp-(YTotExp+YTotRet-J10))/($E$10*YPER1)) -> 0
B105: 0.9 | C105: =E10*YPER2 -> 0 | E105: =IF($E$10=0,0,(YVarExp-(YTotExp+YTotRet-J10))/($E$10*YPER2)) -> 0 | H105: =IF($E$10=0,0,(YTotExp-(YTotExp+YTotRet-J10))/($E$10*YPER2)) -> 0
B106: 1 | C106: =+E10 -> 0 | E106: =IF($E$10=0,0,(YVarExp-(YTotExp+YTotRet-J10))/($E$10*YPER3)) -> 0 | H106: =IF($E$10=0,0,(YTotExp-(YTotExp+YTotRet-J10))/($E$10*YPER3)) -> 0
B107: 1.1 | C107: =E10*YPER4 -> 0 | E107: =IF($E$10=0,0,(YVarExp-(YTotExp+YTotRet-J10))/($E$10*YPER4)) -> 0 | H107: =IF($E$10=0,0,(YTotExp-(YTotExp+YTotRet-J10))/($E$10*YPER4)) -> 0
B108: 1.25 | C108: =E10*YPER5 -> 0 | E108: =IF($E$10=0,0,(YVarExp-(YTotExp+YTotRet-J10))/($E$10*YPER5)) -> 0 | H108: =IF($E$10=0,0,(YTotExp-(YTotExp+YTotRet-J10))/($E$10*YPER5)) -> 0
A110: Developed by Steve Amosson, Regents Fellow, Professor and Extension Economist, Texas A&M AgriLife Extension, 806-677-5600.
A112: Information presented is prepared solely as a general guide and not intended to recognize or predict the costs and returns from any one operation. Brand names are mentioned only as examples and imply no endorsement.

Sheet CornStripTill
A1: Projections for Planning Purposes Only -- Not to be Used without Updating
A2: 2018 Estimated Costs and Returns per Acre
A3: Bt Corn for Grain, Strip Till
A4: Enter your name for this budget in the cell above.
A5: Enter Your Values in the cells highlighed in MAROON.
E6: Your Acres | R6: Your
C7: Crop Acres | D7: 122 | L7: Your | Q7: Enterprise | R7: Enterprise
E8: Your | H8: Your | I8: Cash | J8: Your | K8: Landlord | L8: Landlord | N8: Your | P8: Your | Q8: Total | R8: Total
A9: REVENUE | D9: Quantity | E9: Quantity | F9: Units | G9: $/Unit | H9: $/Unit | I9: Total | J9: Total | K9: Share | L9: Share | M9: Landlord | N9: Landlord | O9: Tenant | P9: Tenant | Q9: (122 acres) | R9: ="(" & E7 & " acres)" -> ( acres)
B10: Corn | D10: 225 | F10: Bushel | G10: 3.85 | I10: 866.25 | J10: =E10*H10 -> 0 | K10: 0 | M10: 0 | N10: =J10*L10 -> 0 | O10: 866.25 | P10: =+J10-N10 -> 0 | Q10: 105682.5 | R10: =+J10*E$7 -> 0
D11: 0 | G11: 0 | I11: 0 | J11: 0 | K11: 0 | M11: 0 | N11: 0 | O11: 0 | P11: =+J11-N11 -> 0 | Q11: 0 | R11: 0
D12: 0 | G12: 0 | I12: 0 | J12: 0 | K12: 0 | M12: 0 | N12: 0 | O12: 0 | P12: 0 | Q12: 0 | R12: 0
A13: Total Revenue | I13: 866.25 | J13: =SUM(J10:J12) -> 0 | M13: 0 | N13: =SUM(N10:N12) -> 0 | O13: 866.25 | P13: =SUM(P10:P12) -> 0 | Q13: 105682.5 | R13: =SUM(R10:R12) -> 0
Q14: Enterprise | R14: Enterprise
A15: VARIABLE COSTS | D15: Quantity | E15: Quantity | F15: Units | G15: $/Unit | H15: $/Unit | I15: Total | J15: Total | K15: Share | L15: Share | M15: Landlord | N15: Landlord | O15: Tenant | P15: Tenant | Q15: Total | R15: Total
A16: Production Costs
B17: Custom
C18: Fertilizer Application - ANH3 | D18: 1 | F18: Acre | G18: 15.36 | I18: 15.36 | J18: =E18*H18 -> 0 | K18: 0 | M18: 0 | N18: =J18*L18 -> 0 | O18: 15.36 | P18: =+J18-N18 -> 0 | Q18: 1873.92 | R18: =+J18*E$7 -> 0
C19: Crop Consultant | D19: 1 | F19: Acre | G19: 8.19 | I19: 8.19 | J19: 0 | K19: 0 | M19: 0 | N19: 0 | O19: 8.19 | P19: 0 | Q19: 999.18 | R19: 0
C20: Harvest and Haul - Corn | D20: 225 | F20: Bushel | G20: 0.41 | I20: 92.25 | J20: 0 | K20: 0 | M20: 0 | N20: 0 | O20: 92.25 | P20: 0 | Q20: 11254.5 | R20: 0
C21: Strip Till | D21: 1 | F21: Acre | G21: 20.48 | I21: 20.48 | J21: 0 | K21: 0 | M21: 0 | N21: 0 | O21: 20.48 | P21: 0 | Q21: 2498.56 | R21: 0
B22: Fertilizer
C23: Fertilizer (P) - Liquid | D23: 60 | F23: Pound | G23: 0.47 | I23: 28.2 | J23: 0 | K23: 0 | M23: 0 | N23: 0 | O23: 28.2 | P23: 0 | Q23: 3440.4 | R23: 0
C24: Fertilizer (N) - ANH3 | D24: 126 | F24: Pound | G24: 0.24 | I24: 30.24 | J24: 0 | K24: 0 | M24: 0 | N24: 0 | O24: 30.24 | P24: 0 | Q24: 3689.28 | R24: 0
C25: Fertilizer (N) - Liquid | D25: 78 | F25: Pound | G25: 0.4 | I25: 31.2 | J25: 0 | K25: 0 | M25: 0 | N25: 0 | O25: 31.2 | P25: 0 | Q25: 3806.4 | R25: 0
B26: Herbicide
C27: Herbicide - Corn Preplant | D27: 1 | F27: Acre | G27: 17.57 | I27: 17.57 | J27: 0 | K27: 0 | M27: 0 | N27: 0 | O27: 17.57 | P27: 0 | Q27: 2143.54 | R27: 0
C28: Herbicide - Corn Postplant | D28: 1 | F28: Acre | G28: 15.86 | I28: 15.86 | J28: 0 | K28: 0 | M28: 0 | N28: 0 | O28: 15.86 | P28: 0 | Q28: 1934.92 | R28: 0
C29: Burndown Herbicide | D29: 1 | F29: Acre | G29: 19.19 | I29: 19.19 | J29: 0 | K29: 0 | M29: 0 | N29: 0 | O29: 19.19 | P29: 0 | Q29: 2341.18 | R29: 0
B30: Insecticide
C31: Miticide | D31: 1 | F31: Acre | G31: 21.04 | I31: 21.04 | J31: 0 | K31: 0 | M31: 0 | N31: 0 | O31: 21.04 | P31: 0 | Q31: 2566.88 | R31: 0
B32: Miscellaneous
C33: Crop Insurance Corn Irrigated | D33: 1 | F33: Acre | G33: 40.15 | I33: 40.15 | J33: 0 | K33: 0 | M33: 0 | N33: 0 | O33: 40.15 | P33: 0 | Q33: 4898.3 | R33: 0
B34: Seed
C35: Seed - Bt Corn for Grain | D35: 0.38 | F35: Bag | G35: 260 | I35: 98.8 | J35: 0 | K35: 0 | M35: 0 | N35: 0 | O35: 98.8 | P35: 0 | Q35: 12053.6 | R35: 0
D36: 0 | G36: 0 | I36: 0 | J36: 0 | K36: 0 | M36: 0 | N36: 0 | O36: 0 | P36: 0 | Q36: 0 | R36: 0
D37: 0 | G37: 0 | I37: 0 | J37: 0 | K37: 0 | M37: 0 | N37: 0 | O37: 0 | P37: 0 | Q37: 0 | R37: 0
D38: 0 | G38: 0 | I38: 0 | J38: =E38*H38 -> 0 | K38: 0 | M38: 0 | N38: =J38*L38 -> 0 | O38: 0 | P38: =+J38-N38 -> 0 | Q38: 0 | R38: =+J38*E$7 -> 0
B39: Irrigation
C40: Energy Cost | D40: 20 | F40: AcreInch | G40: 3.5 | I40: 70 | J40: =E40*H40 -> 0 | K40: 0 | M40: 0 | N40: =J40*L40 -> 0 | O40: 70 | P40: =+J40-N40 -> 0 | Q40: 8540 | R40: =+J40*E$7 -> 0
C41: Irrigation Labor | D41: 1.28 | F41: Hour | G41: 12.64 | I41: 16.1792 | J41: 0 | K41: 0 | M41: 0 | N41: 0 | O41: 16.1792 | P41: 0 | Q41: 1973.8624 | R41: 0
B42: Machinery Labor
C43: Tractors/Self-Propelled | D43: 0.15 | F43: Hour | G43: 12.44 | I43: 1.866 | J43: =E43*H43 -> 0 | K43: 0 | M43: 0 | N43: =J43*L43 -> 0 | O43: 1.866 | P43: =+J43-N43 -> 0 | Q43: 227.652 | R43: =+J43*E$7 -> 0
C44: Other Labor | D44: 0.15 | F44: Hour | G44: 12.44 | I44: 1.866 | J44: =E44*H44 -> 0 | K44: 0 | M44: 0 | N44: =J44*L44 -> 0 | O44: 1.866 | P44: =+J44-N44 -> 0 | Q44: 227.652 | R44: =+J44*E$7 -> 0
B46: Diesel Fuel
C47: Pickup/General Use Equipment | D47: 1 | F47: Acre | G47: 0 | I47: 0 | J47: =E47*H47 -> 0 | K47: 0 | M47: 0 | N47: =J47*L47 -> 0 | O47: 0 | P47: =+J47-N47 -> 0 | Q47: 0 | R47: =+J47*E$7 -> 0
C48: Tractors/Self-Propelled | D48: 0.65 | F48: Gallon | G48: 1.99 | I48: 1.2935 | J48: =E48*H48 -> 0 | K48: 0 | M48: 0 | N48: =J48*L48 -> 0 | O48: 1.2935 | P48: =+J48-N48 -> 0 | Q48: 157.807 | R48: =+J48*E$7 -> 0
B50: Gasoline
C51: Pickup/General Use Equipment | D51: 1 | F51: Acre | G51: 6.454918033 | I51: 6.454918033 | J51: =E51*H51 -> 0 | K51: 0 | M51: 0 | N51: =J51*L51 -> 0 | O51: 6.454918033 | P51: =+J51-N51 -> 0 | Q51: 787.5 | R51: =+J51*E$7 -> 0
C52: Tractors/Self-Propelled | D52: 0 | F52: Gallon | G52: 2.1 | I52: 0 | J52: =E52*H52 -> 0 | K52: 0 | M52: 0 | N52: =J52*L52 -> 0 | O52: 0 | P52: =+J52-N52 -> 0 | Q52: 0 | R52: =+J52*E$7 -> 0
B54: Repairs & Maintenance
C55: Pickup/General Use Equipment | D55: 1 | F55: Acre | G55: 3.762295082 | I55: 3.762295082 | J55: =E55*H55 -> 0 | K55: 0 | M55: 0 | N55: =J55*L55 -> 0 | O55: 3.762295082 | P55: =+J55-N55 -> 0 | Q55: 459 | R55: =+J55*E$7 -> 0
C56: Irrigation Equipment | D56: 1 | F56: Acre | G56: 80.8 | I56: 80.8 | J56: 0 | K56: 0 | M56: 0 | N56: 0 | O56: 80.8 | P56: 0 | Q56: 9857.6 | R56: 0
C57: Tractors/Self-Propelled | D57: 1 | F57: Acre | G57: 1.027719341 | I57: 1.027719341 | J57: 0 | K57: 0 | M57: 0 | N57: 0 | O57: 1.027719341 | P57: 0 | Q57: 125.3817597 | R57: 0
C58: Implements | D58: 1 | F58: Acre | G58: 6.583491363 | I58: 6.583491363 | J58: 0 | K58: 0 | M58: 0 | N58: 0 | O58: 6.583491363 | P58: 0 | Q58: 803.1859462 | R58: 0
I59: 0 | J59: 0 | K59: 0 | M59: 0 | N59: 0 | O59: 0 | P59: 0 | Q59: 0 | R59: 0
I60: 0 | J60: 0 | K60: 0 | M60: 0 | N60: 0 | O60: 0 | P60: 0 | Q60: 0 | R60: 0
B61: Interest on Credit Line | G61: 0.0574 | I61: 11.65690211 | J61: =+SUM(J17:J60)/2*H61 -> 0 | M61: 0 | N61: =+SUM(N17:N60)/2*L61 -> 0 | O61: 11.65690211 | P61: =+SUM(P17:P60)/2*L61 -> 0 | Q61: 1422.142057 | R61: =+J61*E$7 -> 0
A62: Total Variable Costs | I62: 640.0200259 | J62: =SUM(J18:J61) -> 0 | M62: 0 | N62: =SUM(N18:N61) -> 0 | O62: 640.0200259 | P62: =SUM(P18:P61) -> 0 | Q62: 78082.44316 | R62: =SUM(R18:R61) -> 0
A63: Planned Returns Above Variable Costs: | I63: 226.2299741 | J63: =+J13-J62 -> 0 | M63: 0 | N63: =+N13-N62 -> 0 | O63: 226.2299741 | P63: =+P13-P62 -> 0 | Q63: 27600.05684 | R63: =+R13-R62 -> 0
B64: Breakeven Price to Cover Variable Costs | G64: 2.844533449 | H64: =IF(E10=0,"n/a",(YVarExp-(YTotExp+YTotRet-J10))/E10) -> n/a | I64: Bushel
Q65: Enterprise | R65: Enterprise
A66: FIXED COSTS | D66: Quantity | E66: Quantity | F66: Units | G66: $/Unit | H66: $/Unit | I66: Total | J66: Total | K66: Share | L66: Share | M66: Landlord | N66: Landlord | O66: Tenant | P66: Tenant | Q66: Total | R66: Total
B67: Machinery Depreciation
C68: Pickup/General Use Equipment | D68: 1 | F68: Acre | G68: 3.950409836 | I68: 3.950409836 | J68: =E68*H68 -> 0 | K68: 0 | M68: 0 | N68: =J68*L68 -> 0 | O68: 3.950409836 | P68: =+J68-N68 -> 0 | Q68: 481.95 | R68: =+J68*E$7 -> 0
C69: Irrigation Equipment | D69: 1 | F69: Acre | G69: 47.33606557 | I69: 47.33606557 | J69: 0 | K69: 0 | M69: 0 | N69: =J69*L69 -> 0 | O69: 47.33606557 | P69: 0 | Q69: 5775 | R69: 0
C70: Tractors/Self-Propelled | D70: 1 | F70: Acre | G70: 0.8495813223 | I70: 0.8495813223 | J70: 0 | K70: 0 | M70: 0 | N70: =J70*L70 -> 0 | O70: 0.8495813223 | P70: 0 | Q70: 103.6489213 | R70: 0
C71: Implements | D71: 1 | F71: Acre | G71: 8.464488895 | I71: 8.464488895 | J71: 0 | K71: 0 | M71: 0 | N71: =J71*L71 -> 0 | O71: 8.464488895 | P71: 0 | Q71: 1032.667645 | R71: 0
B72: Equipment Investment
C73: Pickup/General Use Equipment | D73: 27.27663934 | F73: Dollars | G73: 0.0601 | I73: 1.639326025 | J73: =E73*H73 -> 0 | K73: 0 | M73: 0 | N73: =J73*L73 -> 0 | O73: 1.639326025 | P73: =+J73-N73 -> 0 | Q73: 199.997775 | R73: =+J73*E$7 -> 0
C74: Irrigation Equipment | D74: 571.7213115 | F74: Dollars | G74: 0.0601 | I74: 34.36045082 | J74: 0 | K74: 0 | M74: 0 | N74: =J74*L74 -> 0 | O74: 34.36045082 | P74: 0 | Q74: 4191.975 | R74: 0
C75: Tractors/Self-Propelled | D75: 6.618512559 | F75: Dollars | G75: 0.0601 | I75: 0.3977726048 | J75: 0 | K75: 0 | M75: 0 | N75: =J75*L75 -> 0 | O75: 0.3977726048 | P75: 0 | Q75: 48.52825779 | R75: 0
C76: Implements | D76: 36.20920249 | F76: Dollars | G76: 0.0601 | I76: 2.17617307 | J76: 0 | K76: 0 | M76: 0 | N76: =J76*L76 -> 0 | O76: 2.17617307 | P76: 0 | Q76: 265.4931145 | R76: 0
B77: Salaried Labor | D77: 1 | F77: Acre | G77: 0 | I77: 0 | J77: 0 | K77: 0 | M77: 0 | N77: =J77*L77 -> 0 | O77: 0 | P77: =+J77-N77 -> 0 | Q77: 0 | R77: =+J77*E$7 -> 0
B78: Management Fee, Owner/Operator Labor | D78: 1 | F78: Acre | G78: 0 | I78: 0 | J78: 0 | K78: 0 | M78: 0 | N78: 0 | O78: 0 | P78: 0 | Q78: 0 | R78: 0
B79: Allocated Establishment Cost | D79: 1 | F79: Acre | G79: 0 | I79: 0 | J79: 0 | K79: 0 | M79: 0 | N79: 0 | O79: 0 | P79: 0 | Q79: 0 | R79: 0
B80: Cash Rent - Corn | D80: 1 | F80: Acre | G80: 120 | I80: 120 | J80: 0 | K80: 0 | M80: 0 | N80: 0 | O80: 120 | P80: 0 | Q80: 14640 | R80: 0
B81: Property Taxes | D81: 1 | F81: Acre | G81: 0 | I81: 0 | J81: 0 | K81: 0 | M81: 0 | N81: 0 | O81: 0 | P81: 0 | Q81: 0 | R81: 0
B82: Whole Farm Insurance | D82: 1 | F82: Acre | G82: 0 | I82: 0 | J82: 0 | K82: 0 | M82: 0 | N82: 0 | O82: 0 | P82: 0 | Q82: 0 | R82: 0
D83: 1 | G83: 0 | I83: 0 | J83: 0 | K83: 0 | M83: 0 | N83: 0 | O83: 0 | P83: 0 | Q83: 0 | R83: 0
D84: 1 | G84: 0 | I84: 0 | J84: =E84*H84 -> 0 | K84: 0 | M84: 0 | N84: 0 | O84: 0 | P84: 0 | Q84: 0 | R84: 0
A85: Total Fixed Costs | I85: 219.1742681 | J85: =+SUM(J68:J84) -> 0 | M85: 0 | N85: =+SUM(N68:N84) -> 0 | O85: 219.1742681 | P85: =+SUM(P68:P84) -> 0 | Q85: 26739.26071 | R85: =+SUM(R68:R84) -> 0
A86: Total Specified Costs | I86: 859.1942941 | J86: =+J62+J85 -> 0 | M86: 0 | N86: =+N62+N85 -> 0 | O86: 859.1942941 | P86: =+P62+P85 -> 0 | Q86: 104821.7039 | R86: =+R62+R85 -> 0
A88: Returns Above Specified Costs | I88: 7.055705929 | J88: =+J13-J86 -> 0 | M88: 0 | N88: =+N13-N86 -> 0 | O88: 7.055705929 | P88: =+P13-P86 -> 0 | Q88: 860.7961234 | R88: =+R13-R86 -> 0
A90: Breakeven Price to Cover Total Costs | G90: 3.818641307 | H90: =IF(E10=0,"n/a",(YTotExp-(YTotExp+YTotRet-J10))/E10) -> n/a | I90: Bushel
D92: Example Breakeven Prices
B93: Example | C93: Example | D93: To Cover | G93: To Cover
B94: Yield | C94: Yield | D94: Variable | G94: Total
B95: Percent | C95: Bushel | D95: Costs | G95: Costs
B96: 0.75 | C96: 168.75 | D96: 3.792711265 | G96: 5.091521743
B97: 0.9 | C97: 202.5 | D97: 3.160592721 | G97: 4.242934786
B98: 1 | C98: 225 | D98: 2.844533449 | G98: 3.818641307
B99: 1.1 | C99: 247.5 | D99: 2.585939499 | G99: 3.471492097
B100: 1.25 | C100: 281.25 | D100: 2.275626759 | G100: 3.054913046
D102: Your Breakeven Prices
B103: Your | C103: Your | E103: To Cover | H103: To Cover
B104: Yield | C104: Yield | E104: Variable | H104: Total
B105: Percent | C105: Bushel | E105: Costs | H105: Costs
B106: 0.75 | C106: =E10*YPER1 -> 0 | E106: =IF($E$10=0,0,(YVarExp-(YTotExp+YTotRet-J10))/($E$10*YPER1)) -> 0 | H106: =IF($E$10=0,0,(YTotExp-(YTotExp+YTotRet-J10))/($E$10*YPER1)) -> 0
B107: 0.9 | C107: =E10*YPER2 -> 0 | E107: =IF($E$10=0,0,(YVarExp-(YTotExp+YTotRet-J10))/($E$10*YPER2)) -> 0 | H107: =IF($E$10=0,0,(YTotExp-(YTotExp+YTotRet-J10))/($E$10*YPER2)) -> 0
B108: 1 | C108: =+E10 -> 0 | E108: =IF($E$10=0,0,(YVarExp-(YTotExp+YTotRet-J10))/($E$10*YPER3)) -> 0 | H108: =IF($E$10=0,0,(YTotExp-(YTotExp+YTotRet-J10))/($E$10*YPER3)) -> 0
B109: 1.1 | C109: =E10*YPER4 -> 0 | E109: =IF($E$10=0,0,(YVarExp-(YTotExp+YTotRet-J10))/($E$10*YPER4)) -> 0 | H109: =IF($E$10=0,0,(YTotExp-(YTotExp+YTotRet-J10))/($E$10*YPER4)) -> 0
B110: 1.25 | C110: =E10*YPER5 -> 0 | E110: =IF($E$10=0,0,(YVarExp-(YTotExp+YTotRet-J10))/($E$10*YPER5)) -> 0 | H110: =IF($E$10=0,0,(YTotExp-(YTotExp+YTotRet-J10))/($E$10*YPER5)) -> 0
A112: Developed by Steve Amosson, Regents Fellow, Professor and Extension Economist, Texas A&M AgriLife Extension, 806-677-5600.
A114: Information presented is prepared solely as a general guide and not intended to recognize or predict the costs and returns from any one operation. Brand names are mentioned only as examples and imply no endorsement.

Sheet CornSilage
A1: Projections for Planning Purposes Only -- Not to be Used without Updating
A2: 2018 Estimated Costs and Returns per Acre
A3: Corn Silage, Bt, Sprinkler Irrigated (NG)
A4: Enter your name for this budget in the cell above.
A5: Enter Your Values in the cells highlighed in MAROON.
E6: Your Acres | R6: Your
C7: Crop Acres | D7: 122 | L7: Your | Q7: Enterprise | R7: Enterprise
E8: Your | H8: Your | I8: Cash | J8: Your | K8: Landlord | L8: Landlord | N8: Your | P8: Your | Q8: Total | R8: Total
A9: REVENUE | D9: Quantity | E9: Quantity | F9: Units | G9: $/Unit | H9: $/Unit | I9: Total | J9: Total | K9: Share | L9: Share | M9: Landlord | N9: Landlord | O9: Tenant | P9: Tenant | Q9: (122 acres) | R9: ="(" & E7 & " acres)" -> ( acres)
B10: Corn Silage | D10: 27 | F10: Ton | G10: 35.75 | I10: 965.25 | J10: =E10*H10 -> 0 | K10: 0 | M10: 0 | N10: =J10*L10 -> 0 | O10: 965.25 | P10: =+J10-N10 -> 0 | Q10: 117760.5 | R10: =+J10*E$7 -> 0
D11: 0 | G11: 0 | I11: 0 | J11: 0 | K11: 0 | M11: 0 | N11: 0 | O11: 0 | P11: =+J11-N11 -> 0 | Q11: 0 | R11: 0
D12: 0 | G12: 0 | I12: 0 | J12: 0 | K12: 0 | M12: 0 | N12: 0 | O12: 0 | P12: 0 | Q12: 0 | R12: 0
A13: Total Revenue | I13: 965.25 | J13: =SUM(J10:J12) -> 0 | M13: 0 | N13: =SUM(N10:N12) -> 0 | O13: 965.25 | P13: =SUM(P10:P12) -> 0 | Q13: 117760.5 | R13: =SUM(R10:R12) -> 0
Q14: Enterprise | R14: Enterprise
A15: VARIABLE COSTS | D15: Quantity | E15: Quantity | F15: Units | G15: $/Unit | H15: $/Unit | I15: Total | J15: Total | K15: Share | L15: Share | M15: Landlord | N15: Landlord | O15: Tenant | P15: Tenant | Q15: Total | R15: Total
A16: Production Costs
B17: Custom
C18: Fertilizer Application - ANH3 | D18: 1 | F18: Acre | G18: 15.36 | I18: 15.36 | J18: =E18*H18 -> 0 | K18: 0 | M18: 0 | N18: =J18*L18 -> 0 | O18: 15.36 | P18: =+J18-N18 -> 0 | Q18: 1873.92 | R18: =+J18*E$7 -> 0
C19: Harvest and Haul - Corn Silage | D19: 27 | F19: Ton | G19: 9.22 | I19: 248.94 | J19: 0 | K19: 0 | M19: 0 | N19: 0 | O19: 248.94 | P19: 0 | Q19: 30370.68 | R19: 0
B20: Fertilizer
C21: Fertilizer (P) - Liquid | D21: 60 | F21: Pound | G21: 0.47 | I21: 28.2 | J21: 0 | K21: 0 | M21: 0 | N21: 0 | O21: 28.2 | P21: 0 | Q21: 3440.4 | R21: 0
C22: Fertilizer (N) - ANH3 | D22: 150 | F22: Pound | G22: 0.24 | I22: 36 | J22: 0 | K22: 0 | M22: 0 | N22: 0 | O22: 36 | P22: 0 | Q22: 4392 | R22: 0
C23: Fertilizer (N) - Liquid | D23: 90 | F23: Pound | G23: 0.4 | I23: 36 | J23: 0 | K23: 0 | M23: 0 | N23: 0 | O23: 36 | P23: 0 | Q23: 4392 | R23: 0
B24: Herbicide
C25: Herbicide - Corn Preplant | D25: 1 | F25: Acre | G25: 17.57 | I25: 17.57 | J25: 0 | K25: 0 | M25: 0 | N25: 0 | O25: 17.57 | P25: 0 | Q25: 2143.54 | R25: 0
C26: Herbicide - Corn Postplant | D26: 1 | F26: Acre | G26: 15.86 | I26: 15.86 | J26: 0 | K26: 0 | M26: 0 | N26: 0 | O26: 15.86 | P26: 0 | Q26: 1934.92 | R26: 0
B27: Insecticide
C28: Miticide | D28: 1 | F28: Acre | G28: 21.04 | I28: 21.04 | J28: 0 | K28: 0 | M28: 0 | N28: 0 | O28: 21.04 | P28: 0 | Q28: 2566.88 | R28: 0
C29: Insecticide and Apply Corn Silage | D29: 1 | F29: Acre | G29: 26.03 | I29: 26.03 | J29: 0 | K29: 0 | M29: 0 | N29: 0 | O29: 26.03 | P29: 0 | Q29: 3175.66 | R29: 0
B30: Miscellaneous
C31: Crop Insurance Corn Silage Irrigated | D31: 1 | F31: Acre | G31: 40.15 | I31: 40.15 | J31: 0 | K31: 0 | M31: 0 | N31: 0 | O31: 40.15 | P31: 0 | Q31: 4898.3 | R31: 0
B32: Seed
C33: Seed - Corn Silage | D33: 0.44 | F33: Bag | G33: 260 | I33: 114.4 | J33: 0 | K33: 0 | M33: 0 | N33: 0 | O33: 114.4 | P33: 0 | Q33: 13956.8 | R33: 0
D34: 0 | G34: 0 | I34: 0 | J34: 0 | K34: 0 | M34: 0 | N34: 0 | O34: 0 | P34: 0 | Q34: 0 | R34: 0
D35: 0 | G35: 0 | I35: 0 | J35: 0 | K35: 0 | M35: 0 | N35: 0 | O35: 0 | P35: 0 | Q35: 0 | R35: 0
D36: 0 | G36: 0 | I36: 0 | J36: =E36*H36 -> 0 | K36: 0 | M36: 0 | N36: =J36*L36 -> 0 | O36: 0 | P36: =+J36-N36 -> 0 | Q36: 0 | R36: =+J36*E$7 -> 0
B37: Irrigation
C38: Energy Cost | D38: 20 | F38: AcreInch | G38: 3.5 | I38: 70 | J38: =E38*H38 -> 0 | K38: 0 | M38: 0 | N38: =J38*L38 -> 0 | O38: 70 | P38: =+J38-N38 -> 0 | Q38: 8540 | R38: =+J38*E$7 -> 0
C39: Irrigation Labor | D39: 1.28 | F39: Hour | G39: 12.64 | I39: 16.1792 | J39: 0 | K39: 0 | M39: 0 | N39: 0 | O39: 16.1792 | P39: 0 | Q39: 1973.8624 | R39: 0
B40: Machinery Labor
C41: Tractors/Self-Propelled | D41: 0.52 | F41: Hour | G41: 12.44 | I41: 6.4688 | J41: =E41*H41 -> 0 | K41: 0 | M41: 0 | N41: =J41*L41 -> 0 | O41: 6.4688 | P41: =+J41-N41 -> 0 | Q41: 789.1936 | R41: =+J41*E$7 -> 0
C42: Other Labor | D42: 0.6 | F42: Hour | G42: 12.44 | I42: 7.464 | J42: =E42*H42 -> 0 | K42: 0 | M42: 0 | N42: =J42*L42 -> 0 | O42: 7.464 | P42: =+J42-N42 -> 0 | Q42: 910.608 | R42: =+J42*E$7 -> 0
B44: Diesel Fuel
C45: Pickup/General Use Equipment | D45: 1 | F45: Acre | G45: 0 | I45: 0 | J45: =E45*H45 -> 0 | K45: 0 | M45: 0 | N45: =J45*L45 -> 0 | O45: 0 | P45: =+J45-N45 -> 0 | Q45: 0 | R45: =+J45*E$7 -> 0
C46: Tractors/Self-Propelled | D46: 3.01 | F46: Gallon | G46: 1.99 | I46: 5.9899 | J46: =E46*H46 -> 0 | K46: 0 | M46: 0 | N46: =J46*L46 -> 0 | O46: 5.9899 | P46: =+J46-N46 -> 0 | Q46: 730.7678 | R46: =+J46*E$7 -> 0
B48: Gasoline
C49: Pickup/General Use Equipment | D49: 1 | F49: Acre | G49: 6.454918033 | I49: 6.454918033 | J49: =E49*H49 -> 0 | K49: 0 | M49: 0 | N49: =J49*L49 -> 0 | O49: 6.454918033 | P49: =+J49-N49 -> 0 | Q49: 787.5 | R49: =+J49*E$7 -> 0
C50: Tractors/Self-Propelled | D50: 0 | F50: Gallon | G50: 2.1 | I50: 0 | J50: =E50*H50 -> 0 | K50: 0 | M50: 0 | N50: =J50*L50 -> 0 | O50: 0 | P50: =+J50-N50 -> 0 | Q50: 0 | R50: =+J50*E$7 -> 0
B52: Repairs & Maintenance
C53: Pickup/General Use Equipment | D53: 1 | F53: Acre | G53: 3.762295082 | I53: 3.762295082 | J53: =E53*H53 -> 0 | K53: 0 | M53: 0 | N53: =J53*L53 -> 0 | O53: 3.762295082 | P53: =+J53-N53 -> 0 | Q53: 459 | R53: =+J53*E$7 -> 0
C54: Irrigation Equipment | D54: 1 | F54: Acre | G54: 80.8 | I54: 80.8 | J54: 0 | K54: 0 | M54: 0 | N54: 0 | O54: 80.8 | P54: 0 | Q54: 9857.6 | R54: 0
C55: Tractors/Self-Propelled | D55: 1 | F55: Acre | G55: 5.321567352 | I55: 5.321567352 | J55: 0 | K55: 0 | M55: 0 | N55: 0 | O55: 5.321567352 | P55: 0 | Q55: 649.2312169 | R55: 0
C56: Implements | D56: 1 | F56: Acre | G56: 12.40986821 | I56: 12.40986821 | J56: 0 | K56: 0 | M56: 0 | N56: 0 | O56: 12.40986821 | P56: 0 | Q56: 1514.003922 | R56: 0
I57: 0 | J57: 0 | K57: 0 | M57: 0 | N57: 0 | O57: 0 | P57: 0 | Q57: 0 | R57: 0
I58: 0 | J58: 0 | K58: 0 | M58: 0 | N58: 0 | O58: 0 | P58: 0 | Q58: 0 | R58: 0
B59: Interest on Credit Line | G59: 0.0574 | I59: 12.62139246 | J59: =+SUM(J17:J58)/2*H59 -> 0 | M59: 0 | N59: =+SUM(N17:N58)/2*L59 -> 0 | O59: 12.62139246 | P59: =+SUM(P17:P58)/2*L59 -> 0 | Q59: 1539.80988 | R59: =+J59*E$7 -> 0
A60: Total Variable Costs | I60: 827.0219411 | J60: =SUM(J18:J59) -> 0 | M60: 0 | N60: =SUM(N18:N59) -> 0 | O60: 827.0219411 | P60: =SUM(P18:P59) -> 0 | Q60: 100896.6768 | R60: =SUM(R18:R59) -> 0
A61: Planned Returns Above Variable Costs: | I61: 138.2280589 | J61: =+J13-J60 -> 0 | M61: 0 | N61: =+N13-N60 -> 0 | O61: 138.2280589 | P61: =+P13-P60 -> 0 | Q61: 16863.82318 | R61: =+R13-R60 -> 0
B62: Breakeven Price to Cover Variable Costs | G62: 30.63044226 | H62: =IF(E10=0,"n/a",(YVarExp-(YTotExp+YTotRet-J10))/E10) -> n/a | I62: Ton
Q63: Enterprise | R63: Enterprise
A64: FIXED COSTS | D64: Quantity | E64: Quantity | F64: Units | G64: $/Unit | H64: $/Unit | I64: Total | J64: Total | K64: Share | L64: Share | M64: Landlord | N64: Landlord | O64: Tenant | P64: Tenant | Q64: Total | R64: Total
B65: Machinery Depreciation
C66: Pickup/General Use Equipment | D66: 1 | F66: Acre | G66: 3.950409836 | I66: 3.950409836 | J66: =E66*H66 -> 0 | K66: 0 | M66: 0 | N66: =J66*L66 -> 0 | O66: 3.950409836 | P66: =+J66-N66 -> 0 | Q66: 481.95 | R66: =+J66*E$7 -> 0
C67: Irrigation Equipment | D67: 1 | F67: Acre | G67: 47.33606557 | I67: 47.33606557 | J67: 0 | K67: 0 | M67: 0 | N67: =J67*L67 -> 0 | O67: 47.33606557 | P67: 0 | Q67: 5775 | R67: 0
C68: Tractors/Self-Propelled | D68: 1 | F68: Acre | G68: 5.286557599 | I68: 5.286557599 | J68: 0 | K68: 0 | M68: 0 | N68: =J68*L68 -> 0 | O68: 5.286557599 | P68: 0 | Q68: 644.9600271 | R68: 0
C69: Implements | D69: 1 | F69: Acre | G69: 15.31134787 | I69: 15.31134787 | J69: 0 | K69: 0 | M69: 0 | N69: =J69*L69 -> 0 | O69: 15.31134787 | P69: 0 | Q69: 1867.98444 | R69: 0
B70: Equipment Investment
C71: Pickup/General Use Equipment | D71: 27.27663934 | F71: Dollars | G71: 0.0601 | I71: 1.639326025 | J71: =E71*H71 -> 0 | K71: 0 | M71: 0 | N71: =J71*L71 -> 0 | O71: 1.639326025 | P71: =+J71-N71 -> 0 | Q71: 199.997775 | R71: =+J71*E$7 -> 0
C72: Irrigation Equipment | D72: 571.7213115 | F72: Dollars | G72: 0.0601 | I72: 34.36045082 | J72: 0 | K72: 0 | M72: 0 | N72: =J72*L72 -> 0 | O72: 34.36045082 | P72: 0 | Q72: 4191.975 | R72: 0
C73: Tractors/Self-Propelled | D73: 41.18398904 | F73: Dollars | G73: 0.0601 | I73: 2.475157741 | J73: 0 | K73: 0 | M73: 0 | N73: =J73*L73 -> 0 | O73: 2.475157741 | P73: 0 | Q73: 301.9692444 | R73: 0
C74: Implements | D74: 65.49854367 | F74: Dollars | G74: 0.0601 | I74: 3.936462475 | J74: 0 | K74: 0 | M74: 0 | N74: =J74*L74 -> 0 | O74: 3.936462475 | P74: 0 | Q74: 480.2484219 | R74: 0
B75: Salaried Labor | D75: 1 | F75: Acre | G75: 0 | I75: 0 | J75: 0 | K75: 0 | M75: 0 | N75: =J75*L75 -> 0 | O75: 0 | P75: =+J75-N75 -> 0 | Q75: 0 | R75: =+J75*E$7 -> 0
B76: Management Fee, Owner/Operator Labor | D76: 1 | F76: Acre | G76: 0 | I76: 0 | J76: 0 | K76: 0 | M76: 0 | N76: 0 | O76: 0 | P76: 0 | Q76: 0 | R76: 0
B77: Allocated Establishment Cost | D77: 1 | F77: Acre | G77: 0 | I77: 0 | J77: 0 | K77: 0 | M77: 0 | N77: 0 | O77: 0 | P77: 0 | Q77: 0 | R77: 0
B78: Cash Rent - Corn | D78: 1 | F78: Acre | G78: 120 | I78: 120 | J78: 0 | K78: 0 | M78: 0 | N78: 0 | O78: 120 | P78: 0 | Q78: 14640 | R78: 0
B79: Property Taxes | D79: 1 | F79: Acre | G79: 0 | I79: 0 | J79: 0 | K79: 0 | M79: 0 | N79: 0 | O79: 0 | P79: 0 | Q79: 0 | R79: 0
B80: Whole Farm Insurance | D80: 1 | F80: Acre | G80: 0 | I80: 0 | J80: 0 | K80: 0 | M80: 0 | N80: 0 | O80: 0 | P80: 0 | Q80: 0 | R80: 0
D81: 1 | G81: 0 | I81: 0 | J81: 0 | K81: 0 | M81: 0 | N81: 0 | O81: 0 | P81: 0 | Q81: 0 | R81: 0
D82: 1 | G82: 0 | I82: 0 | J82: =E82*H82 -> 0 | K82: 0 | M82: 0 | N82: 0 | O82: 0 | P82: 0 | Q82: 0 | R82: 0
A83: Total Fixed Costs | I83: 234.2957779 | J83: =+SUM(J66:J82) -> 0 | M83: 0 | N83: =+SUM(N66:N82) -> 0 | O83: 234.2957779 | P83: =+SUM(P66:P82) -> 0 | Q83: 28584.08491 | R83: =+SUM(R66:R82) -> 0
A84: Total Specified Costs | I84: 1061.317719 | J84: =+J60+J83 -> 0 | M84: 0 | N84: =+N60+N83 -> 0 | O84: 1061.317719 | P84: =+P60+P83 -> 0 | Q84: 129480.7617 | R84: =+R60+R83 -> 0
A86: Returns Above Specified Costs | I86: -96.06771908 | J86: =+J13-J84 -> 0 | M86: 0 | N86: =+N13-N84 -> 0 | O86: -96.06771908 | P86: =+P13-P84 -> 0 | Q86: -11720.26173 | R86: =+R13-R84 -> 0
A88: Breakeven Price to Cover Total Costs | G88: 39.30806367 | H88: =IF(E10=0,"n/a",(YTotExp-(YTotExp+YTotRet-J10))/E10) -> n/a | I88: Ton
D90: Example Breakeven Prices
B91: Example | C91: Example | D91: To Cover | G91: To Cover
B92: Yield | C92: Yield | D92: Variable | G92: Total
B93: Percent | C93: Ton | D93: Costs | G93: Costs
B94: 0.75 | C94: 20.25 | D94: 40.84058969 | G94: 52.41075156
B95: 0.9 | C95: 24.3 | D95: 34.03382474 | G95: 43.6756263
B96: 1 | C96: 27 | D96: 30.63044226 | G96: 39.30806367
B97: 1.1 | C97: 29.7 | D97: 27.8458566 | G97: 35.73460334
B98: 1.25 | C98: 33.75 | D98: 24.50435381 | G98: 31.44645094
D100: Your Breakeven Prices
B101: Your | C101: Your | E101: To Cover | H101: To Cover
B102: Yield | C102: Yield | E102: Variable | H102: Total
B103: Percent | C103: Ton | E103: Costs | H103: Costs
B104: 0.75 | C104: =E10*YPER1 -> 0 | E104: =IF($E$10=0,0,(YVarExp-(YTotExp+YTotRet-J10))/($E$10*YPER1)) -> 0 | H104: =IF($E$10=0,0,(YTotExp-(YTotExp+YTotRet-J10))/($E$10*YPER1)) -> 0
B105: 0.9 | C105: =E10*YPER2 -> 0 | E105: =IF($E$10=0,0,(YVarExp-(YTotExp+YTotRet-J10))/($E$10*YPER2)) -> 0 | H105: =IF($E$10=0,0,(YTotExp-(YTotExp+YTotRet-J10))/($E$10*YPER2)) -> 0
B106: 1 | C106: =+E10 -> 0 | E106: =IF($E$10=0,0,(YVarExp-(YTotExp+YTotRet-J10))/($E$10*YPER3)) -> 0 | H106: =IF($E$10=0,0,(YTotExp-(YTotExp+YTotRet-J10))/($E$10*YPER3)) -> 0
B107: 1.1 | C107: =E10*YPER4 -> 0 | E107: =IF($E$10=0,0,(YVarExp-(YTotExp+YTotRet-J10))/($E$10*YPER4)) -> 0 | H107: =IF($E$10=0,0,(YTotExp-(YTotExp+YTotRet-J10))/($E$10*YPER4)) -> 0
B108: 1.25 | C108: =E10*YPER5 -> 0 | E108: =IF($E$10=0,0,(YVarExp-(YTotExp+YTotRet-J10))/($E$10*YPER5)) -> 0 | H108: =IF($E$10=0,0,(YTotExp-(YTotExp+YTotRet-J10))/($E$10*YPER5)) -> 0
A110: Developed by Steve Amosson, Regents Fellow, Professor and Extension Economist, Texas A&M AgriLife Extension, 806-677-5600.
A112: Information presented is prepared solely as a general guide and not intended to recognize or predict the costs and returns from any one operation. Brand names are mentioned only as examples and imply no endorsement.

Sheet CottonDryland
A1: Projections for Planning Purposes Only -- Not to be Used without Updating
A2: 2018 Estimated Costs and Returns per Acre
A3: Cotton, Dryland (Roundup Ready Flex)
A4: Enter your name for this budget in the cell above.
A5: Enter Your Values in the cells highlighed in MAROON.
E6: Your Acres | R6: Your
C7: Crop Acres | D7: 160 | L7: Your | Q7: Enterprise | R7: Enterprise
E8: Your | H8: Your | I8: Cash | J8: Your | K8: Landlord | L8: Landlord | N8: Your | P8: Your | Q8: Total | R8: Total
A9: REVENUE | D9: Quantity | E9: Quantity | F9: Units | G9: $/Unit | H9: $/Unit | I9: Total | J9: Total | K9: Share | L9: Share | M9: Landlord | N9: Landlord | O9: Tenant | P9: Tenant | Q9: (160 acres) | R9: ="(" & E7 & " acres)" -> ( acres)
B10: Cotton Lint | D10: 400 | F10: Pound | G10: 0.67 | I10: 268 | J10: =E10*H10 -> 0 | K10: 0 | M10: 0 | N10: =J10*L10 -> 0 | O10: 268 | P10: =+J10-N10 -> 0 | Q10: 42880 | R10: =+J10*E$7 -> 0
B11: Cottonseed | D11: 0.3 | F11: Ton | G11: 150 | I11: 45 | J11: 0 | K11: 0 | M11: 0 | N11: 0 | O11: 45 | P11: =+J11-N11 -> 0 | Q11: 7200 | R11: 0
D12: 0 | G12: 0 | I12: 0 | J12: 0 | K12: 0 | M12: 0 | N12: 0 | O12: 0 | P12: 0 | Q12: 0 | R12: 0
D13: 0 | G13: 0 | I13: 0 | J13: 0 | K13: 0 | M13: 0 | N13: 0 | O13: 0 | P13: 0 | Q13: 0 | R13: 0
A14: Total Revenue | I14: 313 | J14: =SUM(J10:J13) -> 0 | M14: 0 | N14: =SUM(N10:N13) -> 0 | O14: 313 | P14: =SUM(P10:P13) -> 0 | Q14: 50080 | R14: =SUM(R10:R13) -> 0
Q15: Enterprise | R15: Enterprise
A16: VARIABLE COSTS | D16: Quantity | E16: Quantity | F16: Units | G16: $/Unit | H16: $/Unit | I16: Total | J16: Total | K16: Share | L16: Share | M16: Landlord | N16: Landlord | O16: Tenant | P16: Tenant | Q16: Total | R16: Total
A17: Production Costs
B18: Custom
C19: Fertilizer Application | D19: 1 | F19: Acre | G19: 5.12 | I19: 5.12 | J19: =E19*H19 -> 0 | K19: 0 | M19: 0 | N19: =J19*L19 -> 0 | O19: 5.12 | P19: =+J19-N19 -> 0 | Q19: 819.2 | R19: =+J19*E$7 -> 0
C20: Strip and Module - Cotton | D20: 4 | F20: CWT | G20: 11 | I20: 44 | J20: 0 | K20: 0 | M20: 0 | N20: 0 | O20: 44 | P20: 0 | Q20: 7040 | R20: 0
C21: Ginning - Cotton | D21: 18 | F21: CWT | G21: 3 | I21: 54 | J21: 0 | K21: 0 | M21: 0 | N21: 0 | O21: 54 | P21: 0 | Q21: 8640 | R21: 0
B22: Fertilizer
C23: Fertilizer (P) - Dry | D23: 20 | F23: Pound | G23: 0.43 | I23: 8.6 | J23: 0 | K23: 0 | M23: 0 | N23: 0 | O23: 8.6 | P23: 0 | Q23: 1376 | R23: 0
C24: Fertilizer (N) - Dry | D24: 30 | F24: Pound | G24: 0.32 | I24: 9.6 | J24: 0 | K24: 0 | M24: 0 | N24: 0 | O24: 9.6 | P24: 0 | Q24: 1536 | R24: 0
B25: Herbicide
C26: Herbicide and Apply Preplant | D26: 1 | F26: Acre | G26: 23 | I26: 23 | J26: 0 | K26: 0 | M26: 0 | N26: 0 | O26: 23 | P26: 0 | Q26: 3680 | R26: 0
C27: Herbicide and Apply Postemerge Dry | D27: 1 | F27: Acre | G27: 14.54 | I27: 14.54 | J27: 0 | K27: 0 | M27: 0 | N27: 0 | O27: 14.54 | P27: 0 | Q27: 2326.4 | R27: 0
B28: Insecticide
C29: Insecticide and Apply Cotton | D29: 0.5 | F29: Acre | G29: 9.72 | I29: 4.86 | J29: 0 | K29: 0 | M29: 0 | N29: 0 | O29: 4.86 | P29: 0 | Q29: 777.6 | R29: 0
C30: Boll Weevil Assessment Dryland | D30: 1 | F30: Acre | G30: 0.7 | I30: 0.7 | J30: 0 | K30: 0 | M30: 0 | N30: 0 | O30: 0.7 | P30: 0 | Q30: 112 | R30: 0
B31: Miscellaneous
C32: Crop Insurance Cotton - Dryland | D32: 1 | F32: Acre | G32: 25 | I32: 25 | J32: 0 | K32: 0 | M32: 0 | N32: 0 | O32: 25 | P32: 0 | Q32: 4000 | R32: 0
B33: Seed
C34: Seed - Cotton Dryland | D34: 0.18 | F34: Bag | G34: 346.5 | I34: 62.37 | J34: 0 | K34: 0 | M34: 0 | N34: 0 | O34: 62.37 | P34: 0 | Q34: 9979.2 | R34: 0
B35: Other Chemicals
C36: Harvest Aid Apply Cotton Dryland | D36: 0.5 | F36: Acre | G36: 25.38 | I36: 12.69 | J36: 0 | K36: 0 | M36: 0 | N36: 0 | O36: 12.69 | P36: 0 | Q36: 2030.4 | R36: 0
D37: 0 | G37: 0 | I37: 0 | J37: 0 | K37: 0 | M37: 0 | N37: 0 | O37: 0 | P37: 0 | Q37: 0 | R37: 0
D38: 0 | G38: 0 | I38: 0 | J38: 0 | K38: 0 | M38: 0 | N38: 0 | O38: 0 | P38: 0 | Q38: 0 | R38: 0
D39: 0 | G39: 0 | I39: 0 | J39: =E39*H39 -> 0 | K39: 0 | M39: 0 | N39: =J39*L39 -> 0 | O39: 0 | P39: =+J39-N39 -> 0 | Q39: 0 | R39: =+J39*E$7 -> 0
B40: Machinery Labor
C41: Tractors/Self-Propelled | D41: 0.57 | F41: Hour | G41: 12.44 | I41: 7.0908 | J41: =E41*H41 -> 0 | K41: 0 | M41: 0 | N41: =J41*L41 -> 0 | O41: 7.0908 | P41: =+J41-N41 -> 0 | Q41: 1134.528 | R41: =+J41*E$7 -> 0
C42: Other Labor | D42: 0.65 | F42: Hour | G42: 12.44 | I42: 8.086 | J42: =E42*H42 -> 0 | K42: 0 | M42: 0 | N42: =J42*L42 -> 0 | O42: 8.086 | P42: =+J42-N42 -> 0 | Q42: 1293.76 | R42: =+J42*E$7 -> 0
B44: Diesel Fuel
C45: Pickup/General Use Equipment | D45: 1 | F45: Acre | G45: 0 | I45: 0 | J45: =E45*H45 -> 0 | K45: 0 | M45: 0 | N45: =J45*L45 -> 0 | O45: 0 | P45: =+J45-N45 -> 0 | Q45: 0 | R45: =+J45*E$7 -> 0
C46: Tractors/Self-Propelled | D46: 3.03 | F46: Gallon | G46: 1.99 | I46: 6.0297 | J46: =E46*H46 -> 0 | K46: 0 | M46: 0 | N46: =J46*L46 -> 0 | O46: 6.0297 | P46: =+J46-N46 -> 0 | Q46: 964.752 | R46: =+J46*E$7 -> 0
B48: Gasoline
C49: Pickup/General Use Equipment | D49: 1 | F49: Acre | G49: 4.265625 | I49: 4.265625 | J49: =E49*H49 -> 0 | K49: 0 | M49: 0 | N49: =J49*L49 -> 0 | O49: 4.265625 | P49: =+J49-N49 -> 0 | Q49: 682.5 | R49: =+J49*E$7 -> 0
C50: Tractors/Self-Propelled | D50: 0 | F50: Gallon | G50: 2.1 | I50: 0 | J50: =E50*H50 -> 0 | K50: 0 | M50: 0 | N50: =J50*L50 -> 0 | O50: 0 | P50: =+J50-N50 -> 0 | Q50: 0 | R50: =+J50*E$7 -> 0
B52: Repairs & Maintenance
C53: Pickup/General Use Equipment | D53: 1 | F53: Acre | G53: 2.48625 | I53: 2.48625 | J53: =E53*H53 -> 0 | K53: 0 | M53: 0 | N53: =J53*L53 -> 0 | O53: 2.48625 | P53: =+J53-N53 -> 0 | Q53: 397.8 | R53: =+J53*E$7 -> 0
C54: Irrigation Equipment | D54: 1 | F54: Acre | G54: 0 | I54: 0 | J54: 0 | K54: 0 | M54: 0 | N54: 0 | O54: 0 | P54: 0 | Q54: 0 | R54: 0
C55: Tractors/Self-Propelled | D55: 1 | F55: Acre | G55: 5.301571571 | I55: 5.301571571 | J55: 0 | K55: 0 | M55: 0 | N55: 0 | O55: 5.301571571 | P55: 0 | Q55: 848.2514514 | R55: 0
C56: Implements | D56: 1 | F56: Acre | G56: 11.21101016 | I56: 11.21101016 | J56: 0 | K56: 0 | M56: 0 | N56: 0 | O56: 11.21101016 | P56: 0 | Q56: 1793.761626 | R56: 0
I57: 0 | J57: 0 | K57: 0 | M57: 0 | N57: 0 | O57: 0 | P57: 0 | Q57: 0 | R57: 0
I58: 0 | J58: 0 | K58: 0 | M58: 0 | N58: 0 | O58: 0 | P58: 0 | Q58: 0 | R58: 0
B59: Interest on Credit Line | G59: 0.0574 | I59: 7.080881684 | J59: =+SUM(J18:J58)/2*H59 -> 0 | M59: 0 | N59: =+SUM(N18:N58)/2*L59 -> 0 | O59: 7.080881684 | P59: =+SUM(P18:P58)/2*L59 -> 0 | Q59: 1132.941069 | R59: =+J59*E$7 -> 0
A60: Total Variable Costs | I60: 316.0318384 | J60: =SUM(J19:J59) -> 0 | M60: 0 | N60: =SUM(N19:N59) -> 0 | O60: 316.0318384 | P60: =SUM(P19:P59) -> 0 | Q60: 50565.09415 | R60: =SUM(R19:R59) -> 0
A61: Planned Returns Above Variable Costs: | I61: -3.031838415 | J61: =+J14-J60 -> 0 | M61: 0 | N61: =+N14-N60 -> 0 | O61: -3.031838415 | P61: =+P14-P60 -> 0 | Q61: -485.0941465 | R61: =+R14-R60 -> 0
B62: Breakeven Price to Cover Variable Costs | G62: 0.677579596 | H62: =IF(E10=0,"n/a",(YVarExp-(YTotExp+YTotRet-J10))/E10) -> n/a | I62: Pound
Q63: Enterprise | R63: Enterprise
A64: FIXED COSTS | D64: Quantity | E64: Quantity | F64: Units | G64: $/Unit | H64: $/Unit | I64: Total | J64: Total | K64: Share | L64: Share | M64: Landlord | N64: Landlord | O64: Tenant | P64: Tenant | Q64: Total | R64: Total
B65: Machinery Depreciation
C66: Pickup/General Use Equipment | D66: 1 | F66: Acre | G66: 2.6105625 | I66: 2.6105625 | J66: =E66*H66 -> 0 | K66: 0 | M66: 0 | N66: =J66*L66 -> 0 | O66: 2.6105625 | P66: =+J66-N66 -> 0 | Q66: 417.69 | R66: =+J66*E$7 -> 0
C67: Tractors/Self-Propelled | D67: 1 | F67: Acre | G67: 5.050345841 | I67: 5.050345841 | J67: 0 | K67: 0 | M67: 0 | N67: =J67*L67 -> 0 | O67: 5.050345841 | P67: 0 | Q67: 808.0553345 | R67: 0
C68: Implements | D68: 1 | F68: Acre | G68: 13.85502376 | I68: 13.85502376 | J68: 0 | K68: 0 | M68: 0 | N68: =J68*L68 -> 0 | O68: 13.85502376 | P68: 0 | Q68: 2216.803802 | R68: 0
B69: Equipment Investment
C70: Pickup/General Use Equipment | D70: 18.0253125 | F70: Dollars | G70: 0.0601 | I70: 1.083321281 | J70: =E70*H70 -> 0 | K70: 0 | M70: 0 | N70: =J70*L70 -> 0 | O70: 1.083321281 | P70: =+J70-N70 -> 0 | Q70: 173.331405 | R70: =+J70*E$7 -> 0
C71: Tractors/Self-Propelled | D71: 39.34382324 | F71: Dollars | G71: 0.0601 | I71: 2.364563777 | J71: 0 | K71: 0 | M71: 0 | N71: =J71*L71 -> 0 | O71: 2.364563777 | P71: 0 | Q71: 378.3302043 | R71: 0
C72: Implements | D72: 59.68311498 | F72: Dollars | G72: 0.0601 | I72: 3.58695521 | J72: 0 | K72: 0 | M72: 0 | N72: =J72*L72 -> 0 | O72: 3.58695521 | P72: 0 | Q72: 573.9128336 | R72: 0
B73: Salaried Labor | D73: 1 | F73: Acre | G73: 0 | I73: 0 | J73: 0 | K73: 0 | M73: 0 | N73: =J73*L73 -> 0 | O73: 0 | P73: =+J73-N73 -> 0 | Q73: 0 | R73: =+J73*E$7 -> 0
B74: Management Fee, Owner/Operator Labor | D74: 1 | F74: Acre | G74: 0 | I74: 0 | J74: 0 | K74: 0 | M74: 0 | N74: 0 | O74: 0 | P74: 0 | Q74: 0 | R74: 0
B75: Allocated Establishment Cost | D75: 1 | F75: Acre | G75: 0 | I75: 0 | J75: 0 | K75: 0 | M75: 0 | N75: 0 | O75: 0 | P75: 0 | Q75: 0 | R75: 0
B76: Cash Rent - Cotton Dryland | D76: 1 | F76: Acre | G76: 26.5 | I76: 26.5 | J76: 0 | K76: 0 | M76: 0 | N76: 0 | O76: 26.5 | P76: 0 | Q76: 4240 | R76: 0
B77: Property Taxes | D77: 1 | F77: Acre | G77: 0 | I77: 0 | J77: 0 | K77: 0 | M77: 0 | N77: 0 | O77: 0 | P77: 0 | Q77: 0 | R77: 0
B78: Whole Farm Insurance | D78: 1 | F78: Acre | G78: 0 | I78: 0 | J78: 0 | K78: 0 | M78: 0 | N78: 0 | O78: 0 | P78: 0 | Q78: 0 | R78: 0
D79: 1 | G79: 0 | I79: 0 | J79: 0 | K79: 0 | M79: 0 | N79: 0 | O79: 0 | P79: 0 | Q79: 0 | R79: 0
D80: 1 | G80: 0 | I80: 0 | J80: =E80*H80 -> 0 | K80: 0 | M80: 0 | N80: 0 | O80: 0 | P80: 0 | Q80: 0 | R80: 0
A81: Total Fixed Costs | I81: 55.05077237 | J81: =+SUM(J66:J80) -> 0 | M81: 0 | N81: =+SUM(N66:N80) -> 0 | O81: 55.05077237 | P81: =+SUM(P66:P80) -> 0 | Q81: 8808.123579 | R81: =+SUM(R66:R80) -> 0
A82: Total Specified Costs | I82: 371.0826108 | J82: =+J60+J81 -> 0 | M82: 0 | N82: =+N60+N81 -> 0 | O82: 371.0826108 | P82: =+P60+P81 -> 0 | Q82: 59373.21773 | R82: =+R60+R81 -> 0
A84: Returns Above Specified Costs | I84: -58.08261078 | J84: =+J14-J82 -> 0 | M84: 0 | N84: =+N14-N82 -> 0 | O84: -58.08261078 | P84: =+P14-P82 -> 0 | Q84: -9293.217726 | R84: =+R14-R82 -> 0
A86: Breakeven Price to Cover Total Costs | G86: 0.815206527 | H86: =IF(E10=0,"n/a",(YTotExp-(YTotExp+YTotRet-J10))/E10) -> n/a | I86: Pound
D88: Example Breakeven Prices
B89: Example | C89: Example | D89: To Cover | G89: To Cover
B90: Yield | C90: Yield | D90: Variable | G90: Total
B91: Percent | C91: Pound | D91: Costs | G91: Costs
B92: 0.75 | C92: 300 | D92: 0.9034394614 | G92: 1.086942036
B93: 0.9 | C93: 360 | D93: 0.7528662178 | G93: 0.90578503
B94: 1 | C94: 400 | D94: 0.677579596 | G94: 0.815206527
B95: 1.1 | C95: 440 | D95: 0.6159814509 | G95: 0.7410968427
B96: 1.25 | C96: 500 | D96: 0.5420636768 | G96: 0.6521652216
D98: Your Breakeven Prices
B99: Your | C99: Your | E99: To Cover | H99: To Cover
B100: Yield | C100: Yield | E100: Variable | H100: Total
B101: Percent | C101: Pound | E101: Costs | H101: Costs
B102: 0.75 | C102: =E10*YPER1 -> 0 | E102: =IF($E$10=0,0,(YVarExp-(YTotExp+YTotRet-J10))/($E$10*YPER1)) -> 0 | H102: =IF($E$10=0,0,(YTotExp-(YTotExp+YTotRet-J10))/($E$10*YPER1)) -> 0
B103: 0.9 | C103: =E10*YPER2 -> 0 | E103: =IF($E$10=0,0,(YVarExp-(YTotExp+YTotRet-J10))/($E$10*YPER2)) -> 0 | H103: =IF($E$10=0,0,(YTotExp-(YTotExp+YTotRet-J10))/($E$10*YPER2)) -> 0
B104: 1 | C104: =+E10 -> 0 | E104: =IF($E$10=0,0,(YVarExp-(YTotExp+YTotRet-J10))/($E$10*YPER3)) -> 0 | H104: =IF($E$10=0,0,(YTotExp-(YTotExp+YTotRet-J10))/($E$10*YPER3)) -> 0
B105: 1.1 | C105: =E10*YPER4 -> 0 | E105: =IF($E$10=0,0,(YVarExp-(YTotExp+YTotRet-J10))/($E$10*YPER4)) -> 0 | H105: =IF($E$10=0,0,(YTotExp-(YTotExp+YTotRet-J10))/($E$10*YPER4)) -> 0
B106: 1.25 | C106: =E10*YPER5 -> 0 | E106: =IF($E$10=0,0,(YVarExp-(YTotExp+YTotRet-J10))/($E$10*YPER5)) -> 0 | H106: =IF($E$10=0,0,(YTotExp-(YTotExp+YTotRet-J10))/($E$10*YPER5)) -> 0
A108: Developed by Steve Amosson, Regents Fellow, Professor and Extension Economist, Texas A&M AgriLife Extension, 806-677-5600.
A110: Information presented is prepared solely as a general guide and not intended to recognize or predict the costs and returns from any one operation. Brand names are mentioned only as examples and imply no endorsement.

Sheet CottonIrrigated
A1: Projections for Planning Purposes Only -- Not to be Used without Updating
A2: 2018 Estimated Costs and Returns per Acre
A3: Cotton, Sprinkler Irrigated (Roundup Ready Flex)
A4: Enter your name for this budget in the cell above.
A5: Enter Your Values in the cells highlighed in MAROON.
E6: Your Acres | R6: Your
C7: Crop Acres | D7: 122 | L7: Your | Q7: Enterprise | R7: Enterprise
E8: Your | H8: Your | I8: Cash | J8: Your | K8: Landlord | L8: Landlord | N8: Your | P8: Your | Q8: Total | R8: Total
A9: REVENUE | D9: Quantity | E9: Quantity | F9: Units | G9: $/Unit | H9: $/Unit | I9: Total | J9: Total | K9: Share | L9: Share | M9: Landlord | N9: Landlord | O9: Tenant | P9: Tenant | Q9: (122 acres) | R9: ="(" & E7 & " acres)" -> ( acres)
B10: Cotton Lint | D10: 1500 | F10: Pound | G10: 0.67 | I10: 1005 | J10: =E10*H10 -> 0 | K10: 0 | M10: 0 | N10: =J10*L10 -> 0 | O10: 1005 | P10: =+J10-N10 -> 0 | Q10: 122610 | R10: =+J10*E$7 -> 0
B11: Cottonseed | D11: 1.125 | F11: Ton | G11: 150 | I11: 168.75 | J11: 0 | K11: 0 | M11: 0 | N11: 0 | O11: 168.75 | P11: =+J11-N11 -> 0 | Q11: 20587.5 | R11: 0
D12: 0 | G12: 0 | I12: 0 | J12: 0 | K12: 0 | M12: 0 | N12: 0 | O12: 0 | P12: 0 | Q12: 0 | R12: 0
D13: 0 | G13: 0 | I13: 0 | J13: 0 | K13: 0 | M13: 0 | N13: 0 | O13: 0 | P13: 0 | Q13: 0 | R13: 0
A14: Total Revenue | I14: 1173.75 | J14: =SUM(J10:J13) -> 0 | M14: 0 | N14: =SUM(N10:N13) -> 0 | O14: 1173.75 | P14: =SUM(P10:P13) -> 0 | Q14: 143197.5 | R14: =SUM(R10:R13) -> 0
Q15: Enterprise | R15: Enterprise
A16: VARIABLE COSTS | D16: Quantity | E16: Quantity | F16: Units | G16: $/Unit | H16: $/Unit | I16: Total | J16: Total | K16: Share | L16: Share | M16: Landlord | N16: Landlord | O16: Tenant | P16: Tenant | Q16: Total | R16: Total
A17: Production Costs
B18: Custom
C19: Fertilizer Application | D19: 1 | F19: Acre | G19: 5.12 | I19: 5.12 | J19: =E19*H19 -> 0 | K19: 0 | M19: 0 | N19: =J19*L19 -> 0 | O19: 5.12 | P19: =+J19-N19 -> 0 | Q19: 624.64 | R19: =+J19*E$7 -> 0
C20: Strip and Module - Cotton | D20: 15 | F20: CWT | G20: 11 | I20: 165 | J20: 0 | K20: 0 | M20: 0 | N20: 0 | O20: 165 | P20: 0 | Q20: 20130 | R20: 0
C21: Ginning - Cotton | D21: 54.95 | F21: CWT | G21: 3 | I21: 164.85 | J21: 0 | K21: 0 | M21: 0 | N21: 0 | O21: 164.85 | P21: 0 | Q21: 20111.7 | R21: 0
B22: Fertilizer
C23: Fertilizer (P) - Dry | D23: 66 | F23: Pound | G23: 0.43 | I23: 28.38 | J23: 0 | K23: 0 | M23: 0 | N23: 0 | O23: 28.38 | P23: 0 | Q23: 3462.36 | R23: 0
C24: Fertilizer (N) - Dry | D24: 165 | F24: Pound | G24: 0.32 | I24: 52.8 | J24: 0 | K24: 0 | M24: 0 | N24: 0 | O24: 52.8 | P24: 0 | Q24: 6441.6 | R24: 0
B25: Herbicide
C26: Herbicide and Apply Preplant | D26: 1 | F26: Acre | G26: 23 | I26: 23 | J26: 0 | K26: 0 | M26: 0 | N26: 0 | O26: 23 | P26: 0 | Q26: 2806 | R26: 0
C27: Herbicide and Apply Postemerge | D27: 1 | F27: Acre | G27: 19.73 | I27: 19.73 | J27: 0 | K27: 0 | M27: 0 | N27: 0 | O27: 19.73 | P27: 0 | Q27: 2407.06 | R27: 0
B28: Insecticide
C29: Insecticide and Apply Cotton | D29: 1 | F29: Acre | G29: 9.72 | I29: 9.72 | J29: 0 | K29: 0 | M29: 0 | N29: 0 | O29: 9.72 | P29: 0 | Q29: 1185.84 | R29: 0
C30: Boll Weevil Assessment Irrigated | D30: 1 | F30: Acre | G30: 0.7 | I30: 0.7 | J30: 0 | K30: 0 | M30: 0 | N30: 0 | O30: 0.7 | P30: 0 | Q30: 85.4 | R30: 0
B31: Miscellaneous
C32: Crop Insurance Cotton - Irrigated | D32: 1 | F32: Acre | G32: 55 | I32: 55 | J32: 0 | K32: 0 | M32: 0 | N32: 0 | O32: 55 | P32: 0 | Q32: 6710 | R32: 0
B33: Seed
C34: Seed - Cotton | D34: 0.25 | F34: Bag | G34: 360 | I34: 90 | J34: 0 | K34: 0 | M34: 0 | N34: 0 | O34: 90 | P34: 0 | Q34: 10980 | R34: 0
B35: Other Chemicals
C36: Harvest Aid Apply Cotton Irrigated | D36: 0.75 | F36: Acre | G36: 25.38 | I36: 19.035 | J36: 0 | K36: 0 | M36: 0 | N36: 0 | O36: 19.035 | P36: 0 | Q36: 2322.27 | R36: 0
D37: 0 | G37: 0 | I37: 0 | J37: 0 | K37: 0 | M37: 0 | N37: 0 | O37: 0 | P37: 0 | Q37: 0 | R37: 0
D38: 0 | G38: 0 | I38: 0 | J38: 0 | K38: 0 | M38: 0 | N38: 0 | O38: 0 | P38: 0 | Q38: 0 | R38: 0
D39: 0 | G39: 0 | I39: 0 | J39: =E39*H39 -> 0 | K39: 0 | M39: 0 | N39: =J39*L39 -> 0 | O39: 0 | P39: =+J39-N39 -> 0 | Q39: 0 | R39: =+J39*E$7 -> 0
B40: Irrigation
C41: Energy Cost | D41: 12 | F41: AcreInch | G41: 3.5 | I41: 42 | J41: =E41*H41 -> 0 | K41: 0 | M41: 0 | N41: =J41*L41 -> 0 | O41: 42 | P41: =+J41-N41 -> 0 | Q41: 5124 | R41: =+J41*E$7 -> 0
C42: Irrigation Labor | D42: 0.768 | F42: Hour | G42: 12.64 | I42: 9.70752 | J42: 0 | K42: 0 | M42: 0 | N42: 0 | O42: 9.70752 | P42: 0 | Q42: 1184.31744 | R42: 0
B43: Machinery Labor
C44: Tractors/Self-Propelled | D44: 0.55 | F44: Hour | G44: 12.44 | I44: 6.842 | J44: =E44*H44 -> 0 | K44: 0 | M44: 0 | N44: =J44*L44 -> 0 | O44: 6.842 | P44: =+J44-N44 -> 0 | Q44: 834.724 | R44: =+J44*E$7 -> 0
C45: Other Labor | D45: 0.62 | F45: Hour | G45: 12.44 | I45: 7.7128 | J45: =E45*H45 -> 0 | K45: 0 | M45: 0 | N45: =J45*L45 -> 0 | O45: 7.7128 | P45: =+J45-N45 -> 0 | Q45: 940.9616 | R45: =+J45*E$7 -> 0
B47: Diesel Fuel
C48: Pickup/General Use Equipment | D48: 1 | F48: Acre | G48: 0 | I48: 0 | J48: =E48*H48 -> 0 | K48: 0 | M48: 0 | N48: =J48*L48 -> 0 | O48: 0 | P48: =+J48-N48 -> 0 | Q48: 0 | R48: =+J48*E$7 -> 0
C49: Tractors/Self-Propelled | D49: 2.88 | F49: Gallon | G49: 1.99 | I49: 5.7312 | J49: =E49*H49 -> 0 | K49: 0 | M49: 0 | N49: =J49*L49 -> 0 | O49: 5.7312 | P49: =+J49-N49 -> 0 | Q49: 699.2064 | R49: =+J49*E$7 -> 0
B51: Gasoline
C52: Pickup/General Use Equipment | D52: 1 | F52: Acre | G52: 7.31557377 | I52: 7.31557377 | J52: =E52*H52 -> 0 | K52: 0 | M52: 0 | N52: =J52*L52 -> 0 | O52: 7.31557377 | P52: =+J52-N52 -> 0 | Q52: 892.5 | R52: =+J52*E$7 -> 0
C53: Tractors/Self-Propelled | D53: 0 | F53: Gallon | G53: 2.1 | I53: 0 | J53: =E53*H53 -> 0 | K53: 0 | M53: 0 | N53: =J53*L53 -> 0 | O53: 0 | P53: =+J53-N53 -> 0 | Q53: 0 | R53: =+J53*E$7 -> 0
B55: Repairs & Maintenance
C56: Pickup/General Use Equipment | D56: 1 | F56: Acre | G56: 4.263934426 | I56: 4.263934426 | J56: =E56*H56 -> 0 | K56: 0 | M56: 0 | N56: =J56*L56 -> 0 | O56: 4.263934426 | P56: =+J56-N56 -> 0 | Q56: 520.2 | R56: =+J56*E$7 -> 0
C57: Irrigation Equipment | D57: 1 | F57: Acre | G57: 48.48 | I57: 48.48 | J57: 0 | K57: 0 | M57: 0 | N57: 0 | O57: 48.48 | P57: 0 | Q57: 5914.56 | R57: 0
C58: Tractors/Self-Propelled | D58: 1 | F58: Acre | G58: 5.057192406 | I58: 5.057192406 | J58: 0 | K58: 0 | M58: 0 | N58: 0 | O58: 5.057192406 | P58: 0 | Q58: 616.9774735 | R58: 0
C59: Implements | D59: 1 | F59: Acre | G59: 4.353542011 | I59: 4.353542011 | J59: 0 | K59: 0 | M59: 0 | N59: 0 | O59: 4.353542011 | P59: 0 | Q59: 531.1321253 | R59: 0
I60: 0 | J60: 0 | K60: 0 | M60: 0 | N60: 0 | O60: 0 | P60: 0 | Q60: 0 | R60: 0
I61: 0 | J61: 0 | K61: 0 | M61: 0 | N61: 0 | O61: 0 | P61: 0 | Q61: 0 | R61: 0
B62: Interest on Credit Line | G62: 0.0574 | I62: 14.05759993 | J62: =+SUM(J18:J61)/2*H62 -> 0 | M62: 0 | N62: =+SUM(N18:N61)/2*L62 -> 0 | O62: 14.05759993 | P62: =+SUM(P18:P61)/2*L62 -> 0 | Q62: 1715.027191 | R62: =+J62*E$7 -> 0
A63: Total Variable Costs | I63: 788.8563625 | J63: =SUM(J19:J62) -> 0 | M63: 0 | N63: =SUM(N19:N62) -> 0 | O63: 788.8563625 | P63: =SUM(P19:P62) -> 0 | Q63: 96240.47623 | R63: =SUM(R19:R62) -> 0
A64: Planned Returns Above Variable Costs: | I64: 384.8936375 | J64: =+J14-J63 -> 0 | M64: 0 | N64: =+N14-N63 -> 0 | O64: 384.8936375 | P64: =+P14-P63 -> 0 | Q64: 46957.02377 | R64: =+R14-R63 -> 0
B65: Breakeven Price to Cover Variable Costs | G65: 0.4134042417 | H65: =IF(E10=0,"n/a",(YVarExp-(YTotExp+YTotRet-J10))/E10) -> n/a | I65: Pound
Q66: Enterprise | R66: Enterprise
A67: FIXED COSTS | D67: Quantity | E67: Quantity | F67: Units | G67: $/Unit | H67: $/Unit | I67: Total | J67: Total | K67: Share | L67: Share | M67: Landlord | N67: Landlord | O67: Tenant | P67: Tenant | Q67: Total | R67: Total
B68: Machinery Depreciation
C69: Pickup/General Use Equipment | D69: 1 | F69: Acre | G69: 4.477131148 | I69: 4.477131148 | J69: =E69*H69 -> 0 | K69: 0 | M69: 0 | N69: =J69*L69 -> 0 | O69: 4.477131148 | P69: =+J69-N69 -> 0 | Q69: 546.21 | R69: =+J69*E$7 -> 0
C70: Irrigation Equipment | D70: 1 | F70: Acre | G70: 33.50409836 | I70: 33.50409836 | J70: 0 | K70: 0 | M70: 0 | N70: =J70*L70 -> 0 | O70: 33.50409836 | P70: 0 | Q70: 4087.5 | R70: 0
C71: Tractors/Self-Propelled | D71: 1 | F71: Acre | G71: 4.754273426 | I71: 4.754273426 | J71: 0 | K71: 0 | M71: 0 | N71: =J71*L71 -> 0 | O71: 4.754273426 | P71: 0 | Q71: 580.021358 | R71: 0
C72: Implements | D72: 1 | F72: Acre | G72: 5.08231098 | I72: 5.08231098 | J72: 0 | K72: 0 | M72: 0 | N72: =J72*L72 -> 0 | O72: 5.08231098 | P72: 0 | Q72: 620.0419396 | R72: 0
B73: Equipment Investment
C74: Pickup/General Use Equipment | D74: 30.91352459 | F74: Dollars | G74: 0.0601 | I74: 1.857902828 | J74: =E74*H74 -> 0 | K74: 0 | M74: 0 | N74: =J74*L74 -> 0 | O74: 1.857902828 | P74: =+J74-N74 -> 0 | Q74: 226.664145 | R74: =+J74*E$7 -> 0
C75: Irrigation Equipment | D75: 470.2868852 | F75: Dollars | G75: 0.0601 | I75: 28.2642418 | J75: 0 | K75: 0 | M75: 0 | N75: =J75*L75 -> 0 | O75: 28.2642418 | P75: 0 | Q75: 3448.2375 | R75: 0
C76: Tractors/Self-Propelled | D76: 37.03732362 | F76: Dollars | G76: 0.0601 | I76: 2.22594315 | J76: 0 | K76: 0 | M76: 0 | N76: =J76*L76 -> 0 | O76: 2.22594315 | P76: 0 | Q76: 271.5650643 | R76: 0
C77: Implements | D77: 22.1553992 | F77: Dollars | G77: 0.0601 | I77: 1.331539492 | J77: 0 | K77: 0 | M77: 0 | N77: =J77*L77 -> 0 | O77: 1.331539492 | P77: 0 | Q77: 162.447818 | R77: 0
B78: Salaried Labor | D78: 1 | F78: Acre | G78: 0 | I78: 0 | J78: 0 | K78: 0 | M78: 0 | N78: =J78*L78 -> 0 | O78: 0 | P78: =+J78-N78 -> 0 | Q78: 0 | R78: =+J78*E$7 -> 0
B79: Management Fee, Owner/Operator Labor | D79: 1 | F79: Acre | G79: 0 | I79: 0 | J79: 0 | K79: 0 | M79: 0 | N79: 0 | O79: 0 | P79: 0 | Q79: 0 | R79: 0
B80: Allocated Establishment Cost | D80: 1 | F80: Acre | G80: 0 | I80: 0 | J80: 0 | K80: 0 | M80: 0 | N80: 0 | O80: 0 | P80: 0 | Q80: 0 | R80: 0
B81: Cash Rent - Cotton Irrigated | D81: 1 | F81: Acre | G81: 72 | I81: 72 | J81: 0 | K81: 0 | M81: 0 | N81: 0 | O81: 72 | P81: 0 | Q81: 8784 | R81: 0
B82: Property Taxes | D82: 1 | F82: Acre | G82: 0 | I82: 0 | J82: 0 | K82: 0 | M82: 0 | N82: 0 | O82: 0 | P82: 0 | Q82: 0 | R82: 0
B83: Whole Farm Insurance | D83: 1 | F83: Acre | G83: 0 | I83: 0 | J83: 0 | K83: 0 | M83: 0 | N83: 0 | O83: 0 | P83: 0 | Q83: 0 | R83: 0
D84: 1 | G84: 0 | I84: 0 | J84: 0 | K84: 0 | M84: 0 | N84: 0 | O84: 0 | P84: 0 | Q84: 0 | R84: 0
D85: 1 | G85: 0 | I85: 0 | J85: =E85*H85 -> 0 | K85: 0 | M85: 0 | N85: 0 | O85: 0 | P85: 0 | Q85: 0 | R85: 0
A86: Total Fixed Costs | I86: 153.4974412 | J86: =+SUM(J69:J85) -> 0 | M86: 0 | N86: =+SUM(N69:N85) -> 0 | O86: 153.4974412 | P86: =+SUM(P69:P85) -> 0 | Q86: 18726.68782 | R86: =+SUM(R69:R85) -> 0
A87: Total Specified Costs | I87: 942.3538037 | J87: =+J63+J86 -> 0 | M87: 0 | N87: =+N63+N86 -> 0 | O87: 942.3538037 | P87: =+P63+P86 -> 0 | Q87: 114967.1641 | R87: =+R63+R86 -> 0
A89: Returns Above Specified Costs | I89: 231.3961963 | J89: =+J14-J87 -> 0 | M89: 0 | N89: =+N14-N87 -> 0 | O89: 231.3961963 | P89: =+P14-P87 -> 0 | Q89: 28230.33595 | R89: =+R14-R87 -> 0
A91: Breakeven Price to Cover Total Costs | G91: 0.5157358692 | H91: =IF(E10=0,"n/a",(YTotExp-(YTotExp+YTotRet-J10))/E10) -> n/a | I91: Pound
D93: Example Breakeven Prices
B94: Example | C94: Example | D94: To Cover | G94: To Cover
B95: Yield | C95: Yield | D95: Variable | G95: Total
B96: Percent | C96: Pound | D96: Costs | G96: Costs
B97: 0.75 | C97: 1125 | D97: 0.5512056556 | G97: 0.6876478255
B98: 0.9 | C98: 1350 | D98: 0.4593380463 | G98: 0.5730398546
B99: 1 | C99: 1500 | D99: 0.4134042417 | G99: 0.5157358692
B100: 1.1 | C100: 1650 | D100: 0.3758220379 | G100: 0.4688507901
B101: 1.25 | C101: 1875 | D101: 0.3307233934 | G101: 0.4125886953
D103: Your Breakeven Prices
B104: Your | C104: Your | E104: To Cover | H104: To Cover
B105: Yield | C105: Yield | E105: Variable | H105: Total
B106: Percent | C106: Pound | E106: Costs | H106: Costs
B107: 0.75 | C107: =E10*YPER1 -> 0 | E107: =IF($E$10=0,0,(YVarExp-(YTotExp+YTotRet-J10))/($E$10*YPER1)) -> 0 | H107: =IF($E$10=0,0,(YTotExp-(YTotExp+YTotRet-J10))/($E$10*YPER1)) -> 0
B108: 0.9 | C108: =E10*YPER2 -> 0 | E108: =IF($E$10=0,0,(YVarExp-(YTotExp+YTotRet-J10))/($E$10*YPER2)) -> 0 | H108: =IF($E$10=0,0,(YTotExp-(YTotExp+YTotRet-J10))/($E$10*YPER2)) -> 0
B109: 1 | C109: =+E10 -> 0 | E109: =IF($E$10=0,0,(YVarExp-(YTotExp+YTotRet-J10))/($E$10*YPER3)) -> 0 | H109: =IF($E$10=0,0,(YTotExp-(YTotExp+YTotRet-J10))/($E$10*YPER3)) -> 0
B110: 1.1 | C110: =E10*YPER4 -> 0 | E110: =IF($E$10=0,0,(YVarExp-(YTotExp+YTotRet-J10))/($E$10*YPER4)) -> 0 | H110: =IF($E$10=0,0,(YTotExp-(YTotExp+YTotRet-J10))/($E$10*YPER4)) -> 0
B111: 1.25 | C111: =E10*YPER5 -> 0 | E111: =IF($E$10=0,0,(YVarExp-(YTotExp+YTotRet-J10))/($E$10*YPER5)) -> 0 | H111: =IF($E$10=0,0,(YTotExp-(YTotExp+YTotRet-J10))/($E$10*YPER5)) -> 0
A113: Developed by Steve Amosson, Regents Fellow, Professor and Extension Economist, Texas A&M AgriLife Extension, 806-677-5600.
A115: Information presented is prepared solely as a general guide and not intended to recognize or predict the costs and returns from any one operation. Brand names are mentioned only as examples and imply no endorsement.

Sheet Peanuts
A1: Projections for Planning Purposes Only -- Not to be Used without Updating
A2: 2018 Estimated Costs and Returns per Acre
A3: Peanuts, Runner, Sprinkler Irrigated
A4: Enter your name for this budget in the cell above.
A5: Enter Your Values in the cells highlighed in MAROON.
E6: Your Acres | R6: Your
C7: Crop Acres | D7: 122 | L7: Your | Q7: Enterprise | R7: Enterprise
E8: Your | H8: Your | I8: Cash | J8: Your | K8: Landlord | L8: Landlord | N8: Your | P8: Your | Q8: Total | R8: Total
A9: REVENUE | D9: Quantity | E9: Quantity | F9: Units | G9: $/Unit | H9: $/Unit | I9: Total | J9: Total | K9: Share | L9: Share | M9: Landlord | N9: Landlord | O9: Tenant | P9: Tenant | Q9: (122 acres) | R9: ="(" & E7 & " acres)" -> ( acres)
B10: Peanuts - Runner | D10: 2.25 | F10: Ton | G10: 425 | I10: 956.25 | J10: =E10*H10 -> 0 | K10: 0 | M10: 0 | N10: =J10*L10 -> 0 | O10: 956.25 | P10: =+J10-N10 -> 0 | Q10: 116662.5 | R10: =+J10*E$7 -> 0
D11: 0 | G11: 0 | I11: 0 | J11: 0 | K11: 0 | M11: 0 | N11: 0 | O11: 0 | P11: =+J11-N11 -> 0 | Q11: 0 | R11: 0
D12: 0 | G12: 0 | I12: 0 | J12: 0 | K12: 0 | M12: 0 | N12: 0 | O12: 0 | P12: 0 | Q12: 0 | R12: 0
A13: Total Revenue | I13: 956.25 | J13: =SUM(J10:J12) -> 0 | M13: 0 | N13: =SUM(N10:N12) -> 0 | O13: 956.25 | P13: =SUM(P10:P12) -> 0 | Q13: 116662.5 | R13: =SUM(R10:R12) -> 0
Q14: Enterprise | R14: Enterprise
A15: VARIABLE COSTS | D15: Quantity | E15: Quantity | F15: Units | G15: $/Unit | H15: $/Unit | I15: Total | J15: Total | K15: Share | L15: Share | M15: Landlord | N15: Landlord | O15: Tenant | P15: Tenant | Q15: Total | R15: Total
A16: Production Costs
B17: Custom
C18: Fertilizer Application | D18: 1 | F18: Acre | G18: 5.12 | I18: 5.12 | J18: =E18*H18 -> 0 | K18: 0 | M18: 0 | N18: =J18*L18 -> 0 | O18: 5.12 | P18: =+J18-N18 -> 0 | Q18: 624.64 | R18: =+J18*E$7 -> 0
C19: Dig and Shake | D19: 1 | F19: Acre | G19: 25.61 | I19: 25.61 | J19: 0 | K19: 0 | M19: 0 | N19: 0 | O19: 25.61 | P19: 0 | Q19: 3124.42 | R19: 0
C20: Harvest and Haul - Peanuts | D20: 2.25 | F20: Ton | G20: 40.97 | I20: 92.1825 | J20: 0 | K20: 0 | M20: 0 | N20: 0 | O20: 92.1825 | P20: 0 | Q20: 11246.265 | R20: 0
C21: Drying - Peanuts | D21: 2.25 | F21: Ton | G21: 25.61 | I21: 57.6225 | J21: 0 | K21: 0 | M21: 0 | N21: 0 | O21: 57.6225 | P21: 0 | Q21: 7029.945 | R21: 0
B22: Fertilizer
C23: Fertilizer (P) - Dry | D23: 50 | F23: Pound | G23: 0.43 | I23: 21.5 | J23: 0 | K23: 0 | M23: 0 | N23: 0 | O23: 21.5 | P23: 0 | Q23: 2623 | R23: 0
C24: Fertilizer (N) - Dry | D24: 80 | F24: Pound | G24: 0.32 | I24: 25.6 | J24: 0 | K24: 0 | M24: 0 | N24: 0 | O24: 25.6 | P24: 0 | Q24: 3123.2 | R24: 0
B25: Herbicide
C26: Herbicide - Peanut | D26: 1 | F26: Acre | G26: 17.62 | I26: 17.62 | J26: 0 | K26: 0 | M26: 0 | N26: 0 | O26: 17.62 | P26: 0 | Q26: 2149.64 | R26: 0
B27: Insecticide
C28: Insecticide and Apply Peanut | D28: 1 | F28: Application | G28: 9.72 | I28: 9.72 | J28: 0 | K28: 0 | M28: 0 | N28: 0 | O28: 9.72 | P28: 0 | Q28: 1185.84 | R28: 0
B29: Miscellaneous
C30: Crop Insurance Peanuts - Irrigated | D30: 1 | F30: Acre | G30: 40 | I30: 40 | J30: 0 | K30: 0 | M30: 0 | N30: 0 | O30: 40 | P30: 0 | Q30: 4880 | R30: 0
B31: Seed
C32: Seed - Peanut | D32: 100 | F32: Pound | G32: 0.99 | I32: 99 | J32: 0 | K32: 0 | M32: 0 | N32: 0 | O32: 99 | P32: 0 | Q32: 12078 | R32: 0
C33: Innoculant Peanut | D33: 1 | F33: Acre | G33: 7.23 | I33: 7.23 | J33: 0 | K33: 0 | M33: 0 | N33: 0 | O33: 7.23 | P33: 0 | Q33: 882.06 | R33: 0
B34: Fungicides
C35: Fungicide and Apply Peanut | D35: 3 | F35: Application | G35: 16.06 | I35: 48.18 | J35: 0 | K35: 0 | M35: 0 | N35: 0 | O35: 48.18 | P35: 0 | Q35: 5877.96 | R35: 0
B36: Other Labor
C37: Hoeing - Peanut | D37: 1 | F37: Acre | G37: 19.29 | I37: 19.29 | J37: 0 | K37: 0 | M37: 0 | N37: 0 | O37: 19.29 | P37: 0 | Q37: 2353.38 | R37: 0
D38: 0 | G38: 0 | I38: 0 | J38: 0 | K38: 0 | M38: 0 | N38: 0 | O38: 0 | P38: 0 | Q38: 0 | R38: 0
D39: 0 | G39: 0 | I39: 0 | J39: 0 | K39: 0 | M39: 0 | N39: 0 | O39: 0 | P39: 0 | Q39: 0 | R39: 0
D40: 0 | G40: 0 | I40: 0 | J40: =E40*H40 -> 0 | K40: 0 | M40: 0 | N40: =J40*L40 -> 0 | O40: 0 | P40: =+J40-N40 -> 0 | Q40: 0 | R40: =+J40*E$7 -> 0
B41: Irrigation
C42: Energy Cost | D42: 21 | F42: AcreInch | G42: 3.5 | I42: 73.5 | J42: =E42*H42 -> 0 | K42: 0 | M42: 0 | N42: =J42*L42 -> 0 | O42: 73.5 | P42: =+J42-N42 -> 0 | Q42: 8967 | R42: =+J42*E$7 -> 0
C43: Irrigation Labor | D43: 1.344 | F43: Hour | G43: 12.64 | I43: 16.98816 | J43: 0 | K43: 0 | M43: 0 | N43: 0 | O43: 16.98816 | P43: 0 | Q43: 2072.55552 | R43: 0
B44: Machinery Labor
C45: Tractors/Self-Propelled | D45: 1.21 | F45: Hour | G45: 12.44 | I45: 15.0524 | J45: =E45*H45 -> 0 | K45: 0 | M45: 0 | N45: =J45*L45 -> 0 | O45: 15.0524 | P45: =+J45-N45 -> 0 | Q45: 1836.3928 | R45: =+J45*E$7 -> 0
C46: Other Labor | D46: 1.4 | F46: Hour | G46: 12.44 | I46: 17.416 | J46: =E46*H46 -> 0 | K46: 0 | M46: 0 | N46: =J46*L46 -> 0 | O46: 17.416 | P46: =+J46-N46 -> 0 | Q46: 2124.752 | R46: =+J46*E$7 -> 0
B48: Diesel Fuel
C49: Pickup/General Use Equipment | D49: 1 | F49: Acre | G49: 0 | I49: 0 | J49: =E49*H49 -> 0 | K49: 0 | M49: 0 | N49: =J49*L49 -> 0 | O49: 0 | P49: =+J49-N49 -> 0 | Q49: 0 | R49: =+J49*E$7 -> 0
C50: Tractors/Self-Propelled | D50: 6.82 | F50: Gallon | G50: 1.99 | I50: 13.5718 | J50: =E50*H50 -> 0 | K50: 0 | M50: 0 | N50: =J50*L50 -> 0 | O50: 13.5718 | P50: =+J50-N50 -> 0 | Q50: 1655.7596 | R50: =+J50*E$7 -> 0
B52: Gasoline
C53: Pickup/General Use Equipment | D53: 1 | F53: Acre | G53: 4.303278689 | I53: 4.303278689 | J53: =E53*H53 -> 0 | K53: 0 | M53: 0 | N53: =J53*L53 -> 0 | O53: 4.303278689 | P53: =+J53-N53 -> 0 | Q53: 525 | R53: =+J53*E$7 -> 0
C54: Tractors/Self-Propelled | D54: 0 | F54: Gallon | G54: 2.1 | I54: 0 | J54: =E54*H54 -> 0 | K54: 0 | M54: 0 | N54: =J54*L54 -> 0 | O54: 0 | P54: =+J54-N54 -> 0 | Q54: 0 | R54: =+J54*E$7 -> 0
B56: Repairs & Maintenance
C57: Pickup/General Use Equipment | D57: 1 | F57: Acre | G57: 2.508196721 | I57: 2.508196721 | J57: =E57*H57 -> 0 | K57: 0 | M57: 0 | N57: =J57*L57 -> 0 | O57: 2.508196721 | P57: =+J57-N57 -> 0 | Q57: 306 | R57: =+J57*E$7 -> 0
C58: Irrigation Equipment | D58: 1 | F58: Acre | G58: 84.84 | I58: 84.84 | J58: 0 | K58: 0 | M58: 0 | N58: 0 | O58: 84.84 | P58: 0 | Q58: 10350.48 | R58: 0
C59: Tractors/Self-Propelled | D59: 1 | F59: Acre | G59: 11.36852913 | I59: 11.36852913 | J59: 0 | K59: 0 | M59: 0 | N59: 0 | O59: 11.36852913 | P59: 0 | Q59: 1386.960554 | R59: 0
C60: Implements | D60: 1 | F60: Acre | G60: 23.63322464 | I60: 23.63322464 | J60: 0 | K60: 0 | M60: 0 | N60: 0 | O60: 23.63322464 | P60: 0 | Q60: 2883.253406 | R60: 0
I61: 0 | J61: 0 | K61: 0 | M61: 0 | N61: 0 | O61: 0 | P61: 0 | Q61: 0 | R61: 0
I62: 0 | J62: 0 | K62: 0 | M62: 0 | N62: 0 | O62: 0 | P62: 0 | Q62: 0 | R62: 0
B63: Interest on Credit Line | G63: 0.0574 | I63: 13.90180378 | J63: =+SUM(J17:J62)/2*H63 -> 0 | M63: 0 | N63: =+SUM(N17:N62)/2*L63 -> 0 | O63: 13.90180378 | P63: =+SUM(P17:P62)/2*L63 -> 0 | Q63: 1696.020061 | R63: =+J63*E$7 -> 0
A64: Total Variable Costs | I64: 745.758393 | J64: =SUM(J18:J63) -> 0 | M64: 0 | N64: =SUM(N18:N63) -> 0 | O64: 745.758393 | P64: =SUM(P18:P63) -> 0 | Q64: 90982.52394 | R64: =SUM(R18:R63) -> 0
A65: Planned Returns Above Variable Costs: | I65: 210.491607 | J65: =+J13-J64 -> 0 | M65: 0 | N65: =+N13-N64 -> 0 | O65: 210.491607 | P65: =+P13-P64 -> 0 | Q65: 25679.97606 | R65: =+R13-R64 -> 0
B66: Breakeven Price to Cover Variable Costs | G66: 331.4481746 | H66: =IF(E10=0,"n/a",(YVarExp-(YTotExp+YTotRet-J10))/E10) -> n/a | I66: Ton
Q67: Enterprise | R67: Enterprise
A68: FIXED COSTS | D68: Quantity | E68: Quantity | F68: Units | G68: $/Unit | H68: $/Unit | I68: Total | J68: Total | K68: Share | L68: Share | M68: Landlord | N68: Landlord | O68: Tenant | P68: Tenant | Q68: Total | R68: Total
B69: Machinery Depreciation
C70: Pickup/General Use Equipment | D70: 1 | F70: Acre | G70: 2.633606557 | I70: 2.633606557 | J70: =E70*H70 -> 0 | K70: 0 | M70: 0 | N70: =J70*L70 -> 0 | O70: 2.633606557 | P70: =+J70-N70 -> 0 | Q70: 321.3 | R70: =+J70*E$7 -> 0
C71: Irrigation Equipment | D71: 1 | F71: Acre | G71: 47.33606557 | I71: 47.33606557 | J71: 0 | K71: 0 | M71: 0 | N71: =J71*L71 -> 0 | O71: 47.33606557 | P71: 0 | Q71: 5775 | R71: 0
C72: Tractors/Self-Propelled | D72: 1 | F72: Acre | G72: 11.41465664 | I72: 11.41465664 | J72: 0 | K72: 0 | M72: 0 | N72: =J72*L72 -> 0 | O72: 11.41465664 | P72: 0 | Q72: 1392.58811 | R72: 0
C73: Implements | D73: 1 | F73: Acre | G73: 27.81413464 | I73: 27.81413464 | J73: 0 | K73: 0 | M73: 0 | N73: =J73*L73 -> 0 | O73: 27.81413464 | P73: 0 | Q73: 3393.324426 | R73: 0
B74: Equipment Investment
C75: Pickup/General Use Equipment | D75: 18.18442623 | F75: Dollars | G75: 0.0601 | I75: 1.092884016 | J75: =E75*H75 -> 0 | K75: 0 | M75: 0 | N75: =J75*L75 -> 0 | O75: 1.092884016 | P75: =+J75-N75 -> 0 | Q75: 133.33185 | R75: =+J75*E$7 -> 0
C76: Irrigation Equipment | D76: 571.7213115 | F76: Dollars | G76: 0.0601 | I76: 34.36045082 | J76: 0 | K76: 0 | M76: 0 | N76: =J76*L76 -> 0 | O76: 34.36045082 | P76: 0 | Q76: 4191.975 | R76: 0
C77: Tractors/Self-Propelled | D77: 88.92385735 | F77: Dollars | G77: 0.0601 | I77: 5.344323827 | J77: 0 | K77: 0 | M77: 0 | N77: =J77*L77 -> 0 | O77: 5.344323827 | P77: 0 | Q77: 652.0075069 | R77: 0
C78: Implements | D78: 118.9826871 | F78: Dollars | G78: 0.0601 | I78: 7.150859492 | J78: 0 | K78: 0 | M78: 0 | N78: =J78*L78 -> 0 | O78: 7.150859492 | P78: 0 | Q78: 872.404858 | R78: 0
B79: Salaried Labor | D79: 1 | F79: Acre | G79: 0 | I79: 0 | J79: 0 | K79: 0 | M79: 0 | N79: =J79*L79 -> 0 | O79: 0 | P79: =+J79-N79 -> 0 | Q79: 0 | R79: =+J79*E$7 -> 0
B80: Management Fee, Owner/Operator Labor | D80: 1 | F80: Acre | G80: 0 | I80: 0 | J80: 0 | K80: 0 | M80: 0 | N80: 0 | O80: 0 | P80: 0 | Q80: 0 | R80: 0
B81: Allocated Establishment Cost | D81: 1 | F81: Acre | G81: 0 | I81: 0 | J81: 0 | K81: 0 | M81: 0 | N81: 0 | O81: 0 | P81: 0 | Q81: 0 | R81: 0
B82: Cash Rent - Peanuts | D82: 1 | F82: Acre | G82: 72 | I82: 72 | J82: 0 | K82: 0 | M82: 0 | N82: 0 | O82: 72 | P82: 0 | Q82: 8784 | R82: 0
B83: Property Taxes | D83: 1 | F83: Acre | G83: 0 | I83: 0 | J83: 0 | K83: 0 | M83: 0 | N83: 0 | O83: 0 | P83: 0 | Q83: 0 | R83: 0
B84: Whole Farm Insurance | D84: 1 | F84: Acre | G84: 0 | I84: 0 | J84: 0 | K84: 0 | M84: 0 | N84: 0 | O84: 0 | P84: 0 | Q84: 0 | R84: 0
D85: 1 | G85: 0 | I85: 0 | J85: 0 | K85: 0 | M85: 0 | N85: 0 | O85: 0 | P85: 0 | Q85: 0 | R85: 0
D86: 1 | G86: 0 | I86: 0 | J86: =E86*H86 -> 0 | K86: 0 | M86: 0 | N86: 0 | O86: 0 | P86: 0 | Q86: 0 | R86: 0
A87: Total Fixed Costs | I87: 209.1469816 | J87: =+SUM(J70:J86) -> 0 | M87: 0 | N87: =+SUM(N70:N86) -> 0 | O87: 209.1469816 | P87: =+SUM(P70:P86) -> 0 | Q87: 25515.93175 | R87: =+SUM(R70:R86) -> 0
A88: Total Specified Costs | I88: 954.9053745 | J88: =+J64+J87 -> 0 | M88: 0 | N88: =+N64+N87 -> 0 | O88: 954.9053745 | P88: =+P64+P87 -> 0 | Q88: 116498.4557 | R88: =+R64+R87 -> 0
A90: Returns Above Specified Costs | I90: 1.344625478 | J90: =+J13-J88 -> 0 | M90: 0 | N90: =+N13-N88 -> 0 | O90: 1.344625478 | P90: =+P13-P88 -> 0 | Q90: 164.0443084 | R90: =+R13-R88 -> 0
A92: Breakeven Price to Cover Total Costs | G92: 424.4023887 | H92: =IF(E10=0,"n/a",(YTotExp-(YTotExp+YTotRet-J10))/E10) -> n/a | I92: Ton
D94: Example Breakeven Prices
B95: Example | C95: Example | D95: To Cover | G95: To Cover
B96: Yield | C96: Yield | D96: Variable | G96: Total
B97: Percent | C97: Ton | D97: Costs | G97: Costs
B98: 0.75 | C98: 1.6875 | D98: 441.9308995 | G98: 565.8698516
B99: 0.9 | C99: 2.025 | D99: 368.2757496 | G99: 471.5582096
B100: 1 | C100: 2.25 | D100: 331.4481746 | G100: 424.4023887
B101: 1.1 | C101: 2.475 | D101: 301.3165224 | G101: 385.8203533
B102: 1.25 | C102: 2.8125 | D102: 265.1585397 | G102: 339.5219109
D104: Your Breakeven Prices
B105: Your | C105: Your | E105: To Cover | H105: To Cover
B106: Yield | C106: Yield | E106: Variable | H106: Total
B107: Percent | C107: Ton | E107: Costs | H107: Costs
B108: 0.75 | C108: =E10*YPER1 -> 0 | E108: =IF($E$10=0,0,(YVarExp-(YTotExp+YTotRet-J10))/($E$10*YPER1)) -> 0 | H108: =IF($E$10=0,0,(YTotExp-(YTotExp+YTotRet-J10))/($E$10*YPER1)) -> 0
B109: 0.9 | C109: =E10*YPER2 -> 0 | E109: =IF($E$10=0,0,(YVarExp-(YTotExp+YTotRet-J10))/($E$10*YPER2)) -> 0 | H109: =IF($E$10=0,0,(YTotExp-(YTotExp+YTotRet-J10))/($E$10*YPER2)) -> 0
B110: 1 | C110: =+E10 -> 0 | E110: =IF($E$10=0,0,(YVarExp-(YTotExp+YTotRet-J10))/($E$10*YPER3)) -> 0 | H110: =IF($E$10=0,0,(YTotExp-(YTotExp+YTotRet-J10))/($E$10*YPER3)) -> 0
B111: 1.1 | C111: =E10*YPER4 -> 0 | E111: =IF($E$10=0,0,(YVarExp-(YTotExp+YTotRet-J10))/($E$10*YPER4)) -> 0 | H111: =IF($E$10=0,0,(YTotExp-(YTotExp+YTotRet-J10))/($E$10*YPER4)) -> 0
B112: 1.25 | C112: =E10*YPER5 -> 0 | E112: =IF($E$10=0,0,(YVarExp-(YTotExp+YTotRet-J10))/($E$10*YPER5)) -> 0 | H112: =IF($E$10=0,0,(YTotExp-(YTotExp+YTotRet-J10))/($E$10*YPER5)) -> 0
A114: Developed by Steve Amosson, Regents Fellow, Professor and Extension Economist, Texas A&M AgriLife Extension, 806-677-5600.
A116: Information presented is prepared solely as a general guide and not intended to recognize or predict the costs and returns from any one operation. Brand names are mentioned only as examples and imply no endorsement.

Sheet SorghumRotation
A1: Projections for Planning Purposes Only -- Not to be Used without Updating
A2: 2018 Estimated Costs and Returns per Acre
A3: Rotation, Sorghum-Fallow-Wheat, Minimum Till, Sorghum
A4: Enter your name for this budget in the cell above.
A5: Enter Your Values in the cells highlighed in MAROON.
E6: Your Acres | R6: Your
C7: Crop Acres | D7: 160 | L7: Your | Q7: Enterprise | R7: Enterprise
E8: Your | H8: Your | I8: Cash | J8: Your | K8: Landlord | L8: Landlord | N8: Your | P8: Your | Q8: Total | R8: Total
A9: REVENUE | D9: Quantity | E9: Quantity | F9: Units | G9: $/Unit | H9: $/Unit | I9: Total | J9: Total | K9: Share | L9: Share | M9: Landlord | N9: Landlord | O9: Tenant | P9: Tenant | Q9: (160 acres) | R9: ="(" & E7 & " acres)" -> ( acres)
B10: Grain Sorghum | D10: 25 | F10: CWT | G10: 6 | I10: 150 | J10: =E10*H10 -> 0 | K10: 0 | M10: 0 | N10: =J10*L10 -> 0 | O10: 150 | P10: =+J10-N10 -> 0 | Q10: 24000 | R10: =+J10*E$7 -> 0
D11: 0 | G11: 0 | I11: 0 | J11: 0 | K11: 0 | M11: 0 | N11: 0 | O11: 0 | P11: =+J11-N11 -> 0 | Q11: 0 | R11: 0
D12: 0 | G12: 0 | I12: 0 | J12: 0 | K12: 0 | M12: 0 | N12: 0 | O12: 0 | P12: 0 | Q12: 0 | R12: 0
A13: Total Revenue | I13: 150 | J13: =SUM(J10:J12) -> 0 | M13: 0 | N13: =SUM(N10:N12) -> 0 | O13: 150 | P13: =SUM(P10:P12) -> 0 | Q13: 24000 | R13: =SUM(R10:R12) -> 0
Q14: Enterprise | R14: Enterprise
A15: VARIABLE COSTS | D15: Quantity | E15: Quantity | F15: Units | G15: $/Unit | H15: $/Unit | I15: Total | J15: Total | K15: Share | L15: Share | M15: Landlord | N15: Landlord | O15: Tenant | P15: Tenant | Q15: Total | R15: Total
A16: Production Costs
B17: Custom
C18: Fertilizer Application - ANH3 | D18: 1 | F18: Acre | G18: 15.36 | I18: 15.36 | J18: =E18*H18 -> 0 | K18: 0 | M18: 0 | N18: =J18*L18 -> 0 | O18: 15.36 | P18: =+J18-N18 -> 0 | Q18: 2457.6 | R18: =+J18*E$7 -> 0
C19: Custom Harvest - Sorghum Dryland | D19: 1 | F19: Acre | G19: 25.61 | I19: 25.61 | J19: 0 | K19: 0 | M19: 0 | N19: 0 | O19: 25.61 | P19: 0 | Q19: 4097.6 | R19: 0
C20: Custom Haul - Sorghum Dryland | D20: 25 | F20: CWT | G20: 0.26 | I20: 6.5 | J20: 0 | K20: 0 | M20: 0 | N20: 0 | O20: 6.5 | P20: 0 | Q20: 1040 | R20: 0
B21: Fertilizer
C22: Fertilizer (N) - ANH3 | D22: 40 | F22: Pound | G22: 0.24 | I22: 9.6 | J22: 0 | K22: 0 | M22: 0 | N22: 0 | O22: 9.6 | P22: 0 | Q22: 1536 | R22: 0
B23: Herbicide
C24: Herbicide and Apply Sorghum | D24: 1 | F24: Acre | G24: 19.53 | I24: 19.53 | J24: 0 | K24: 0 | M24: 0 | N24: 0 | O24: 19.53 | P24: 0 | Q24: 3124.8 | R24: 0
B25: Insecticide
C26: Insecticide Head Worm | D26: 0.33 | F26: Application | G26: 9.93 | I26: 3.2769 | J26: 0 | K26: 0 | M26: 0 | N26: 0 | O26: 3.2769 | P26: 0 | Q26: 524.304 | R26: 0
C27: Insecticide Sugar Cane Aphid | D27: 1 | F27: Application | G27: 21.27 | I27: 21.27 | J27: 0 | K27: 0 | M27: 0 | N27: 0 | O27: 21.27 | P27: 0 | Q27: 3403.2 | R27: 0
B28: Miscellaneous
C29: Crop Insurance Sorghum - Dryland | D29: 1 | F29: Acre | G29: 17.4 | I29: 17.4 | J29: 0 | K29: 0 | M29: 0 | N29: 0 | O29: 17.4 | P29: 0 | Q29: 2784 | R29: 0
B30: Seed
C31: Seed - Sorghum | D31: 2.25 | F31: Pound | G31: 2.2 | I31: 4.95 | J31: 0 | K31: 0 | M31: 0 | N31: 0 | O31: 4.95 | P31: 0 | Q31: 792 | R31: 0
D32: 0 | G32: 0 | I32: 0 | J32: 0 | K32: 0 | M32: 0 | N32: 0 | O32: 0 | P32: 0 | Q32: 0 | R32: 0
D33: 0 | G33: 0 | I33: 0 | J33: 0 | K33: 0 | M33: 0 | N33: 0 | O33: 0 | P33: 0 | Q33: 0 | R33: 0
D34: 0 | G34: 0 | I34: 0 | J34: =E34*H34 -> 0 | K34: 0 | M34: 0 | N34: =J34*L34 -> 0 | O34: 0 | P34: =+J34-N34 -> 0 | Q34: 0 | R34: =+J34*E$7 -> 0
B35: Machinery Labor
C36: Tractors/Self-Propelled | D36: 0.33 | F36: Hour | G36: 12.44 | I36: 4.1052 | J36: =E36*H36 -> 0 | K36: 0 | M36: 0 | N36: =J36*L36 -> 0 | O36: 4.1052 | P36: =+J36-N36 -> 0 | Q36: 656.832 | R36: =+J36*E$7 -> 0
C37: Other Labor | D37: 0.35 | F37: Hour | G37: 12.44 | I37: 4.354 | J37: =E37*H37 -> 0 | K37: 0 | M37: 0 | N37: =J37*L37 -> 0 | O37: 4.354 | P37: =+J37-N37 -> 0 | Q37: 696.64 | R37: =+J37*E$7 -> 0
B39: Diesel Fuel
C40: Pickup/General Use Equipment | D40: 1 | F40: Acre | G40: 0 | I40: 0 | J40: =E40*H40 -> 0 | K40: 0 | M40: 0 | N40: =J40*L40 -> 0 | O40: 0 | P40: =+J40-N40 -> 0 | Q40: 0 | R40: =+J40*E$7 -> 0
C41: Tractors/Self-Propelled | D41: 1.91 | F41: Gallon | G41: 1.99 | I41: 3.8009 | J41: =E41*H41 -> 0 | K41: 0 | M41: 0 | N41: =J41*L41 -> 0 | O41: 3.8009 | P41: =+J41-N41 -> 0 | Q41: 608.144 | R41: =+J41*E$7 -> 0
B43: Gasoline
C44: Pickup/General Use Equipment | D44: 1 | F44: Acre | G44: 4.265625 | I44: 4.265625 | J44: =E44*H44 -> 0 | K44: 0 | M44: 0 | N44: =J44*L44 -> 0 | O44: 4.265625 | P44: =+J44-N44 -> 0 | Q44: 682.5 | R44: =+J44*E$7 -> 0
C45: Tractors/Self-Propelled | D45: 0 | F45: Gallon | G45: 2.1 | I45: 0 | J45: =E45*H45 -> 0 | K45: 0 | M45: 0 | N45: =J45*L45 -> 0 | O45: 0 | P45: =+J45-N45 -> 0 | Q45: 0 | R45: =+J45*E$7 -> 0
B47: Repairs & Maintenance
C48: Pickup/General Use Equipment | D48: 1 | F48: Acre | G48: 2.48625 | I48: 2.48625 | J48: =E48*H48 -> 0 | K48: 0 | M48: 0 | N48: =J48*L48 -> 0 | O48: 2.48625 | P48: =+J48-N48 -> 0 | Q48: 397.8 | R48: =+J48*E$7 -> 0
C49: Irrigation Equipment | D49: 1 | F49: Acre | G49: 0 | I49: 0 | J49: 0 | K49: 0 | M49: 0 | N49: 0 | O49: 0 | P49: 0 | Q49: 0 | R49: 0
C50: Tractors/Self-Propelled | D50: 1 | F50: Acre | G50: 3.611801322 | I50: 3.611801322 | J50: 0 | K50: 0 | M50: 0 | N50: 0 | O50: 3.611801322 | P50: 0 | Q50: 577.8882116 | R50: 0
C51: Implements | D51: 1 | F51: Acre | G51: 9.23517891 | I51: 9.23517891 | J51: 0 | K51: 0 | M51: 0 | N51: 0 | O51: 9.23517891 | P51: 0 | Q51: 1477.628626 | R51: 0
I52: 0 | J52: 0 | K52: 0 | M52: 0 | N52: 0 | O52: 0 | P52: 0 | Q52: 0 | R52: 0
I53: 0 | J53: 0 | K53: 0 | M53: 0 | N53: 0 | O53: 0 | P53: 0 | Q53: 0 | R53: 0
B54: Interest on Credit Line | G54: 0.0574 | I54: 2.78506333 | J54: =+SUM(J17:J53)/2*H54 -> 0 | M54: 0 | N54: =+SUM(N17:N53)/2*L54 -> 0 | O54: 2.78506333 | P54: =+SUM(P17:P53)/2*L54 -> 0 | Q54: 445.6101327 | R54: =+J54*E$7 -> 0
A55: Total Variable Costs | I55: 158.1409186 | J55: =SUM(J18:J54) -> 0 | M55: 0 | N55: =SUM(N18:N54) -> 0 | O55: 158.1409186 | P55: =SUM(P18:P54) -> 0 | Q55: 25302.54697 | R55: =SUM(R18:R54) -> 0
A56: Planned Returns Above Variable Costs: | I56: -8.140918563 | J56: =+J13-J55 -> 0 | M56: 0 | N56: =+N13-N55 -> 0 | O56: -8.140918563 | P56: =+P13-P55 -> 0 | Q56: -1302.54697 | R56: =+R13-R55 -> 0
B57: Breakeven Price to Cover Variable Costs | G57: 6.325636743 | H57: =IF(E10=0,"n/a",(YVarExp-(YTotExp+YTotRet-J10))/E10) -> n/a | I57: CWT
Q58: Enterprise | R58: Enterprise
A59: FIXED COSTS | D59: Quantity | E59: Quantity | F59: Units | G59: $/Unit | H59: $/Unit | I59: Total | J59: Total | K59: Share | L59: Share | M59: Landlord | N59: Landlord | O59: Tenant | P59: Tenant | Q59: Total | R59: Total
B60: Machinery Depreciation
C61: Pickup/General Use Equipment | D61: 1 | F61: Acre | G61: 2.6105625 | I61: 2.6105625 | J61: =E61*H61 -> 0 | K61: 0 | M61: 0 | N61: =J61*L61 -> 0 | O61: 2.6105625 | P61: =+J61-N61 -> 0 | Q61: 417.69 | R61: =+J61*E$7 -> 0
C62: Tractors/Self-Propelled | D62: 1 | F62: Acre | G62: 3.519799369 | I62: 3.519799369 | J62: 0 | K62: 0 | M62: 0 | N62: =J62*L62 -> 0 | O62: 3.519799369 | P62: 0 | Q62: 563.1678991 | R62: 0
C63: Implements | D63: 1 | F63: Acre | G63: 11.96982902 | I63: 11.96982902 | J63: 0 | K63: 0 | M63: 0 | N63: =J63*L63 -> 0 | O63: 11.96982902 | P63: 0 | Q63: 1915.172643 | R63: 0
B64: Equipment Investment
C65: Pickup/General Use Equipment | D65: 18.0253125 | F65: Dollars | G65: 0.0601 | I65: 1.083321281 | J65: =E65*H65 -> 0 | K65: 0 | M65: 0 | N65: =J65*L65 -> 0 | O65: 1.083321281 | P65: =+J65-N65 -> 0 | Q65: 173.331405 | R65: =+J65*E$7 -> 0
C66: Tractors/Self-Propelled | D66: 27.42037251 | F66: Dollars | G66: 0.0601 | I66: 1.647964388 | J66: 0 | K66: 0 | M66: 0 | N66: =J66*L66 -> 0 | O66: 1.647964388 | P66: 0 | Q66: 263.674302 | R66: 0
C67: Implements | D67: 51.20426858 | F67: Dollars | G67: 0.0601 | I67: 3.077376542 | J67: 0 | K67: 0 | M67: 0 | N67: =J67*L67 -> 0 | O67: 3.077376542 | P67: 0 | Q67: 492.3802467 | R67: 0
B68: Salaried Labor | D68: 1 | F68: Acre | G68: 0 | I68: 0 | J68: 0 | K68: 0 | M68: 0 | N68: =J68*L68 -> 0 | O68: 0 | P68: =+J68-N68 -> 0 | Q68: 0 | R68: =+J68*E$7 -> 0
B69: Management Fee, Owner/Operator Labor | D69: 1 | F69: Acre | G69: 0 | I69: 0 | J69: 0 | K69: 0 | M69: 0 | N69: 0 | O69: 0 | P69: 0 | Q69: 0 | R69: 0
B70: Allocated Establishment Cost | D70: 1 | F70: Acre | G70: 0 | I70: 0 | J70: 0 | K70: 0 | M70: 0 | N70: 0 | O70: 0 | P70: 0 | Q70: 0 | R70: 0
B71: Cash Rent - Sorghum | D71: 1 | F71: Acre | G71: 26.5 | I71: 26.5 | J71: 0 | K71: 0 | M71: 0 | N71: 0 | O71: 26.5 | P71: 0 | Q71: 4240 | R71: 0
B72: Property Taxes | D72: 1 | F72: Acre | G72: 0 | I72: 0 | J72: 0 | K72: 0 | M72: 0 | N72: 0 | O72: 0 | P72: 0 | Q72: 0 | R72: 0
B73: Whole Farm Insurance | D73: 1 | F73: Acre | G73: 0 | I73: 0 | J73: 0 | K73: 0 | M73: 0 | N73: 0 | O73: 0 | P73: 0 | Q73: 0 | R73: 0
D74: 1 | G74: 0 | I74: 0 | J74: 0 | K74: 0 | M74: 0 | N74: 0 | O74: 0 | P74: 0 | Q74: 0 | R74: 0
D75: 1 | G75: 0 | I75: 0 | J75: =E75*H75 -> 0 | K75: 0 | M75: 0 | N75: 0 | O75: 0 | P75: 0 | Q75: 0 | R75: 0
A76: Total Fixed Costs | I76: 50.4088531 | J76: =+SUM(J61:J75) -> 0 | M76: 0 | N76: =+SUM(N61:N75) -> 0 | O76: 50.4088531 | P76: =+SUM(P61:P75) -> 0 | Q76: 8065.416496 | R76: =+SUM(R61:R75) -> 0
A77: Total Specified Costs | I77: 208.5497717 | J77: =+J55+J76 -> 0 | M77: 0 | N77: =+N55+N76 -> 0 | O77: 208.5497717 | P77: =+P55+P76 -> 0 | Q77: 33367.96347 | R77: =+R55+R76 -> 0
A79: Returns Above Specified Costs | I79: -58.54977166 | J79: =+J13-J77 -> 0 | M79: 0 | N79: =+N13-N77 -> 0 | O79: -58.54977166 | P79: =+P13-P77 -> 0 | Q79: -9367.963466 | R79: =+R13-R77 -> 0
A81: Breakeven Price to Cover Total Costs | G81: 8.341990866 | H81: =IF(E10=0,"n/a",(YTotExp-(YTotExp+YTotRet-J10))/E10) -> n/a | I81: CWT
D83: Example Breakeven Prices
B84: Example | C84: Example | D84: To Cover | G84: To Cover
B85: Yield | C85: Yield | D85: Variable | G85: Total
B86: Percent | C86: CWT | D86: Costs | G86: Costs
B87: 0.75 | C87: 18.75 | D87: 8.434182323 | G87: 11.12265449
B88: 0.9 | C88: 22.5 | D88: 7.028485269 | G88: 9.268878741
B89: 1 | C89: 25 | D89: 6.325636743 | G89: 8.341990866
B90: 1.1 | C90: 27.5 | D90: 5.750578857 | G90: 7.58362806
B91: 1.25 | C91: 31.25 | D91: 5.060509394 | G91: 6.673592693
D93: Your Breakeven Prices
B94: Your | C94: Your | E94: To Cover | H94: To Cover
B95: Yield | C95: Yield | E95: Variable | H95: Total
B96: Percent | C96: CWT | E96: Costs | H96: Costs
B97: 0.75 | C97: =E10*YPER1 -> 0 | E97: =IF($E$10=0,0,(YVarExp-(YTotExp+YTotRet-J10))/($E$10*YPER1)) -> 0 | H97: =IF($E$10=0,0,(YTotExp-(YTotExp+YTotRet-J10))/($E$10*YPER1)) -> 0
B98: 0.9 | C98: =E10*YPER2 -> 0 | E98: =IF($E$10=0,0,(YVarExp-(YTotExp+YTotRet-J10))/($E$10*YPER2)) -> 0 | H98: =IF($E$10=0,0,(YTotExp-(YTotExp+YTotRet-J10))/($E$10*YPER2)) -> 0
B99: 1 | C99: =+E10 -> 0 | E99: =IF($E$10=0,0,(YVarExp-(YTotExp+YTotRet-J10))/($E$10*YPER3)) -> 0 | H99: =IF($E$10=0,0,(YTotExp-(YTotExp+YTotRet-J10))/($E$10*YPER3)) -> 0
B100: 1.1 | C100: =E10*YPER4 -> 0 | E100: =IF($E$10=0,0,(YVarExp-(YTotExp+YTotRet-J10))/($E$10*YPER4)) -> 0 | H100: =IF($E$10=0,0,(YTotExp-(YTotExp+YTotRet-J10))/($E$10*YPER4)) -> 0
B101: 1.25 | C101: =E10*YPER5 -> 0 | E101: =IF($E$10=0,0,(YVarExp-(YTotExp+YTotRet-J10))/($E$10*YPER5)) -> 0 | H101: =IF($E$10=0,0,(YTotExp-(YTotExp+YTotRet-J10))/($E$10*YPER5)) -> 0
A103: Developed by Steve Amosson, Regents Fellow, Professor and Extension Economist, Texas A&M AgriLife Extension, 806-677-5600.
A105: Information presented is prepared solely as a general guide and not intended to recognize or predict the costs and returns from any one operation. Brand names are mentioned only as examples and imply no endorsement.

Sheet FallowRotation
A1: Projections for Planning Purposes Only -- Not to be Used without Updating
A2: 2018 Estimated Costs and Returns per Acre
A3: Rotation, Sorghum-Fallow-Wheat, Minimum Till, Fallow
A4: Enter your name for this budget in the cell above.
A5: Enter Your Values in the cells highlighed in MAROON.
E6: Your Acres | R6: Your
C7: Crop Acres | D7: 160 | L7: Your | Q7: Enterprise | R7: Enterprise
E8: Your | H8: Your | I8: Cash | J8: Your | K8: Landlord | L8: Landlord | N8: Your | P8: Your | Q8: Total | R8: Total
A9: REVENUE | D9: Quantity | E9: Quantity | F9: Units | G9: $/Unit | H9: $/Unit | I9: Total | J9: Total | K9: Share | L9: Share | M9: Landlord | N9: Landlord | O9: Tenant | P9: Tenant | Q9: (160 acres) | R9: ="(" & E7 & " acres)" -> ( acres)
B10: 0 | D10: 0 | G10: 0 | I10: 0 | J10: =E10*H10 -> 0 | K10: 0 | M10: 0 | N10: =J10*L10 -> 0 | O10: 0 | P10: =+J10-N10 -> 0 | Q10: 0 | R10: =+J10*E$7 -> 0
D11: 0 | G11: 0 | I11: 0 | J11: 0 | K11: 0 | M11: 0 | N11: 0 | O11: 0 | P11: =+J11-N11 -> 0 | Q11: 0 | R11: 0
D12: 0 | G12: 0 | I12: 0 | J12: 0 | K12: 0 | M12: 0 | N12: 0 | O12: 0 | P12: 0 | Q12: 0 | R12: 0
A13: Total Revenue | I13: 0 | J13: =SUM(J10:J12) -> 0 | M13: 0 | N13: =SUM(N10:N12) -> 0 | O13: 0 | P13: =SUM(P10:P12) -> 0 | Q13: 0 | R13: =SUM(R10:R12) -> 0
Q14: Enterprise | R14: Enterprise
A15: VARIABLE COSTS | D15: Quantity | E15: Quantity | F15: Units | G15: $/Unit | H15: $/Unit | I15: Total | J15: Total | K15: Share | L15: Share | M15: Landlord | N15: Landlord | O15: Tenant | P15: Tenant | Q15: Total | R15: Total
A16: Production Costs
B17: Herbicide
C18: Herbicide and Apply Fallow | D18: 2 | F18: Acre | G18: 11.44 | I18: 22.88 | J18: =E18*H18 -> 0 | K18: 0 | M18: 0 | N18: =J18*L18 -> 0 | O18: 22.88 | P18: =+J18-N18 -> 0 | Q18: 3660.8 | R18: =+J18*E$7 -> 0
D19: 0 | G19: 0 | I19: 0 | J19: 0 | K19: 0 | M19: 0 | N19: 0 | O19: 0 | P19: 0 | Q19: 0 | R19: 0
D20: 0 | G20: 0 | I20: 0 | J20: 0 | K20: 0 | M20: 0 | N20: 0 | O20: 0 | P20: 0 | Q20: 0 | R20: 0
D21: 0 | G21: 0 | I21: 0 | J21: =E21*H21 -> 0 | K21: 0 | M21: 0 | N21: =J21*L21 -> 0 | O21: 0 | P21: =+J21-N21 -> 0 | Q21: 0 | R21: =+J21*E$7 -> 0
B22: Machinery Labor
C23: Tractors/Self-Propelled | D23: 0.12 | F23: Hour | G23: 12.44 | I23: 1.4928 | J23: =E23*H23 -> 0 | K23: 0 | M23: 0 | N23: =J23*L23 -> 0 | O23: 1.4928 | P23: =+J23-N23 -> 0 | Q23: 238.848 | R23: =+J23*E$7 -> 0
C24: Other Labor | D24: 0.14 | F24: Hour | G24: 12.44 | I24: 1.7416 | J24: =E24*H24 -> 0 | K24: 0 | M24: 0 | N24: =J24*L24 -> 0 | O24: 1.7416 | P24: =+J24-N24 -> 0 | Q24: 278.656 | R24: =+J24*E$7 -> 0
B26: Diesel Fuel
C27: Pickup/General Use Equipment | D27: 1 | F27: Acre | G27: 0 | I27: 0 | J27: =E27*H27 -> 0 | K27: 0 | M27: 0 | N27: =J27*L27 -> 0 | O27: 0 | P27: =+J27-N27 -> 0 | Q27: 0 | R27: =+J27*E$7 -> 0
C28: Tractors/Self-Propelled | D28: 0.91 | F28: Gallon | G28: 1.99 | I28: 1.8109 | J28: =E28*H28 -> 0 | K28: 0 | M28: 0 | N28: =J28*L28 -> 0 | O28: 1.8109 | P28: =+J28-N28 -> 0 | Q28: 289.744 | R28: =+J28*E$7 -> 0
B30: Gasoline
C31: Pickup/General Use Equipment | D31: 1 | F31: Acre | G31: 0 | I31: 0 | J31: =E31*H31 -> 0 | K31: 0 | M31: 0 | N31: =J31*L31 -> 0 | O31: 0 | P31: =+J31-N31 -> 0 | Q31: 0 | R31: =+J31*E$7 -> 0
C32: Tractors/Self-Propelled | D32: 0 | F32: Gallon | G32: 2.1 | I32: 0 | J32: =E32*H32 -> 0 | K32: 0 | M32: 0 | N32: =J32*L32 -> 0 | O32: 0 | P32: =+J32-N32 -> 0 | Q32: 0 | R32: =+J32*E$7 -> 0
B34: Repairs & Maintenance
C35: Pickup/General Use Equipment | D35: 1 | F35: Acre | G35: 0 | I35: 0 | J35: =E35*H35 -> 0 | K35: 0 | M35: 0 | N35: =J35*L35 -> 0 | O35: 0 | P35: =+J35-N35 -> 0 | Q35: 0 | R35: =+J35*E$7 -> 0
C36: Irrigation Equipment | D36: 1 | F36: Acre | G36: 0 | I36: 0 | J36: 0 | K36: 0 | M36: 0 | N36: 0 | O36: 0 | P36: 0 | Q36: 0 | R36: 0
C37: Tractors/Self-Propelled | D37: 1 | F37: Acre | G37: 1.9997729 | I37: 1.9997729 | J37: 0 | K37: 0 | M37: 0 | N37: 0 | O37: 1.9997729 | P37: 0 | Q37: 319.963664 | R37: 0
C38: Implements | D38: 1 | F38: Acre | G38: 2.393973793 | I38: 2.393973793 | J38: 0 | K38: 0 | M38: 0 | N38: 0 | O38: 2.393973793 | P38: 0 | Q38: 383.0358069 | R38: 0
I39: 0 | J39: 0 | K39: 0 | M39: 0 | N39: 0 | O39: 0 | P39: 0 | Q39: 0 | R39: 0
I40: 0 | J40: 0 | K40: 0 | M40: 0 | N40: 0 | O40: 0 | P40: 0 | Q40: 0 | R40: 0
B41: Interest on Credit Line | G41: 0.0574 | I41: 1.020279484 | J41: =+SUM(J17:J40)/2*H41 -> 0 | M41: 0 | N41: =+SUM(N17:N40)/2*L41 -> 0 | O41: 1.020279484 | P41: =+SUM(P17:P40)/2*L41 -> 0 | Q41: 163.2447174 | R41: =+J41*E$7 -> 0
A42: Total Variable Costs | I42: 33.33932618 | J42: =SUM(J18:J41) -> 0 | M42: 0 | N42: =SUM(N18:N41) -> 0 | O42: 33.33932618 | P42: =SUM(P18:P41) -> 0 | Q42: 5334.292188 | R42: =SUM(R18:R41) -> 0
A43: Planned Returns Above Variable Costs: | I43: -33.33932618 | J43: =+J13-J42 -> 0 | M43: 0 | N43: =+N13-N42 -> 0 | O43: -33.33932618 | P43: =+P13-P42 -> 0 | Q43: -5334.292188 | R43: =+R13-R42 -> 0
B44: Breakeven Price to Cover Variable Costs | G44: n/a | H44: =IF(E10=0,"n/a",(YVarExp-(YTotExp+YTotRet-J10))/E10) -> n/a
Q45: Enterprise | R45: Enterprise
A46: FIXED COSTS | D46: Quantity | E46: Quantity | F46: Units | G46: $/Unit | H46: $/Unit | I46: Total | J46: Total | K46: Share | L46: Share | M46: Landlord | N46: Landlord | O46: Tenant | P46: Tenant | Q46: Total | R46: Total
B47: Machinery Depreciation
C48: Tractors/Self-Propelled | D48: 1 | F48: Acre | G48: 2.066431997 | I48: 2.066431997 | J48: =E48*H48 -> 0 | K48: 0 | M48: 0 | N48: =J48*L48 -> 0 | O48: 2.066431997 | P48: =+J48-N48 -> 0 | Q48: 330.6291195 | R48: =+J48*E$7 -> 0
C49: Implements | D49: 1 | F49: Acre | G49: 3.077966306 | I49: 3.077966306 | J49: 0 | K49: 0 | M49: 0 | N49: =J49*L49 -> 0 | O49: 3.077966306 | P49: 0 | Q49: 492.4746089 | R49: 0
B50: Equipment Investment
C51: Tractors/Self-Propelled | D51: 16.09817185 | F51: Dollars | G51: 0.0601 | I51: 0.9675001279 | J51: =E51*H51 -> 0 | K51: 0 | M51: 0 | N51: =J51*L51 -> 0 | O51: 0.9675001279 | P51: =+J51-N51 -> 0 | Q51: 154.8000205 | R51: =+J51*E$7 -> 0
C52: Implements | D52: 13.16685586 | F52: Dollars | G52: 0.0601 | I52: 0.7913280374 | J52: 0 | K52: 0 | M52: 0 | N52: =J52*L52 -> 0 | O52: 0.7913280374 | P52: 0 | Q52: 126.612486 | R52: 0
B53: Salaried Labor | D53: 1 | F53: Acre | G53: 0 | I53: 0 | J53: 0 | K53: 0 | M53: 0 | N53: =J53*L53 -> 0 | O53: 0 | P53: =+J53-N53 -> 0 | Q53: 0 | R53: =+J53*E$7 -> 0
B54: Management Fee, Owner/Operator Labor | D54: 1 | F54: Acre | G54: 0 | I54: 0 | J54: 0 | K54: 0 | M54: 0 | N54: 0 | O54: 0 | P54: 0 | Q54: 0 | R54: 0
B55: Allocated Establishment Cost | D55: 1 | F55: Acre | G55: 0 | I55: 0 | J55: 0 | K55: 0 | M55: 0 | N55: 0 | O55: 0 | P55: 0 | Q55: 0 | R55: 0
B56: Cash Rent - Wheat Dryland | D56: 1 | F56: Acre | G56: 26.5 | I56: 26.5 | J56: 0 | K56: 0 | M56: 0 | N56: 0 | O56: 26.5 | P56: 0 | Q56: 4240 | R56: 0
B57: Property Taxes | D57: 1 | F57: Acre | G57: 0 | I57: 0 | J57: 0 | K57: 0 | M57: 0 | N57: 0 | O57: 0 | P57: 0 | Q57: 0 | R57: 0
B58: Whole Farm Insurance | D58: 1 | F58: Acre | G58: 0 | I58: 0 | J58: 0 | K58: 0 | M58: 0 | N58: 0 | O58: 0 | P58: 0 | Q58: 0 | R58: 0
D59: 1 | G59: 0 | I59: 0 | J59: 0 | K59: 0 | M59: 0 | N59: 0 | O59: 0 | P59: 0 | Q59: 0 | R59: 0
D60: 1 | G60: 0 | I60: 0 | J60: =E60*H60 -> 0 | K60: 0 | M60: 0 | N60: 0 | O60: 0 | P60: 0 | Q60: 0 | R60: 0
A61: Total Fixed Costs | I61: 33.40322647 | J61: =+SUM(J48:J60) -> 0 | M61: 0 | N61: =+SUM(N48:N60) -> 0 | O61: 33.40322647 | P61: =+SUM(P48:P60) -> 0 | Q61: 5344.516235 | R61: =+SUM(R48:R60) -> 0
A62: Total Specified Costs | I62: 66.74255264 | J62: =+J42+J61 -> 0 | M62: 0 | N62: =+N42+N61 -> 0 | O62: 66.74255264 | P62: =+P42+P61 -> 0 | Q62: 10678.80842 | R62: =+R42+R61 -> 0
A64: Returns Above Specified Costs | I64: -66.74255264 | J64: =+J13-J62 -> 0 | M64: 0 | N64: =+N13-N62 -> 0 | O64: -66.74255264 | P64: =+P13-P62 -> 0 | Q64: -10678.80842 | R64: =+R13-R62 -> 0
A66: Breakeven Price to Cover Total Costs | G66: n/a | H66: =IF(E10=0,"n/a",(YTotExp-(YTotExp+YTotRet-J10))/E10) -> n/a
D68: Example Breakeven Prices
B69: Example | C69: Example | D69: To Cover | G69: To Cover
B70: Yield | C70: Yield | D70: Variable | G70: Total
B71: Percent | D71: Costs | G71: Costs
B72: 0.75 | C72: 0 | D72: 0 | G72: 0
B73: 0.9 | C73: 0 | D73: 0 | G73: 0
B74: 1 | C74: 0 | D74: 0 | G74: 0
B75: 1.1 | C75: 0 | D75: 0 | G75: 0
B76: 1.25 | C76: 0 | D76: 0 | G76: 0
D78: Your Breakeven Prices
B79: Your | C79: Your | E79: To Cover | H79: To Cover
B80: Yield | C80: Yield | E80: Variable | H80: Total
B81: Percent | E81: Costs | H81: Costs
B82: 0.75 | C82: =E10*YPER1 -> 0 | E82: =IF($E$10=0,0,(YVarExp-(YTotExp+YTotRet-J10))/($E$10*YPER1)) -> 0 | H82: =IF($E$10=0,0,(YTotExp-(YTotExp+YTotRet-J10))/($E$10*YPER1)) -> 0
B83: 0.9 | C83: =E10*YPER2 -> 0 | E83: =IF($E$10=0,0,(YVarExp-(YTotExp+YTotRet-J10))/($E$10*YPER2)) -> 0 | H83: =IF($E$10=0,0,(YTotExp-(YTotExp+YTotRet-J10))/($E$10*YPER2)) -> 0
B84: 1 | C84: =+E10 -> 0 | E84: =IF($E$10=0,0,(YVarExp-(YTotExp+YTotRet-J10))/($E$10*YPER3)) -> 0 | H84: =IF($E$10=0,0,(YTotExp-(YTotExp+YTotRet-J10))/($E$10*YPER3)) -> 0
B85: 1.1 | C85: =E10*YPER4 -> 0 | E85: =IF($E$10=0,0,(YVarExp-(YTotExp+YTotRet-J10))/($E$10*YPER4)) -> 0 | H85: =IF($E$10=0,0,(YTotExp-(YTotExp+YTotRet-J10))/($E$10*YPER4)) -> 0
B86: 1.25 | C86: =E10*YPER5 -> 0 | E86: =IF($E$10=0,0,(YVarExp-(YTotExp+YTotRet-J10))/($E$10*YPER5)) -> 0 | H86: =IF($E$10=0,0,(YTotExp-(YTotExp+YTotRet-J10))/($E$10*YPER5)) -> 0
A88: Developed by Steve Amosson, Regents Fellow, Professor and Extension Economist, Texas A&M AgriLife Extension, 806-677-5600.
A90: Information presented is prepared solely as a general guide and not intended to recognize or predict the costs and returns from any one operation. Brand names are mentioned only as examples and imply no endorsement.

Sheet WheatRotation
A1: Projections for Planning Purposes Only -- Not to be Used without Updating
A2: 2018 Estimated Costs and Returns per Acre
A3: Rotation, Sorghum-Fallow-Wheat, Minimum Till, Wheat with Grazing
A4: Enter your name for this budget in the cell above.
A5: Enter Your Values in the cells highlighed in MAROON.
E6: Your Acres | R6: Your
C7: Crop Acres | D7: 160 | L7: Your | Q7: Enterprise | R7: Enterprise
E8: Your | H8: Your | I8: Cash | J8: Your | K8: Landlord | L8: Landlord | N8: Your | P8: Your | Q8: Total | R8: Total
A9: REVENUE | D9: Quantity | E9: Quantity | F9: Units | G9: $/Unit | H9: $/Unit | I9: Total | J9: Total | K9: Share | L9: Share | M9: Landlord | N9: Landlord | O9: Tenant | P9: Tenant | Q9: (160 acres) | R9: ="(" & E7 & " acres)" -> ( acres)
B10: Wheat | D10: 26 | F10: Bushel | G10: 4.2 | I10: 109.2 | J10: =E10*H10 -> 0 | K10: 0 | M10: 0 | N10: =J10*L10 -> 0 | O10: 109.2 | P10: =+J10-N10 -> 0 | Q10: 17472 | R10: =+J10*E$7 -> 0
B11: Grazing - Wheat | D11: 73 | F11: Pound | G11: 0.4 | I11: 29.2 | J11: 0 | K11: 0 | M11: 0 | N11: 0 | O11: 29.2 | P11: =+J11-N11 -> 0 | Q11: 4672 | R11: 0
D12: 0 | G12: 0 | I12: 0 | J12: 0 | K12: 0 | M12: 0 | N12: 0 | O12: 0 | P12: 0 | Q12: 0 | R12: 0
D13: 0 | G13: 0 | I13: 0 | J13: 0 | K13: 0 | M13: 0 | N13: 0 | O13: 0 | P13: 0 | Q13: 0 | R13: 0
A14: Total Revenue | I14: 138.4 | J14: =SUM(J10:J13) -> 0 | M14: 0 | N14: =SUM(N10:N13) -> 0 | O14: 138.4 | P14: =SUM(P10:P13) -> 0 | Q14: 22144 | R14: =SUM(R10:R13) -> 0
Q15: Enterprise | R15: Enterprise
A16: VARIABLE COSTS | D16: Quantity | E16: Quantity | F16: Units | G16: $/Unit | H16: $/Unit | I16: Total | J16: Total | K16: Share | L16: Share | M16: Landlord | N16: Landlord | O16: Tenant | P16: Tenant | Q16: Total | R16: Total
A17: Production Costs
B18: Seed
C19: Seed - Wheat Dryland | D19: 1 | F19: Bushel | G19: 12 | I19: 12 | J19: =E19*H19 -> 0 | K19: 0 | M19: 0 | N19: =J19*L19 -> 0 | O19: 12 | P19: =+J19-N19 -> 0 | Q19: 1920 | R19: =+J19*E$7 -> 0
B20: Fertilizer
C21: Fertilizer (N) - Dry | D21: 30 | F21: Pound | G21: 0.32 | I21: 9.6 | J21: 0 | K21: 0 | M21: 0 | N21: 0 | O21: 9.6 | P21: 0 | Q21: 1536 | R21: 0
B22: Custom
C23: Fertilizer Application | D23: 1 | F23: Acre | G23: 5.12 | I23: 5.12 | J23: 0 | K23: 0 | M23: 0 | N23: 0 | O23: 5.12 | P23: 0 | Q23: 819.2 | R23: 0
C24: Custom Harvest - Wheat | D24: 1 | F24: Acre | G24: 25.61 | I24: 25.61 | J24: 0 | K24: 0 | M24: 0 | N24: 0 | O24: 25.61 | P24: 0 | Q24: 4097.6 | R24: 0
C25: Custom Haul - Wheat | D25: 26 | F25: Bushel | G25: 0.26 | I25: 6.76 | J25: 0 | K25: 0 | M25: 0 | N25: 0 | O25: 6.76 | P25: 0 | Q25: 1081.6 | R25: 0
D26: 0 | G26: 0 | I26: 0 | J26: 0 | K26: 0 | M26: 0 | N26: 0 | O26: 0 | P26: 0 | Q26: 0 | R26: 0
D27: 0 | G27: 0 | I27: 0 | J27: 0 | K27: 0 | M27: 0 | N27: 0 | O27: 0 | P27: 0 | Q27: 0 | R27: 0
D28: 0 | G28: 0 | I28: 0 | J28: =E28*H28 -> 0 | K28: 0 | M28: 0 | N28: =J28*L28 -> 0 | O28: 0 | P28: =+J28-N28 -> 0 | Q28: 0 | R28: =+J28*E$7 -> 0
B29: Machinery Labor
C30: Tractors/Self-Propelled | D30: 0.18 | F30: Hour | G30: 12.44 | I30: 2.2392 | J30: =E30*H30 -> 0 | K30: 0 | M30: 0 | N30: =J30*L30 -> 0 | O30: 2.2392 | P30: =+J30-N30 -> 0 | Q30: 358.272 | R30: =+J30*E$7 -> 0
C31: Other Labor | D31: 0.18 | F31: Hour | G31: 12.44 | I31: 2.2392 | J31: =E31*H31 -> 0 | K31: 0 | M31: 0 | N31: =J31*L31 -> 0 | O31: 2.2392 | P31: =+J31-N31 -> 0 | Q31: 358.272 | R31: =+J31*E$7 -> 0
B33: Diesel Fuel
C34: Pickup/General Use Equipment | D34: 1 | F34: Acre | G34: 0 | I34: 0 | J34: =E34*H34 -> 0 | K34: 0 | M34: 0 | N34: =J34*L34 -> 0 | O34: 0 | P34: =+J34-N34 -> 0 | Q34: 0 | R34: =+J34*E$7 -> 0
C35: Tractors/Self-Propelled | D35: 0.6 | F35: Gallon | G35: 1.99 | I35: 1.194 | J35: =E35*H35 -> 0 | K35: 0 | M35: 0 | N35: =J35*L35 -> 0 | O35: 1.194 | P35: =+J35-N35 -> 0 | Q35: 191.04 | R35: =+J35*E$7 -> 0
B37: Gasoline
C38: Pickup/General Use Equipment | D38: 1 | F38: Acre | G38: 4.265625 | I38: 4.265625 | J38: =E38*H38 -> 0 | K38: 0 | M38: 0 | N38: =J38*L38 -> 0 | O38: 4.265625 | P38: =+J38-N38 -> 0 | Q38: 682.5 | R38: =+J38*E$7 -> 0
C39: Tractors/Self-Propelled | D39: 0 | F39: Gallon | G39: 2.1 | I39: 0 | J39: =E39*H39 -> 0 | K39: 0 | M39: 0 | N39: =J39*L39 -> 0 | O39: 0 | P39: =+J39-N39 -> 0 | Q39: 0 | R39: =+J39*E$7 -> 0
B41: Repairs & Maintenance
C42: Pickup/General Use Equipment | D42: 1 | F42: Acre | G42: 2.48625 | I42: 2.48625 | J42: =E42*H42 -> 0 | K42: 0 | M42: 0 | N42: =J42*L42 -> 0 | O42: 2.48625 | P42: =+J42-N42 -> 0 | Q42: 397.8 | R42: =+J42*E$7 -> 0
C43: Irrigation Equipment | D43: 1 | F43: Acre | G43: 0 | I43: 0 | J43: 0 | K43: 0 | M43: 0 | N43: 0 | O43: 0 | P43: 0 | Q43: 0 | R43: 0
C44: Tractors/Self-Propelled | D44: 1 | F44: Acre | G44: 0.7748843419 | I44: 0.7748843419 | J44: 0 | K44: 0 | M44: 0 | N44: 0 | O44: 0.7748843419 | P44: 0 | Q44: 123.9814947 | R44: 0
C45: Implements | D45: 1 | F45: Acre | G45: 7.994388519 | I45: 7.994388519 | J45: 0 | K45: 0 | M45: 0 | N45: 0 | O45: 7.994388519 | P45: 0 | Q45: 1279.102163 | R45: 0
I46: 0 | J46: 0 | K46: 0 | M46: 0 | N46: 0 | O46: 0 | P46: 0 | Q46: 0 | R46: 0
I47: 0 | J47: 0 | K47: 0 | M47: 0 | N47: 0 | O47: 0 | P47: 0 | Q47: 0 | R47: 0
B48: Interest on Credit Line | G48: 0.0574 | I48: 1.213902625 | J48: =+SUM(J18:J47)/2*H48 -> 0 | M48: 0 | N48: =+SUM(N18:N47)/2*L48 -> 0 | O48: 1.213902625 | P48: =+SUM(P18:P47)/2*L48 -> 0 | Q48: 194.2244199 | R48: =+J48*E$7 -> 0
A49: Total Variable Costs | I49: 81.49745049 | J49: =SUM(J19:J48) -> 0 | M49: 0 | N49: =SUM(N19:N48) -> 0 | O49: 81.49745049 | P49: =SUM(P19:P48) -> 0 | Q49: 13039.59208 | R49: =SUM(R19:R48) -> 0
A50: Planned Returns Above Variable Costs: | I50: 56.90254951 | J50: =+J14-J49 -> 0 | M50: 0 | N50: =+N14-N49 -> 0 | O50: 56.90254951 | P50: =+P14-P49 -> 0 | Q50: 9104.407922 | R50: =+R14-R49 -> 0
B51: Breakeven Price to Cover Variable Costs | G51: 2.011440403 | H51: =IF(E10=0,"n/a",(YVarExp-(YTotExp+YTotRet-J10))/E10) -> n/a | I51: Bushel
Q52: Enterprise | R52: Enterprise
A53: FIXED COSTS | D53: Quantity | E53: Quantity | F53: Units | G53: $/Unit | H53: $/Unit | I53: Total | J53: Total | K53: Share | L53: Share | M53: Landlord | N53: Landlord | O53: Tenant | P53: Tenant | Q53: Total | R53: Total
B54: Machinery Depreciation
C55: Pickup/General Use Equipment | D55: 1 | F55: Acre | G55: 2.6105625 | I55: 2.6105625 | J55: =E55*H55 -> 0 | K55: 0 | M55: 0 | N55: =J55*L55 -> 0 | O55: 2.6105625 | P55: =+J55-N55 -> 0 | Q55: 417.69 | R55: =+J55*E$7 -> 0
C56: Tractors/Self-Propelled | D56: 1 | F56: Acre | G56: 0.640571056 | I56: 0.640571056 | J56: 0 | K56: 0 | M56: 0 | N56: =J56*L56 -> 0 | O56: 0.640571056 | P56: 0 | Q56: 102.491369 | R56: 0
C57: Implements | D57: 1 | F57: Acre | G57: 10.27849952 | I57: 10.27849952 | J57: 0 | K57: 0 | M57: 0 | N57: =J57*L57 -> 0 | O57: 10.27849952 | P57: 0 | Q57: 1644.559924 | R57: 0
B58: Equipment Investment
C59: Pickup/General Use Equipment | D59: 18.0253125 | F59: Dollars | G59: 0.0601 | I59: 1.083321281 | J59: =E59*H59 -> 0 | K59: 0 | M59: 0 | N59: =J59*L59 -> 0 | O59: 1.083321281 | P59: =+J59-N59 -> 0 | Q59: 173.331405 | R59: =+J59*E$7 -> 0
C60: Tractors/Self-Propelled | D60: 4.990255162 | F60: Dollars | G60: 0.0601 | I60: 0.2999143352 | J60: 0 | K60: 0 | M60: 0 | N60: =J60*L60 -> 0 | O60: 0.2999143352 | P60: 0 | Q60: 47.98629364 | R60: 0
C61: Implements | D61: 43.96913685 | F61: Dollars | G61: 0.0601 | I61: 2.642545125 | J61: 0 | K61: 0 | M61: 0 | N61: =J61*L61 -> 0 | O61: 2.642545125 | P61: 0 | Q61: 422.80722 | R61: 0
B62: Salaried Labor | D62: 1 | F62: Acre | G62: 0 | I62: 0 | J62: 0 | K62: 0 | M62: 0 | N62: =J62*L62 -> 0 | O62: 0 | P62: =+J62-N62 -> 0 | Q62: 0 | R62: =+J62*E$7 -> 0
B63: Management Fee, Owner/Operator Labor | D63: 1 | F63: Acre | G63: 0 | I63: 0 | J63: 0 | K63: 0 | M63: 0 | N63: 0 | O63: 0 | P63: 0 | Q63: 0 | R63: 0
B64: Allocated Establishment Cost | D64: 1 | F64: Acre | G64: 0 | I64: 0 | J64: 0 | K64: 0 | M64: 0 | N64: 0 | O64: 0 | P64: 0 | Q64: 0 | R64: 0
B65: Cash Rent - Wheat Dryland | D65: 1 | F65: Acre | G65: 26.5 | I65: 26.5 | J65: 0 | K65: 0 | M65: 0 | N65: 0 | O65: 26.5 | P65: 0 | Q65: 4240 | R65: 0
B66: Property Taxes | D66: 1 | F66: Acre | G66: 0 | I66: 0 | J66: 0 | K66: 0 | M66: 0 | N66: 0 | O66: 0 | P66: 0 | Q66: 0 | R66: 0
B67: Whole Farm Insurance | D67: 1 | F67: Acre | G67: 0 | I67: 0 | J67: 0 | K67: 0 | M67: 0 | N67: 0 | O67: 0 | P67: 0 | Q67: 0 | R67: 0
D68: 1 | G68: 0 | I68: 0 | J68: 0 | K68: 0 | M68: 0 | N68: 0 | O68: 0 | P68: 0 | Q68: 0 | R68: 0
D69: 1 | G69: 0 | I69: 0 | J69: =E69*H69 -> 0 | K69: 0 | M69: 0 | N69: 0 | O69: 0 | P69: 0 | Q69: 0 | R69: 0
A70: Total Fixed Costs | I70: 44.05541382 | J70: =+SUM(J55:J69) -> 0 | M70: 0 | N70: =+SUM(N55:N69) -> 0 | O70: 44.05541382 | P70: =+SUM(P55:P69) -> 0 | Q70: 7048.866211 | R70: =+SUM(R55:R69) -> 0
A71: Total Specified Costs | I71: 125.5528643 | J71: =+J49+J70 -> 0 | M71: 0 | N71: =+N49+N70 -> 0 | O71: 125.5528643 | P71: =+P49+P70 -> 0 | Q71: 20088.45829 | R71: =+R49+R70 -> 0
A73: Returns Above Specified Costs | I73: 12.84713569 | J73: =+J14-J71 -> 0 | M73: 0 | N73: =+N14-N71 -> 0 | O73: 12.84713569 | P73: =+P14-P71 -> 0 | Q73: 2055.541711 | R73: =+R14-R71 -> 0
A75: Breakeven Price to Cover Total Costs | G75: 3.705879396 | H75: =IF(E10=0,"n/a",(YTotExp-(YTotExp+YTotRet-J10))/E10) -> n/a | I75: Bushel
D77: Example Breakeven Prices
B78: Example | C78: Example | D78: To Cover | G78: To Cover
B79: Yield | C79: Yield | D79: Variable | G79: Total
B80: Percent | C80: Bushel | D80: Costs | G80: Costs
B81: 0.75 | C81: 19.5 | D81: 2.681920538 | G81: 4.941172529
B82: 0.9 | C82: 23.4 | D82: 2.234933781 | G82: 4.117643774
B83: 1 | C83: 26 | D83: 2.011440403 | G83: 3.705879396
B84: 1.1 | C84: 28.6 | D84: 1.828582185 | G84: 3.368981269
B85: 1.25 | C85: 32.5 | D85: 1.609152323 | G85: 2.964703517
D87: Your Breakeven Prices
B88: Your | C88: Your | E88: To Cover | H88: To Cover
B89: Yield | C89: Yield | E89: Variable | H89: Total
B90: Percent | C90: Bushel | E90: Costs | H90: Costs
B91: 0.75 | C91: =E10*YPER1 -> 0 | E91: =IF($E$10=0,0,(YVarExp-(YTotExp+YTotRet-J10))/($E$10*YPER1)) -> 0 | H91: =IF($E$10=0,0,(YTotExp-(YTotExp+YTotRet-J10))/($E$10*YPER1)) -> 0
B92: 0.9 | C92: =E10*YPER2 -> 0 | E92: =IF($E$10=0,0,(YVarExp-(YTotExp+YTotRet-J10))/($E$10*YPER2)) -> 0 | H92: =IF($E$10=0,0,(YTotExp-(YTotExp+YTotRet-J10))/($E$10*YPER2)) -> 0
B93: 1 | C93: =+E10 -> 0 | E93: =IF($E$10=0,0,(YVarExp-(YTotExp+YTotRet-J10))/($E$10*YPER3)) -> 0 | H93: =IF($E$10=0,0,(YTotExp-(YTotExp+YTotRet-J10))/($E$10*YPER3)) -> 0
B94: 1.1 | C94: =E10*YPER4 -> 0 | E94: =IF($E$10=0,0,(YVarExp-(YTotExp+YTotRet-J10))/($E$10*YPER4)) -> 0 | H94: =IF($E$10=0,0,(YTotExp-(YTotExp+YTotRet-J10))/($E$10*YPER4)) -> 0
B95: 1.25 | C95: =E10*YPER5 -> 0 | E95: =IF($E$10=0,0,(YVarExp-(YTotExp+YTotRet-J10))/($E$10*YPER5)) -> 0 | H95: =IF($E$10=0,0,(YTotExp-(YTotExp+YTotRet-J10))/($E$10*YPER5)) -> 0
A97: Developed by Steve Amosson, Regents Fellow, Professor and Extension Economist, Texas A&M AgriLife Extension, 806-677-5600.
A99: Information presented is prepared solely as a general guide and not intended to recognize or predict the costs and returns from any one operation. Brand names are mentioned only as examples and imply no endorsement.

Sheet SorghumDryland
A1: Projections for Planning Purposes Only -- Not to be Used without Updating
A2: 2018 Estimated Costs and Returns per Acre
A3: Sorghum, Dryland, Continuous, Minimum Tillage
A4: Enter your name for this budget in the cell above.
A5: Enter Your Values in the cells highlighed in MAROON.
E6: Your Acres | R6: Your
C7: Crop Acres | D7: 160 | L7: Your | Q7: Enterprise | R7: Enterprise
E8: Your | H8: Your | I8: Cash | J8: Your | K8: Landlord | L8: Landlord | N8: Your | P8: Your | Q8: Total | R8: Total
A9: REVENUE | D9: Quantity | E9: Quantity | F9: Units | G9: $/Unit | H9: $/Unit | I9: Total | J9: Total | K9: Share | L9: Share | M9: Landlord | N9: Landlord | O9: Tenant | P9: Tenant | Q9: (160 acres) | R9: ="(" & E7 & " acres)" -> ( acres)
B10: Grain Sorghum | D10: 25 | F10: CWT | G10: 6 | I10: 150 | J10: =E10*H10 -> 0 | K10: 0 | M10: 0 | N10: =J10*L10 -> 0 | O10: 150 | P10: =+J10-N10 -> 0 | Q10: 24000 | R10: =+J10*E$7 -> 0
D11: 0 | G11: 0 | I11: 0 | J11: 0 | K11: 0 | M11: 0 | N11: 0 | O11: 0 | P11: =+J11-N11 -> 0 | Q11: 0 | R11: 0
D12: 0 | G12: 0 | I12: 0 | J12: 0 | K12: 0 | M12: 0 | N12: 0 | O12: 0 | P12: 0 | Q12: 0 | R12: 0
A13: Total Revenue | I13: 150 | J13: =SUM(J10:J12) -> 0 | M13: 0 | N13: =SUM(N10:N12) -> 0 | O13: 150 | P13: =SUM(P10:P12) -> 0 | Q13: 24000 | R13: =SUM(R10:R12) -> 0
Q14: Enterprise | R14: Enterprise
A15: VARIABLE COSTS | D15: Quantity | E15: Quantity | F15: Units | G15: $/Unit | H15: $/Unit | I15: Total | J15: Total | K15: Share | L15: Share | M15: Landlord | N15: Landlord | O15: Tenant | P15: Tenant | Q15: Total | R15: Total
A16: Production Costs
B17: Herbicide
C18: Herbicide and Apply Sorghum | D18: 1 | F18: Acre | G18: 19.53 | I18: 19.53 | J18: =E18*H18 -> 0 | K18: 0 | M18: 0 | N18: =J18*L18 -> 0 | O18: 19.53 | P18: =+J18-N18 -> 0 | Q18: 3124.8 | R18: =+J18*E$7 -> 0
B19: Seed
C20: Seed - Sorghum | D20: 2.25 | F20: Pound | G20: 2.2 | I20: 4.95 | J20: 0 | K20: 0 | M20: 0 | N20: 0 | O20: 4.95 | P20: 0 | Q20: 792 | R20: 0
B21: Fertilizer
C22: Fertilizer (N) - ANH3 | D22: 30 | F22: Pound | G22: 0.24 | I22: 7.2 | J22: 0 | K22: 0 | M22: 0 | N22: 0 | O22: 7.2 | P22: 0 | Q22: 1152 | R22: 0
B23: Custom
C24: Fertilizer Application - ANH3 | D24: 1 | F24: Acre | G24: 15.36 | I24: 15.36 | J24: 0 | K24: 0 | M24: 0 | N24: 0 | O24: 15.36 | P24: 0 | Q24: 2457.6 | R24: 0
C25: Custom Harvest - Sorghum Dryland | D25: 1 | F25: Acre | G25: 25.61 | I25: 25.61 | J25: 0 | K25: 0 | M25: 0 | N25: 0 | O25: 25.61 | P25: 0 | Q25: 4097.6 | R25: 0
C26: Custom Haul - Sorghum Dryland | D26: 25 | F26: CWT | G26: 0.26 | I26: 6.5 | J26: 0 | K26: 0 | M26: 0 | N26: 0 | O26: 6.5 | P26: 0 | Q26: 1040 | R26: 0
B27: Miscellaneous
C28: Crop Insurance Sorghum - Dryland | D28: 1 | F28: Acre | G28: 17.4 | I28: 17.4 | J28: 0 | K28: 0 | M28: 0 | N28: 0 | O28: 17.4 | P28: 0 | Q28: 2784 | R28: 0
B29: Insecticide
C30: Insecticide Head Worm | D30: 0.67 | F30: Application | G30: 9.93 | I30: 6.6531 | J30: 0 | K30: 0 | M30: 0 | N30: 0 | O30: 6.6531 | P30: 0 | Q30: 1064.496 | R30: 0
C31: Insecticide Sugar Cane Aphid | D31: 1 | F31: Application | G31: 21.27 | I31: 21.27 | J31: 0 | K31: 0 | M31: 0 | N31: 0 | O31: 21.27 | P31: 0 | Q31: 3403.2 | R31: 0
D32: 0 | G32: 0 | I32: 0 | J32: 0 | K32: 0 | M32: 0 | N32: 0 | O32: 0 | P32: 0 | Q32: 0 | R32: 0
D33: 0 | G33: 0 | I33: 0 | J33: 0 | K33: 0 | M33: 0 | N33: 0 | O33: 0 | P33: 0 | Q33: 0 | R33: 0
D34: 0 | G34: 0 | I34: 0 | J34: =E34*H34 -> 0 | K34: 0 | M34: 0 | N34: =J34*L34 -> 0 | O34: 0 | P34: =+J34-N34 -> 0 | Q34: 0 | R34: =+J34*E$7 -> 0
B35: Machinery Labor
C36: Tractors/Self-Propelled | D36: 0.33 | F36: Hour | G36: 12.44 | I36: 4.1052 | J36: =E36*H36 -> 0 | K36: 0 | M36: 0 | N36: =J36*L36 -> 0 | O36: 4.1052 | P36: =+J36-N36 -> 0 | Q36: 656.832 | R36: =+J36*E$7 -> 0
C37: Other Labor | D37: 0.35 | F37: Hour | G37: 12.44 | I37: 4.354 | J37: =E37*H37 -> 0 | K37: 0 | M37: 0 | N37: =J37*L37 -> 0 | O37: 4.354 | P37: =+J37-N37 -> 0 | Q37: 696.64 | R37: =+J37*E$7 -> 0
B39: Diesel Fuel
C40: Pickup/General Use Equipment | D40: 1 | F40: Acre | G40: 0 | I40: 0 | J40: =E40*H40 -> 0 | K40: 0 | M40: 0 | N40: =J40*L40 -> 0 | O40: 0 | P40: =+J40-N40 -> 0 | Q40: 0 | R40: =+J40*E$7 -> 0
C41: Tractors/Self-Propelled | D41: 1.91 | F41: Gallon | G41: 1.99 | I41: 3.8009 | J41: =E41*H41 -> 0 | K41: 0 | M41: 0 | N41: =J41*L41 -> 0 | O41: 3.8009 | P41: =+J41-N41 -> 0 | Q41: 608.144 | R41: =+J41*E$7 -> 0
B43: Gasoline
C44: Pickup/General Use Equipment | D44: 1 | F44: Acre | G44: 4.265625 | I44: 4.265625 | J44: =E44*H44 -> 0 | K44: 0 | M44: 0 | N44: =J44*L44 -> 0 | O44: 4.265625 | P44: =+J44-N44 -> 0 | Q44: 682.5 | R44: =+J44*E$7 -> 0
C45: Tractors/Self-Propelled | D45: 0 | F45: Gallon | G45: 2.1 | I45: 0 | J45: =E45*H45 -> 0 | K45: 0 | M45: 0 | N45: =J45*L45 -> 0 | O45: 0 | P45: =+J45-N45 -> 0 | Q45: 0 | R45: =+J45*E$7 -> 0
B47: Repairs & Maintenance
C48: Pickup/General Use Equipment | D48: 1 | F48: Acre | G48: 2.48625 | I48: 2.48625 | J48: =E48*H48 -> 0 | K48: 0 | M48: 0 | N48: =J48*L48 -> 0 | O48: 2.48625 | P48: =+J48-N48 -> 0 | Q48: 397.8 | R48: =+J48*E$7 -> 0
C49: Irrigation Equipment | D49: 1 | F49: Acre | G49: 0 | I49: 0 | J49: 0 | K49: 0 | M49: 0 | N49: 0 | O49: 0 | P49: 0 | Q49: 0 | R49: 0
C50: Tractors/Self-Propelled | D50: 1 | F50: Acre | G50: 3.611801322 | I50: 3.611801322 | J50: 0 | K50: 0 | M50: 0 | N50: 0 | O50: 3.611801322 | P50: 0 | Q50: 577.8882116 | R50: 0
C51: Implements | D51: 1 | F51: Acre | G51: 9.23517891 | I51: 9.23517891 | J51: 0 | K51: 0 | M51: 0 | N51: 0 | O51: 9.23517891 | P51: 0 | Q51: 1477.628626 | R51: 0
I52: 0 | J52: 0 | K52: 0 | M52: 0 | N52: 0 | O52: 0 | P52: 0 | Q52: 0 | R52: 0
I53: 0 | J53: 0 | K53: 0 | M53: 0 | N53: 0 | O53: 0 | P53: 0 | Q53: 0 | R53: 0
B54: Interest on Credit Line | G54: 0.0574 | I54: 2.758789761 | J54: =+SUM(J17:J53)/2*H54 -> 0 | M54: 0 | N54: =+SUM(N17:N53)/2*L54 -> 0 | O54: 2.758789761 | P54: =+SUM(P17:P53)/2*L54 -> 0 | Q54: 441.4063618 | R54: =+J54*E$7 -> 0
A55: Total Variable Costs | I55: 159.090845 | J55: =SUM(J18:J54) -> 0 | M55: 0 | N55: =SUM(N18:N54) -> 0 | O55: 159.090845 | P55: =SUM(P18:P54) -> 0 | Q55: 25454.5352 | R55: =SUM(R18:R54) -> 0
A56: Planned Returns Above Variable Costs: | I56: -9.090844994 | J56: =+J13-J55 -> 0 | M56: 0 | N56: =+N13-N55 -> 0 | O56: -9.090844994 | P56: =+P13-P55 -> 0 | Q56: -1454.535199 | R56: =+R13-R55 -> 0
B57: Breakeven Price to Cover Variable Costs | G57: 6.3636338 | H57: =IF(E10=0,"n/a",(YVarExp-(YTotExp+YTotRet-J10))/E10) -> n/a | I57: CWT
Q58: Enterprise | R58: Enterprise
A59: FIXED COSTS | D59: Quantity | E59: Quantity | F59: Units | G59: $/Unit | H59: $/Unit | I59: Total | J59: Total | K59: Share | L59: Share | M59: Landlord | N59: Landlord | O59: Tenant | P59: Tenant | Q59: Total | R59: Total
B60: Machinery Depreciation
C61: Pickup/General Use Equipment | D61: 1 | F61: Acre | G61: 2.6105625 | I61: 2.6105625 | J61: =E61*H61 -> 0 | K61: 0 | M61: 0 | N61: =J61*L61 -> 0 | O61: 2.6105625 | P61: =+J61-N61 -> 0 | Q61: 417.69 | R61: =+J61*E$7 -> 0
C62: Tractors/Self-Propelled | D62: 1 | F62: Acre | G62: 3.519799369 | I62: 3.519799369 | J62: 0 | K62: 0 | M62: 0 | N62: =J62*L62 -> 0 | O62: 3.519799369 | P62: 0 | Q62: 563.1678991 | R62: 0
C63: Implements | D63: 1 | F63: Acre | G63: 11.96982902 | I63: 11.96982902 | J63: 0 | K63: 0 | M63: 0 | N63: =J63*L63 -> 0 | O63: 11.96982902 | P63: 0 | Q63: 1915.172643 | R63: 0
B64: Equipment Investment
C65: Pickup/General Use Equipment | D65: 18.0253125 | F65: Dollars | G65: 0.0601 | I65: 1.083321281 | J65: =E65*H65 -> 0 | K65: 0 | M65: 0 | N65: =J65*L65 -> 0 | O65: 1.083321281 | P65: =+J65-N65 -> 0 | Q65: 173.331405 | R65: =+J65*E$7 -> 0
C66: Tractors/Self-Propelled | D66: 27.42037251 | F66: Dollars | G66: 0.0601 | I66: 1.647964388 | J66: 0 | K66: 0 | M66: 0 | N66: =J66*L66 -> 0 | O66: 1.647964388 | P66: 0 | Q66: 263.674302 | R66: 0
C67: Implements | D67: 51.20426858 | F67: Dollars | G67: 0.0601 | I67: 3.077376542 | J67: 0 | K67: 0 | M67: 0 | N67: =J67*L67 -> 0 | O67: 3.077376542 | P67: 0 | Q67: 492.3802467 | R67: 0
B68: Salaried Labor | D68: 1 | F68: Acre | G68: 0 | I68: 0 | J68: 0 | K68: 0 | M68: 0 | N68: =J68*L68 -> 0 | O68: 0 | P68: =+J68-N68 -> 0 | Q68: 0 | R68: =+J68*E$7 -> 0
B69: Management Fee, Owner/Operator Labor | D69: 1 | F69: Acre | G69: 0 | I69: 0 | J69: 0 | K69: 0 | M69: 0 | N69: 0 | O69: 0 | P69: 0 | Q69: 0 | R69: 0
B70: Allocated Establishment Cost | D70: 1 | F70: Acre | G70: 0 | I70: 0 | J70: 0 | K70: 0 | M70: 0 | N70: 0 | O70: 0 | P70: 0 | Q70: 0 | R70: 0
B71: Cash Rent - Sorghum | D71: 1 | F71: Acre | G71: 26.5 | I71: 26.5 | J71: 0 | K71: 0 | M71: 0 | N71: 0 | O71: 26.5 | P71: 0 | Q71: 4240 | R71: 0
B72: Property Taxes | D72: 1 | F72: Acre | G72: 0 | I72: 0 | J72: 0 | K72: 0 | M72: 0 | N72: 0 | O72: 0 | P72: 0 | Q72: 0 | R72: 0
B73: Whole Farm Insurance | D73: 1 | F73: Acre | G73: 0 | I73: 0 | J73: 0 | K73: 0 | M73: 0 | N73: 0 | O73: 0 | P73: 0 | Q73: 0 | R73: 0
D74: 1 | G74: 0 | I74: 0 | J74: 0 | K74: 0 | M74: 0 | N74: 0 | O74: 0 | P74: 0 | Q74: 0 | R74: 0
D75: 1 | G75: 0 | I75: 0 | J75: =E75*H75 -> 0 | K75: 0 | M75: 0 | N75: 0 | O75: 0 | P75: 0 | Q75: 0 | R75: 0
A76: Total Fixed Costs | I76: 50.4088531 | J76: =+SUM(J61:J75) -> 0 | M76: 0 | N76: =+SUM(N61:N75) -> 0 | O76: 50.4088531 | P76: =+SUM(P61:P75) -> 0 | Q76: 8065.416496 | R76: =+SUM(R61:R75) -> 0
A77: Total Specified Costs | I77: 209.4996981 | J77: =+J55+J76 -> 0 | M77: 0 | N77: =+N55+N76 -> 0 | O77: 209.4996981 | P77: =+P55+P76 -> 0 | Q77: 33519.9517 | R77: =+R55+R76 -> 0
A79: Returns Above Specified Costs | I79: -59.49969809 | J79: =+J13-J77 -> 0 | M79: 0 | N79: =+N13-N77 -> 0 | O79: -59.49969809 | P79: =+P13-P77 -> 0 | Q79: -9519.951695 | R79: =+R13-R77 -> 0
A81: Breakeven Price to Cover Total Costs | G81: 8.379987924 | H81: =IF(E10=0,"n/a",(YTotExp-(YTotExp+YTotRet-J10))/E10) -> n/a | I81: CWT
D83: Example Breakeven Prices
B84: Example | C84: Example | D84: To Cover | G84: To Cover
B85: Yield | C85: Yield | D85: Variable | G85: Total
B86: Percent | C86: CWT | D86: Costs | G86: Costs
B87: 0.75 | C87: 18.75 | D87: 8.484845066 | G87: 11.17331723
B88: 0.9 | C88: 22.5 | D88: 7.070704222 | G88: 9.311097693
B89: 1 | C89: 25 | D89: 6.3636338 | G89: 8.379987924
B90: 1.1 | C90: 27.5 | D90: 5.785121636 | G90: 7.61817084
B91: 1.25 | C91: 31.25 | D91: 5.09090704 | G91: 6.703990339
D93: Your Breakeven Prices
B94: Your | C94: Your | E94: To Cover | H94: To Cover
B95: Yield | C95: Yield | E95: Variable | H95: Total
B96: Percent | C96: CWT | E96: Costs | H96: Costs
B97: 0.75 | C97: =E10*YPER1 -> 0 | E97: =IF($E$10=0,0,(YVarExp-(YTotExp+YTotRet-J10))/($E$10*YPER1)) -> 0 | H97: =IF($E$10=0,0,(YTotExp-(YTotExp+YTotRet-J10))/($E$10*YPER1)) -> 0
B98: 0.9 | C98: =E10*YPER2 -> 0 | E98: =IF($E$10=0,0,(YVarExp-(YTotExp+YTotRet-J10))/($E$10*YPER2)) -> 0 | H98: =IF($E$10=0,0,(YTotExp-(YTotExp+YTotRet-J10))/($E$10*YPER2)) -> 0
B99: 1 | C99: =+E10 -> 0 | E99: =IF($E$10=0,0,(YVarExp-(YTotExp+YTotRet-J10))/($E$10*YPER3)) -> 0 | H99: =IF($E$10=0,0,(YTotExp-(YTotExp+YTotRet-J10))/($E$10*YPER3)) -> 0
B100: 1.1 | C100: =E10*YPER4 -> 0 | E100: =IF($E$10=0,0,(YVarExp-(YTotExp+YTotRet-J10))/($E$10*YPER4)) -> 0 | H100: =IF($E$10=0,0,(YTotExp-(YTotExp+YTotRet-J10))/($E$10*YPER4)) -> 0
B101: 1.25 | C101: =E10*YPER5 -> 0 | E101: =IF($E$10=0,0,(YVarExp-(YTotExp+YTotRet-J10))/($E$10*YPER5)) -> 0 | H101: =IF($E$10=0,0,(YTotExp-(YTotExp+YTotRet-J10))/($E$10*YPER5)) -> 0
A103: Developed by Steve Amosson, Regents Fellow, Professor and Extension Economist, Texas A&M AgriLife Extension, 806-677-5600.
A105: Information presented is prepared solely as a general guide and not intended to recognize or predict the costs and returns from any one operation. Brand names are mentioned only as examples and imply no endorsement.

Sheet SorghumSprinkler
A1: Projections for Planning Purposes Only -- Not to be Used without Updating
A2: 2018 Estimated Costs and Returns per Acre
A3: Continuous Sorghum, Sprinkler Irrigated (NG)
A4: Enter your name for this budget in the cell above.
A5: Enter Your Values in the cells highlighed in MAROON.
E6: Your Acres | R6: Your
C7: Crop Acres | D7: 122 | L7: Your | Q7: Enterprise | R7: Enterprise
E8: Your | H8: Your | I8: Cash | J8: Your | K8: Landlord | L8: Landlord | N8: Your | P8: Your | Q8: Total | R8: Total
A9: REVENUE | D9: Quantity | E9: Quantity | F9: Units | G9: $/Unit | H9: $/Unit | I9: Total | J9: Total | K9: Share | L9: Share | M9: Landlord | N9: Landlord | O9: Tenant | P9: Tenant | Q9: (122 acres) | R9: ="(" & E7 & " acres)" -> ( acres)
B10: Grain Sorghum | D10: 60 | F10: CWT | G10: 6 | I10: 360 | J10: =E10*H10 -> 0 | K10: 0 | M10: 0 | N10: =J10*L10 -> 0 | O10: 360 | P10: =+J10-N10 -> 0 | Q10: 43920 | R10: =+J10*E$7 -> 0
D11: 0 | G11: 0 | I11: 0 | J11: 0 | K11: 0 | M11: 0 | N11: 0 | O11: 0 | P11: =+J11-N11 -> 0 | Q11: 0 | R11: 0
D12: 0 | G12: 0 | I12: 0 | J12: 0 | K12: 0 | M12: 0 | N12: 0 | O12: 0 | P12: 0 | Q12: 0 | R12: 0
A13: Total Revenue | I13: 360 | J13: =SUM(J10:J12) -> 0 | M13: 0 | N13: =SUM(N10:N12) -> 0 | O13: 360 | P13: =SUM(P10:P12) -> 0 | Q13: 43920 | R13: =SUM(R10:R12) -> 0
Q14: Enterprise | R14: Enterprise
A15: VARIABLE COSTS | D15: Quantity | E15: Quantity | F15: Units | G15: $/Unit | H15: $/Unit | I15: Total | J15: Total | K15: Share | L15: Share | M15: Landlord | N15: Landlord | O15: Tenant | P15: Tenant | Q15: Total | R15: Total
A16: Production Costs
B17: Herbicide
C18: Herbicide and Apply Sorghum Irrig. | D18: 1 | F18: Acre | G18: 23.14 | I18: 23.14 | J18: =E18*H18 -> 0 | K18: 0 | M18: 0 | N18: =J18*L18 -> 0 | O18: 23.14 | P18: =+J18-N18 -> 0 | Q18: 2823.08 | R18: =+J18*E$7 -> 0
B19: Seed
C20: Seed - Sorghum | D20: 4 | F20: Pound | G20: 2.2 | I20: 8.8 | J20: 0 | K20: 0 | M20: 0 | N20: 0 | O20: 8.8 | P20: 0 | Q20: 1073.6 | R20: 0
B21: Fertilizer
C22: Fertilizer (N) - ANH3 | D22: 65 | F22: Pound | G22: 0.24 | I22: 15.6 | J22: 0 | K22: 0 | M22: 0 | N22: 0 | O22: 15.6 | P22: 0 | Q22: 1903.2 | R22: 0
C23: Fertilizer (P) - Liquid | D23: 30 | F23: Pound | G23: 0.47 | I23: 14.1 | J23: 0 | K23: 0 | M23: 0 | N23: 0 | O23: 14.1 | P23: 0 | Q23: 1720.2 | R23: 0
C24: Fertilizer (N) - Liquid | D24: 55 | F24: Pound | G24: 0.4 | I24: 22 | J24: 0 | K24: 0 | M24: 0 | N24: 0 | O24: 22 | P24: 0 | Q24: 2684 | R24: 0
B25: Custom
C26: Fertilizer Application - ANH3 | D26: 1 | F26: Acre | G26: 15.36 | I26: 15.36 | J26: 0 | K26: 0 | M26: 0 | N26: 0 | O26: 15.36 | P26: 0 | Q26: 1873.92 | R26: 0
C27: Harvest and Haul - Sorghum | D27: 60 | F27: CWT | G27: 0.87 | I27: 52.2 | J27: 0 | K27: 0 | M27: 0 | N27: 0 | O27: 52.2 | P27: 0 | Q27: 6368.4 | R27: 0
B28: Miscellaneous
C29: Crop Insurance Sorghum - Irrigated | D29: 1 | F29: Acre | G29: 33 | I29: 33 | J29: 0 | K29: 0 | M29: 0 | N29: 0 | O29: 33 | P29: 0 | Q29: 4026 | R29: 0
B30: Insecticide
C31: Insecticide Head Worm | D31: 0.67 | F31: Application | G31: 9.93 | I31: 6.6531 | J31: 0 | K31: 0 | M31: 0 | N31: 0 | O31: 6.6531 | P31: 0 | Q31: 811.6782 | R31: 0
C32: Insecticide Sugar Cane Aphid | D32: 1 | F32: Application | G32: 21.27 | I32: 21.27 | J32: 0 | K32: 0 | M32: 0 | N32: 0 | O32: 21.27 | P32: 0 | Q32: 2594.94 | R32: 0
D33: 0 | G33: 0 | I33: 0 | J33: 0 | K33: 0 | M33: 0 | N33: 0 | O33: 0 | P33: 0 | Q33: 0 | R33: 0
D34: 0 | G34: 0 | I34: 0 | J34: 0 | K34: 0 | M34: 0 | N34: 0 | O34: 0 | P34: 0 | Q34: 0 | R34: 0
D35: 0 | G35: 0 | I35: 0 | J35: =E35*H35 -> 0 | K35: 0 | M35: 0 | N35: =J35*L35 -> 0 | O35: 0 | P35: =+J35-N35 -> 0 | Q35: 0 | R35: =+J35*E$7 -> 0
B36: Irrigation
C37: Energy Cost | D37: 10 | F37: AcreInch | G37: 3.5 | I37: 35 | J37: =E37*H37 -> 0 | K37: 0 | M37: 0 | N37: =J37*L37 -> 0 | O37: 35 | P37: =+J37-N37 -> 0 | Q37: 4270 | R37: =+J37*E$7 -> 0
C38: Irrigation Labor | D38: 0.896 | F38: Hour | G38: 12.64 | I38: 11.32544 | J38: 0 | K38: 0 | M38: 0 | N38: 0 | O38: 11.32544 | P38: 0 | Q38: 1381.70368 | R38: 0
B39: Machinery Labor
C40: Tractors/Self-Propelled | D40: 0.33 | F40: Hour | G40: 12.44 | I40: 4.1052 | J40: =E40*H40 -> 0 | K40: 0 | M40: 0 | N40: =J40*L40 -> 0 | O40: 4.1052 | P40: =+J40-N40 -> 0 | Q40: 500.8344 | R40: =+J40*E$7 -> 0
C41: Other Labor | D41: 0.37 | F41: Hour | G41: 12.44 | I41: 4.6028 | J41: =E41*H41 -> 0 | K41: 0 | M41: 0 | N41: =J41*L41 -> 0 | O41: 4.6028 | P41: =+J41-N41 -> 0 | Q41: 561.5416 | R41: =+J41*E$7 -> 0
B43: Diesel Fuel
C44: Pickup/General Use Equipment | D44: 1 | F44: Acre | G44: 0 | I44: 0 | J44: =E44*H44 -> 0 | K44: 0 | M44: 0 | N44: =J44*L44 -> 0 | O44: 0 | P44: =+J44-N44 -> 0 | Q44: 0 | R44: =+J44*E$7 -> 0
C45: Tractors/Self-Propelled | D45: 1.91 | F45: Gallon | G45: 1.99 | I45: 3.8009 | J45: =E45*H45 -> 0 | K45: 0 | M45: 0 | N45: =J45*L45 -> 0 | O45: 3.8009 | P45: =+J45-N45 -> 0 | Q45: 463.7098 | R45: =+J45*E$7 -> 0
B47: Gasoline
C48: Pickup/General Use Equipment | D48: 1 | F48: Acre | G48: 4.303278689 | I48: 4.303278689 | J48: =E48*H48 -> 0 | K48: 0 | M48: 0 | N48: =J48*L48 -> 0 | O48: 4.303278689 | P48: =+J48-N48 -> 0 | Q48: 525 | R48: =+J48*E$7 -> 0
C49: Tractors/Self-Propelled | D49: 0 | F49: Gallon | G49: 2.1 | I49: 0 | J49: =E49*H49 -> 0 | K49: 0 | M49: 0 | N49: =J49*L49 -> 0 | O49: 0 | P49: =+J49-N49 -> 0 | Q49: 0 | R49: =+J49*E$7 -> 0
B51: Repairs & Maintenance
C52: Pickup/General Use Equipment | D52: 1 | F52: Acre | G52: 2.508196721 | I52: 2.508196721 | J52: =E52*H52 -> 0 | K52: 0 | M52: 0 | N52: =J52*L52 -> 0 | O52: 2.508196721 | P52: =+J52-N52 -> 0 | Q52: 306 | R52: =+J52*E$7 -> 0
C53: Irrigation Equipment | D53: 1 | F53: Acre | G53: 40.4 | I53: 40.4 | J53: 0 | K53: 0 | M53: 0 | N53: 0 | O53: 40.4 | P53: 0 | Q53: 4928.8 | R53: 0
C54: Tractors/Self-Propelled | D54: 1 | F54: Acre | G54: 3.59635699 | I54: 3.59635699 | J54: 0 | K54: 0 | M54: 0 | N54: 0 | O54: 3.59635699 | P54: 0 | Q54: 438.7555528 | R54: 0
C55: Implements | D55: 1 | F55: Acre | G55: 11.53383323 | I55: 11.53383323 | J55: 0 | K55: 0 | M55: 0 | N55: 0 | O55: 11.53383323 | P55: 0 | Q55: 1407.127654 | R55: 0
I56: 0 | J56: 0 | K56: 0 | M56: 0 | N56: 0 | O56: 0 | P56: 0 | Q56: 0 | R56: 0
I57: 0 | J57: 0 | K57: 0 | M57: 0 | N57: 0 | O57: 0 | P57: 0 | Q57: 0 | R57: 0
B58: Interest on Credit Line | G58: 0.0574 | I58: 6.739092046 | J58: =+SUM(J17:J57)/2*H58 -> 0 | M58: 0 | N58: =+SUM(N17:N57)/2*L58 -> 0 | O58: 6.739092046 | P58: =+SUM(P17:P57)/2*L58 -> 0 | Q58: 822.1692296 | R58: =+J58*E$7 -> 0
A59: Total Variable Costs | I59: 340.0381977 | J59: =SUM(J18:J58) -> 0 | M59: 0 | N59: =SUM(N18:N58) -> 0 | O59: 340.0381977 | P59: =SUM(P18:P58) -> 0 | Q59: 41484.66012 | R59: =SUM(R18:R58) -> 0
A60: Planned Returns Above Variable Costs: | I60: 19.96180233 | J60: =+J13-J59 -> 0 | M60: 0 | N60: =+N13-N59 -> 0 | O60: 19.96180233 | P60: =+P13-P59 -> 0 | Q60: 2435.339884 | R60: =+R13-R59 -> 0
B61: Breakeven Price to Cover Variable Costs | G61: 5.667303295 | H61: =IF(E10=0,"n/a",(YVarExp-(YTotExp+YTotRet-J10))/E10) -> n/a | I61: CWT
Q62: Enterprise | R62: Enterprise
A63: FIXED COSTS | D63: Quantity | E63: Quantity | F63: Units | G63: $/Unit | H63: $/Unit | I63: Total | J63: Total | K63: Share | L63: Share | M63: Landlord | N63: Landlord | O63: Tenant | P63: Tenant | Q63: Total | R63: Total
B64: Machinery Depreciation
C65: Pickup/General Use Equipment | D65: 1 | F65: Acre | G65: 2.633606557 | I65: 2.633606557 | J65: =E65*H65 -> 0 | K65: 0 | M65: 0 | N65: =J65*L65 -> 0 | O65: 2.633606557 | P65: =+J65-N65 -> 0 | Q65: 321.3 | R65: =+J65*E$7 -> 0
C66: Irrigation Equipment | D66: 1 | F66: Acre | G66: 47.33606557 | I66: 47.33606557 | J66: 0 | K66: 0 | M66: 0 | N66: =J66*L66 -> 0 | O66: 47.33606557 | P66: 0 | Q66: 5775 | R66: 0
C67: Tractors/Self-Propelled | D67: 1 | F67: Acre | G67: 3.503840226 | I67: 3.503840226 | J67: 0 | K67: 0 | M67: 0 | N67: =J67*L67 -> 0 | O67: 3.503840226 | P67: 0 | Q67: 427.4685076 | R67: 0
C68: Implements | D68: 1 | F68: Acre | G68: 14.41836928 | I68: 14.41836928 | J68: 0 | K68: 0 | M68: 0 | N68: =J68*L68 -> 0 | O68: 14.41836928 | P68: 0 | Q68: 1759.041052 | R68: 0
B69: Equipment Investment
C70: Pickup/General Use Equipment | D70: 18.18442623 | F70: Dollars | G70: 0.0601 | I70: 1.092884016 | J70: =E70*H70 -> 0 | K70: 0 | M70: 0 | N70: =J70*L70 -> 0 | O70: 1.092884016 | P70: =+J70-N70 -> 0 | Q70: 133.33185 | R70: =+J70*E$7 -> 0
C71: Irrigation Equipment | D71: 571.7213115 | F71: Dollars | G71: 0.0601 | I71: 34.36045082 | J71: 0 | K71: 0 | M71: 0 | N71: =J71*L71 -> 0 | O71: 34.36045082 | P71: 0 | Q71: 4191.975 | R71: 0
C72: Tractors/Self-Propelled | D72: 27.29604563 | F72: Dollars | G72: 0.0601 | I72: 1.640492342 | J72: 0 | K72: 0 | M72: 0 | N72: =J72*L72 -> 0 | O72: 1.640492342 | P72: 0 | Q72: 200.1400658 | R72: 0
C73: Implements | D73: 61.67857971 | F73: Dollars | G73: 0.0601 | I73: 3.70688264 | J73: 0 | K73: 0 | M73: 0 | N73: =J73*L73 -> 0 | O73: 3.70688264 | P73: 0 | Q73: 452.2396821 | R73: 0
B74: Salaried Labor | D74: 1 | F74: Acre | G74: 0 | I74: 0 | J74: 0 | K74: 0 | M74: 0 | N74: =J74*L74 -> 0 | O74: 0 | P74: =+J74-N74 -> 0 | Q74: 0 | R74: =+J74*E$7 -> 0
B75: Management Fee, Owner/Operator Labor | D75: 1 | F75: Acre | G75: 0 | I75: 0 | J75: 0 | K75: 0 | M75: 0 | N75: 0 | O75: 0 | P75: 0 | Q75: 0 | R75: 0
B76: Allocated Establishment Cost | D76: 1 | F76: Acre | G76: 0 | I76: 0 | J76: 0 | K76: 0 | M76: 0 | N76: 0 | O76: 0 | P76: 0 | Q76: 0 | R76: 0
B77: Cash Rent - Sorghum f | D77: 1 | F77: Acre | G77: 72 | I77: 72 | J77: 0 | K77: 0 | M77: 0 | N77: 0 | O77: 72 | P77: 0 | Q77: 8784 | R77: 0
B78: Property Taxes | D78: 1 | F78: Acre | G78: 0 | I78: 0 | J78: 0 | K78: 0 | M78: 0 | N78: 0 | O78: 0 | P78: 0 | Q78: 0 | R78: 0
B79: Whole Farm Insurance | D79: 1 | F79: Acre | G79: 0 | I79: 0 | J79: 0 | K79: 0 | M79: 0 | N79: 0 | O79: 0 | P79: 0 | Q79: 0 | R79: 0
D80: 1 | G80: 0 | I80: 0 | J80: 0 | K80: 0 | M80: 0 | N80: 0 | O80: 0 | P80: 0 | Q80: 0 | R80: 0
D81: 1 | G81: 0 | I81: 0 | J81: =E81*H81 -> 0 | K81: 0 | M81: 0 | N81: 0 | O81: 0 | P81: 0 | Q81: 0 | R81: 0
A82: Total Fixed Costs | I82: 180.6925915 | J82: =+SUM(J65:J81) -> 0 | M82: 0 | N82: =+SUM(N65:N81) -> 0 | O82: 180.6925915 | P82: =+SUM(P65:P81) -> 0 | Q82: 22044.49616 | R82: =+SUM(R65:R81) -> 0
A83: Total Specified Costs | I83: 520.7307891 | J83: =+J59+J82 -> 0 | M83: 0 | N83: =+N59+N82 -> 0 | O83: 520.7307891 | P83: =+P59+P82 -> 0 | Q83: 63529.15627 | R83: =+R59+R82 -> 0
A85: Returns Above Specified Costs | I85: -160.7307891 | J85: =+J13-J83 -> 0 | M85: 0 | N85: =+N13-N83 -> 0 | O85: -160.7307891 | P85: =+P13-P83 -> 0 | Q85: -19609.15627 | R85: =+R13-R83 -> 0
A87: Breakeven Price to Cover Total Costs | G87: 8.678846486 | H87: =IF(E10=0,"n/a",(YTotExp-(YTotExp+YTotRet-J10))/E10) -> n/a | I87: CWT
D89: Example Breakeven Prices
B90: Example | C90: Example | D90: To Cover | G90: To Cover
B91: Yield | C91: Yield | D91: Variable | G91: Total
B92: Percent | C92: CWT | D92: Costs | G92: Costs
B93: 0.75 | C93: 45 | D93: 7.556404393 | G93: 11.57179531
B94: 0.9 | C94: 54 | D94: 6.297003661 | G94: 9.643162762
B95: 1 | C95: 60 | D95: 5.667303295 | G95: 8.678846486
B96: 1.1 | C96: 66 | D96: 5.152093904 | G96: 7.889860441
B97: 1.25 | C97: 75 | D97: 4.533842636 | G97: 6.943077188
D99: Your Breakeven Prices
B100: Your | C100: Your | E100: To Cover | H100: To Cover
B101: Yield | C101: Yield | E101: Variable | H101: Total
B102: Percent | C102: CWT | E102: Costs | H102: Costs
B103: 0.75 | C103: =E10*YPER1 -> 0 | E103: =IF($E$10=0,0,(YVarExp-(YTotExp+YTotRet-J10))/($E$10*YPER1)) -> 0 | H103: =IF($E$10=0,0,(YTotExp-(YTotExp+YTotRet-J10))/($E$10*YPER1)) -> 0
B104: 0.9 | C104: =E10*YPER2 -> 0 | E104: =IF($E$10=0,0,(YVarExp-(YTotExp+YTotRet-J10))/($E$10*YPER2)) -> 0 | H104: =IF($E$10=0,0,(YTotExp-(YTotExp+YTotRet-J10))/($E$10*YPER2)) -> 0
B105: 1 | C105: =+E10 -> 0 | E105: =IF($E$10=0,0,(YVarExp-(YTotExp+YTotRet-J10))/($E$10*YPER3)) -> 0 | H105: =IF($E$10=0,0,(YTotExp-(YTotExp+YTotRet-J10))/($E$10*YPER3)) -> 0
B106: 1.1 | C106: =E10*YPER4 -> 0 | E106: =IF($E$10=0,0,(YVarExp-(YTotExp+YTotRet-J10))/($E$10*YPER4)) -> 0 | H106: =IF($E$10=0,0,(YTotExp-(YTotExp+YTotRet-J10))/($E$10*YPER4)) -> 0
B107: 1.25 | C107: =E10*YPER5 -> 0 | E107: =IF($E$10=0,0,(YVarExp-(YTotExp+YTotRet-J10))/($E$10*YPER5)) -> 0 | H107: =IF($E$10=0,0,(YTotExp-(YTotExp+YTotRet-J10))/($E$10*YPER5)) -> 0
A109: Developed by Steve Amosson, Regents Fellow, Professor and Extension Economist, Texas A&M AgriLife Extension, 806-677-5600.
A111: Information presented is prepared solely as a general guide and not intended to recognize or predict the costs and returns from any one operation. Brand names are mentioned only as examples and imply no endorsement.

Sheet SeedSorghum
A1: Projections for Planning Purposes Only -- Not to be Used without Updating
A2: 2018 Estimated Costs and Returns per Acre
A3: Seed Sorghum, Sprinkler Irrigated (NG)
A4: Enter your name for this budget in the cell above.
A5: Enter Your Values in the cells highlighed in MAROON.
E6: Your Acres | R6: Your
C7: Crop Acres | D7: 122 | L7: Your | Q7: Enterprise | R7: Enterprise
E8: Your | H8: Your | I8: Cash | J8: Your | K8: Landlord | L8: Landlord | N8: Your | P8: Your | Q8: Total | R8: Total
A9: REVENUE | D9: Quantity | E9: Quantity | F9: Units | G9: $/Unit | H9: $/Unit | I9: Total | J9: Total | K9: Share | L9: Share | M9: Landlord | N9: Landlord | O9: Tenant | P9: Tenant | Q9: (122 acres) | R9: ="(" & E7 & " acres)" -> ( acres)
B10: Seed Sorghum - Female Only | D10: 45 | F10: CWT | G10: 18.7 | I10: 841.5 | J10: =E10*H10 -> 0 | K10: 0 | M10: 0 | N10: =J10*L10 -> 0 | O10: 841.5 | P10: =+J10-N10 -> 0 | Q10: 102663 | R10: =+J10*E$7 -> 0
D11: 0 | G11: 0 | I11: 0 | J11: 0 | K11: 0 | M11: 0 | N11: 0 | O11: 0 | P11: =+J11-N11 -> 0 | Q11: 0 | R11: 0
D12: 0 | G12: 0 | I12: 0 | J12: 0 | K12: 0 | M12: 0 | N12: 0 | O12: 0 | P12: 0 | Q12: 0 | R12: 0
A13: Total Revenue | I13: 841.5 | J13: =SUM(J10:J12) -> 0 | M13: 0 | N13: =SUM(N10:N12) -> 0 | O13: 841.5 | P13: =SUM(P10:P12) -> 0 | Q13: 102663 | R13: =SUM(R10:R12) -> 0
Q14: Enterprise | R14: Enterprise
A15: VARIABLE COSTS | D15: Quantity | E15: Quantity | F15: Units | G15: $/Unit | H15: $/Unit | I15: Total | J15: Total | K15: Share | L15: Share | M15: Landlord | N15: Landlord | O15: Tenant | P15: Tenant | Q15: Total | R15: Total
A16: Production Costs
B17: Herbicide
C18: Herbicide and Apply Sorghum Irrig. | D18: 1 | F18: Acre | G18: 23.14 | I18: 23.14 | J18: =E18*H18 -> 0 | K18: 0 | M18: 0 | N18: =J18*L18 -> 0 | O18: 23.14 | P18: =+J18-N18 -> 0 | Q18: 2823.08 | R18: =+J18*E$7 -> 0
B19: Seed
C20: Seed - Sorghum | D20: 0 | F20: Pound | G20: 2.2 | I20: 0 | J20: 0 | K20: 0 | M20: 0 | N20: 0 | O20: 0 | P20: 0 | Q20: 0 | R20: 0
B21: Fertilizer
C22: Fertilizer (N) - ANH3 | D22: 65 | F22: Pound | G22: 0.24 | I22: 15.6 | J22: 0 | K22: 0 | M22: 0 | N22: 0 | O22: 15.6 | P22: 0 | Q22: 1903.2 | R22: 0
C23: Fertilizer (P) - Liquid | D23: 50 | F23: Pound | G23: 0.47 | I23: 23.5 | J23: 0 | K23: 0 | M23: 0 | N23: 0 | O23: 23.5 | P23: 0 | Q23: 2867 | R23: 0
C24: Fertilizer (N) - Liquid | D24: 60 | F24: Pound | G24: 0.4 | I24: 24 | J24: 0 | K24: 0 | M24: 0 | N24: 0 | O24: 24 | P24: 0 | Q24: 2928 | R24: 0
B25: Custom
C26: Fertilizer Application - ANH3 | D26: 1 | F26: Acre | G26: 15.36 | I26: 15.36 | J26: 0 | K26: 0 | M26: 0 | N26: 0 | O26: 15.36 | P26: 0 | Q26: 1873.92 | R26: 0
C27: Harvest and Haul - Sorghum | D27: 45 | F27: CWT | G27: 0.87 | I27: 39.15 | J27: 0 | K27: 0 | M27: 0 | N27: 0 | O27: 39.15 | P27: 0 | Q27: 4776.3 | R27: 0
B28: Miscellaneous
C29: Crop Insurance Sorghum - Irrigated | D29: 1 | F29: Acre | G29: 33 | I29: 33 | J29: 0 | K29: 0 | M29: 0 | N29: 0 | O29: 33 | P29: 0 | Q29: 4026 | R29: 0
B30: Insecticide
C31: Insecticide Head Worm | D31: 0.67 | F31: Application | G31: 9.93 | I31: 6.6531 | J31: 0 | K31: 0 | M31: 0 | N31: 0 | O31: 6.6531 | P31: 0 | Q31: 811.6782 | R31: 0
C32: Insecticide Sugar Cane Aphid | D32: 1 | F32: Application | G32: 21.27 | I32: 21.27 | J32: 0 | K32: 0 | M32: 0 | N32: 0 | O32: 21.27 | P32: 0 | Q32: 2594.94 | R32: 0
D33: 0 | G33: 0 | I33: 0 | J33: 0 | K33: 0 | M33: 0 | N33: 0 | O33: 0 | P33: 0 | Q33: 0 | R33: 0
D34: 0 | G34: 0 | I34: 0 | J34: 0 | K34: 0 | M34: 0 | N34: 0 | O34: 0 | P34: 0 | Q34: 0 | R34: 0
D35: 0 | G35: 0 | I35: 0 | J35: =E35*H35 -> 0 | K35: 0 | M35: 0 | N35: =J35*L35 -> 0 | O35: 0 | P35: =+J35-N35 -> 0 | Q35: 0 | R35: =+J35*E$7 -> 0
B36: Irrigation
C37: Energy Cost | D37: 16 | F37: AcreInch | G37: 3.5 | I37: 56 | J37: =E37*H37 -> 0 | K37: 0 | M37: 0 | N37: =J37*L37 -> 0 | O37: 56 | P37: =+J37-N37 -> 0 | Q37: 6832 | R37: =+J37*E$7 -> 0
C38: Irrigation Labor | D38: 1.024 | F38: Hour | G38: 12.64 | I38: 12.94336 | J38: 0 | K38: 0 | M38: 0 | N38: 0 | O38: 12.94336 | P38: 0 | Q38: 1579.08992 | R38: 0
B39: Machinery Labor
C40: Tractors/Self-Propelled | D40: 0.33 | F40: Hour | G40: 12.44 | I40: 4.1052 | J40: =E40*H40 -> 0 | K40: 0 | M40: 0 | N40: =J40*L40 -> 0 | O40: 4.1052 | P40: =+J40-N40 -> 0 | Q40: 500.8344 | R40: =+J40*E$7 -> 0
C41: Other Labor | D41: 0.37 | F41: Hour | G41: 12.44 | I41: 4.6028 | J41: =E41*H41 -> 0 | K41: 0 | M41: 0 | N41: =J41*L41 -> 0 | O41: 4.6028 | P41: =+J41-N41 -> 0 | Q41: 561.5416 | R41: =+J41*E$7 -> 0
B43: Diesel Fuel
C44: Pickup/General Use Equipment | D44: 1 | F44: Acre | G44: 0 | I44: 0 | J44: =E44*H44 -> 0 | K44: 0 | M44: 0 | N44: =J44*L44 -> 0 | O44: 0 | P44: =+J44-N44 -> 0 | Q44: 0 | R44: =+J44*E$7 -> 0
C45: Tractors/Self-Propelled | D45: 1.91 | F45: Gallon | G45: 1.99 | I45: 3.8009 | J45: =E45*H45 -> 0 | K45: 0 | M45: 0 | N45: =J45*L45 -> 0 | O45: 3.8009 | P45: =+J45-N45 -> 0 | Q45: 463.7098 | R45: =+J45*E$7 -> 0
B47: Gasoline
C48: Pickup/General Use Equipment | D48: 1 | F48: Acre | G48: 4.303278689 | I48: 4.303278689 | J48: =E48*H48 -> 0 | K48: 0 | M48: 0 | N48: =J48*L48 -> 0 | O48: 4.303278689 | P48: =+J48-N48 -> 0 | Q48: 525 | R48: =+J48*E$7 -> 0
C49: Tractors/Self-Propelled | D49: 0 | F49: Gallon | G49: 2.1 | I49: 0 | J49: =E49*H49 -> 0 | K49: 0 | M49: 0 | N49: =J49*L49 -> 0 | O49: 0 | P49: =+J49-N49 -> 0 | Q49: 0 | R49: =+J49*E$7 -> 0
B51: Repairs & Maintenance
C52: Pickup/General Use Equipment | D52: 1 | F52: Acre | G52: 2.508196721 | I52: 2.508196721 | J52: =E52*H52 -> 0 | K52: 0 | M52: 0 | N52: =J52*L52 -> 0 | O52: 2.508196721 | P52: =+J52-N52 -> 0 | Q52: 306 | R52: =+J52*E$7 -> 0
C53: Irrigation Equipment | D53: 1 | F53: Acre | G53: 64.64 | I53: 64.64 | J53: 0 | K53: 0 | M53: 0 | N53: 0 | O53: 64.64 | P53: 0 | Q53: 7886.08 | R53: 0
C54: Tractors/Self-Propelled | D54: 1 | F54: Acre | G54: 3.59635699 | I54: 3.59635699 | J54: 0 | K54: 0 | M54: 0 | N54: 0 | O54: 3.59635699 | P54: 0 | Q54: 438.7555528 | R54: 0
C55: Implements | D55: 1 | F55: Acre | G55: 11.53383323 | I55: 11.53383323 | J55: 0 | K55: 0 | M55: 0 | N55: 0 | O55: 11.53383323 | P55: 0 | Q55: 1407.127654 | R55: 0
I56: 0 | J56: 0 | K56: 0 | M56: 0 | N56: 0 | O56: 0 | P56: 0 | Q56: 0 | R56: 0
I57: 0 | J57: 0 | K57: 0 | M57: 0 | N57: 0 | O57: 0 | P57: 0 | Q57: 0 | R57: 0
B58: Interest on Credit Line | G58: 0.0574 | I58: 7.464303209 | J58: =+SUM(J17:J57)/2*H58 -> 0 | M58: 0 | N58: =+SUM(N17:N57)/2*L58 -> 0 | O58: 7.464303209 | P58: =+SUM(P17:P57)/2*L58 -> 0 | Q58: 910.6449915 | R58: =+J58*E$7 -> 0
A59: Total Variable Costs | I59: 377.1713288 | J59: =SUM(J18:J58) -> 0 | M59: 0 | N59: =SUM(N18:N58) -> 0 | O59: 377.1713288 | P59: =SUM(P18:P58) -> 0 | Q59: 46014.90212 | R59: =SUM(R18:R58) -> 0
A60: Planned Returns Above Variable Costs: | I60: 464.3286712 | J60: =+J13-J59 -> 0 | M60: 0 | N60: =+N13-N59 -> 0 | O60: 464.3286712 | P60: =+P13-P59 -> 0 | Q60: 56648.09788 | R60: =+R13-R59 -> 0
B61: Breakeven Price to Cover Variable Costs | G61: 8.381585085 | H61: =IF(E10=0,"n/a",(YVarExp-(YTotExp+YTotRet-J10))/E10) -> n/a | I61: CWT
Q62: Enterprise | R62: Enterprise
A63: FIXED COSTS | D63: Quantity | E63: Quantity | F63: Units | G63: $/Unit | H63: $/Unit | I63: Total | J63: Total | K63: Share | L63: Share | M63: Landlord | N63: Landlord | O63: Tenant | P63: Tenant | Q63: Total | R63: Total
B64: Machinery Depreciation
C65: Pickup/General Use Equipment | D65: 1 | F65: Acre | G65: 2.633606557 | I65: 2.633606557 | J65: =E65*H65 -> 0 | K65: 0 | M65: 0 | N65: =J65*L65 -> 0 | O65: 2.633606557 | P65: =+J65-N65 -> 0 | Q65: 321.3 | R65: =+J65*E$7 -> 0
C66: Irrigation Equipment | D66: 1 | F66: Acre | G66: 40.42008197 | I66: 40.42008197 | J66: 0 | K66: 0 | M66: 0 | N66: =J66*L66 -> 0 | O66: 40.42008197 | P66: 0 | Q66: 4931.25 | R66: 0
C67: Tractors/Self-Propelled | D67: 1 | F67: Acre | G67: 3.503840226 | I67: 3.503840226 | J67: 0 | K67: 0 | M67: 0 | N67: =J67*L67 -> 0 | O67: 3.503840226 | P67: 0 | Q67: 427.4685076 | R67: 0
C68: Implements | D68: 1 | F68: Acre | G68: 14.41836928 | I68: 14.41836928 | J68: 0 | K68: 0 | M68: 0 | N68: =J68*L68 -> 0 | O68: 14.41836928 | P68: 0 | Q68: 1759.041052 | R68: 0
B69: Equipment Investment
C70: Pickup/General Use Equipment | D70: 18.18442623 | F70: Dollars | G70: 0.0601 | I70: 1.092884016 | J70: =E70*H70 -> 0 | K70: 0 | M70: 0 | N70: =J70*L70 -> 0 | O70: 1.092884016 | P70: =+J70-N70 -> 0 | Q70: 133.33185 | R70: =+J70*E$7 -> 0
C71: Irrigation Equipment | D71: 521.0040984 | F71: Dollars | G71: 0.0601 | I71: 31.31234631 | J71: 0 | K71: 0 | M71: 0 | N71: =J71*L71 -> 0 | O71: 31.31234631 | P71: 0 | Q71: 3820.10625 | R71: 0
C72: Tractors/Self-Propelled | D72: 27.29604563 | F72: Dollars | G72: 0.0601 | I72: 1.640492342 | J72: 0 | K72: 0 | M72: 0 | N72: =J72*L72 -> 0 | O72: 1.640492342 | P72: 0 | Q72: 200.1400658 | R72: 0
C73: Implements | D73: 61.67857971 | F73: Dollars | G73: 0.0601 | I73: 3.70688264 | J73: 0 | K73: 0 | M73: 0 | N73: =J73*L73 -> 0 | O73: 3.70688264 | P73: 0 | Q73: 452.2396821 | R73: 0
B74: Salaried Labor | D74: 1 | F74: Acre | G74: 0 | I74: 0 | J74: 0 | K74: 0 | M74: 0 | N74: =J74*L74 -> 0 | O74: 0 | P74: =+J74-N74 -> 0 | Q74: 0 | R74: =+J74*E$7 -> 0
B75: Management Fee, Owner/Operator Labor | D75: 1 | F75: Acre | G75: 0 | I75: 0 | J75: 0 | K75: 0 | M75: 0 | N75: 0 | O75: 0 | P75: 0 | Q75: 0 | R75: 0
B76: Allocated Establishment Cost | D76: 1 | F76: Acre | G76: 0 | I76: 0 | J76: 0 | K76: 0 | M76: 0 | N76: 0 | O76: 0 | P76: 0 | Q76: 0 | R76: 0
B77: Cash Rent - Sorghum f | D77: 1 | F77: Acre | G77: 72 | I77: 72 | J77: 0 | K77: 0 | M77: 0 | N77: 0 | O77: 72 | P77: 0 | Q77: 8784 | R77: 0
B78: Property Taxes | D78: 1 | F78: Acre | G78: 0 | I78: 0 | J78: 0 | K78: 0 | M78: 0 | N78: 0 | O78: 0 | P78: 0 | Q78: 0 | R78: 0
B79: Whole Farm Insurance | D79: 1 | F79: Acre | G79: 0 | I79: 0 | J79: 0 | K79: 0 | M79: 0 | N79: 0 | O79: 0 | P79: 0 | Q79: 0 | R79: 0
D80: 1 | G80: 0 | I80: 0 | J80: 0 | K80: 0 | M80: 0 | N80: 0 | O80: 0 | P80: 0 | Q80: 0 | R80: 0
D81: 1 | G81: 0 | I81: 0 | J81: =E81*H81 -> 0 | K81: 0 | M81: 0 | N81: 0 | O81: 0 | P81: 0 | Q81: 0 | R81: 0
A82: Total Fixed Costs | I82: 170.7285033 | J82: =+SUM(J65:J81) -> 0 | M82: 0 | N82: =+SUM(N65:N81) -> 0 | O82: 170.7285033 | P82: =+SUM(P65:P81) -> 0 | Q82: 20828.87741 | R82: =+SUM(R65:R81) -> 0
A83: Total Specified Costs | I83: 547.8998322 | J83: =+J59+J82 -> 0 | M83: 0 | N83: =+N59+N82 -> 0 | O83: 547.8998322 | P83: =+P59+P82 -> 0 | Q83: 66843.77953 | R83: =+R59+R82 -> 0
A85: Returns Above Specified Costs | I85: 293.6001678 | J85: =+J13-J83 -> 0 | M85: 0 | N85: =+N13-N83 -> 0 | O85: 293.6001678 | P85: =+P13-P83 -> 0 | Q85: 35819.22047 | R85: =+R13-R83 -> 0
A87: Breakeven Price to Cover Total Costs | G87: 12.17555183 | H87: =IF(E10=0,"n/a",(YTotExp-(YTotExp+YTotRet-J10))/E10) -> n/a | I87: CWT
D89: Example Breakeven Prices
B90: Example | C90: Example | D90: To Cover | G90: To Cover
B91: Yield | C91: Yield | D91: Variable | G91: Total
B92: Percent | C92: CWT | D92: Costs | G92: Costs
B93: 0.75 | C93: 33.75 | D93: 11.17544678 | G93: 16.2340691
B94: 0.9 | C94: 40.5 | D94: 9.312872317 | G94: 13.52839092
B95: 1 | C95: 45 | D95: 8.381585085 | G95: 12.17555183
B96: 1.1 | C96: 49.5 | D96: 7.619622805 | G96: 11.06868348
B97: 1.25 | C97: 56.25 | D97: 6.705268068 | G97: 9.740441461
D99: Your Breakeven Prices
B100: Your | C100: Your | E100: To Cover | H100: To Cover
B101: Yield | C101: Yield | E101: Variable | H101: Total
B102: Percent | C102: CWT | E102: Costs | H102: Costs
B103: 0.75 | C103: =E10*YPER1 -> 0 | E103: =IF($E$10=0,0,(YVarExp-(YTotExp+YTotRet-J10))/($E$10*YPER1)) -> 0 | H103: =IF($E$10=0,0,(YTotExp-(YTotExp+YTotRet-J10))/($E$10*YPER1)) -> 0
B104: 0.9 | C104: =E10*YPER2 -> 0 | E104: =IF($E$10=0,0,(YVarExp-(YTotExp+YTotRet-J10))/($E$10*YPER2)) -> 0 | H104: =IF($E$10=0,0,(YTotExp-(YTotExp+YTotRet-J10))/($E$10*YPER2)) -> 0
B105: 1 | C105: =+E10 -> 0 | E105: =IF($E$10=0,0,(YVarExp-(YTotExp+YTotRet-J10))/($E$10*YPER3)) -> 0 | H105: =IF($E$10=0,0,(YTotExp-(YTotExp+YTotRet-J10))/($E$10*YPER3)) -> 0
B106: 1.1 | C106: =E10*YPER4 -> 0 | E106: =IF($E$10=0,0,(YVarExp-(YTotExp+YTotRet-J10))/($E$10*YPER4)) -> 0 | H106: =IF($E$10=0,0,(YTotExp-(YTotExp+YTotRet-J10))/($E$10*YPER4)) -> 0
B107: 1.25 | C107: =E10*YPER5 -> 0 | E107: =IF($E$10=0,0,(YVarExp-(YTotExp+YTotRet-J10))/($E$10*YPER5)) -> 0 | H107: =IF($E$10=0,0,(YTotExp-(YTotExp+YTotRet-J10))/($E$10*YPER5)) -> 0
A109: Developed by Steve Amosson, Regents Fellow, Professor and Extension Economist, Texas A&M AgriLife Extension, 806-677-5600.
A111: Information presented is prepared solely as a general guide and not intended to recognize or predict the costs and returns from any one operation. Brand names are mentioned only as examples and imply no endorsement.

Sheet SoybeansSprinkler
A1: Projections for Planning Purposes Only -- Not to be Used without Updating
A2: 2018 Estimated Costs and Returns per Acre
A3: Soybeans, Roundup Ready, Sprinkler Irrigated (NG)
A4: Enter your name for this budget in the cell above.
A5: Enter Your Values in the cells highlighed in MAROON.
E6: Your Acres | R6: Your
C7: Crop Acres | D7: 122 | L7: Your | Q7: Enterprise | R7: Enterprise
E8: Your | H8: Your | I8: Cash | J8: Your | K8: Landlord | L8: Landlord | N8: Your | P8: Your | Q8: Total | R8: Total
A9: REVENUE | D9: Quantity | E9: Quantity | F9: Units | G9: $/Unit | H9: $/Unit | I9: Total | J9: Total | K9: Share | L9: Share | M9: Landlord | N9: Landlord | O9: Tenant | P9: Tenant | Q9: (122 acres) | R9: ="(" & E7 & " acres)" -> ( acres)
B10: Soybeans | D10: 60 | F10: Bushel | G10: 8.8 | I10: 528 | J10: =E10*H10 -> 0 | K10: 0 | M10: 0 | N10: =J10*L10 -> 0 | O10: 528 | P10: =+J10-N10 -> 0 | Q10: 64416 | R10: =+J10*E$7 -> 0
D11: 0 | G11: 0 | I11: 0 | J11: 0 | K11: 0 | M11: 0 | N11: 0 | O11: 0 | P11: =+J11-N11 -> 0 | Q11: 0 | R11: 0
D12: 0 | G12: 0 | I12: 0 | J12: 0 | K12: 0 | M12: 0 | N12: 0 | O12: 0 | P12: 0 | Q12: 0 | R12: 0
A13: Total Revenue | I13: 528 | J13: =SUM(J10:J12) -> 0 | M13: 0 | N13: =SUM(N10:N12) -> 0 | O13: 528 | P13: =SUM(P10:P12) -> 0 | Q13: 64416 | R13: =SUM(R10:R12) -> 0
Q14: Enterprise | R14: Enterprise
A15: VARIABLE COSTS | D15: Quantity | E15: Quantity | F15: Units | G15: $/Unit | H15: $/Unit | I15: Total | J15: Total | K15: Share | L15: Share | M15: Landlord | N15: Landlord | O15: Tenant | P15: Tenant | Q15: Total | R15: Total
A16: Production Costs
B17: Seed
C18: Seed - Soybeans | D18: 1 | F18: Bag | G18: 72.27 | I18: 72.27 | J18: =E18*H18 -> 0 | K18: 0 | M18: 0 | N18: =J18*L18 -> 0 | O18: 72.27 | P18: =+J18-N18 -> 0 | Q18: 8816.94 | R18: =+J18*E$7 -> 0
C19: Innoculant Soybeans | D19: 1 | F19: Acre | G19: 7.77 | I19: 7.77 | J19: 0 | K19: 0 | M19: 0 | N19: 0 | O19: 7.77 | P19: 0 | Q19: 947.94 | R19: 0
B20: Fertilizer
C21: Fertilizer (P) - Liquid | D21: 45 | F21: Pound | G21: 0.47 | I21: 21.15 | J21: 0 | K21: 0 | M21: 0 | N21: 0 | O21: 21.15 | P21: 0 | Q21: 2580.3 | R21: 0
B22: Custom
C23: Harvest and Haul - Soybeans | D23: 60 | F23: Bushel | G23: 0.68 | I23: 40.8 | J23: 0 | K23: 0 | M23: 0 | N23: 0 | O23: 40.8 | P23: 0 | Q23: 4977.6 | R23: 0
B24: Herbicide
C25: Herbicide and Apply Soybeans | D25: 2 | F25: Acre | G25: 12.25 | I25: 24.5 | J25: 0 | K25: 0 | M25: 0 | N25: 0 | O25: 24.5 | P25: 0 | Q25: 2989 | R25: 0
B26: Insecticide
C27: Insecticide and Apply Soybeans | D27: 0.5 | F27: Acre | G27: 9.12 | I27: 4.56 | J27: 0 | K27: 0 | M27: 0 | N27: 0 | O27: 4.56 | P27: 0 | Q27: 556.32 | R27: 0
B28: Miscellaneous
C29: Crop Insurance Soybeans | D29: 1 | F29: Acre | G29: 37 | I29: 37 | J29: 0 | K29: 0 | M29: 0 | N29: 0 | O29: 37 | P29: 0 | Q29: 4514 | R29: 0
D30: 0 | G30: 0 | I30: 0 | J30: 0 | K30: 0 | M30: 0 | N30: 0 | O30: 0 | P30: 0 | Q30: 0 | R30: 0
D31: 0 | G31: 0 | I31: 0 | J31: 0 | K31: 0 | M31: 0 | N31: 0 | O31: 0 | P31: 0 | Q31: 0 | R31: 0
D32: 0 | G32: 0 | I32: 0 | J32: =E32*H32 -> 0 | K32: 0 | M32: 0 | N32: =J32*L32 -> 0 | O32: 0 | P32: =+J32-N32 -> 0 | Q32: 0 | R32: =+J32*E$7 -> 0
B33: Irrigation
C34: Energy Cost | D34: 14 | F34: AcreInch | G34: 3.5 | I34: 49 | J34: =E34*H34 -> 0 | K34: 0 | M34: 0 | N34: =J34*L34 -> 0 | O34: 49 | P34: =+J34-N34 -> 0 | Q34: 5978 | R34: =+J34*E$7 -> 0
C35: Irrigation Labor | D35: 0.896 | F35: Hour | G35: 12.64 | I35: 11.32544 | J35: 0 | K35: 0 | M35: 0 | N35: 0 | O35: 11.32544 | P35: 0 | Q35: 1381.70368 | R35: 0
B36: Machinery Labor
C37: Tractors/Self-Propelled | D37: 0.34 | F37: Hour | G37: 12.44 | I37: 4.2296 | J37: =E37*H37 -> 0 | K37: 0 | M37: 0 | N37: =J37*L37 -> 0 | O37: 4.2296 | P37: =+J37-N37 -> 0 | Q37: 516.0112 | R37: =+J37*E$7 -> 0
C38: Other Labor | D38: 0.38 | F38: Hour | G38: 12.44 | I38: 4.7272 | J38: =E38*H38 -> 0 | K38: 0 | M38: 0 | N38: =J38*L38 -> 0 | O38: 4.7272 | P38: =+J38-N38 -> 0 | Q38: 576.7184 | R38: =+J38*E$7 -> 0
B40: Diesel Fuel
C41: Pickup/General Use Equipment | D41: 1 | F41: Acre | G41: 0 | I41: 0 | J41: =E41*H41 -> 0 | K41: 0 | M41: 0 | N41: =J41*L41 -> 0 | O41: 0 | P41: =+J41-N41 -> 0 | Q41: 0 | R41: =+J41*E$7 -> 0
C42: Tractors/Self-Propelled | D42: 2 | F42: Gallon | G42: 1.99 | I42: 3.98 | J42: =E42*H42 -> 0 | K42: 0 | M42: 0 | N42: =J42*L42 -> 0 | O42: 3.98 | P42: =+J42-N42 -> 0 | Q42: 485.56 | R42: =+J42*E$7 -> 0
B44: Gasoline
C45: Pickup/General Use Equipment | D45: 1 | F45: Acre | G45: 4.303278689 | I45: 4.303278689 | J45: =E45*H45 -> 0 | K45: 0 | M45: 0 | N45: =J45*L45 -> 0 | O45: 4.303278689 | P45: =+J45-N45 -> 0 | Q45: 525 | R45: =+J45*E$7 -> 0
C46: Tractors/Self-Propelled | D46: 0 | F46: Gallon | G46: 2.1 | I46: 0 | J46: =E46*H46 -> 0 | K46: 0 | M46: 0 | N46: =J46*L46 -> 0 | O46: 0 | P46: =+J46-N46 -> 0 | Q46: 0 | R46: =+J46*E$7 -> 0
B48: Repairs & Maintenance
C49: Pickup/General Use Equipment | D49: 1 | F49: Acre | G49: 2.508196721 | I49: 2.508196721 | J49: =E49*H49 -> 0 | K49: 0 | M49: 0 | N49: =J49*L49 -> 0 | O49: 2.508196721 | P49: =+J49-N49 -> 0 | Q49: 306 | R49: =+J49*E$7 -> 0
C50: Irrigation Equipment | D50: 1 | F50: Acre | G50: 56.56 | I50: 56.56 | J50: 0 | K50: 0 | M50: 0 | N50: 0 | O50: 56.56 | P50: 0 | Q50: 6900.32 | R50: 0
C51: Tractors/Self-Propelled | D51: 1 | F51: Acre | G51: 3.782691255 | I51: 3.782691255 | J51: 0 | K51: 0 | M51: 0 | N51: 0 | O51: 3.782691255 | P51: 0 | Q51: 461.488333 | R51: 0
C52: Implements | D52: 1 | F52: Acre | G52: 11.8518096 | I52: 11.8518096 | J52: 0 | K52: 0 | M52: 0 | N52: 0 | O52: 11.8518096 | P52: 0 | Q52: 1445.920771 | R52: 0
I53: 0 | J53: 0 | K53: 0 | M53: 0 | N53: 0 | O53: 0 | P53: 0 | Q53: 0 | R53: 0
I54: 0 | J54: 0 | K54: 0 | M54: 0 | N54: 0 | O54: 0 | P54: 0 | Q54: 0 | R54: 0
B55: Interest on Credit Line | G55: 0.0574 | I55: 7.150724452 | J55: =+SUM(J17:J54)/2*H55 -> 0 | M55: 0 | N55: =+SUM(N17:N54)/2*L55 -> 0 | O55: 7.150724452 | P55: =+SUM(P17:P54)/2*L55 -> 0 | Q55: 872.3883831 | R55: =+J55*E$7 -> 0
A56: Total Variable Costs | I56: 367.4689407 | J56: =SUM(J18:J55) -> 0 | M56: 0 | N56: =SUM(N18:N55) -> 0 | O56: 367.4689407 | P56: =SUM(P18:P55) -> 0 | Q56: 44831.21077 | R56: =SUM(R18:R55) -> 0
A57: Planned Returns Above Variable Costs: | I57: 160.5310593 | J57: =+J13-J56 -> 0 | M57: 0 | N57: =+N13-N56 -> 0 | O57: 160.5310593 | P57: =+P13-P56 -> 0 | Q57: 19584.78923 | R57: =+R13-R56 -> 0
B58: Breakeven Price to Cover Variable Costs | G58: 6.124482345 | H58: =IF(E10=0,"n/a",(YVarExp-(YTotExp+YTotRet-J10))/E10) -> n/a | I58: Bushel
Q59: Enterprise | R59: Enterprise
A60: FIXED COSTS | D60: Quantity | E60: Quantity | F60: Units | G60: $/Unit | H60: $/Unit | I60: Total | J60: Total | K60: Share | L60: Share | M60: Landlord | N60: Landlord | O60: Tenant | P60: Tenant | Q60: Total | R60: Total
B61: Machinery Depreciation
C62: Pickup/General Use Equipment | D62: 1 | F62: Acre | G62: 2.633606557 | I62: 2.633606557 | J62: =E62*H62 -> 0 | K62: 0 | M62: 0 | N62: =J62*L62 -> 0 | O62: 2.633606557 | P62: =+J62-N62 -> 0 | Q62: 321.3 | R62: =+J62*E$7 -> 0
C63: Irrigation Equipment | D63: 1 | F63: Acre | G63: 40.42008197 | I63: 40.42008197 | J63: 0 | K63: 0 | M63: 0 | N63: =J63*L63 -> 0 | O63: 40.42008197 | P63: 0 | Q63: 4931.25 | R63: 0
C64: Tractors/Self-Propelled | D64: 1 | F64: Acre | G64: 3.696385632 | I64: 3.696385632 | J64: 0 | K64: 0 | M64: 0 | N64: =J64*L64 -> 0 | O64: 3.696385632 | P64: 0 | Q64: 450.9590472 | R64: 0
C65: Implements | D65: 1 | F65: Acre | G65: 15.0954109 | I65: 15.0954109 | J65: 0 | K65: 0 | M65: 0 | N65: =J65*L65 -> 0 | O65: 15.0954109 | P65: 0 | Q65: 1841.640129 | R65: 0
B66: Equipment Investment
C67: Pickup/General Use Equipment | D67: 18.18442623 | F67: Dollars | G67: 0.0601 | I67: 1.092884016 | J67: =E67*H67 -> 0 | K67: 0 | M67: 0 | N67: =J67*L67 -> 0 | O67: 1.092884016 | P67: =+J67-N67 -> 0 | Q67: 133.33185 | R67: =+J67*E$7 -> 0
C68: Irrigation Equipment | D68: 521.0040984 | F68: Dollars | G68: 0.0601 | I68: 31.31234631 | J68: 0 | K68: 0 | M68: 0 | N68: =J68*L68 -> 0 | O68: 31.31234631 | P68: 0 | Q68: 3820.10625 | R68: 0
C69: Tractors/Self-Propelled | D69: 28.79603646 | F69: Dollars | G69: 0.0601 | I69: 1.730641791 | J69: 0 | K69: 0 | M69: 0 | N69: =J69*L69 -> 0 | O69: 1.730641791 | P69: 0 | Q69: 211.1382985 | R69: 0
C70: Implements | D70: 64.57481328 | F70: Dollars | G70: 0.0601 | I70: 3.880946278 | J70: 0 | K70: 0 | M70: 0 | N70: =J70*L70 -> 0 | O70: 3.880946278 | P70: 0 | Q70: 473.4754459 | R70: 0
B71: Salaried Labor | D71: 1 | F71: Acre | G71: 0 | I71: 0 | J71: 0 | K71: 0 | M71: 0 | N71: =J71*L71 -> 0 | O71: 0 | P71: =+J71-N71 -> 0 | Q71: 0 | R71: =+J71*E$7 -> 0
B72: Management Fee, Owner/Operator Labor | D72: 1 | F72: Acre | G72: 0 | I72: 0 | J72: 0 | K72: 0 | M72: 0 | N72: 0 | O72: 0 | P72: 0 | Q72: 0 | R72: 0
B73: Allocated Establishment Cost | D73: 1 | F73: Acre | G73: 0 | I73: 0 | J73: 0 | K73: 0 | M73: 0 | N73: 0 | O73: 0 | P73: 0 | Q73: 0 | R73: 0
B74: Cash Rent - Soybeans | D74: 1 | F74: Acre | G74: 72 | I74: 72 | J74: 0 | K74: 0 | M74: 0 | N74: 0 | O74: 72 | P74: 0 | Q74: 8784 | R74: 0
B75: Property Taxes | D75: 1 | F75: Acre | G75: 0 | I75: 0 | J75: 0 | K75: 0 | M75: 0 | N75: 0 | O75: 0 | P75: 0 | Q75: 0 | R75: 0
B76: Whole Farm Insurance | D76: 1 | F76: Acre | G76: 0 | I76: 0 | J76: 0 | K76: 0 | M76: 0 | N76: 0 | O76: 0 | P76: 0 | Q76: 0 | R76: 0
D77: 1 | G77: 0 | I77: 0 | J77: 0 | K77: 0 | M77: 0 | N77: 0 | O77: 0 | P77: 0 | Q77: 0 | R77: 0
D78: 1 | G78: 0 | I78: 0 | J78: =E78*H78 -> 0 | K78: 0 | M78: 0 | N78: 0 | O78: 0 | P78: 0 | Q78: 0 | R78: 0
A79: Total Fixed Costs | I79: 171.8623034 | J79: =+SUM(J62:J78) -> 0 | M79: 0 | N79: =+SUM(N62:N78) -> 0 | O79: 171.8623034 | P79: =+SUM(P62:P78) -> 0 | Q79: 20967.20102 | R79: =+SUM(R62:R78) -> 0
A80: Total Specified Costs | I80: 539.3312442 | J80: =+J56+J79 -> 0 | M80: 0 | N80: =+N56+N79 -> 0 | O80: 539.3312442 | P80: =+P56+P79 -> 0 | Q80: 65798.41179 | R80: =+R56+R79 -> 0
A82: Returns Above Specified Costs | I82: -11.33124416 | J82: =+J13-J80 -> 0 | M82: 0 | N82: =+N13-N80 -> 0 | O82: -11.33124416 | P82: =+P13-P80 -> 0 | Q82: -1382.411788 | R82: =+R13-R80 -> 0
A84: Breakeven Price to Cover Total Costs | G84: 8.988854069 | H84: =IF(E10=0,"n/a",(YTotExp-(YTotExp+YTotRet-J10))/E10) -> n/a | I84: Bushel
D86: Example Breakeven Prices
B87: Example | C87: Example | D87: To Cover | G87: To Cover
B88: Yield | C88: Yield | D88: Variable | G88: Total
B89: Percent | C89: Bushel | D89: Costs | G89: Costs
B90: 0.75 | C90: 45 | D90: 8.16597646 | G90: 11.98513876
B91: 0.9 | C91: 54 | D91: 6.804980384 | G91: 9.987615633
B92: 1 | C92: 60 | D92: 6.124482345 | G92: 8.988854069
B93: 1.1 | C93: 66 | D93: 5.567711223 | G93: 8.171685518
B94: 1.25 | C94: 75 | D94: 4.899585876 | G94: 7.191083256
D96: Your Breakeven Prices
B97: Your | C97: Your | E97: To Cover | H97: To Cover
B98: Yield | C98: Yield | E98: Variable | H98: Total
B99: Percent | C99: Bushel | E99: Costs | H99: Costs
B100: 0.75 | C100: =E10*YPER1 -> 0 | E100: =IF($E$10=0,0,(YVarExp-(YTotExp+YTotRet-J10))/($E$10*YPER1)) -> 0 | H100: =IF($E$10=0,0,(YTotExp-(YTotExp+YTotRet-J10))/($E$10*YPER1)) -> 0
B101: 0.9 | C101: =E10*YPER2 -> 0 | E101: =IF($E$10=0,0,(YVarExp-(YTotExp+YTotRet-J10))/($E$10*YPER2)) -> 0 | H101: =IF($E$10=0,0,(YTotExp-(YTotExp+YTotRet-J10))/($E$10*YPER2)) -> 0
B102: 1 | C102: =+E10 -> 0 | E102: =IF($E$10=0,0,(YVarExp-(YTotExp+YTotRet-J10))/($E$10*YPER3)) -> 0 | H102: =IF($E$10=0,0,(YTotExp-(YTotExp+YTotRet-J10))/($E$10*YPER3)) -> 0
B103: 1.1 | C103: =E10*YPER4 -> 0 | E103: =IF($E$10=0,0,(YVarExp-(YTotExp+YTotRet-J10))/($E$10*YPER4)) -> 0 | H103: =IF($E$10=0,0,(YTotExp-(YTotExp+YTotRet-J10))/($E$10*YPER4)) -> 0
B104: 1.25 | C104: =E10*YPER5 -> 0 | E104: =IF($E$10=0,0,(YVarExp-(YTotExp+YTotRet-J10))/($E$10*YPER5)) -> 0 | H104: =IF($E$10=0,0,(YTotExp-(YTotExp+YTotRet-J10))/($E$10*YPER5)) -> 0
A106: Developed by Steve Amosson, Regents Fellow, Professor and Extension Economist, Texas A&M AgriLife Extension, 806-677-5600.
A108: Information presented is prepared solely as a general guide and not intended to recognize or predict the costs and returns from any one operation. Brand names are mentioned only as examples and imply no endorsement.

Sheet SunflowersDryland
A1: Projections for Planning Purposes Only -- Not to be Used without Updating
A2: 2018 Estimated Costs and Returns per Acre
A3: Oilseed Sunflowers, Dryland, Strip Tillage
A4: Enter your name for this budget in the cell above.
A5: Enter Your Values in the cells highlighed in MAROON.
E6: Your Acres | R6: Your
C7: Crop Acres | D7: 160 | L7: Your | Q7: Enterprise | R7: Enterprise
E8: Your | H8: Your | I8: Cash | J8: Your | K8: Landlord | L8: Landlord | N8: Your | P8: Your | Q8: Total | R8: Total
A9: REVENUE | D9: Quantity | E9: Quantity | F9: Units | G9: $/Unit | H9: $/Unit | I9: Total | J9: Total | K9: Share | L9: Share | M9: Landlord | N9: Landlord | O9: Tenant | P9: Tenant | Q9: (160 acres) | R9: ="(" & E7 & " acres)" -> ( acres)
B10: Oilseed Sunflowers | D10: 10 | F10: CWT | G10: 16.75 | I10: 167.5 | J10: =E10*H10 -> 0 | K10: 0 | M10: 0 | N10: =J10*L10 -> 0 | O10: 167.5 | P10: =+J10-N10 -> 0 | Q10: 26800 | R10: =+J10*E$7 -> 0
D11: 0 | G11: 0 | I11: 0 | J11: 0 | K11: 0 | M11: 0 | N11: 0 | O11: 0 | P11: =+J11-N11 -> 0 | Q11: 0 | R11: 0
D12: 0 | G12: 0 | I12: 0 | J12: 0 | K12: 0 | M12: 0 | N12: 0 | O12: 0 | P12: 0 | Q12: 0 | R12: 0
A13: Total Revenue | I13: 167.5 | J13: =SUM(J10:J12) -> 0 | M13: 0 | N13: =SUM(N10:N12) -> 0 | O13: 167.5 | P13: =SUM(P10:P12) -> 0 | Q13: 26800 | R13: =SUM(R10:R12) -> 0
Q14: Enterprise | R14: Enterprise
A15: VARIABLE COSTS | D15: Quantity | E15: Quantity | F15: Units | G15: $/Unit | H15: $/Unit | I15: Total | J15: Total | K15: Share | L15: Share | M15: Landlord | N15: Landlord | O15: Tenant | P15: Tenant | Q15: Total | R15: Total
A16: Production Costs
B17: Herbicide
C18: Glyphosphate | D18: 3 | F18: Acre | G18: 4.44 | I18: 13.32 | J18: =E18*H18 -> 0 | K18: 0 | M18: 0 | N18: =J18*L18 -> 0 | O18: 13.32 | P18: =+J18-N18 -> 0 | Q18: 2131.2 | R18: =+J18*E$7 -> 0
C19: 2-4D | D19: 1 | F19: Acre | G19: 2.37 | I19: 2.37 | J19: 0 | K19: 0 | M19: 0 | N19: 0 | O19: 2.37 | P19: 0 | Q19: 379.2 | R19: 0
C20: Prowel H2O | D20: 1 | F20: Acre | G20: 13.13 | I20: 13.13 | J20: 0 | K20: 0 | M20: 0 | N20: 0 | O20: 13.13 | P20: 0 | Q20: 2100.8 | R20: 0
B21: Seed
C22: Seed - Sunflower | D22: 1 | F22: Acre | G22: 10.89 | I22: 10.89 | J22: 0 | K22: 0 | M22: 0 | N22: 0 | O22: 10.89 | P22: 0 | Q22: 1742.4 | R22: 0
B23: Fertilizer
C24: Fertilizer (N) - Liquid | D24: 40 | F24: Pound | G24: 0.4 | I24: 16 | J24: 0 | K24: 0 | M24: 0 | N24: 0 | O24: 16 | P24: 0 | Q24: 2560 | R24: 0
B25: Custom
C26: Herbicide Application | D26: 3 | F26: Acre | G26: 5.12 | I26: 15.36 | J26: 0 | K26: 0 | M26: 0 | N26: 0 | O26: 15.36 | P26: 0 | Q26: 2457.6 | R26: 0
C27: Pesticide Application | D27: 1 | F27: Acre | G27: 5.12 | I27: 5.12 | J27: 0 | K27: 0 | M27: 0 | N27: 0 | O27: 5.12 | P27: 0 | Q27: 819.2 | R27: 0
C28: Custom Harvest - Sorghum Dryland | D28: 1 | F28: Acre | G28: 25.61 | I28: 25.61 | J28: 0 | K28: 0 | M28: 0 | N28: 0 | O28: 25.61 | P28: 0 | Q28: 4097.6 | R28: 0
C29: Custom Haul - Sunflowers | D29: 10 | F29: CWT | G29: 0.46 | I29: 4.6 | J29: 0 | K29: 0 | M29: 0 | N29: 0 | O29: 4.6 | P29: 0 | Q29: 736 | R29: 0
B30: Miscellaneous
C31: Crop Insurance Sunflowers - Dryland | D31: 1 | F31: Acre | G31: 10 | I31: 10 | J31: 0 | K31: 0 | M31: 0 | N31: 0 | O31: 10 | P31: 0 | Q31: 1600 | R31: 0
B32: Insecticide
C33: Seed Insecticide - Sunflower | D33: 1 | F33: Acre | G33: 3.76 | I33: 3.76 | J33: 0 | K33: 0 | M33: 0 | N33: 0 | O33: 3.76 | P33: 0 | Q33: 601.6 | R33: 0
C34: Ammo | D34: 1 | F34: Acre | G34: 3.26 | I34: 3.26 | J34: 0 | K34: 0 | M34: 0 | N34: 0 | O34: 3.26 | P34: 0 | Q34: 521.6 | R34: 0
D35: 0 | G35: 0 | I35: 0 | J35: 0 | K35: 0 | M35: 0 | N35: 0 | O35: 0 | P35: 0 | Q35: 0 | R35: 0
D36: 0 | G36: 0 | I36: 0 | J36: 0 | K36: 0 | M36: 0 | N36: 0 | O36: 0 | P36: 0 | Q36: 0 | R36: 0
D37: 0 | G37: 0 | I37: 0 | J37: =E37*H37 -> 0 | K37: 0 | M37: 0 | N37: =J37*L37 -> 0 | O37: 0 | P37: =+J37-N37 -> 0 | Q37: 0 | R37: =+J37*E$7 -> 0
B38: Machinery Labor
C39: Tractors/Self-Propelled | D39: 0.21 | F39: Hour | G39: 12.44 | I39: 2.6124 | J39: =E39*H39 -> 0 | K39: 0 | M39: 0 | N39: =J39*L39 -> 0 | O39: 2.6124 | P39: =+J39-N39 -> 0 | Q39: 417.984 | R39: =+J39*E$7 -> 0
C40: Other Labor | D40: 0.25 | F40: Hour | G40: 12.44 | I40: 3.11 | J40: =E40*H40 -> 0 | K40: 0 | M40: 0 | N40: =J40*L40 -> 0 | O40: 3.11 | P40: =+J40-N40 -> 0 | Q40: 497.6 | R40: =+J40*E$7 -> 0
B42: Diesel Fuel
C43: Pickup/General Use Equipment | D43: 1 | F43: Acre | G43: 0 | I43: 0 | J43: =E43*H43 -> 0 | K43: 0 | M43: 0 | N43: =J43*L43 -> 0 | O43: 0 | P43: =+J43-N43 -> 0 | Q43: 0 | R43: =+J43*E$7 -> 0
C44: Tractors/Self-Propelled | D44: 1.57 | F44: Gallon | G44: 1.99 | I44: 3.1243 | J44: =E44*H44 -> 0 | K44: 0 | M44: 0 | N44: =J44*L44 -> 0 | O44: 3.1243 | P44: =+J44-N44 -> 0 | Q44: 499.888 | R44: =+J44*E$7 -> 0
B46: Gasoline
C47: Pickup/General Use Equipment | D47: 1 | F47: Acre | G47: 4.265625 | I47: 4.265625 | J47: =E47*H47 -> 0 | K47: 0 | M47: 0 | N47: =J47*L47 -> 0 | O47: 4.265625 | P47: =+J47-N47 -> 0 | Q47: 682.5 | R47: =+J47*E$7 -> 0
C48: Tractors/Self-Propelled | D48: 0 | F48: Gallon | G48: 2.1 | I48: 0 | J48: =E48*H48 -> 0 | K48: 0 | M48: 0 | N48: =J48*L48 -> 0 | O48: 0 | P48: =+J48-N48 -> 0 | Q48: 0 | R48: =+J48*E$7 -> 0
B50: Repairs & Maintenance
C51: Pickup/General Use Equipment | D51: 1 | F51: Acre | G51: 2.48625 | I51: 2.48625 | J51: =E51*H51 -> 0 | K51: 0 | M51: 0 | N51: =J51*L51 -> 0 | O51: 2.48625 | P51: =+J51-N51 -> 0 | Q51: 397.8 | R51: =+J51*E$7 -> 0
C52: Irrigation Equipment | D52: 1 | F52: Acre | G52: 0 | I52: 0 | J52: 0 | K52: 0 | M52: 0 | N52: 0 | O52: 0 | P52: 0 | Q52: 0 | R52: 0
C53: Tractors/Self-Propelled | D53: 1 | F53: Acre | G53: 3.272880746 | I53: 3.272880746 | J53: 0 | K53: 0 | M53: 0 | N53: 0 | O53: 3.272880746 | P53: 0 | Q53: 523.6609193 | R53: 0
C54: Implements | D54: 1 | F54: Acre | G54: 7.780478259 | I54: 7.780478259 | J54: 0 | K54: 0 | M54: 0 | N54: 0 | O54: 7.780478259 | P54: 0 | Q54: 1244.876521 | R54: 0
I55: 0 | J55: 0 | K55: 0 | M55: 0 | N55: 0 | O55: 0 | P55: 0 | Q55: 0 | R55: 0
I56: 0 | J56: 0 | K56: 0 | M56: 0 | N56: 0 | O56: 0 | P56: 0 | Q56: 0 | R56: 0
B57: Interest on Credit Line | G57: 0.0574 | I57: 3.011234976 | J57: =+SUM(J17:J56)/2*H57 -> 0 | M57: 0 | N57: =+SUM(N17:N56)/2*L57 -> 0 | O57: 3.011234976 | P57: =+SUM(P17:P56)/2*L57 -> 0 | Q57: 481.7975962 | R57: =+J57*E$7 -> 0
A58: Total Variable Costs | I58: 153.083169 | J58: =SUM(J18:J57) -> 0 | M58: 0 | N58: =SUM(N18:N57) -> 0 | O58: 153.083169 | P58: =SUM(P18:P57) -> 0 | Q58: 24493.30704 | R58: =SUM(R18:R57) -> 0
A59: Planned Returns Above Variable Costs: | I59: 14.41683102 | J59: =+J13-J58 -> 0 | M59: 0 | N59: =+N13-N58 -> 0 | O59: 14.41683102 | P59: =+P13-P58 -> 0 | Q59: 2306.692963 | R59: =+R13-R58 -> 0
B60: Breakeven Price to Cover Variable Costs | G60: 15.3083169 | H60: =IF(E10=0,"n/a",(YVarExp-(YTotExp+YTotRet-J10))/E10) -> n/a | I60: CWT
Q61: Enterprise | R61: Enterprise
A62: FIXED COSTS | D62: Quantity | E62: Quantity | F62: Units | G62: $/Unit | H62: $/Unit | I62: Total | J62: Total | K62: Share | L62: Share | M62: Landlord | N62: Landlord | O62: Tenant | P62: Tenant | Q62: Total | R62: Total
B63: Machinery Depreciation
C64: Pickup/General Use Equipment | D64: 1 | F64: Acre | G64: 2.6105625 | I64: 2.6105625 | J64: =E64*H64 -> 0 | K64: 0 | M64: 0 | N64: =J64*L64 -> 0 | O64: 2.6105625 | P64: =+J64-N64 -> 0 | Q64: 417.69 | R64: =+J64*E$7 -> 0
C65: Tractors/Self-Propelled | D65: 1 | F65: Acre | G65: 3.381976771 | I65: 3.381976771 | J65: 0 | K65: 0 | M65: 0 | N65: =J65*L65 -> 0 | O65: 3.381976771 | P65: 0 | Q65: 541.1162833 | R65: 0
C66: Implements | D66: 1 | F66: Acre | G66: 10.00347205 | I66: 10.00347205 | J66: 0 | K66: 0 | M66: 0 | N66: =J66*L66 -> 0 | O66: 10.00347205 | P66: 0 | Q66: 1600.555528 | R66: 0
B67: Equipment Investment
C68: Pickup/General Use Equipment | D68: 18.0253125 | F68: Dollars | G68: 0.0601 | I68: 1.083321281 | J68: =E68*H68 -> 0 | K68: 0 | M68: 0 | N68: =J68*L68 -> 0 | O68: 1.083321281 | P68: =+J68-N68 -> 0 | Q68: 173.331405 | R68: =+J68*E$7 -> 0
C69: Tractors/Self-Propelled | D69: 26.34669 | F69: Dollars | G69: 0.0601 | I69: 1.583436069 | J69: 0 | K69: 0 | M69: 0 | N69: =J69*L69 -> 0 | O69: 1.583436069 | P69: 0 | Q69: 253.3497711 | R69: 0
C70: Implements | D70: 42.79263043 | F70: Dollars | G70: 0.0601 | I70: 2.571837089 | J70: 0 | K70: 0 | M70: 0 | N70: =J70*L70 -> 0 | O70: 2.571837089 | P70: 0 | Q70: 411.4939342 | R70: 0
B71: Salaried Labor | D71: 1 | F71: Acre | G71: 0 | I71: 0 | J71: 0 | K71: 0 | M71: 0 | N71: =J71*L71 -> 0 | O71: 0 | P71: =+J71-N71 -> 0 | Q71: 0 | R71: =+J71*E$7 -> 0
B72: Management Fee, Owner/Operator Labor | D72: 1 | F72: Acre | G72: 0 | I72: 0 | J72: 0 | K72: 0 | M72: 0 | N72: 0 | O72: 0 | P72: 0 | Q72: 0 | R72: 0
B73: Allocated Establishment Cost | D73: 1 | F73: Acre | G73: 0 | I73: 0 | J73: 0 | K73: 0 | M73: 0 | N73: 0 | O73: 0 | P73: 0 | Q73: 0 | R73: 0
B74: Cash Rent - Sunflowers Dryland | D74: 1 | F74: Acre | G74: 26.5 | I74: 26.5 | J74: 0 | K74: 0 | M74: 0 | N74: 0 | O74: 26.5 | P74: 0 | Q74: 4240 | R74: 0
B75: Property Taxes | D75: 1 | F75: Acre | G75: 0 | I75: 0 | J75: 0 | K75: 0 | M75: 0 | N75: 0 | O75: 0 | P75: 0 | Q75: 0 | R75: 0
B76: Whole Farm Insurance | D76: 1 | F76: Acre | G76: 0 | I76: 0 | J76: 0 | K76: 0 | M76: 0 | N76: 0 | O76: 0 | P76: 0 | Q76: 0 | R76: 0
D77: 1 | G77: 0 | I77: 0 | J77: 0 | K77: 0 | M77: 0 | N77: 0 | O77: 0 | P77: 0 | Q77: 0 | R77: 0
D78: 1 | G78: 0 | I78: 0 | J78: =E78*H78 -> 0 | K78: 0 | M78: 0 | N78: 0 | O78: 0 | P78: 0 | Q78: 0 | R78: 0
A79: Total Fixed Costs | I79: 47.73460576 | J79: =+SUM(J64:J78) -> 0 | M79: 0 | N79: =+SUM(N64:N78) -> 0 | O79: 47.73460576 | P79: =+SUM(P64:P78) -> 0 | Q79: 7637.536921 | R79: =+SUM(R64:R78) -> 0
A80: Total Specified Costs | I80: 200.8177747 | J80: =+J58+J79 -> 0 | M80: 0 | N80: =+N58+N79 -> 0 | O80: 200.8177747 | P80: =+P58+P79 -> 0 | Q80: 32130.84396 | R80: =+R58+R79 -> 0
A82: Returns Above Specified Costs | I82: -33.31777474 | J82: =+J13-J80 -> 0 | M82: 0 | N82: =+N13-N80 -> 0 | O82: -33.31777474 | P82: =+P13-P80 -> 0 | Q82: -5330.843958 | R82: =+R13-R80 -> 0
A84: Breakeven Price to Cover Total Costs | G84: 20.08177747 | H84: =IF(E10=0,"n/a",(YTotExp-(YTotExp+YTotRet-J10))/E10) -> n/a | I84: CWT
D86: Example Breakeven Prices
B87: Example | C87: Example | D87: To Cover | G87: To Cover
B88: Yield | C88: Yield | D88: Variable | G88: Total
B89: Percent | C89: CWT | D89: Costs | G89: Costs
B90: 0.75 | C90: 7.5 | D90: 20.4110892 | G90: 26.7757033
B91: 0.9 | C91: 9 | D91: 17.009241 | G91: 22.31308608
B92: 1 | C92: 10 | D92: 15.3083169 | G92: 20.08177747
B93: 1.1 | C93: 11 | D93: 13.91665173 | G93: 18.25616134
B94: 1.25 | C94: 12.5 | D94: 12.24665352 | G94: 16.06542198
D96: Your Breakeven Prices
B97: Your | C97: Your | E97: To Cover | H97: To Cover
B98: Yield | C98: Yield | E98: Variable | H98: Total
B99: Percent | C99: CWT | E99: Costs | H99: Costs
B100: 0.75 | C100: =E10*YPER1 -> 0 | E100: =IF($E$10=0,0,(YVarExp-(YTotExp+YTotRet-J10))/($E$10*YPER1)) -> 0 | H100: =IF($E$10=0,0,(YTotExp-(YTotExp+YTotRet-J10))/($E$10*YPER1)) -> 0
B101: 0.9 | C101: =E10*YPER2 -> 0 | E101: =IF($E$10=0,0,(YVarExp-(YTotExp+YTotRet-J10))/($E$10*YPER2)) -> 0 | H101: =IF($E$10=0,0,(YTotExp-(YTotExp+YTotRet-J10))/($E$10*YPER2)) -> 0
B102: 1 | C102: =+E10 -> 0 | E102: =IF($E$10=0,0,(YVarExp-(YTotExp+YTotRet-J10))/($E$10*YPER3)) -> 0 | H102: =IF($E$10=0,0,(YTotExp-(YTotExp+YTotRet-J10))/($E$10*YPER3)) -> 0
B103: 1.1 | C103: =E10*YPER4 -> 0 | E103: =IF($E$10=0,0,(YVarExp-(YTotExp+YTotRet-J10))/($E$10*YPER4)) -> 0 | H103: =IF($E$10=0,0,(YTotExp-(YTotExp+YTotRet-J10))/($E$10*YPER4)) -> 0
B104: 1.25 | C104: =E10*YPER5 -> 0 | E104: =IF($E$10=0,0,(YVarExp-(YTotExp+YTotRet-J10))/($E$10*YPER5)) -> 0 | H104: =IF($E$10=0,0,(YTotExp-(YTotExp+YTotRet-J10))/($E$10*YPER5)) -> 0
A106: Developed by Steve Amosson, Regents Fellow, Professor and Extension Economist, Texas A&M AgriLife Extension, 806-677-5600.
A108: Information presented is prepared solely as a general guide and not intended to recognize or predict the costs and returns from any one operation. Brand names are mentioned only as examples and imply no endorsement.

Sheet SunflowersOilseed
A1: Projections for Planning Purposes Only -- Not to be Used without Updating
A2: 2018 Estimated Costs and Returns per Acre
A3: Oilseed Sunflowers, Sprinkler Irrigated, Strip Tillage
A4: Enter your name for this budget in the cell above.
A5: Enter Your Values in the cells highlighed in MAROON.
E6: Your Acres | R6: Your
C7: Crop Acres | D7: 122 | L7: Your | Q7: Enterprise | R7: Enterprise
E8: Your | H8: Your | I8: Cash | J8: Your | K8: Landlord | L8: Landlord | N8: Your | P8: Your | Q8: Total | R8: Total
A9: REVENUE | D9: Quantity | E9: Quantity | F9: Units | G9: $/Unit | H9: $/Unit | I9: Total | J9: Total | K9: Share | L9: Share | M9: Landlord | N9: Landlord | O9: Tenant | P9: Tenant | Q9: (122 acres) | R9: ="(" & E7 & " acres)" -> ( acres)
B10: Oilseed Sunflowers | D10: 20 | F10: CWT | G10: 16.75 | I10: 335 | J10: =E10*H10 -> 0 | K10: 0 | M10: 0 | N10: =J10*L10 -> 0 | O10: 335 | P10: =+J10-N10 -> 0 | Q10: 40870 | R10: =+J10*E$7 -> 0
D11: 0 | G11: 0 | I11: 0 | J11: 0 | K11: 0 | M11: 0 | N11: 0 | O11: 0 | P11: =+J11-N11 -> 0 | Q11: 0 | R11: 0
D12: 0 | G12: 0 | I12: 0 | J12: 0 | K12: 0 | M12: 0 | N12: 0 | O12: 0 | P12: 0 | Q12: 0 | R12: 0
A13: Total Revenue | I13: 335 | J13: =SUM(J10:J12) -> 0 | M13: 0 | N13: =SUM(N10:N12) -> 0 | O13: 335 | P13: =SUM(P10:P12) -> 0 | Q13: 40870 | R13: =SUM(R10:R12) -> 0
Q14: Enterprise | R14: Enterprise
A15: VARIABLE COSTS | D15: Quantity | E15: Quantity | F15: Units | G15: $/Unit | H15: $/Unit | I15: Total | J15: Total | K15: Share | L15: Share | M15: Landlord | N15: Landlord | O15: Tenant | P15: Tenant | Q15: Total | R15: Total
A16: Production Costs
B17: Herbicide
C18: Glyphosphate | D18: 3 | F18: Acre | G18: 4.44 | I18: 13.32 | J18: =E18*H18 -> 0 | K18: 0 | M18: 0 | N18: =J18*L18 -> 0 | O18: 13.32 | P18: =+J18-N18 -> 0 | Q18: 1625.04 | R18: =+J18*E$7 -> 0
C19: 2-4D | D19: 1 | F19: Acre | G19: 2.37 | I19: 2.37 | J19: 0 | K19: 0 | M19: 0 | N19: 0 | O19: 2.37 | P19: 0 | Q19: 289.14 | R19: 0
C20: Prowel H2O | D20: 1 | F20: Acre | G20: 13.13 | I20: 13.13 | J20: 0 | K20: 0 | M20: 0 | N20: 0 | O20: 13.13 | P20: 0 | Q20: 1601.86 | R20: 0
B21: Seed
C22: Seed - Oilseed Sunflower | D22: 1 | F22: Acre | G22: 32.03 | I22: 32.03 | J22: 0 | K22: 0 | M22: 0 | N22: 0 | O22: 32.03 | P22: 0 | Q22: 3907.66 | R22: 0
B23: Fertilizer
C24: Fertilizer (N) - Liquid | D24: 70 | F24: Pound | G24: 0.4 | I24: 28 | J24: 0 | K24: 0 | M24: 0 | N24: 0 | O24: 28 | P24: 0 | Q24: 3416 | R24: 0
C25: Fertilizer (P) - Liquid | D25: 24 | F25: Pound | G25: 0.47 | I25: 11.28 | J25: 0 | K25: 0 | M25: 0 | N25: 0 | O25: 11.28 | P25: 0 | Q25: 1376.16 | R25: 0
B26: Custom
C27: Herbicide Application | D27: 3 | F27: Acre | G27: 5.12 | I27: 15.36 | J27: 0 | K27: 0 | M27: 0 | N27: 0 | O27: 15.36 | P27: 0 | Q27: 1873.92 | R27: 0
C28: Pesticide Application | D28: 1 | F28: Acre | G28: 5.12 | I28: 5.12 | J28: 0 | K28: 0 | M28: 0 | N28: 0 | O28: 5.12 | P28: 0 | Q28: 624.64 | R28: 0
C29: Custom Harvest - Sorghum Dryland | D29: 1 | F29: Acre | G29: 25.61 | I29: 25.61 | J29: 0 | K29: 0 | M29: 0 | N29: 0 | O29: 25.61 | P29: 0 | Q29: 3124.42 | R29: 0
C30: Custom Haul - Sunflowers | D30: 20 | F30: CWT | G30: 0.46 | I30: 9.2 | J30: 0 | K30: 0 | M30: 0 | N30: 0 | O30: 9.2 | P30: 0 | Q30: 1122.4 | R30: 0
B31: Miscellaneous
C32: Crop Insurance Sunflowers - Irrigated | D32: 1 | F32: Acre | G32: 21 | I32: 21 | J32: 0 | K32: 0 | M32: 0 | N32: 0 | O32: 21 | P32: 0 | Q32: 2562 | R32: 0
B33: Insecticide
C34: Ammo | D34: 1 | F34: Acre | G34: 3.26 | I34: 3.26 | J34: 0 | K34: 0 | M34: 0 | N34: 0 | O34: 3.26 | P34: 0 | Q34: 397.72 | R34: 0
C35: Seed Insecticide - Sunflower Irrigated | D35: 1 | F35: Acre | G35: 4.61 | I35: 4.61 | J35: 0 | K35: 0 | M35: 0 | N35: 0 | O35: 4.61 | P35: 0 | Q35: 562.42 | R35: 0
D36: 0 | G36: 0 | I36: 0 | J36: 0 | K36: 0 | M36: 0 | N36: 0 | O36: 0 | P36: 0 | Q36: 0 | R36: 0
D37: 0 | G37: 0 | I37: 0 | J37: 0 | K37: 0 | M37: 0 | N37: 0 | O37: 0 | P37: 0 | Q37: 0 | R37: 0
D38: 0 | G38: 0 | I38: 0 | J38: =E38*H38 -> 0 | K38: 0 | M38: 0 | N38: =J38*L38 -> 0 | O38: 0 | P38: =+J38-N38 -> 0 | Q38: 0 | R38: =+J38*E$7 -> 0
B39: Irrigation
C40: Energy Cost | D40: 7 | F40: AcreInch | G40: 3.5 | I40: 24.5 | J40: =E40*H40 -> 0 | K40: 0 | M40: 0 | N40: =J40*L40 -> 0 | O40: 24.5 | P40: =+J40-N40 -> 0 | Q40: 2989 | R40: =+J40*E$7 -> 0
C41: Irrigation Labor | D41: 0.448 | F41: Hour | G41: 12.64 | I41: 5.66272 | J41: 0 | K41: 0 | M41: 0 | N41: 0 | O41: 5.66272 | P41: 0 | Q41: 690.85184 | R41: 0
B42: Machinery Labor
C43: Tractors/Self-Propelled | D43: 0.21 | F43: Hour | G43: 12.44 | I43: 2.6124 | J43: =E43*H43 -> 0 | K43: 0 | M43: 0 | N43: =J43*L43 -> 0 | O43: 2.6124 | P43: =+J43-N43 -> 0 | Q43: 318.7128 | R43: =+J43*E$7 -> 0
C44: Other Labor | D44: 0.25 | F44: Hour | G44: 12.44 | I44: 3.11 | J44: =E44*H44 -> 0 | K44: 0 | M44: 0 | N44: =J44*L44 -> 0 | O44: 3.11 | P44: =+J44-N44 -> 0 | Q44: 379.42 | R44: =+J44*E$7 -> 0
B46: Diesel Fuel
C47: Pickup/General Use Equipment | D47: 1 | F47: Acre | G47: 0 | I47: 0 | J47: =E47*H47 -> 0 | K47: 0 | M47: 0 | N47: =J47*L47 -> 0 | O47: 0 | P47: =+J47-N47 -> 0 | Q47: 0 | R47: =+J47*E$7 -> 0
C48: Tractors/Self-Propelled | D48: 1.57 | F48: Gallon | G48: 1.99 | I48: 3.1243 | J48: =E48*H48 -> 0 | K48: 0 | M48: 0 | N48: =J48*L48 -> 0 | O48: 3.1243 | P48: =+J48-N48 -> 0 | Q48: 381.1646 | R48: =+J48*E$7 -> 0
B50: Gasoline
C51: Pickup/General Use Equipment | D51: 1 | F51: Acre | G51: 9.467213115 | I51: 9.467213115 | J51: =E51*H51 -> 0 | K51: 0 | M51: 0 | N51: =J51*L51 -> 0 | O51: 9.467213115 | P51: =+J51-N51 -> 0 | Q51: 1155 | R51: =+J51*E$7 -> 0
C52: Tractors/Self-Propelled | D52: 0 | F52: Gallon | G52: 2.1 | I52: 0 | J52: =E52*H52 -> 0 | K52: 0 | M52: 0 | N52: =J52*L52 -> 0 | O52: 0 | P52: =+J52-N52 -> 0 | Q52: 0 | R52: =+J52*E$7 -> 0
B54: Repairs & Maintenance
C55: Pickup/General Use Equipment | D55: 1 | F55: Acre | G55: 5.518032787 | I55: 5.518032787 | J55: =E55*H55 -> 0 | K55: 0 | M55: 0 | N55: =J55*L55 -> 0 | O55: 5.518032787 | P55: =+J55-N55 -> 0 | Q55: 673.2 | R55: =+J55*E$7 -> 0
C56: Irrigation Equipment | D56: 1 | F56: Acre | G56: 28.28 | I56: 28.28 | J56: 0 | K56: 0 | M56: 0 | N56: 0 | O56: 28.28 | P56: 0 | Q56: 3450.16 | R56: 0
C57: Tractors/Self-Propelled | D57: 1 | F57: Acre | G57: 3.272880746 | I57: 3.272880746 | J57: 0 | K57: 0 | M57: 0 | N57: 0 | O57: 3.272880746 | P57: 0 | Q57: 399.291451 | R57: 0
C58: Implements | D58: 1 | F58: Acre | G58: 7.780478259 | I58: 7.780478259 | J58: 0 | K58: 0 | M58: 0 | N58: 0 | O58: 7.780478259 | P58: 0 | Q58: 949.2183476 | R58: 0
I59: 0 | J59: 0 | K59: 0 | M59: 0 | N59: 0 | O59: 0 | P59: 0 | Q59: 0 | R59: 0
I60: 0 | J60: 0 | K60: 0 | M60: 0 | N60: 0 | O60: 0 | P60: 0 | Q60: 0 | R60: 0
B61: Interest on Credit Line | G61: 0.0574 | I61: 6.765453768 | J61: =+SUM(J17:J60)/2*H61 -> 0 | M61: 0 | N61: =+SUM(N17:N60)/2*L61 -> 0 | O61: 6.765453768 | P61: =+SUM(P17:P60)/2*L61 -> 0 | Q61: 825.3853597 | R61: =+J61*E$7 -> 0
A62: Total Variable Costs | I62: 284.3834787 | J62: =SUM(J18:J61) -> 0 | M62: 0 | N62: =SUM(N18:N61) -> 0 | O62: 284.3834787 | P62: =SUM(P18:P61) -> 0 | Q62: 34694.7844 | R62: =SUM(R18:R61) -> 0
A63: Planned Returns Above Variable Costs: | I63: 50.61652133 | J63: =+J13-J62 -> 0 | M63: 0 | N63: =+N13-N62 -> 0 | O63: 50.61652133 | P63: =+P13-P62 -> 0 | Q63: 6175.215602 | R63: =+R13-R62 -> 0
B64: Breakeven Price to Cover Variable Costs | G64: 14.21917393 | H64: =IF(E10=0,"n/a",(YVarExp-(YTotExp+YTotRet-J10))/E10) -> n/a | I64: CWT
Q65: Enterprise | R65: Enterprise
A66: FIXED COSTS | D66: Quantity | E66: Quantity | F66: Units | G66: $/Unit | H66: $/Unit | I66: Total | J66: Total | K66: Share | L66: Share | M66: Landlord | N66: Landlord | O66: Tenant | P66: Tenant | Q66: Total | R66: Total
B67: Machinery Depreciation
C68: Pickup/General Use Equipment | D68: 1 | F68: Acre | G68: 5.793934426 | I68: 5.793934426 | J68: =E68*H68 -> 0 | K68: 0 | M68: 0 | N68: =J68*L68 -> 0 | O68: 5.793934426 | P68: =+J68-N68 -> 0 | Q68: 706.86 | R68: =+J68*E$7 -> 0
C69: Irrigation Equipment | D69: 1 | F69: Acre | G69: 28.80122951 | I69: 28.80122951 | J69: 0 | K69: 0 | M69: 0 | N69: =J69*L69 -> 0 | O69: 28.80122951 | P69: 0 | Q69: 3513.75 | R69: 0
C70: Tractors/Self-Propelled | D70: 1 | F70: Acre | G70: 3.381976771 | I70: 3.381976771 | J70: 0 | K70: 0 | M70: 0 | N70: =J70*L70 -> 0 | O70: 3.381976771 | P70: 0 | Q70: 412.601166 | R70: 0
C71: Implements | D71: 1 | F71: Acre | G71: 10.00347205 | I71: 10.00347205 | J71: 0 | K71: 0 | M71: 0 | N71: =J71*L71 -> 0 | O71: 10.00347205 | P71: 0 | Q71: 1220.42359 | R71: 0
B72: Equipment Investment
C73: Pickup/General Use Equipment | D73: 40.0057377 | F73: Dollars | G73: 0.0601 | I73: 2.404344836 | J73: =E73*H73 -> 0 | K73: 0 | M73: 0 | N73: =J73*L73 -> 0 | O73: 2.404344836 | P73: =+J73-N73 -> 0 | Q73: 293.33007 | R73: =+J73*E$7 -> 0
C74: Irrigation Equipment | D74: 435.7991803 | F74: Dollars | G74: 0.0601 | I74: 26.19153074 | J74: 0 | K74: 0 | M74: 0 | N74: =J74*L74 -> 0 | O74: 26.19153074 | P74: 0 | Q74: 3195.36675 | R74: 0
C75: Tractors/Self-Propelled | D75: 26.34669 | F75: Dollars | G75: 0.0601 | I75: 1.583436069 | J75: 0 | K75: 0 | M75: 0 | N75: =J75*L75 -> 0 | O75: 1.583436069 | P75: 0 | Q75: 193.1792004 | R75: 0
C76: Implements | D76: 42.79263043 | F76: Dollars | G76: 0.0601 | I76: 2.571837089 | J76: 0 | K76: 0 | M76: 0 | N76: =J76*L76 -> 0 | O76: 2.571837089 | P76: 0 | Q76: 313.7641248 | R76: 0
B77: Salaried Labor | D77: 1 | F77: Acre | G77: 0 | I77: 0 | J77: 0 | K77: 0 | M77: 0 | N77: =J77*L77 -> 0 | O77: 0 | P77: =+J77-N77 -> 0 | Q77: 0 | R77: =+J77*E$7 -> 0
B78: Management Fee, Owner/Operator Labor | D78: 1 | F78: Acre | G78: 0 | I78: 0 | J78: 0 | K78: 0 | M78: 0 | N78: 0 | O78: 0 | P78: 0 | Q78: 0 | R78: 0
B79: Allocated Establishment Cost | D79: 1 | F79: Acre | G79: 0 | I79: 0 | J79: 0 | K79: 0 | M79: 0 | N79: 0 | O79: 0 | P79: 0 | Q79: 0 | R79: 0
B80: Cash Rent - Sunflowers Irrigated | D80: 1 | F80: Acre | G80: 72 | I80: 72 | J80: 0 | K80: 0 | M80: 0 | N80: 0 | O80: 72 | P80: 0 | Q80: 8784 | R80: 0
B81: Property Taxes | D81: 1 | F81: Acre | G81: 0 | I81: 0 | J81: 0 | K81: 0 | M81: 0 | N81: 0 | O81: 0 | P81: 0 | Q81: 0 | R81: 0
B82: Whole Farm Insurance | D82: 1 | F82: Acre | G82: 0 | I82: 0 | J82: 0 | K82: 0 | M82: 0 | N82: 0 | O82: 0 | P82: 0 | Q82: 0 | R82: 0
D83: 1 | G83: 0 | I83: 0 | J83: 0 | K83: 0 | M83: 0 | N83: 0 | O83: 0 | P83: 0 | Q83: 0 | R83: 0
D84: 1 | G84: 0 | I84: 0 | J84: =E84*H84 -> 0 | K84: 0 | M84: 0 | N84: 0 | O84: 0 | P84: 0 | Q84: 0 | R84: 0
A85: Total Fixed Costs | I85: 152.7317615 | J85: =+SUM(J68:J84) -> 0 | M85: 0 | N85: =+SUM(N68:N84) -> 0 | O85: 152.7317615 | P85: =+SUM(P68:P84) -> 0 | Q85: 18633.2749 | R85: =+SUM(R68:R84) -> 0
A86: Total Specified Costs | I86: 437.1152402 | J86: =+J62+J85 -> 0 | M86: 0 | N86: =+N62+N85 -> 0 | O86: 437.1152402 | P86: =+P62+P85 -> 0 | Q86: 53328.0593 | R86: =+R62+R85 -> 0
A88: Returns Above Specified Costs | I88: -102.1152402 | J88: =+J13-J86 -> 0 | M88: 0 | N88: =+N13-N86 -> 0 | O88: -102.1152402 | P88: =+P13-P86 -> 0 | Q88: -12458.0593 | R88: =+R13-R86 -> 0
A90: Breakeven Price to Cover Total Costs | G90: 21.85576201 | H90: =IF(E10=0,"n/a",(YTotExp-(YTotExp+YTotRet-J10))/E10) -> n/a | I90: CWT
D92: Example Breakeven Prices
B93: Example | C93: Example | D93: To Cover | G93: To Cover
B94: Yield | C94: Yield | D94: Variable | G94: Total
B95: Percent | C95: CWT | D95: Costs | G95: Costs
B96: 0.75 | C96: 15 | D96: 18.95889858 | G96: 29.14101601
B97: 0.9 | C97: 18 | D97: 15.79908215 | G97: 24.28418001
B98: 1 | C98: 20 | D98: 14.21917393 | G98: 21.85576201
B99: 1.1 | C99: 22 | D99: 12.92652176 | G99: 19.86887455
B100: 1.25 | C100: 25 | D100: 11.37533915 | G100: 17.48460961
D102: Your Breakeven Prices
B103: Your | C103: Your | E103: To Cover | H103: To Cover
B104: Yield | C104: Yield | E104: Variable | H104: Total
B105: Percent | C105: CWT | E105: Costs | H105: Costs
B106: 0.75 | C106: =E10*YPER1 -> 0 | E106: =IF($E$10=0,0,(YVarExp-(YTotExp+YTotRet-J10))/($E$10*YPER1)) -> 0 | H106: =IF($E$10=0,0,(YTotExp-(YTotExp+YTotRet-J10))/($E$10*YPER1)) -> 0
B107: 0.9 | C107: =E10*YPER2 -> 0 | E107: =IF($E$10=0,0,(YVarExp-(YTotExp+YTotRet-J10))/($E$10*YPER2)) -> 0 | H107: =IF($E$10=0,0,(YTotExp-(YTotExp+YTotRet-J10))/($E$10*YPER2)) -> 0
B108: 1 | C108: =+E10 -> 0 | E108: =IF($E$10=0,0,(YVarExp-(YTotExp+YTotRet-J10))/($E$10*YPER3)) -> 0 | H108: =IF($E$10=0,0,(YTotExp-(YTotExp+YTotRet-J10))/($E$10*YPER3)) -> 0
B109: 1.1 | C109: =E10*YPER4 -> 0 | E109: =IF($E$10=0,0,(YVarExp-(YTotExp+YTotRet-J10))/($E$10*YPER4)) -> 0 | H109: =IF($E$10=0,0,(YTotExp-(YTotExp+YTotRet-J10))/($E$10*YPER4)) -> 0
B110: 1.25 | C110: =E10*YPER5 -> 0 | E110: =IF($E$10=0,0,(YVarExp-(YTotExp+YTotRet-J10))/($E$10*YPER5)) -> 0 | H110: =IF($E$10=0,0,(YTotExp-(YTotExp+YTotRet-J10))/($E$10*YPER5)) -> 0
A112: Developed by Steve Amosson, Regents Fellow, Professor and Extension Economist, Texas A&M AgriLife Extension, 806-677-5600.
A114: Information presented is prepared solely as a general guide and not intended to recognize or predict the costs and returns from any one operation. Brand names are mentioned only as examples and imply no endorsement.

Sheet SunflowersConfectionary
A1: Projections for Planning Purposes Only -- Not to be Used without Updating
A2: 2018 Estimated Costs and Returns per Acre
A3: Confectionary Sunflowers, Sprinkler Irrigated, Strip Tillage
A4: Enter your name for this budget in the cell above.
A5: Enter Your Values in the cells highlighed in MAROON.
E6: Your Acres | R6: Your
C7: Crop Acres | D7: 122 | L7: Your | Q7: Enterprise | R7: Enterprise
E8: Your | H8: Your | I8: Cash | J8: Your | K8: Landlord | L8: Landlord | N8: Your | P8: Your | Q8: Total | R8: Total
A9: REVENUE | D9: Quantity | E9: Quantity | F9: Units | G9: $/Unit | H9: $/Unit | I9: Total | J9: Total | K9: Share | L9: Share | M9: Landlord | N9: Landlord | O9: Tenant | P9: Tenant | Q9: (122 acres) | R9: ="(" & E7 & " acres)" -> ( acres)
B10: Confectionary Sunflowers | D10: 18 | F10: CWT | G10: 21.75 | I10: 391.5 | J10: =E10*H10 -> 0 | K10: 0 | M10: 0 | N10: =J10*L10 -> 0 | O10: 391.5 | P10: =+J10-N10 -> 0 | Q10: 47763 | R10: =+J10*E$7 -> 0
D11: 0 | G11: 0 | I11: 0 | J11: 0 | K11: 0 | M11: 0 | N11: 0 | O11: 0 | P11: =+J11-N11 -> 0 | Q11: 0 | R11: 0
D12: 0 | G12: 0 | I12: 0 | J12: 0 | K12: 0 | M12: 0 | N12: 0 | O12: 0 | P12: 0 | Q12: 0 | R12: 0
A13: Total Revenue | I13: 391.5 | J13: =SUM(J10:J12) -> 0 | M13: 0 | N13: =SUM(N10:N12) -> 0 | O13: 391.5 | P13: =SUM(P10:P12) -> 0 | Q13: 47763 | R13: =SUM(R10:R12) -> 0
Q14: Enterprise | R14: Enterprise
A15: VARIABLE COSTS | D15: Quantity | E15: Quantity | F15: Units | G15: $/Unit | H15: $/Unit | I15: Total | J15: Total | K15: Share | L15: Share | M15: Landlord | N15: Landlord | O15: Tenant | P15: Tenant | Q15: Total | R15: Total
A16: Production Costs
B17: Herbicide
C18: Glyphosphate | D18: 3 | F18: Acre | G18: 4.44 | I18: 13.32 | J18: =E18*H18 -> 0 | K18: 0 | M18: 0 | N18: =J18*L18 -> 0 | O18: 13.32 | P18: =+J18-N18 -> 0 | Q18: 1625.04 | R18: =+J18*E$7 -> 0
C19: 2-4D | D19: 1 | F19: Acre | G19: 2.37 | I19: 2.37 | J19: 0 | K19: 0 | M19: 0 | N19: 0 | O19: 2.37 | P19: 0 | Q19: 289.14 | R19: 0
C20: Prowel H2O | D20: 1 | F20: Acre | G20: 13.13 | I20: 13.13 | J20: 0 | K20: 0 | M20: 0 | N20: 0 | O20: 13.13 | P20: 0 | Q20: 1601.86 | R20: 0
B21: Seed
C22: Seed - Confectionary Sunflower | D22: 1 | F22: Acre | G22: 33.66 | I22: 33.66 | J22: 0 | K22: 0 | M22: 0 | N22: 0 | O22: 33.66 | P22: 0 | Q22: 4106.52 | R22: 0
B23: Fertilizer
C24: Fertilizer (N) - Liquid | D24: 70 | F24: Pound | G24: 0.4 | I24: 28 | J24: 0 | K24: 0 | M24: 0 | N24: 0 | O24: 28 | P24: 0 | Q24: 3416 | R24: 0
C25: Fertilizer (P) - Liquid | D25: 24 | F25: Pound | G25: 0.47 | I25: 11.28 | J25: 0 | K25: 0 | M25: 0 | N25: 0 | O25: 11.28 | P25: 0 | Q25: 1376.16 | R25: 0
B26: Custom
C27: Herbicide Application | D27: 3 | F27: Acre | G27: 5.12 | I27: 15.36 | J27: 0 | K27: 0 | M27: 0 | N27: 0 | O27: 15.36 | P27: 0 | Q27: 1873.92 | R27: 0
C28: Pesticide Application | D28: 1 | F28: Acre | G28: 5.12 | I28: 5.12 | J28: 0 | K28: 0 | M28: 0 | N28: 0 | O28: 5.12 | P28: 0 | Q28: 624.64 | R28: 0
C29: Custom Harvest - Sorghum Dryland | D29: 1 | F29: Acre | G29: 25.61 | I29: 25.61 | J29: 0 | K29: 0 | M29: 0 | N29: 0 | O29: 25.61 | P29: 0 | Q29: 3124.42 | R29: 0
C30: Custom Haul - Sunflowers | D30: 18 | F30: CWT | G30: 0.46 | I30: 8.28 | J30: 0 | K30: 0 | M30: 0 | N30: 0 | O30: 8.28 | P30: 0 | Q30: 1010.16 | R30: 0
B31: Miscellaneous
C32: Crop Insurance Sunflowers - Irrigated | D32: 1 | F32: Acre | G32: 21 | I32: 21 | J32: 0 | K32: 0 | M32: 0 | N32: 0 | O32: 21 | P32: 0 | Q32: 2562 | R32: 0
B33: Insecticide
C34: Ammo | D34: 1 | F34: Acre | G34: 3.26 | I34: 3.26 | J34: 0 | K34: 0 | M34: 0 | N34: 0 | O34: 3.26 | P34: 0 | Q34: 397.72 | R34: 0
C35: Seed Insecticide - Sunflower Confection | D35: 1 | F35: Acre | G35: 4.81 | I35: 4.81 | J35: 0 | K35: 0 | M35: 0 | N35: 0 | O35: 4.81 | P35: 0 | Q35: 586.82 | R35: 0
D36: 0 | G36: 0 | I36: 0 | J36: 0 | K36: 0 | M36: 0 | N36: 0 | O36: 0 | P36: 0 | Q36: 0 | R36: 0
D37: 0 | G37: 0 | I37: 0 | J37: 0 | K37: 0 | M37: 0 | N37: 0 | O37: 0 | P37: 0 | Q37: 0 | R37: 0
D38: 0 | G38: 0 | I38: 0 | J38: =E38*H38 -> 0 | K38: 0 | M38: 0 | N38: =J38*L38 -> 0 | O38: 0 | P38: =+J38-N38 -> 0 | Q38: 0 | R38: =+J38*E$7 -> 0
B39: Irrigation
C40: Energy Cost | D40: 7 | F40: AcreInch | G40: 3.5 | I40: 24.5 | J40: =E40*H40 -> 0 | K40: 0 | M40: 0 | N40: =J40*L40 -> 0 | O40: 24.5 | P40: =+J40-N40 -> 0 | Q40: 2989 | R40: =+J40*E$7 -> 0
C41: Irrigation Labor | D41: 0.448 | F41: Hour | G41: 12.64 | I41: 5.66272 | J41: 0 | K41: 0 | M41: 0 | N41: 0 | O41: 5.66272 | P41: 0 | Q41: 690.85184 | R41: 0
B42: Machinery Labor
C43: Tractors/Self-Propelled | D43: 0.21 | F43: Hour | G43: 12.44 | I43: 2.6124 | J43: =E43*H43 -> 0 | K43: 0 | M43: 0 | N43: =J43*L43 -> 0 | O43: 2.6124 | P43: =+J43-N43 -> 0 | Q43: 318.7128 | R43: =+J43*E$7 -> 0
C44: Other Labor | D44: 0.25 | F44: Hour | G44: 12.44 | I44: 3.11 | J44: =E44*H44 -> 0 | K44: 0 | M44: 0 | N44: =J44*L44 -> 0 | O44: 3.11 | P44: =+J44-N44 -> 0 | Q44: 379.42 | R44: =+J44*E$7 -> 0
B46: Diesel Fuel
C47: Pickup/General Use Equipment | D47: 1 | F47: Acre | G47: 0 | I47: 0 | J47: =E47*H47 -> 0 | K47: 0 | M47: 0 | N47: =J47*L47 -> 0 | O47: 0 | P47: =+J47-N47 -> 0 | Q47: 0 | R47: =+J47*E$7 -> 0
C48: Tractors/Self-Propelled | D48: 1.57 | F48: Gallon | G48: 1.99 | I48: 3.1243 | J48: =E48*H48 -> 0 | K48: 0 | M48: 0 | N48: =J48*L48 -> 0 | O48: 3.1243 | P48: =+J48-N48 -> 0 | Q48: 381.1646 | R48: =+J48*E$7 -> 0
B50: Gasoline
C51: Pickup/General Use Equipment | D51: 1 | F51: Acre | G51: 9.467213115 | I51: 9.467213115 | J51: =E51*H51 -> 0 | K51: 0 | M51: 0 | N51: =J51*L51 -> 0 | O51: 9.467213115 | P51: =+J51-N51 -> 0 | Q51: 1155 | R51: =+J51*E$7 -> 0
C52: Tractors/Self-Propelled | D52: 0 | F52: Gallon | G52: 2.1 | I52: 0 | J52: =E52*H52 -> 0 | K52: 0 | M52: 0 | N52: =J52*L52 -> 0 | O52: 0 | P52: =+J52-N52 -> 0 | Q52: 0 | R52: =+J52*E$7 -> 0
B54: Repairs & Maintenance
C55: Pickup/General Use Equipment | D55: 1 | F55: Acre | G55: 5.518032787 | I55: 5.518032787 | J55: =E55*H55 -> 0 | K55: 0 | M55: 0 | N55: =J55*L55 -> 0 | O55: 5.518032787 | P55: =+J55-N55 -> 0 | Q55: 673.2 | R55: =+J55*E$7 -> 0
C56: Irrigation Equipment | D56: 1 | F56: Acre | G56: 28.28 | I56: 28.28 | J56: 0 | K56: 0 | M56: 0 | N56: 0 | O56: 28.28 | P56: 0 | Q56: 3450.16 | R56: 0
C57: Tractors/Self-Propelled | D57: 1 | F57: Acre | G57: 3.272880746 | I57: 3.272880746 | J57: 0 | K57: 0 | M57: 0 | N57: 0 | O57: 3.272880746 | P57: 0 | Q57: 399.291451 | R57: 0
C58: Implements | D58: 1 | F58: Acre | G58: 7.780478259 | I58: 7.780478259 | J58: 0 | K58: 0 | M58: 0 | N58: 0 | O58: 7.780478259 | P58: 0 | Q58: 949.2183476 | R58: 0
I59: 0 | J59: 0 | K59: 0 | M59: 0 | N59: 0 | O59: 0 | P59: 0 | Q59: 0 | R59: 0
I60: 0 | J60: 0 | K60: 0 | M60: 0 | N60: 0 | O60: 0 | P60: 0 | Q60: 0 | R60: 0
B61: Interest on Credit Line | G61: 0.0574 | I61: 6.820986258 | J61: =+SUM(J17:J60)/2*H61 -> 0 | M61: 0 | N61: =+SUM(N17:N60)/2*L61 -> 0 | O61: 6.820986258 | P61: =+SUM(P17:P60)/2*L61 -> 0 | Q61: 832.1603235 | R61: =+J61*E$7 -> 0
A62: Total Variable Costs | I62: 285.3490112 | J62: =SUM(J18:J61) -> 0 | M62: 0 | N62: =SUM(N18:N61) -> 0 | O62: 285.3490112 | P62: =SUM(P18:P61) -> 0 | Q62: 34812.57936 | R62: =SUM(R18:R61) -> 0
A63: Planned Returns Above Variable Costs: | I63: 106.1509888 | J63: =+J13-J62 -> 0 | M63: 0 | N63: =+N13-N62 -> 0 | O63: 106.1509888 | P63: =+P13-P62 -> 0 | Q63: 12950.42064 | R63: =+R13-R62 -> 0
B64: Breakeven Price to Cover Variable Costs | G64: 15.85272284 | H64: =IF(E10=0,"n/a",(YVarExp-(YTotExp+YTotRet-J10))/E10) -> n/a | I64: CWT
Q65: Enterprise | R65: Enterprise
A66: FIXED COSTS | D66: Quantity | E66: Quantity | F66: Units | G66: $/Unit | H66: $/Unit | I66: Total | J66: Total | K66: Share | L66: Share | M66: Landlord | N66: Landlord | O66: Tenant | P66: Tenant | Q66: Total | R66: Total
B67: Machinery Depreciation
C68: Pickup/General Use Equipment | D68: 1 | F68: Acre | G68: 5.793934426 | I68: 5.793934426 | J68: =E68*H68 -> 0 | K68: 0 | M68: 0 | N68: =J68*L68 -> 0 | O68: 5.793934426 | P68: =+J68-N68 -> 0 | Q68: 706.86 | R68: =+J68*E$7 -> 0
C69: Irrigation Equipment | D69: 1 | F69: Acre | G69: 28.80122951 | I69: 28.80122951 | J69: 0 | K69: 0 | M69: 0 | N69: =J69*L69 -> 0 | O69: 28.80122951 | P69: 0 | Q69: 3513.75 | R69: 0
C70: Tractors/Self-Propelled | D70: 1 | F70: Acre | G70: 3.381976771 | I70: 3.381976771 | J70: 0 | K70: 0 | M70: 0 | N70: =J70*L70 -> 0 | O70: 3.381976771 | P70: 0 | Q70: 412.601166 | R70: 0
C71: Implements | D71: 1 | F71: Acre | G71: 10.00347205 | I71: 10.00347205 | J71: 0 | K71: 0 | M71: 0 | N71: =J71*L71 -> 0 | O71: 10.00347205 | P71: 0 | Q71: 1220.42359 | R71: 0
B72: Equipment Investment
C73: Pickup/General Use Equipment | D73: 40.0057377 | F73: Dollars | G73: 0.0601 | I73: 2.404344836 | J73: =E73*H73 -> 0 | K73: 0 | M73: 0 | N73: =J73*L73 -> 0 | O73: 2.404344836 | P73: =+J73-N73 -> 0 | Q73: 293.33007 | R73: =+J73*E$7 -> 0
C74: Irrigation Equipment | D74: 435.7991803 | F74: Dollars | G74: 0.0601 | I74: 26.19153074 | J74: 0 | K74: 0 | M74: 0 | N74: =J74*L74 -> 0 | O74: 26.19153074 | P74: 0 | Q74: 3195.36675 | R74: 0
C75: Tractors/Self-Propelled | D75: 26.34669 | F75: Dollars | G75: 0.0601 | I75: 1.583436069 | J75: 0 | K75: 0 | M75: 0 | N75: =J75*L75 -> 0 | O75: 1.583436069 | P75: 0 | Q75: 193.1792004 | R75: 0
C76: Implements | D76: 42.79263043 | F76: Dollars | G76: 0.0601 | I76: 2.571837089 | J76: 0 | K76: 0 | M76: 0 | N76: =J76*L76 -> 0 | O76: 2.571837089 | P76: 0 | Q76: 313.7641248 | R76: 0
B77: Salaried Labor | D77: 1 | F77: Acre | G77: 0 | I77: 0 | J77: 0 | K77: 0 | M77: 0 | N77: =J77*L77 -> 0 | O77: 0 | P77: =+J77-N77 -> 0 | Q77: 0 | R77: =+J77*E$7 -> 0
B78: Management Fee, Owner/Operator Labor | D78: 1 | F78: Acre | G78: 0 | I78: 0 | J78: 0 | K78: 0 | M78: 0 | N78: 0 | O78: 0 | P78: 0 | Q78: 0 | R78: 0
B79: Allocated Establishment Cost | D79: 1 | F79: Acre | G79: 0 | I79: 0 | J79: 0 | K79: 0 | M79: 0 | N79: 0 | O79: 0 | P79: 0 | Q79: 0 | R79: 0
B80: Cash Rent - Sunflowers Irrigated | D80: 1 | F80: Acre | G80: 72 | I80: 72 | J80: 0 | K80: 0 | M80: 0 | N80: 0 | O80: 72 | P80: 0 | Q80: 8784 | R80: 0
B81: Property Taxes | D81: 1 | F81: Acre | G81: 0 | I81: 0 | J81: 0 | K81: 0 | M81: 0 | N81: 0 | O81: 0 | P81: 0 | Q81: 0 | R81: 0
B82: Whole Farm Insurance | D82: 1 | F82: Acre | G82: 0 | I82: 0 | J82: 0 | K82: 0 | M82: 0 | N82: 0 | O82: 0 | P82: 0 | Q82: 0 | R82: 0
D83: 1 | G83: 0 | I83: 0 | J83: 0 | K83: 0 | M83: 0 | N83: 0 | O83: 0 | P83: 0 | Q83: 0 | R83: 0
D84: 1 | G84: 0 | I84: 0 | J84: =E84*H84 -> 0 | K84: 0 | M84: 0 | N84: 0 | O84: 0 | P84: 0 | Q84: 0 | R84: 0
A85: Total Fixed Costs | I85: 152.7317615 | J85: =+SUM(J68:J84) -> 0 | M85: 0 | N85: =+SUM(N68:N84) -> 0 | O85: 152.7317615 | P85: =+SUM(P68:P84) -> 0 | Q85: 18633.2749 | R85: =+SUM(R68:R84) -> 0
A86: Total Specified Costs | I86: 438.0807726 | J86: =+J62+J85 -> 0 | M86: 0 | N86: =+N62+N85 -> 0 | O86: 438.0807726 | P86: =+P62+P85 -> 0 | Q86: 53445.85426 | R86: =+R62+R85 -> 0
A88: Returns Above Specified Costs | I88: -46.58077265 | J88: =+J13-J86 -> 0 | M88: 0 | N88: =+N13-N86 -> 0 | O88: -46.58077265 | P88: =+P13-P86 -> 0 | Q88: -5682.854263 | R88: =+R13-R86 -> 0
A90: Breakeven Price to Cover Total Costs | G90: 24.3378207 | H90: =IF(E10=0,"n/a",(YTotExp-(YTotExp+YTotRet-J10))/E10) -> n/a | I90: CWT
D92: Example Breakeven Prices
B93: Example | C93: Example | D93: To Cover | G93: To Cover
B94: Yield | C94: Yield | D94: Variable | G94: Total
B95: Percent | C95: CWT | D95: Costs | G95: Costs
B96: 0.75 | C96: 13.5 | D96: 21.13696379 | G96: 32.4504276
B97: 0.9 | C97: 16.2 | D97: 17.61413649 | G97: 27.042023
B98: 1 | C98: 18 | D98: 15.85272284 | G98: 24.3378207
B99: 1.1 | C99: 19.8 | D99: 14.41156622 | G99: 22.12529155
B100: 1.25 | C100: 22.5 | D100: 12.68217827 | G100: 19.47025656
D102: Your Breakeven Prices
B103: Your | C103: Your | E103: To Cover | H103: To Cover
B104: Yield | C104: Yield | E104: Variable | H104: Total
B105: Percent | C105: CWT | E105: Costs | H105: Costs
B106: 0.75 | C106: =E10*YPER1 -> 0 | E106: =IF($E$10=0,0,(YVarExp-(YTotExp+YTotRet-J10))/($E$10*YPER1)) -> 0 | H106: =IF($E$10=0,0,(YTotExp-(YTotExp+YTotRet-J10))/($E$10*YPER1)) -> 0
B107: 0.9 | C107: =E10*YPER2 -> 0 | E107: =IF($E$10=0,0,(YVarExp-(YTotExp+YTotRet-J10))/($E$10*YPER2)) -> 0 | H107: =IF($E$10=0,0,(YTotExp-(YTotExp+YTotRet-J10))/($E$10*YPER2)) -> 0
B108: 1 | C108: =+E10 -> 0 | E108: =IF($E$10=0,0,(YVarExp-(YTotExp+YTotRet-J10))/($E$10*YPER3)) -> 0 | H108: =IF($E$10=0,0,(YTotExp-(YTotExp+YTotRet-J10))/($E$10*YPER3)) -> 0
B109: 1.1 | C109: =E10*YPER4 -> 0 | E109: =IF($E$10=0,0,(YVarExp-(YTotExp+YTotRet-J10))/($E$10*YPER4)) -> 0 | H109: =IF($E$10=0,0,(YTotExp-(YTotExp+YTotRet-J10))/($E$10*YPER4)) -> 0
B110: 1.25 | C110: =E10*YPER5 -> 0 | E110: =IF($E$10=0,0,(YVarExp-(YTotExp+YTotRet-J10))/($E$10*YPER5)) -> 0 | H110: =IF($E$10=0,0,(YTotExp-(YTotExp+YTotRet-J10))/($E$10*YPER5)) -> 0
A112: Developed by Steve Amosson, Regents Fellow, Professor and Extension Economist, Texas A&M AgriLife Extension, 806-677-5600.
A114: Information presented is prepared solely as a general guide and not intended to recognize or predict the costs and returns from any one operation. Brand names are mentioned only as examples and imply no endorsement.

Sheet WheatDryland
A1: Projections for Planning Purposes Only -- Not to be Used without Updating
A2: 2018 Estimated Costs and Returns per Acre
A3: Continuous Wheat, Dryland, Grazed
A4: Enter your name for this budget in the cell above.
A5: Enter Your Values in the cells highlighed in MAROON.
E6: Your Acres | R6: Your
C7: Crop Acres | D7: 160 | L7: Your | Q7: Enterprise | R7: Enterprise
E8: Your | H8: Your | I8: Cash | J8: Your | K8: Landlord | L8: Landlord | N8: Your | P8: Your | Q8: Total | R8: Total
A9: REVENUE | D9: Quantity | E9: Quantity | F9: Units | G9: $/Unit | H9: $/Unit | I9: Total | J9: Total | K9: Share | L9: Share | M9: Landlord | N9: Landlord | O9: Tenant | P9: Tenant | Q9: (160 acres) | R9: ="(" & E7 & " acres)" -> ( acres)
B10: Wheat | D10: 20 | F10: Bushel | G10: 4.2 | I10: 84 | J10: =E10*H10 -> 0 | K10: 0 | M10: 0 | N10: =J10*L10 -> 0 | O10: 84 | P10: =+J10-N10 -> 0 | Q10: 13440 | R10: =+J10*E$7 -> 0
B11: Grazing - Wheat | D11: 73 | F11: Pound | G11: 0.4 | I11: 29.2 | J11: 0 | K11: 0 | M11: 0 | N11: 0 | O11: 29.2 | P11: =+J11-N11 -> 0 | Q11: 4672 | R11: 0
D12: 0 | G12: 0 | I12: 0 | J12: 0 | K12: 0 | M12: 0 | N12: 0 | O12: 0 | P12: 0 | Q12: 0 | R12: 0
D13: 0 | G13: 0 | I13: 0 | J13: 0 | K13: 0 | M13: 0 | N13: 0 | O13: 0 | P13: 0 | Q13: 0 | R13: 0
A14: Total Revenue | I14: 113.2 | J14: =SUM(J10:J13) -> 0 | M14: 0 | N14: =SUM(N10:N13) -> 0 | O14: 113.2 | P14: =SUM(P10:P13) -> 0 | Q14: 18112 | R14: =SUM(R10:R13) -> 0
Q15: Enterprise | R15: Enterprise
A16: VARIABLE COSTS | D16: Quantity | E16: Quantity | F16: Units | G16: $/Unit | H16: $/Unit | I16: Total | J16: Total | K16: Share | L16: Share | M16: Landlord | N16: Landlord | O16: Tenant | P16: Tenant | Q16: Total | R16: Total
A17: Production Costs
B18: Seed
C19: Seed - Wheat Dryland | D19: 1 | F19: Bushel | G19: 12 | I19: 12 | J19: =E19*H19 -> 0 | K19: 0 | M19: 0 | N19: =J19*L19 -> 0 | O19: 12 | P19: =+J19-N19 -> 0 | Q19: 1920 | R19: =+J19*E$7 -> 0
B20: Fertilizer
C21: Fertilizer (N) - ANH3 | D21: 30 | F21: Pound | G21: 0.24 | I21: 7.2 | J21: 0 | K21: 0 | M21: 0 | N21: 0 | O21: 7.2 | P21: 0 | Q21: 1152 | R21: 0
B22: Custom
C23: Fertilizer Application - ANH3 | D23: 1 | F23: Acre | G23: 15.36 | I23: 15.36 | J23: 0 | K23: 0 | M23: 0 | N23: 0 | O23: 15.36 | P23: 0 | Q23: 2457.6 | R23: 0
C24: Custom Harvest - Wheat | D24: 1 | F24: Acre | G24: 25.61 | I24: 25.61 | J24: 0 | K24: 0 | M24: 0 | N24: 0 | O24: 25.61 | P24: 0 | Q24: 4097.6 | R24: 0
C25: Custom Haul - Wheat | D25: 20 | F25: Bushel | G25: 0.26 | I25: 5.2 | J25: 0 | K25: 0 | M25: 0 | N25: 0 | O25: 5.2 | P25: 0 | Q25: 832 | R25: 0
B26: Miscellaneous
C27: Crop Insurance Wheat Dryland | D27: 1 | F27: Acre | G27: 15 | I27: 15 | J27: 0 | K27: 0 | M27: 0 | N27: 0 | O27: 15 | P27: 0 | Q27: 2400 | R27: 0
D28: 0 | G28: 0 | I28: 0 | J28: 0 | K28: 0 | M28: 0 | N28: 0 | O28: 0 | P28: 0 | Q28: 0 | R28: 0
D29: 0 | G29: 0 | I29: 0 | J29: 0 | K29: 0 | M29: 0 | N29: 0 | O29: 0 | P29: 0 | Q29: 0 | R29: 0
D30: 0 | G30: 0 | I30: 0 | J30: =E30*H30 -> 0 | K30: 0 | M30: 0 | N30: =J30*L30 -> 0 | O30: 0 | P30: =+J30-N30 -> 0 | Q30: 0 | R30: =+J30*E$7 -> 0
B31: Machinery Labor
C32: Tractors/Self-Propelled | D32: 0.41 | F32: Hour | G32: 12.44 | I32: 5.1004 | J32: =E32*H32 -> 0 | K32: 0 | M32: 0 | N32: =J32*L32 -> 0 | O32: 5.1004 | P32: =+J32-N32 -> 0 | Q32: 816.064 | R32: =+J32*E$7 -> 0
C33: Other Labor | D33: 0.45 | F33: Hour | G33: 12.44 | I33: 5.598 | J33: =E33*H33 -> 0 | K33: 0 | M33: 0 | N33: =J33*L33 -> 0 | O33: 5.598 | P33: =+J33-N33 -> 0 | Q33: 895.68 | R33: =+J33*E$7 -> 0
B35: Diesel Fuel
C36: Pickup/General Use Equipment | D36: 1 | F36: Acre | G36: 0 | I36: 0 | J36: =E36*H36 -> 0 | K36: 0 | M36: 0 | N36: =J36*L36 -> 0 | O36: 0 | P36: =+J36-N36 -> 0 | Q36: 0 | R36: =+J36*E$7 -> 0
C37: Tractors/Self-Propelled | D37: 2.22 | F37: Gallon | G37: 1.99 | I37: 4.4178 | J37: =E37*H37 -> 0 | K37: 0 | M37: 0 | N37: =J37*L37 -> 0 | O37: 4.4178 | P37: =+J37-N37 -> 0 | Q37: 706.848 | R37: =+J37*E$7 -> 0
B39: Gasoline
C40: Pickup/General Use Equipment | D40: 1 | F40: Acre | G40: 4.265625 | I40: 4.265625 | J40: =E40*H40 -> 0 | K40: 0 | M40: 0 | N40: =J40*L40 -> 0 | O40: 4.265625 | P40: =+J40-N40 -> 0 | Q40: 682.5 | R40: =+J40*E$7 -> 0
C41: Tractors/Self-Propelled | D41: 0 | F41: Gallon | G41: 2.1 | I41: 0 | J41: =E41*H41 -> 0 | K41: 0 | M41: 0 | N41: =J41*L41 -> 0 | O41: 0 | P41: =+J41-N41 -> 0 | Q41: 0 | R41: =+J41*E$7 -> 0
B43: Repairs & Maintenance
C44: Pickup/General Use Equipment | D44: 1 | F44: Acre | G44: 2.48625 | I44: 2.48625 | J44: =E44*H44 -> 0 | K44: 0 | M44: 0 | N44: =J44*L44 -> 0 | O44: 2.48625 | P44: =+J44-N44 -> 0 | Q44: 397.8 | R44: =+J44*E$7 -> 0
C45: Irrigation Equipment | D45: 1 | F45: Acre | G45: 0 | I45: 0 | J45: 0 | K45: 0 | M45: 0 | N45: 0 | O45: 0 | P45: 0 | Q45: 0 | R45: 0
C46: Tractors/Self-Propelled | D46: 1 | F46: Acre | G46: 4.184980933 | I46: 4.184980933 | J46: 0 | K46: 0 | M46: 0 | N46: 0 | O46: 4.184980933 | P46: 0 | Q46: 669.5969492 | R46: 0
C47: Implements | D47: 1 | F47: Acre | G47: 11.16840373 | I47: 11.16840373 | J47: 0 | K47: 0 | M47: 0 | N47: 0 | O47: 11.16840373 | P47: 0 | Q47: 1786.944596 | R47: 0
I48: 0 | J48: 0 | K48: 0 | M48: 0 | N48: 0 | O48: 0 | P48: 0 | Q48: 0 | R48: 0
I49: 0 | J49: 0 | K49: 0 | M49: 0 | N49: 0 | O49: 0 | P49: 0 | Q49: 0 | R49: 0
B50: Interest on Credit Line | G50: 0.0574 | I50: 3.644400163 | J50: =+SUM(J18:J49)/2*H50 -> 0 | M50: 0 | N50: =+SUM(N18:N49)/2*L50 -> 0 | O50: 3.644400163 | P50: =+SUM(P18:P49)/2*L50 -> 0 | Q50: 583.1040261 | R50: =+J50*E$7 -> 0
A51: Total Variable Costs | I51: 121.2358598 | J51: =SUM(J19:J50) -> 0 | M51: 0 | N51: =SUM(N19:N50) -> 0 | O51: 121.2358598 | P51: =SUM(P19:P50) -> 0 | Q51: 19397.73757 | R51: =SUM(R19:R50) -> 0
A52: Planned Returns Above Variable Costs: | I52: -8.035859823 | J52: =+J14-J51 -> 0 | M52: 0 | N52: =+N14-N51 -> 0 | O52: -8.035859823 | P52: =+P14-P51 -> 0 | Q52: -1285.737572 | R52: =+R14-R51 -> 0
B53: Breakeven Price to Cover Variable Costs | G53: 4.601792991 | H53: =IF(E10=0,"n/a",(YVarExp-(YTotExp+YTotRet-J10))/E10) -> n/a | I53: Bushel
Q54: Enterprise | R54: Enterprise
A55: FIXED COSTS | D55: Quantity | E55: Quantity | F55: Units | G55: $/Unit | H55: $/Unit | I55: Total | J55: Total | K55: Share | L55: Share | M55: Landlord | N55: Landlord | O55: Tenant | P55: Tenant | Q55: Total | R55: Total
B56: Machinery Depreciation
C57: Pickup/General Use Equipment | D57: 1 | F57: Acre | G57: 2.6105625 | I57: 2.6105625 | J57: =E57*H57 -> 0 | K57: 0 | M57: 0 | N57: =J57*L57 -> 0 | O57: 2.6105625 | P57: =+J57-N57 -> 0 | Q57: 417.69 | R57: =+J57*E$7 -> 0
C58: Tractors/Self-Propelled | D58: 1 | F58: Acre | G58: 4.164337533 | I58: 4.164337533 | J58: 0 | K58: 0 | M58: 0 | N58: =J58*L58 -> 0 | O58: 4.164337533 | P58: 0 | Q58: 666.2940053 | R58: 0
C59: Implements | D59: 1 | F59: Acre | G59: 14.49348365 | I59: 14.49348365 | J59: 0 | K59: 0 | M59: 0 | N59: =J59*L59 -> 0 | O59: 14.49348365 | P59: 0 | Q59: 2318.957383 | R59: 0
B60: Equipment Investment
C61: Pickup/General Use Equipment | D61: 18.0253125 | F61: Dollars | G61: 0.0601 | I61: 1.083321281 | J61: =E61*H61 -> 0 | K61: 0 | M61: 0 | N61: =J61*L61 -> 0 | O61: 1.083321281 | P61: =+J61-N61 -> 0 | Q61: 173.331405 | R61: =+J61*E$7 -> 0
C62: Tractors/Self-Propelled | D62: 32.44153272 | F62: Dollars | G62: 0.0601 | I62: 1.949736116 | J62: 0 | K62: 0 | M62: 0 | N62: =J62*L62 -> 0 | O62: 1.949736116 | P62: 0 | Q62: 311.9577786 | R62: 0
C63: Implements | D63: 61.99990227 | F63: Dollars | G63: 0.0601 | I63: 3.726194126 | J63: 0 | K63: 0 | M63: 0 | N63: =J63*L63 -> 0 | O63: 3.726194126 | P63: 0 | Q63: 596.1910602 | R63: 0
B64: Salaried Labor | D64: 1 | F64: Acre | G64: 0 | I64: 0 | J64: 0 | K64: 0 | M64: 0 | N64: =J64*L64 -> 0 | O64: 0 | P64: =+J64-N64 -> 0 | Q64: 0 | R64: =+J64*E$7 -> 0
B65: Management Fee, Owner/Operator Labor | D65: 1 | F65: Acre | G65: 0 | I65: 0 | J65: 0 | K65: 0 | M65: 0 | N65: 0 | O65: 0 | P65: 0 | Q65: 0 | R65: 0
B66: Allocated Establishment Cost | D66: 1 | F66: Acre | G66: 0 | I66: 0 | J66: 0 | K66: 0 | M66: 0 | N66: 0 | O66: 0 | P66: 0 | Q66: 0 | R66: 0
B67: Cash Rent - Wheat Dryland | D67: 1 | F67: Acre | G67: 26.5 | I67: 26.5 | J67: 0 | K67: 0 | M67: 0 | N67: 0 | O67: 26.5 | P67: 0 | Q67: 4240 | R67: 0
B68: Property Taxes | D68: 1 | F68: Acre | G68: 0 | I68: 0 | J68: 0 | K68: 0 | M68: 0 | N68: 0 | O68: 0 | P68: 0 | Q68: 0 | R68: 0
B69: Whole Farm Insurance | D69: 1 | F69: Acre | G69: 0 | I69: 0 | J69: 0 | K69: 0 | M69: 0 | N69: 0 | O69: 0 | P69: 0 | Q69: 0 | R69: 0
D70: 1 | G70: 0 | I70: 0 | J70: 0 | K70: 0 | M70: 0 | N70: 0 | O70: 0 | P70: 0 | Q70: 0 | R70: 0
D71: 1 | G71: 0 | I71: 0 | J71: =E71*H71 -> 0 | K71: 0 | M71: 0 | N71: 0 | O71: 0 | P71: 0 | Q71: 0 | R71: 0
A72: Total Fixed Costs | I72: 54.5276352 | J72: =+SUM(J57:J71) -> 0 | M72: 0 | N72: =+SUM(N57:N71) -> 0 | O72: 54.5276352 | P72: =+SUM(P57:P71) -> 0 | Q72: 8724.421632 | R72: =+SUM(R57:R71) -> 0
A73: Total Specified Costs | I73: 175.763495 | J73: =+J51+J72 -> 0 | M73: 0 | N73: =+N51+N72 -> 0 | O73: 175.763495 | P73: =+P51+P72 -> 0 | Q73: 28122.1592 | R73: =+R51+R72 -> 0
A75: Returns Above Specified Costs | I75: -62.56349503 | J75: =+J14-J73 -> 0 | M75: 0 | N75: =+N14-N73 -> 0 | O75: -62.56349503 | P75: =+P14-P73 -> 0 | Q75: -10010.1592 | R75: =+R14-R73 -> 0
A77: Breakeven Price to Cover Total Costs | G77: 7.328174751 | H77: =IF(E10=0,"n/a",(YTotExp-(YTotExp+YTotRet-J10))/E10) -> n/a | I77: Bushel
D79: Example Breakeven Prices
B80: Example | C80: Example | D80: To Cover | G80: To Cover
B81: Yield | C81: Yield | D81: Variable | G81: Total
B82: Percent | C82: Bushel | D82: Costs | G82: Costs
B83: 0.75 | C83: 15 | D83: 6.135723988 | G83: 9.770899668
B84: 0.9 | C84: 18 | D84: 5.113103323 | G84: 8.14241639
B85: 1 | C85: 20 | D85: 4.601792991 | G85: 7.328174751
B86: 1.1 | C86: 22 | D86: 4.183448174 | G86: 6.661977047
B87: 1.25 | C87: 25 | D87: 3.681434393 | G87: 5.862539801
D89: Your Breakeven Prices
B90: Your | C90: Your | E90: To Cover | H90: To Cover
B91: Yield | C91: Yield | E91: Variable | H91: Total
B92: Percent | C92: Bushel | E92: Costs | H92: Costs
B93: 0.75 | C93: =E10*YPER1 -> 0 | E93: =IF($E$10=0,0,(YVarExp-(YTotExp+YTotRet-J10))/($E$10*YPER1)) -> 0 | H93: =IF($E$10=0,0,(YTotExp-(YTotExp+YTotRet-J10))/($E$10*YPER1)) -> 0
B94: 0.9 | C94: =E10*YPER2 -> 0 | E94: =IF($E$10=0,0,(YVarExp-(YTotExp+YTotRet-J10))/($E$10*YPER2)) -> 0 | H94: =IF($E$10=0,0,(YTotExp-(YTotExp+YTotRet-J10))/($E$10*YPER2)) -> 0
B95: 1 | C95: =+E10 -> 0 | E95: =IF($E$10=0,0,(YVarExp-(YTotExp+YTotRet-J10))/($E$10*YPER3)) -> 0 | H95: =IF($E$10=0,0,(YTotExp-(YTotExp+YTotRet-J10))/($E$10*YPER3)) -> 0
B96: 1.1 | C96: =E10*YPER4 -> 0 | E96: =IF($E$10=0,0,(YVarExp-(YTotExp+YTotRet-J10))/($E$10*YPER4)) -> 0 | H96: =IF($E$10=0,0,(YTotExp-(YTotExp+YTotRet-J10))/($E$10*YPER4)) -> 0
B97: 1.25 | C97: =E10*YPER5 -> 0 | E97: =IF($E$10=0,0,(YVarExp-(YTotExp+YTotRet-J10))/($E$10*YPER5)) -> 0 | H97: =IF($E$10=0,0,(YTotExp-(YTotExp+YTotRet-J10))/($E$10*YPER5)) -> 0
A99: Developed by Steve Amosson, Regents Fellow, Professor and Extension Economist, Texas A&M AgriLife Extension, 806-677-5600.
A101: Information presented is prepared solely as a general guide and not intended to recognize or predict the costs and returns from any one operation. Brand names are mentioned only as examples and imply no endorsement.

Sheet WheatSprinkler
A1: Projections for Planning Purposes Only -- Not to be Used without Updating
A2: 2018 Estimated Costs and Returns per Acre
A3: Continuous Wheat, Sprinkler Irrigated (NG)
A4: Enter your name for this budget in the cell above.
A5: Enter Your Values in the cells highlighed in MAROON.
E6: Your Acres | R6: Your
C7: Crop Acres | D7: 122 | L7: Your | Q7: Enterprise | R7: Enterprise
E8: Your | H8: Your | I8: Cash | J8: Your | K8: Landlord | L8: Landlord | N8: Your | P8: Your | Q8: Total | R8: Total
A9: REVENUE | D9: Quantity | E9: Quantity | F9: Units | G9: $/Unit | H9: $/Unit | I9: Total | J9: Total | K9: Share | L9: Share | M9: Landlord | N9: Landlord | O9: Tenant | P9: Tenant | Q9: (122 acres) | R9: ="(" & E7 & " acres)" -> ( acres)
B10: Wheat | D10: 50 | F10: Bushel | G10: 4.2 | I10: 210 | J10: =E10*H10 -> 0 | K10: 0 | M10: 0 | N10: =J10*L10 -> 0 | O10: 210 | P10: =+J10-N10 -> 0 | Q10: 25620 | R10: =+J10*E$7 -> 0
B11: Grazing - Wheat | D11: 136 | F11: Pound | G11: 0.4 | I11: 54.4 | J11: 0 | K11: 0 | M11: 0 | N11: 0 | O11: 54.4 | P11: =+J11-N11 -> 0 | Q11: 6636.8 | R11: 0
D12: 0 | G12: 0 | I12: 0 | J12: 0 | K12: 0 | M12: 0 | N12: 0 | O12: 0 | P12: 0 | Q12: 0 | R12: 0
D13: 0 | G13: 0 | I13: 0 | J13: 0 | K13: 0 | M13: 0 | N13: 0 | O13: 0 | P13: 0 | Q13: 0 | R13: 0
A14: Total Revenue | I14: 264.4 | J14: =SUM(J10:J13) -> 0 | M14: 0 | N14: =SUM(N10:N13) -> 0 | O14: 264.4 | P14: =SUM(P10:P13) -> 0 | Q14: 32256.8 | R14: =SUM(R10:R13) -> 0
Q15: Enterprise | R15: Enterprise
A16: VARIABLE COSTS | D16: Quantity | E16: Quantity | F16: Units | G16: $/Unit | H16: $/Unit | I16: Total | J16: Total | K16: Share | L16: Share | M16: Landlord | N16: Landlord | O16: Tenant | P16: Tenant | Q16: Total | R16: Total
A17: Production Costs
B18: Seed
C19: Seed - Wheat | D19: 1.2 | F19: Bushel | G19: 12 | I19: 14.4 | J19: =E19*H19 -> 0 | K19: 0 | M19: 0 | N19: =J19*L19 -> 0 | O19: 14.4 | P19: =+J19-N19 -> 0 | Q19: 1756.8 | R19: =+J19*E$7 -> 0
B20: Fertilizer
C21: Fertilizer (N) - ANH3 | D21: 50 | F21: Pound | G21: 0.24 | I21: 12 | J21: 0 | K21: 0 | M21: 0 | N21: 0 | O21: 12 | P21: 0 | Q21: 1464 | R21: 0
C22: Fertilizer (P) - Liquid | D22: 30 | F22: Pound | G22: 0.47 | I22: 14.1 | J22: 0 | K22: 0 | M22: 0 | N22: 0 | O22: 14.1 | P22: 0 | Q22: 1720.2 | R22: 0
C23: Fertilizer (N) - Liquid | D23: 25 | F23: Pound | G23: 0.4 | I23: 10 | J23: 0 | K23: 0 | M23: 0 | N23: 0 | O23: 10 | P23: 0 | Q23: 1220 | R23: 0
B24: Custom
C25: Fertilizer Application - ANH3 | D25: 1 | F25: Acre | G25: 15.36 | I25: 15.36 | J25: 0 | K25: 0 | M25: 0 | N25: 0 | O25: 15.36 | P25: 0 | Q25: 1873.92 | R25: 0
C26: Harvest and Haul - Wheat Irrigated | D26: 50 | F26: Bushel | G26: 0.61 | I26: 30.5 | J26: 0 | K26: 0 | M26: 0 | N26: 0 | O26: 30.5 | P26: 0 | Q26: 3721 | R26: 0
B27: Miscellaneous
C28: Crop Insurance Wheat Irrigated | D28: 1 | F28: Acre | G28: 33 | I28: 33 | J28: 0 | K28: 0 | M28: 0 | N28: 0 | O28: 33 | P28: 0 | Q28: 4026 | R28: 0
B29: Insecticide
C30: Insecticide and Apply Wheat | D30: 1 | F30: Acre | G30: 9.02 | I30: 9.02 | J30: 0 | K30: 0 | M30: 0 | N30: 0 | O30: 9.02 | P30: 0 | Q30: 1100.44 | R30: 0
D31: 0 | G31: 0 | I31: 0 | J31: 0 | K31: 0 | M31: 0 | N31: 0 | O31: 0 | P31: 0 | Q31: 0 | R31: 0
D32: 0 | G32: 0 | I32: 0 | J32: 0 | K32: 0 | M32: 0 | N32: 0 | O32: 0 | P32: 0 | Q32: 0 | R32: 0
D33: 0 | G33: 0 | I33: 0 | J33: =E33*H33 -> 0 | K33: 0 | M33: 0 | N33: =J33*L33 -> 0 | O33: 0 | P33: =+J33-N33 -> 0 | Q33: 0 | R33: =+J33*E$7 -> 0
B34: Irrigation
C35: Energy Cost | D35: 10 | F35: AcreInch | G35: 3.5 | I35: 35 | J35: =E35*H35 -> 0 | K35: 0 | M35: 0 | N35: =J35*L35 -> 0 | O35: 35 | P35: =+J35-N35 -> 0 | Q35: 4270 | R35: =+J35*E$7 -> 0
C36: Irrigation Labor | D36: 0.96 | F36: Hour | G36: 12.64 | I36: 12.1344 | J36: 0 | K36: 0 | M36: 0 | N36: 0 | O36: 12.1344 | P36: 0 | Q36: 1480.3968 | R36: 0
B37: Machinery Labor
C38: Tractors/Self-Propelled | D38: 0.41 | F38: Hour | G38: 12.44 | I38: 5.1004 | J38: =E38*H38 -> 0 | K38: 0 | M38: 0 | N38: =J38*L38 -> 0 | O38: 5.1004 | P38: =+J38-N38 -> 0 | Q38: 622.2488 | R38: =+J38*E$7 -> 0
C39: Other Labor | D39: 0.45 | F39: Hour | G39: 12.44 | I39: 5.598 | J39: =E39*H39 -> 0 | K39: 0 | M39: 0 | N39: =J39*L39 -> 0 | O39: 5.598 | P39: =+J39-N39 -> 0 | Q39: 682.956 | R39: =+J39*E$7 -> 0
B41: Diesel Fuel
C42: Pickup/General Use Equipment | D42: 1 | F42: Acre | G42: 0 | I42: 0 | J42: =E42*H42 -> 0 | K42: 0 | M42: 0 | N42: =J42*L42 -> 0 | O42: 0 | P42: =+J42-N42 -> 0 | Q42: 0 | R42: =+J42*E$7 -> 0
C43: Tractors/Self-Propelled | D43: 2.12 | F43: Gallon | G43: 1.99 | I43: 4.2188 | J43: =E43*H43 -> 0 | K43: 0 | M43: 0 | N43: =J43*L43 -> 0 | O43: 4.2188 | P43: =+J43-N43 -> 0 | Q43: 514.6936 | R43: =+J43*E$7 -> 0
B45: Gasoline
C46: Pickup/General Use Equipment | D46: 1 | F46: Acre | G46: 4.303278689 | I46: 4.303278689 | J46: =E46*H46 -> 0 | K46: 0 | M46: 0 | N46: =J46*L46 -> 0 | O46: 4.303278689 | P46: =+J46-N46 -> 0 | Q46: 525 | R46: =+J46*E$7 -> 0
C47: Tractors/Self-Propelled | D47: 0 | F47: Gallon | G47: 2.1 | I47: 0 | J47: =E47*H47 -> 0 | K47: 0 | M47: 0 | N47: =J47*L47 -> 0 | O47: 0 | P47: =+J47-N47 -> 0 | Q47: 0 | R47: =+J47*E$7 -> 0
B49: Repairs & Maintenance
C50: Pickup/General Use Equipment | D50: 1 | F50: Acre | G50: 2.508196721 | I50: 2.508196721 | J50: =E50*H50 -> 0 | K50: 0 | M50: 0 | N50: =J50*L50 -> 0 | O50: 2.508196721 | P50: =+J50-N50 -> 0 | Q50: 306 | R50: =+J50*E$7 -> 0
C51: Irrigation Equipment | D51: 1 | F51: Acre | G51: 40.4 | I51: 40.4 | J51: 0 | K51: 0 | M51: 0 | N51: 0 | O51: 40.4 | P51: 0 | Q51: 4928.8 | R51: 0
C52: Tractors/Self-Propelled | D52: 1 | F52: Acre | G52: 3.753959231 | I52: 3.753959231 | J52: 0 | K52: 0 | M52: 0 | N52: 0 | O52: 3.753959231 | P52: 0 | Q52: 457.9830262 | R52: 0
C53: Implements | D53: 1 | F53: Acre | G53: 12.5277849 | I53: 12.5277849 | J53: 0 | K53: 0 | M53: 0 | N53: 0 | O53: 12.5277849 | P53: 0 | Q53: 1528.389758 | R53: 0
I54: 0 | J54: 0 | K54: 0 | M54: 0 | N54: 0 | O54: 0 | P54: 0 | Q54: 0 | R54: 0
I55: 0 | J55: 0 | K55: 0 | M55: 0 | N55: 0 | O55: 0 | P55: 0 | Q55: 0 | R55: 0
B56: Interest on Credit Line | G56: 0.0574 | I56: 8.778572803 | J56: =+SUM(J18:J55)/2*H56 -> 0 | M56: 0 | N56: =+SUM(N18:N55)/2*L56 -> 0 | O56: 8.778572803 | P56: =+SUM(P18:P55)/2*L56 -> 0 | Q56: 1070.985882 | R56: =+J56*E$7 -> 0
A57: Total Variable Costs | I57: 272.7033923 | J57: =SUM(J19:J56) -> 0 | M57: 0 | N57: =SUM(N19:N56) -> 0 | O57: 272.7033923 | P57: =SUM(P19:P56) -> 0 | Q57: 33269.81387 | R57: =SUM(R19:R56) -> 0
A58: Planned Returns Above Variable Costs: | I58: -8.303392347 | J58: =+J14-J57 -> 0 | M58: 0 | N58: =+N14-N57 -> 0 | O58: -8.303392347 | P58: =+P14-P57 -> 0 | Q58: -1013.013866 | R58: =+R14-R57 -> 0
B59: Breakeven Price to Cover Variable Costs | G59: 4.366067847 | H59: =IF(E10=0,"n/a",(YVarExp-(YTotExp+YTotRet-J10))/E10) -> n/a | I59: Bushel
Q60: Enterprise | R60: Enterprise
A61: FIXED COSTS | D61: Quantity | E61: Quantity | F61: Units | G61: $/Unit | H61: $/Unit | I61: Total | J61: Total | K61: Share | L61: Share | M61: Landlord | N61: Landlord | O61: Tenant | P61: Tenant | Q61: Total | R61: Total
B62: Machinery Depreciation
C63: Pickup/General Use Equipment | D63: 1 | F63: Acre | G63: 2.633606557 | I63: 2.633606557 | J63: =E63*H63 -> 0 | K63: 0 | M63: 0 | N63: =J63*L63 -> 0 | O63: 2.633606557 | P63: =+J63-N63 -> 0 | Q63: 321.3 | R63: =+J63*E$7 -> 0
C64: Irrigation Equipment | D64: 1 | F64: Acre | G64: 33.50409836 | I64: 33.50409836 | J64: 0 | K64: 0 | M64: 0 | N64: =J64*L64 -> 0 | O64: 33.50409836 | P64: 0 | Q64: 4087.5 | R64: 0
C65: Tractors/Self-Propelled | D65: 1 | F65: Acre | G65: 3.718948442 | I65: 3.718948442 | J65: 0 | K65: 0 | M65: 0 | N65: =J65*L65 -> 0 | O65: 3.718948442 | P65: 0 | Q65: 453.7117099 | R65: 0
C66: Implements | D66: 1 | F66: Acre | G66: 15.83041457 | I66: 15.83041457 | J66: 0 | K66: 0 | M66: 0 | N66: =J66*L66 -> 0 | O66: 15.83041457 | P66: 0 | Q66: 1931.310578 | R66: 0
B67: Equipment Investment
C68: Pickup/General Use Equipment | D68: 18.18442623 | F68: Dollars | G68: 0.0601 | I68: 1.092884016 | J68: =E68*H68 -> 0 | K68: 0 | M68: 0 | N68: =J68*L68 -> 0 | O68: 1.092884016 | P68: =+J68-N68 -> 0 | Q68: 133.33185 | R68: =+J68*E$7 -> 0
C69: Irrigation Equipment | D69: 470.2868852 | F69: Dollars | G69: 0.0601 | I69: 28.2642418 | J69: 0 | K69: 0 | M69: 0 | N69: =J69*L69 -> 0 | O69: 28.2642418 | P69: 0 | Q69: 3448.2375 | R69: 0
C70: Tractors/Self-Propelled | D70: 28.97180802 | F70: Dollars | G70: 0.0601 | I70: 1.741205662 | J70: 0 | K70: 0 | M70: 0 | N70: =J70*L70 -> 0 | O70: 1.741205662 | P70: 0 | Q70: 212.4270908 | R70: 0
C71: Implements | D71: 67.71899568 | F71: Dollars | G71: 0.0601 | I71: 4.06991164 | J71: 0 | K71: 0 | M71: 0 | N71: =J71*L71 -> 0 | O71: 4.06991164 | P71: 0 | Q71: 496.5292201 | R71: 0
B72: Salaried Labor | D72: 1 | F72: Acre | G72: 0 | I72: 0 | J72: 0 | K72: 0 | M72: 0 | N72: =J72*L72 -> 0 | O72: 0 | P72: =+J72-N72 -> 0 | Q72: 0 | R72: =+J72*E$7 -> 0
B73: Management Fee, Owner/Operator Labor | D73: 1 | F73: Acre | G73: 0 | I73: 0 | J73: 0 | K73: 0 | M73: 0 | N73: 0 | O73: 0 | P73: 0 | Q73: 0 | R73: 0
B74: Allocated Establishment Cost | D74: 1 | F74: Acre | G74: 0 | I74: 0 | J74: 0 | K74: 0 | M74: 0 | N74: 0 | O74: 0 | P74: 0 | Q74: 0 | R74: 0
B75: Cash Rent - Wheat Irrigated | D75: 1 | F75: Acre | G75: 72 | I75: 72 | J75: 0 | K75: 0 | M75: 0 | N75: 0 | O75: 72 | P75: 0 | Q75: 8784 | R75: 0
B76: Property Taxes | D76: 1 | F76: Acre | G76: 0 | I76: 0 | J76: 0 | K76: 0 | M76: 0 | N76: 0 | O76: 0 | P76: 0 | Q76: 0 | R76: 0
B77: Whole Farm Insurance | D77: 1 | F77: Acre | G77: 0 | I77: 0 | J77: 0 | K77: 0 | M77: 0 | N77: 0 | O77: 0 | P77: 0 | Q77: 0 | R77: 0
D78: 1 | G78: 0 | I78: 0 | J78: 0 | K78: 0 | M78: 0 | N78: 0 | O78: 0 | P78: 0 | Q78: 0 | R78: 0
D79: 1 | G79: 0 | I79: 0 | J79: =E79*H79 -> 0 | K79: 0 | M79: 0 | N79: 0 | O79: 0 | P79: 0 | Q79: 0 | R79: 0
A80: Total Fixed Costs | I80: 162.8553111 | J80: =+SUM(J63:J79) -> 0 | M80: 0 | N80: =+SUM(N63:N79) -> 0 | O80: 162.8553111 | P80: =+SUM(P63:P79) -> 0 | Q80: 19868.34795 | R80: =+SUM(R63:R79) -> 0
A81: Total Specified Costs | I81: 435.5587034 | J81: =+J57+J80 -> 0 | M81: 0 | N81: =+N57+N80 -> 0 | O81: 435.5587034 | P81: =+P57+P80 -> 0 | Q81: 53138.16182 | R81: =+R57+R80 -> 0
A83: Returns Above Specified Costs | I83: -171.1587034 | J83: =+J14-J81 -> 0 | M83: 0 | N83: =+N14-N81 -> 0 | O83: -171.1587034 | P83: =+P14-P81 -> 0 | Q83: -20881.36182 | R83: =+R14-R81 -> 0
A85: Breakeven Price to Cover Total Costs | G85: 7.623174068 | H85: =IF(E10=0,"n/a",(YTotExp-(YTotExp+YTotRet-J10))/E10) -> n/a | I85: Bushel
D87: Example Breakeven Prices
B88: Example | C88: Example | D88: To Cover | G88: To Cover
B89: Yield | C89: Yield | D89: Variable | G89: Total
B90: Percent | C90: Bushel | D90: Costs | G90: Costs
B91: 0.75 | C91: 37.5 | D91: 5.821423796 | G91: 10.16423209
B92: 0.9 | C92: 45 | D92: 4.851186497 | G92: 8.470193409
B93: 1 | C93: 50 | D93: 4.366067847 | G93: 7.623174068
B94: 1.1 | C94: 55 | D94: 3.969152588 | G94: 6.930158244
B95: 1.25 | C95: 62.5 | D95: 3.492854278 | G95: 6.098539254
D97: Your Breakeven Prices
B98: Your | C98: Your | E98: To Cover | H98: To Cover
B99: Yield | C99: Yield | E99: Variable | H99: Total
B100: Percent | C100: Bushel | E100: Costs | H100: Costs
B101: 0.75 | C101: =E10*YPER1 -> 0 | E101: =IF($E$10=0,0,(YVarExp-(YTotExp+YTotRet-J10))/($E$10*YPER1)) -> 0 | H101: =IF($E$10=0,0,(YTotExp-(YTotExp+YTotRet-J10))/($E$10*YPER1)) -> 0
B102: 0.9 | C102: =E10*YPER2 -> 0 | E102: =IF($E$10=0,0,(YVarExp-(YTotExp+YTotRet-J10))/($E$10*YPER2)) -> 0 | H102: =IF($E$10=0,0,(YTotExp-(YTotExp+YTotRet-J10))/($E$10*YPER2)) -> 0
B103: 1 | C103: =+E10 -> 0 | E103: =IF($E$10=0,0,(YVarExp-(YTotExp+YTotRet-J10))/($E$10*YPER3)) -> 0 | H103: =IF($E$10=0,0,(YTotExp-(YTotExp+YTotRet-J10))/($E$10*YPER3)) -> 0
B104: 1.1 | C104: =E10*YPER4 -> 0 | E104: =IF($E$10=0,0,(YVarExp-(YTotExp+YTotRet-J10))/($E$10*YPER4)) -> 0 | H104: =IF($E$10=0,0,(YTotExp-(YTotExp+YTotRet-J10))/($E$10*YPER4)) -> 0
B105: 1.25 | C105: =E10*YPER5 -> 0 | E105: =IF($E$10=0,0,(YVarExp-(YTotExp+YTotRet-J10))/($E$10*YPER5)) -> 0 | H105: =IF($E$10=0,0,(YTotExp-(YTotExp+YTotRet-J10))/($E$10*YPER5)) -> 0
A107: Developed by Steve Amosson, Regents Fellow, Professor and Extension Economist, Texas A&M AgriLife Extension, 806-677-5600.
A109: Information presented is prepared solely as a general guide and not intended to recognize or predict the costs and returns from any one operation. Brand names are mentioned only as examples and imply no endorsement.

Sheet TriticaleSilage
A1: Projections for Planning Purposes Only -- Not to be Used without Updating
A2: 2018 Estimated Costs and Returns per Acre
A3: Triticale Silage, Sprinkler Irrigated (NG)
A4: Enter your name for this budget in the cell above.
A5: Enter Your Values in the cells highlighed in MAROON.
E6: Your Acres | R6: Your
C7: Crop Acres | D7: 122 | L7: Your | Q7: Enterprise | R7: Enterprise
E8: Your | H8: Your | I8: Cash | J8: Your | K8: Landlord | L8: Landlord | N8: Your | P8: Your | Q8: Total | R8: Total
A9: REVENUE | D9: Quantity | E9: Quantity | F9: Units | G9: $/Unit | H9: $/Unit | I9: Total | J9: Total | K9: Share | L9: Share | M9: Landlord | N9: Landlord | O9: Tenant | P9: Tenant | Q9: (122 acres) | R9: ="(" & E7 & " acres)" -> ( acres)
B10: Triticale Silage | D10: 10 | F10: Ton | G10: 32.25 | I10: 322.5 | J10: =E10*H10 -> 0 | K10: 0 | M10: 0 | N10: =J10*L10 -> 0 | O10: 322.5 | P10: =+J10-N10 -> 0 | Q10: 39345 | R10: =+J10*E$7 -> 0
D11: 0 | G11: 0 | I11: 0 | J11: 0 | K11: 0 | M11: 0 | N11: 0 | O11: 0 | P11: =+J11-N11 -> 0 | Q11: 0 | R11: 0
D12: 0 | G12: 0 | I12: 0 | J12: 0 | K12: 0 | M12: 0 | N12: 0 | O12: 0 | P12: 0 | Q12: 0 | R12: 0
A13: Total Revenue | I13: 322.5 | J13: =SUM(J10:J12) -> 0 | M13: 0 | N13: =SUM(N10:N12) -> 0 | O13: 322.5 | P13: =SUM(P10:P12) -> 0 | Q13: 39345 | R13: =SUM(R10:R12) -> 0
Q14: Enterprise | R14: Enterprise
A15: VARIABLE COSTS | D15: Quantity | E15: Quantity | F15: Units | G15: $/Unit | H15: $/Unit | I15: Total | J15: Total | K15: Share | L15: Share | M15: Landlord | N15: Landlord | O15: Tenant | P15: Tenant | Q15: Total | R15: Total
A16: Production Costs
B17: Fertilizer
C18: Fertilizer (N) - ANH3 | D18: 60 | F18: Pound | G18: 0.24 | I18: 14.4 | J18: =E18*H18 -> 0 | K18: 0 | M18: 0 | N18: =J18*L18 -> 0 | O18: 14.4 | P18: =+J18-N18 -> 0 | Q18: 1756.8 | R18: =+J18*E$7 -> 0
C19: Fertilizer (P) - Liquid | D19: 40 | F19: Pound | G19: 0.47 | I19: 18.8 | J19: 0 | K19: 0 | M19: 0 | N19: 0 | O19: 18.8 | P19: 0 | Q19: 2293.6 | R19: 0
C20: Fertilizer (N) - Liquid | D20: 30 | F20: Pound | G20: 0.4 | I20: 12 | J20: 0 | K20: 0 | M20: 0 | N20: 0 | O20: 12 | P20: 0 | Q20: 1464 | R20: 0
B21: Custom
C22: Fertilizer Application - ANH3 | D22: 1 | F22: Acre | G22: 15.36 | I22: 15.36 | J22: 0 | K22: 0 | M22: 0 | N22: 0 | O22: 15.36 | P22: 0 | Q22: 1873.92 | R22: 0
C23: Harvest and Haul - Triticale Silage | D23: 10 | F23: Ton | G23: 9.22 | I23: 92.2 | J23: 0 | K23: 0 | M23: 0 | N23: 0 | O23: 92.2 | P23: 0 | Q23: 11248.4 | R23: 0
B24: Insecticide
C25: Insecticide and Apply Triticale | D25: 1 | F25: Acre | G25: 9.02 | I25: 9.02 | J25: 0 | K25: 0 | M25: 0 | N25: 0 | O25: 9.02 | P25: 0 | Q25: 1100.44 | R25: 0
B26: Seed
C27: Seed - Triticale | D27: 0.6 | F27: CWT | G27: 30 | I27: 18 | J27: 0 | K27: 0 | M27: 0 | N27: 0 | O27: 18 | P27: 0 | Q27: 2196 | R27: 0
D28: 0 | G28: 0 | I28: 0 | J28: 0 | K28: 0 | M28: 0 | N28: 0 | O28: 0 | P28: 0 | Q28: 0 | R28: 0
D29: 0 | G29: 0 | I29: 0 | J29: 0 | K29: 0 | M29: 0 | N29: 0 | O29: 0 | P29: 0 | Q29: 0 | R29: 0
D30: 0 | G30: 0 | I30: 0 | J30: =E30*H30 -> 0 | K30: 0 | M30: 0 | N30: =J30*L30 -> 0 | O30: 0 | P30: =+J30-N30 -> 0 | Q30: 0 | R30: =+J30*E$7 -> 0
B31: Irrigation
C32: Energy Cost | D32: 10 | F32: AcreInch | G32: 3.5 | I32: 35 | J32: =E32*H32 -> 0 | K32: 0 | M32: 0 | N32: =J32*L32 -> 0 | O32: 35 | P32: =+J32-N32 -> 0 | Q32: 4270 | R32: =+J32*E$7 -> 0
C33: Irrigation Labor | D33: 0.96 | F33: Hour | G33: 12.64 | I33: 12.1344 | J33: 0 | K33: 0 | M33: 0 | N33: 0 | O33: 12.1344 | P33: 0 | Q33: 1480.3968 | R33: 0
B34: Machinery Labor
C35: Tractors/Self-Propelled | D35: 0.41 | F35: Hour | G35: 12.44 | I35: 5.1004 | J35: =E35*H35 -> 0 | K35: 0 | M35: 0 | N35: =J35*L35 -> 0 | O35: 5.1004 | P35: =+J35-N35 -> 0 | Q35: 622.2488 | R35: =+J35*E$7 -> 0
C36: Other Labor | D36: 0.45 | F36: Hour | G36: 12.44 | I36: 5.598 | J36: =E36*H36 -> 0 | K36: 0 | M36: 0 | N36: =J36*L36 -> 0 | O36: 5.598 | P36: =+J36-N36 -> 0 | Q36: 682.956 | R36: =+J36*E$7 -> 0
B38: Diesel Fuel
C39: Pickup/General Use Equipment | D39: 1 | F39: Acre | G39: 0 | I39: 0 | J39: =E39*H39 -> 0 | K39: 0 | M39: 0 | N39: =J39*L39 -> 0 | O39: 0 | P39: =+J39-N39 -> 0 | Q39: 0 | R39: =+J39*E$7 -> 0
C40: Tractors/Self-Propelled | D40: 2.12 | F40: Gallon | G40: 1.99 | I40: 4.2188 | J40: =E40*H40 -> 0 | K40: 0 | M40: 0 | N40: =J40*L40 -> 0 | O40: 4.2188 | P40: =+J40-N40 -> 0 | Q40: 514.6936 | R40: =+J40*E$7 -> 0
B42: Gasoline
C43: Pickup/General Use Equipment | D43: 1 | F43: Acre | G43: 4.303278689 | I43: 4.303278689 | J43: =E43*H43 -> 0 | K43: 0 | M43: 0 | N43: =J43*L43 -> 0 | O43: 4.303278689 | P43: =+J43-N43 -> 0 | Q43: 525 | R43: =+J43*E$7 -> 0
C44: Tractors/Self-Propelled | D44: 0 | F44: Gallon | G44: 2.1 | I44: 0 | J44: =E44*H44 -> 0 | K44: 0 | M44: 0 | N44: =J44*L44 -> 0 | O44: 0 | P44: =+J44-N44 -> 0 | Q44: 0 | R44: =+J44*E$7 -> 0
B46: Repairs & Maintenance
C47: Pickup/General Use Equipment | D47: 1 | F47: Acre | G47: 2.508196721 | I47: 2.508196721 | J47: =E47*H47 -> 0 | K47: 0 | M47: 0 | N47: =J47*L47 -> 0 | O47: 2.508196721 | P47: =+J47-N47 -> 0 | Q47: 306 | R47: =+J47*E$7 -> 0
C48: Irrigation Equipment | D48: 1 | F48: Acre | G48: 40.4 | I48: 40.4 | J48: 0 | K48: 0 | M48: 0 | N48: 0 | O48: 40.4 | P48: 0 | Q48: 4928.8 | R48: 0
C49: Tractors/Self-Propelled | D49: 1 | F49: Acre | G49: 3.753959231 | I49: 3.753959231 | J49: 0 | K49: 0 | M49: 0 | N49: 0 | O49: 3.753959231 | P49: 0 | Q49: 457.9830262 | R49: 0
C50: Implements | D50: 1 | F50: Acre | G50: 12.5277849 | I50: 12.5277849 | J50: 0 | K50: 0 | M50: 0 | N50: 0 | O50: 12.5277849 | P50: 0 | Q50: 1528.389758 | R50: 0
I51: 0 | J51: 0 | K51: 0 | M51: 0 | N51: 0 | O51: 0 | P51: 0 | Q51: 0 | R51: 0
I52: 0 | J52: 0 | K52: 0 | M52: 0 | N52: 0 | O52: 0 | P52: 0 | Q52: 0 | R52: 0
B53: Interest on Credit Line | G53: 0.0574 | I53: 7.793054118 | J53: =+SUM(J17:J52)/2*H53 -> 0 | M53: 0 | N53: =+SUM(N17:N52)/2*L53 -> 0 | O53: 7.793054118 | P53: =+SUM(P17:P52)/2*L53 -> 0 | Q53: 950.7526024 | R53: =+J53*E$7 -> 0
A54: Total Variable Costs | I54: 313.1178737 | J54: =SUM(J18:J53) -> 0 | M54: 0 | N54: =SUM(N18:N53) -> 0 | O54: 313.1178737 | P54: =SUM(P18:P53) -> 0 | Q54: 38200.38059 | R54: =SUM(R18:R53) -> 0
A55: Planned Returns Above Variable Costs: | I55: 9.382126338 | J55: =+J13-J54 -> 0 | M55: 0 | N55: =+N13-N54 -> 0 | O55: 9.382126338 | P55: =+P13-P54 -> 0 | Q55: 1144.619413 | R55: =+R13-R54 -> 0
B56: Breakeven Price to Cover Variable Costs | G56: 31.31178737 | H56: =IF(E10=0,"n/a",(YVarExp-(YTotExp+YTotRet-J10))/E10) -> n/a | I56: Ton
Q57: Enterprise | R57: Enterprise
A58: FIXED COSTS | D58: Quantity | E58: Quantity | F58: Units | G58: $/Unit | H58: $/Unit | I58: Total | J58: Total | K58: Share | L58: Share | M58: Landlord | N58: Landlord | O58: Tenant | P58: Tenant | Q58: Total | R58: Total
B59: Machinery Depreciation
C60: Pickup/General Use Equipment | D60: 1 | F60: Acre | G60: 2.633606557 | I60: 2.633606557 | J60: =E60*H60 -> 0 | K60: 0 | M60: 0 | N60: =J60*L60 -> 0 | O60: 2.633606557 | P60: =+J60-N60 -> 0 | Q60: 321.3 | R60: =+J60*E$7 -> 0
C61: Irrigation Equipment | D61: 1 | F61: Acre | G61: 33.50409836 | I61: 33.50409836 | J61: 0 | K61: 0 | M61: 0 | N61: =J61*L61 -> 0 | O61: 33.50409836 | P61: 0 | Q61: 4087.5 | R61: 0
C62: Tractors/Self-Propelled | D62: 1 | F62: Acre | G62: 3.718948442 | I62: 3.718948442 | J62: 0 | K62: 0 | M62: 0 | N62: =J62*L62 -> 0 | O62: 3.718948442 | P62: 0 | Q62: 453.7117099 | R62: 0
C63: Implements | D63: 1 | F63: Acre | G63: 15.83041457 | I63: 15.83041457 | J63: 0 | K63: 0 | M63: 0 | N63: =J63*L63 -> 0 | O63: 15.83041457 | P63: 0 | Q63: 1931.310578 | R63: 0
B64: Equipment Investment
C65: Pickup/General Use Equipment | D65: 18.18442623 | F65: Dollars | G65: 0.0601 | I65: 1.092884016 | J65: =E65*H65 -> 0 | K65: 0 | M65: 0 | N65: =J65*L65 -> 0 | O65: 1.092884016 | P65: =+J65-N65 -> 0 | Q65: 133.33185 | R65: =+J65*E$7 -> 0
C66: Irrigation Equipment | D66: 470.2868852 | F66: Dollars | G66: 0.0601 | I66: 28.2642418 | J66: 0 | K66: 0 | M66: 0 | N66: =J66*L66 -> 0 | O66: 28.2642418 | P66: 0 | Q66: 3448.2375 | R66: 0
C67: Tractors/Self-Propelled | D67: 28.97180802 | F67: Dollars | G67: 0.0601 | I67: 1.741205662 | J67: 0 | K67: 0 | M67: 0 | N67: =J67*L67 -> 0 | O67: 1.741205662 | P67: 0 | Q67: 212.4270908 | R67: 0
C68: Implements | D68: 67.71899568 | F68: Dollars | G68: 0.0601 | I68: 4.06991164 | J68: 0 | K68: 0 | M68: 0 | N68: =J68*L68 -> 0 | O68: 4.06991164 | P68: 0 | Q68: 496.5292201 | R68: 0
B69: Salaried Labor | D69: 1 | F69: Acre | G69: 0 | I69: 0 | J69: 0 | K69: 0 | M69: 0 | N69: =J69*L69 -> 0 | O69: 0 | P69: =+J69-N69 -> 0 | Q69: 0 | R69: =+J69*E$7 -> 0
B70: Management Fee, Owner/Operator Labor | D70: 1 | F70: Acre | G70: 0 | I70: 0 | J70: 0 | K70: 0 | M70: 0 | N70: 0 | O70: 0 | P70: 0 | Q70: 0 | R70: 0
B71: Allocated Establishment Cost | D71: 1 | F71: Acre | G71: 0 | I71: 0 | J71: 0 | K71: 0 | M71: 0 | N71: 0 | O71: 0 | P71: 0 | Q71: 0 | R71: 0
B72: Cash Rent - Triticale Irrigated | D72: 1 | F72: Acre | G72: 72 | I72: 72 | J72: 0 | K72: 0 | M72: 0 | N72: 0 | O72: 72 | P72: 0 | Q72: 8784 | R72: 0
B73: Property Taxes | D73: 1 | F73: Acre | G73: 0 | I73: 0 | J73: 0 | K73: 0 | M73: 0 | N73: 0 | O73: 0 | P73: 0 | Q73: 0 | R73: 0
B74: Whole Farm Insurance | D74: 1 | F74: Acre | G74: 0 | I74: 0 | J74: 0 | K74: 0 | M74: 0 | N74: 0 | O74: 0 | P74: 0 | Q74: 0 | R74: 0
D75: 1 | G75: 0 | I75: 0 | J75: 0 | K75: 0 | M75: 0 | N75: 0 | O75: 0 | P75: 0 | Q75: 0 | R75: 0
D76: 1 | G76: 0 | I76: 0 | J76: =E76*H76 -> 0 | K76: 0 | M76: 0 | N76: 0 | O76: 0 | P76: 0 | Q76: 0 | R76: 0
A77: Total Fixed Costs | I77: 162.8553111 | J77: =+SUM(J60:J76) -> 0 | M77: 0 | N77: =+SUM(N60:N76) -> 0 | O77: 162.8553111 | P77: =+SUM(P60:P76) -> 0 | Q77: 19868.34795 | R77: =+SUM(R60:R76) -> 0
A78: Total Specified Costs | I78: 475.9731847 | J78: =+J54+J77 -> 0 | M78: 0 | N78: =+N54+N77 -> 0 | O78: 475.9731847 | P78: =+P54+P77 -> 0 | Q78: 58068.72854 | R78: =+R54+R77 -> 0
A80: Returns Above Specified Costs | I80: -153.4731847 | J80: =+J13-J78 -> 0 | M80: 0 | N80: =+N13-N78 -> 0 | O80: -153.4731847 | P80: =+P13-P78 -> 0 | Q80: -18723.72854 | R80: =+R13-R78 -> 0
A82: Breakeven Price to Cover Total Costs | G82: 47.59731847 | H82: =IF(E10=0,"n/a",(YTotExp-(YTotExp+YTotRet-J10))/E10) -> n/a | I82: Ton
D84: Example Breakeven Prices
B85: Example | C85: Example | D85: To Cover | G85: To Cover
B86: Yield | C86: Yield | D86: Variable | G86: Total
B87: Percent | C87: Ton | D87: Costs | G87: Costs
B88: 0.75 | C88: 7.5 | D88: 41.74904982 | G88: 63.4630913
B89: 0.9 | C89: 9 | D89: 34.79087485 | G89: 52.88590941
B90: 1 | C90: 10 | D90: 31.31178737 | G90: 47.59731847
B91: 1.1 | C91: 11 | D91: 28.46526124 | G91: 43.27028952
B92: 1.25 | C92: 12.5 | D92: 25.04942989 | G92: 38.07785478
D94: Your Breakeven Prices
B95: Your | C95: Your | E95: To Cover | H95: To Cover
B96: Yield | C96: Yield | E96: Variable | H96: Total
B97: Percent | C97: Ton | E97: Costs | H97: Costs
B98: 0.75 | C98: =E10*YPER1 -> 0 | E98: =IF($E$10=0,0,(YVarExp-(YTotExp+YTotRet-J10))/($E$10*YPER1)) -> 0 | H98: =IF($E$10=0,0,(YTotExp-(YTotExp+YTotRet-J10))/($E$10*YPER1)) -> 0
B99: 0.9 | C99: =E10*YPER2 -> 0 | E99: =IF($E$10=0,0,(YVarExp-(YTotExp+YTotRet-J10))/($E$10*YPER2)) -> 0 | H99: =IF($E$10=0,0,(YTotExp-(YTotExp+YTotRet-J10))/($E$10*YPER2)) -> 0
B100: 1 | C100: =+E10 -> 0 | E100: =IF($E$10=0,0,(YVarExp-(YTotExp+YTotRet-J10))/($E$10*YPER3)) -> 0 | H100: =IF($E$10=0,0,(YTotExp-(YTotExp+YTotRet-J10))/($E$10*YPER3)) -> 0
B101: 1.1 | C101: =E10*YPER4 -> 0 | E101: =IF($E$10=0,0,(YVarExp-(YTotExp+YTotRet-J10))/($E$10*YPER4)) -> 0 | H101: =IF($E$10=0,0,(YTotExp-(YTotExp+YTotRet-J10))/($E$10*YPER4)) -> 0
B102: 1.25 | C102: =E10*YPER5 -> 0 | E102: =IF($E$10=0,0,(YVarExp-(YTotExp+YTotRet-J10))/($E$10*YPER5)) -> 0 | H102: =IF($E$10=0,0,(YTotExp-(YTotExp+YTotRet-J10))/($E$10*YPER5)) -> 0
A104: Developed by Steve Amosson, Regents Fellow, Professor and Extension Economist, Texas A&M AgriLife Extension, 806-677-5600.
A106: Information presented is prepared solely as a general guide and not intended to recognize or predict the costs and returns from any one operation. Brand names are mentioned only as examples and imply no endorsement.

Sheet SudangrassDryland
A1: Projections for Planning Purposes Only -- Not to be Used without Updating
A2: 2018 Estimated Costs and Returns per Acre
A3: Sorghum Sudangrass, Dryland, Grazing
A4: Enter your name for this budget in the cell above.
A5: Enter Your Values in the cells highlighed in MAROON.
E6: Your Acres | R6: Your
C7: Crop Acres | D7: 160 | L7: Your | Q7: Enterprise | R7: Enterprise
E8: Your | H8: Your | I8: Cash | J8: Your | K8: Landlord | L8: Landlord | N8: Your | P8: Your | Q8: Total | R8: Total
A9: REVENUE | D9: Quantity | E9: Quantity | F9: Units | G9: $/Unit | H9: $/Unit | I9: Total | J9: Total | K9: Share | L9: Share | M9: Landlord | N9: Landlord | O9: Tenant | P9: Tenant | Q9: (160 acres) | R9: ="(" & E7 & " acres)" -> ( acres)
B10: Grazing - Sorghum | D10: 336 | F10: Pound | G10: 0.4 | I10: 134.4 | J10: =E10*H10 -> 0 | K10: 0 | M10: 0 | N10: =J10*L10 -> 0 | O10: 134.4 | P10: =+J10-N10 -> 0 | Q10: 21504 | R10: =+J10*E$7 -> 0
D11: 0 | G11: 0 | I11: 0 | J11: 0 | K11: 0 | M11: 0 | N11: 0 | O11: 0 | P11: =+J11-N11 -> 0 | Q11: 0 | R11: 0
D12: 0 | G12: 0 | I12: 0 | J12: 0 | K12: 0 | M12: 0 | N12: 0 | O12: 0 | P12: 0 | Q12: 0 | R12: 0
A13: Total Revenue | I13: 134.4 | J13: =SUM(J10:J12) -> 0 | M13: 0 | N13: =SUM(N10:N12) -> 0 | O13: 134.4 | P13: =SUM(P10:P12) -> 0 | Q13: 21504 | R13: =SUM(R10:R12) -> 0
Q14: Enterprise | R14: Enterprise
A15: VARIABLE COSTS | D15: Quantity | E15: Quantity | F15: Units | G15: $/Unit | H15: $/Unit | I15: Total | J15: Total | K15: Share | L15: Share | M15: Landlord | N15: Landlord | O15: Tenant | P15: Tenant | Q15: Total | R15: Total
A16: Production Costs
B17: Fertilizer
C18: Fertilizer (N) - ANH3 | D18: 50 | F18: Pound | G18: 0.24 | I18: 12 | J18: =E18*H18 -> 0 | K18: 0 | M18: 0 | N18: =J18*L18 -> 0 | O18: 12 | P18: =+J18-N18 -> 0 | Q18: 1920 | R18: =+J18*E$7 -> 0
B19: Custom
C20: Fertilizer Application - ANH3 | D20: 1 | F20: Acre | G20: 15.36 | I20: 15.36 | J20: 0 | K20: 0 | M20: 0 | N20: 0 | O20: 15.36 | P20: 0 | Q20: 2457.6 | R20: 0
B21: Seed
C22: Seed - Sorghum Sudangrass | D22: 15 | F22: Pound | G22: 0.94 | I22: 14.1 | J22: 0 | K22: 0 | M22: 0 | N22: 0 | O22: 14.1 | P22: 0 | Q22: 2256 | R22: 0
B23: Miscellaneous
C24: Crop Insurance Sorghum Sudan Dry | D24: 1 | F24: Acre | G24: 19 | I24: 19 | J24: 0 | K24: 0 | M24: 0 | N24: 0 | O24: 19 | P24: 0 | Q24: 3040 | R24: 0
B25: Herbicide
C26: Herbicide and Apply Sorghum Sudan | D26: 1 | F26: Acre | G26: 12.31 | I26: 12.31 | J26: 0 | K26: 0 | M26: 0 | N26: 0 | O26: 12.31 | P26: 0 | Q26: 1969.6 | R26: 0
D27: 0 | G27: 0 | I27: 0 | J27: 0 | K27: 0 | M27: 0 | N27: 0 | O27: 0 | P27: 0 | Q27: 0 | R27: 0
D28: 0 | G28: 0 | I28: 0 | J28: 0 | K28: 0 | M28: 0 | N28: 0 | O28: 0 | P28: 0 | Q28: 0 | R28: 0
D29: 0 | G29: 0 | I29: 0 | J29: =E29*H29 -> 0 | K29: 0 | M29: 0 | N29: =J29*L29 -> 0 | O29: 0 | P29: =+J29-N29 -> 0 | Q29: 0 | R29: =+J29*E$7 -> 0
B30: Machinery Labor
C31: Tractors/Self-Propelled | D31: 0.44 | F31: Hour | G31: 12.44 | I31: 5.4736 | J31: =E31*H31 -> 0 | K31: 0 | M31: 0 | N31: =J31*L31 -> 0 | O31: 5.4736 | P31: =+J31-N31 -> 0 | Q31: 875.776 | R31: =+J31*E$7 -> 0
C32: Other Labor | D32: 0.49 | F32: Hour | G32: 12.44 | I32: 6.0956 | J32: =E32*H32 -> 0 | K32: 0 | M32: 0 | N32: =J32*L32 -> 0 | O32: 6.0956 | P32: =+J32-N32 -> 0 | Q32: 975.296 | R32: =+J32*E$7 -> 0
B34: Diesel Fuel
C35: Pickup/General Use Equipment | D35: 1 | F35: Acre | G35: 0 | I35: 0 | J35: =E35*H35 -> 0 | K35: 0 | M35: 0 | N35: =J35*L35 -> 0 | O35: 0 | P35: =+J35-N35 -> 0 | Q35: 0 | R35: =+J35*E$7 -> 0
C36: Tractors/Self-Propelled | D36: 2.15 | F36: Gallon | G36: 1.99 | I36: 4.2785 | J36: =E36*H36 -> 0 | K36: 0 | M36: 0 | N36: =J36*L36 -> 0 | O36: 4.2785 | P36: =+J36-N36 -> 0 | Q36: 684.56 | R36: =+J36*E$7 -> 0
B38: Gasoline
C39: Pickup/General Use Equipment | D39: 1 | F39: Acre | G39: 4.265625 | I39: 4.265625 | J39: =E39*H39 -> 0 | K39: 0 | M39: 0 | N39: =J39*L39 -> 0 | O39: 4.265625 | P39: =+J39-N39 -> 0 | Q39: 682.5 | R39: =+J39*E$7 -> 0
C40: Tractors/Self-Propelled | D40: 0 | F40: Gallon | G40: 2.1 | I40: 0 | J40: =E40*H40 -> 0 | K40: 0 | M40: 0 | N40: =J40*L40 -> 0 | O40: 0 | P40: =+J40-N40 -> 0 | Q40: 0 | R40: =+J40*E$7 -> 0
B42: Repairs & Maintenance
C43: Pickup/General Use Equipment | D43: 1 | F43: Acre | G43: 2.48625 | I43: 2.48625 | J43: =E43*H43 -> 0 | K43: 0 | M43: 0 | N43: =J43*L43 -> 0 | O43: 2.48625 | P43: =+J43-N43 -> 0 | Q43: 397.8 | R43: =+J43*E$7 -> 0
C44: Irrigation Equipment | D44: 1 | F44: Acre | G44: 0 | I44: 0 | J44: 0 | K44: 0 | M44: 0 | N44: 0 | O44: 0 | P44: 0 | Q44: 0 | R44: 0
C45: Tractors/Self-Propelled | D45: 1 | F45: Acre | G45: 3.499981153 | I45: 3.499981153 | J45: 0 | K45: 0 | M45: 0 | N45: 0 | O45: 3.499981153 | P45: 0 | Q45: 559.9969845 | R45: 0
C46: Implements | D46: 1 | F46: Acre | G46: 10.0674104 | I46: 10.0674104 | J46: 0 | K46: 0 | M46: 0 | N46: 0 | O46: 10.0674104 | P46: 0 | Q46: 1610.785664 | R46: 0
I47: 0 | J47: 0 | K47: 0 | M47: 0 | N47: 0 | O47: 0 | P47: 0 | Q47: 0 | R47: 0
I48: 0 | J48: 0 | K48: 0 | M48: 0 | N48: 0 | O48: 0 | P48: 0 | Q48: 0 | R48: 0
B49: Interest on Credit Line | G49: 0.0574 | I49: 2.634539623 | J49: =+SUM(J17:J48)/2*H49 -> 0 | M49: 0 | N49: =+SUM(N17:N48)/2*L49 -> 0 | O49: 2.634539623 | P49: =+SUM(P17:P48)/2*L49 -> 0 | Q49: 421.5263397 | R49: =+J49*E$7 -> 0
A50: Total Variable Costs | I50: 111.5715062 | J50: =SUM(J18:J49) -> 0 | M50: 0 | N50: =SUM(N18:N49) -> 0 | O50: 111.5715062 | P50: =SUM(P18:P49) -> 0 | Q50: 17851.44099 | R50: =SUM(R18:R49) -> 0
A51: Planned Returns Above Variable Costs: | I51: 22.82849382 | J51: =+J13-J50 -> 0 | M51: 0 | N51: =+N13-N50 -> 0 | O51: 22.82849382 | P51: =+P13-P50 -> 0 | Q51: 3652.559012 | R51: =+R13-R50 -> 0
B52: Breakeven Price to Cover Variable Costs | G52: 0.3320580541 | H52: =IF(E10=0,"n/a",(YVarExp-(YTotExp+YTotRet-J10))/E10) -> n/a | I52: Pound
Q53: Enterprise | R53: Enterprise
A54: FIXED COSTS | D54: Quantity | E54: Quantity | F54: Units | G54: $/Unit | H54: $/Unit | I54: Total | J54: Total | K54: Share | L54: Share | M54: Landlord | N54: Landlord | O54: Tenant | P54: Tenant | Q54: Total | R54: Total
B55: Machinery Depreciation
C56: Pickup/General Use Equipment | D56: 1 | F56: Acre | G56: 2.6105625 | I56: 2.6105625 | J56: =E56*H56 -> 0 | K56: 0 | M56: 0 | N56: =J56*L56 -> 0 | O56: 2.6105625 | P56: =+J56-N56 -> 0 | Q56: 417.69 | R56: =+J56*E$7 -> 0
C57: Tractors/Self-Propelled | D57: 1 | F57: Acre | G57: 3.456504428 | I57: 3.456504428 | J57: 0 | K57: 0 | M57: 0 | N57: =J57*L57 -> 0 | O57: 3.456504428 | P57: 0 | Q57: 553.0407084 | R57: 0
C58: Implements | D58: 1 | F58: Acre | G58: 12.71046127 | I58: 12.71046127 | J58: 0 | K58: 0 | M58: 0 | N58: =J58*L58 -> 0 | O58: 12.71046127 | P58: 0 | Q58: 2033.673803 | R58: 0
B59: Equipment Investment
C60: Pickup/General Use Equipment | D60: 18.0253125 | F60: Dollars | G60: 0.0601 | I60: 1.083321281 | J60: =E60*H60 -> 0 | K60: 0 | M60: 0 | N60: =J60*L60 -> 0 | O60: 1.083321281 | P60: =+J60-N60 -> 0 | Q60: 173.331405 | R60: =+J60*E$7 -> 0
C61: Tractors/Self-Propelled | D61: 26.92728449 | F61: Dollars | G61: 0.0601 | I61: 1.618329798 | J61: 0 | K61: 0 | M61: 0 | N61: =J61*L61 -> 0 | O61: 1.618329798 | P61: 0 | Q61: 258.9327677 | R61: 0
C62: Implements | D62: 54.37252875 | F62: Dollars | G62: 0.0601 | I62: 3.267788978 | J62: 0 | K62: 0 | M62: 0 | N62: =J62*L62 -> 0 | O62: 3.267788978 | P62: 0 | Q62: 522.8462365 | R62: 0
B63: Salaried Labor | D63: 1 | F63: Acre | G63: 0 | I63: 0 | J63: 0 | K63: 0 | M63: 0 | N63: =J63*L63 -> 0 | O63: 0 | P63: =+J63-N63 -> 0 | Q63: 0 | R63: =+J63*E$7 -> 0
B64: Management Fee, Owner/Operator Labor | D64: 1 | F64: Acre | G64: 0 | I64: 0 | J64: 0 | K64: 0 | M64: 0 | N64: 0 | O64: 0 | P64: 0 | Q64: 0 | R64: 0
B65: Allocated Establishment Cost | D65: 1 | F65: Acre | G65: 0 | I65: 0 | J65: 0 | K65: 0 | M65: 0 | N65: 0 | O65: 0 | P65: 0 | Q65: 0 | R65: 0
B66: Cash Rent - Sorghum | D66: 1 | F66: Acre | G66: 26.5 | I66: 26.5 | J66: 0 | K66: 0 | M66: 0 | N66: 0 | O66: 26.5 | P66: 0 | Q66: 4240 | R66: 0
B67: Property Taxes | D67: 1 | F67: Acre | G67: 0 | I67: 0 | J67: 0 | K67: 0 | M67: 0 | N67: 0 | O67: 0 | P67: 0 | Q67: 0 | R67: 0
B68: Whole Farm Insurance | D68: 1 | F68: Acre | G68: 0 | I68: 0 | J68: 0 | K68: 0 | M68: 0 | N68: 0 | O68: 0 | P68: 0 | Q68: 0 | R68: 0
D69: 1 | G69: 0 | I69: 0 | J69: 0 | K69: 0 | M69: 0 | N69: 0 | O69: 0 | P69: 0 | Q69: 0 | R69: 0
D70: 1 | G70: 0 | I70: 0 | J70: =E70*H70 -> 0 | K70: 0 | M70: 0 | N70: 0 | O70: 0 | P70: 0 | Q70: 0 | R70: 0
A71: Total Fixed Costs | I71: 51.24696825 | J71: =+SUM(J56:J70) -> 0 | M71: 0 | N71: =+SUM(N56:N70) -> 0 | O71: 51.24696825 | P71: =+SUM(P56:P70) -> 0 | Q71: 8199.51492 | R71: =+SUM(R56:R70) -> 0
A72: Total Specified Costs | I72: 162.8184744 | J72: =+J50+J71 -> 0 | M72: 0 | N72: =+N50+N71 -> 0 | O72: 162.8184744 | P72: =+P50+P71 -> 0 | Q72: 26050.95591 | R72: =+R50+R71 -> 0
A74: Returns Above Specified Costs | I74: -28.41847443 | J74: =+J13-J72 -> 0 | M74: 0 | N74: =+N13-N72 -> 0 | O74: -28.41847443 | P74: =+P13-P72 -> 0 | Q74: -4546.955908 | R74: =+R13-R72 -> 0
A76: Breakeven Price to Cover Total Costs | G76: 0.4845787929 | H76: =IF(E10=0,"n/a",(YTotExp-(YTotExp+YTotRet-J10))/E10) -> n/a | I76: Pound
D78: Example Breakeven Prices
B79: Example | C79: Example | D79: To Cover | G79: To Cover
B80: Yield | C80: Yield | D80: Variable | G80: Total
B81: Percent | C81: Pound | D81: Costs | G81: Costs
B82: 0.75 | C82: 252 | D82: 0.4427440721 | G82: 0.6461050572
B83: 0.9 | C83: 302.4 | D83: 0.3689533934 | G83: 0.538420881
B84: 1 | C84: 336 | D84: 0.3320580541 | G84: 0.4845787929
B85: 1.1 | C85: 369.6 | D85: 0.3018709583 | G85: 0.4405261754
B86: 1.25 | C86: 420 | D86: 0.2656464433 | G86: 0.3876630343
D88: Your Breakeven Prices
B89: Your | C89: Your | E89: To Cover | H89: To Cover
B90: Yield | C90: Yield | E90: Variable | H90: Total
B91: Percent | C91: Pound | E91: Costs | H91: Costs
B92: 0.75 | C92: =E10*YPER1 -> 0 | E92: =IF($E$10=0,0,(YVarExp-(YTotExp+YTotRet-J10))/($E$10*YPER1)) -> 0 | H92: =IF($E$10=0,0,(YTotExp-(YTotExp+YTotRet-J10))/($E$10*YPER1)) -> 0
B93: 0.9 | C93: =E10*YPER2 -> 0 | E93: =IF($E$10=0,0,(YVarExp-(YTotExp+YTotRet-J10))/($E$10*YPER2)) -> 0 | H93: =IF($E$10=0,0,(YTotExp-(YTotExp+YTotRet-J10))/($E$10*YPER2)) -> 0
B94: 1 | C94: =+E10 -> 0 | E94: =IF($E$10=0,0,(YVarExp-(YTotExp+YTotRet-J10))/($E$10*YPER3)) -> 0 | H94: =IF($E$10=0,0,(YTotExp-(YTotExp+YTotRet-J10))/($E$10*YPER3)) -> 0
B95: 1.1 | C95: =E10*YPER4 -> 0 | E95: =IF($E$10=0,0,(YVarExp-(YTotExp+YTotRet-J10))/($E$10*YPER4)) -> 0 | H95: =IF($E$10=0,0,(YTotExp-(YTotExp+YTotRet-J10))/($E$10*YPER4)) -> 0
B96: 1.25 | C96: =E10*YPER5 -> 0 | E96: =IF($E$10=0,0,(YVarExp-(YTotExp+YTotRet-J10))/($E$10*YPER5)) -> 0 | H96: =IF($E$10=0,0,(YTotExp-(YTotExp+YTotRet-J10))/($E$10*YPER5)) -> 0
A98: Developed by Steve Amosson, Regents Fellow, Professor and Extension Economist, Texas A&M AgriLife Extension, 806-677-5600.
A100: Information presented is prepared solely as a general guide and not intended to recognize or predict the costs and returns from any one operation. Brand names are mentioned only as examples and imply no endorsement.

Sheet SudangrassSprinkler
A1: Projections for Planning Purposes Only -- Not to be Used without Updating
A2: 2018 Estimated Costs and Returns per Acre
A3: Sorghum Sudangrass, Sprinkler Irrigated (NG), Grazing
A4: Enter your name for this budget in the cell above.
A5: Enter Your Values in the cells highlighed in MAROON.
E6: Your Acres | R6: Your
C7: Crop Acres | D7: 122 | L7: Your | Q7: Enterprise | R7: Enterprise
E8: Your | H8: Your | I8: Cash | J8: Your | K8: Landlord | L8: Landlord | N8: Your | P8: Your | Q8: Total | R8: Total
A9: REVENUE | D9: Quantity | E9: Quantity | F9: Units | G9: $/Unit | H9: $/Unit | I9: Total | J9: Total | K9: Share | L9: Share | M9: Landlord | N9: Landlord | O9: Tenant | P9: Tenant | Q9: (122 acres) | R9: ="(" & E7 & " acres)" -> ( acres)
B10: Grazing - Sorghum | D10: 800 | F10: Pound | G10: 0.4 | I10: 320 | J10: =E10*H10 -> 0 | K10: 0 | M10: 0 | N10: =J10*L10 -> 0 | O10: 320 | P10: =+J10-N10 -> 0 | Q10: 39040 | R10: =+J10*E$7 -> 0
D11: 0 | G11: 0 | I11: 0 | J11: 0 | K11: 0 | M11: 0 | N11: 0 | O11: 0 | P11: =+J11-N11 -> 0 | Q11: 0 | R11: 0
D12: 0 | G12: 0 | I12: 0 | J12: 0 | K12: 0 | M12: 0 | N12: 0 | O12: 0 | P12: 0 | Q12: 0 | R12: 0
A13: Total Revenue | I13: 320 | J13: =SUM(J10:J12) -> 0 | M13: 0 | N13: =SUM(N10:N12) -> 0 | O13: 320 | P13: =SUM(P10:P12) -> 0 | Q13: 39040 | R13: =SUM(R10:R12) -> 0
Q14: Enterprise | R14: Enterprise
A15: VARIABLE COSTS | D15: Quantity | E15: Quantity | F15: Units | G15: $/Unit | H15: $/Unit | I15: Total | J15: Total | K15: Share | L15: Share | M15: Landlord | N15: Landlord | O15: Tenant | P15: Tenant | Q15: Total | R15: Total
A16: Production Costs
B17: Fertilizer
C18: Fertilizer (N) - ANH3 | D18: 160 | F18: Pound | G18: 0.24 | I18: 38.4 | J18: =E18*H18 -> 0 | K18: 0 | M18: 0 | N18: =J18*L18 -> 0 | O18: 38.4 | P18: =+J18-N18 -> 0 | Q18: 4684.8 | R18: =+J18*E$7 -> 0
C19: Fertilizer (P) - Liquid | D19: 50 | F19: Pound | G19: 0.47 | I19: 23.5 | J19: 0 | K19: 0 | M19: 0 | N19: 0 | O19: 23.5 | P19: 0 | Q19: 2867 | R19: 0
B20: Custom
C21: Fertilizer Application - ANH3 | D21: 1 | F21: Acre | G21: 15.36 | I21: 15.36 | J21: 0 | K21: 0 | M21: 0 | N21: 0 | O21: 15.36 | P21: 0 | Q21: 1873.92 | R21: 0
B22: Miscellaneous
C23: Crop Insurance Sorghum Sudan Irrigated | D23: 1 | F23: Acre | G23: 25 | I23: 25 | J23: 0 | K23: 0 | M23: 0 | N23: 0 | O23: 25 | P23: 0 | Q23: 3050 | R23: 0
B24: Herbicide
C25: Herbicide and Apply Sorghum Sudan | D25: 1 | F25: Acre | G25: 12.31 | I25: 12.31 | J25: 0 | K25: 0 | M25: 0 | N25: 0 | O25: 12.31 | P25: 0 | Q25: 1501.82 | R25: 0
B26: Seed
C27: Seed - Sorghum Sudangrass | D27: 22 | F27: Pound | G27: 0.94 | I27: 20.68 | J27: 0 | K27: 0 | M27: 0 | N27: 0 | O27: 20.68 | P27: 0 | Q27: 2522.96 | R27: 0
D28: 0 | G28: 0 | I28: 0 | J28: 0 | K28: 0 | M28: 0 | N28: 0 | O28: 0 | P28: 0 | Q28: 0 | R28: 0
D29: 0 | G29: 0 | I29: 0 | J29: 0 | K29: 0 | M29: 0 | N29: 0 | O29: 0 | P29: 0 | Q29: 0 | R29: 0
D30: 0 | G30: 0 | I30: 0 | J30: =E30*H30 -> 0 | K30: 0 | M30: 0 | N30: =J30*L30 -> 0 | O30: 0 | P30: =+J30-N30 -> 0 | Q30: 0 | R30: =+J30*E$7 -> 0
B31: Irrigation
C32: Energy Cost | D32: 9 | F32: AcreInch | G32: 3.5 | I32: 31.5 | J32: =E32*H32 -> 0 | K32: 0 | M32: 0 | N32: =J32*L32 -> 0 | O32: 31.5 | P32: =+J32-N32 -> 0 | Q32: 3843 | R32: =+J32*E$7 -> 0
C33: Irrigation Labor | D33: 0.576 | F33: Hour | G33: 12.64 | I33: 7.28064 | J33: 0 | K33: 0 | M33: 0 | N33: 0 | O33: 7.28064 | P33: 0 | Q33: 888.23808 | R33: 0
B34: Machinery Labor
C35: Tractors/Self-Propelled | D35: 0.41 | F35: Hour | G35: 12.44 | I35: 5.1004 | J35: =E35*H35 -> 0 | K35: 0 | M35: 0 | N35: =J35*L35 -> 0 | O35: 5.1004 | P35: =+J35-N35 -> 0 | Q35: 622.2488 | R35: =+J35*E$7 -> 0
C36: Other Labor | D36: 0.45 | F36: Hour | G36: 12.44 | I36: 5.598 | J36: =E36*H36 -> 0 | K36: 0 | M36: 0 | N36: =J36*L36 -> 0 | O36: 5.598 | P36: =+J36-N36 -> 0 | Q36: 682.956 | R36: =+J36*E$7 -> 0
B38: Diesel Fuel
C39: Pickup/General Use Equipment | D39: 1 | F39: Acre | G39: 0 | I39: 0 | J39: =E39*H39 -> 0 | K39: 0 | M39: 0 | N39: =J39*L39 -> 0 | O39: 0 | P39: =+J39-N39 -> 0 | Q39: 0 | R39: =+J39*E$7 -> 0
C40: Tractors/Self-Propelled | D40: 2.12 | F40: Gallon | G40: 1.99 | I40: 4.2188 | J40: =E40*H40 -> 0 | K40: 0 | M40: 0 | N40: =J40*L40 -> 0 | O40: 4.2188 | P40: =+J40-N40 -> 0 | Q40: 514.6936 | R40: =+J40*E$7 -> 0
B42: Gasoline
C43: Pickup/General Use Equipment | D43: 1 | F43: Acre | G43: 4.303278689 | I43: 4.303278689 | J43: =E43*H43 -> 0 | K43: 0 | M43: 0 | N43: =J43*L43 -> 0 | O43: 4.303278689 | P43: =+J43-N43 -> 0 | Q43: 525 | R43: =+J43*E$7 -> 0
C44: Tractors/Self-Propelled | D44: 0 | F44: Gallon | G44: 2.1 | I44: 0 | J44: =E44*H44 -> 0 | K44: 0 | M44: 0 | N44: =J44*L44 -> 0 | O44: 0 | P44: =+J44-N44 -> 0 | Q44: 0 | R44: =+J44*E$7 -> 0
B46: Repairs & Maintenance
C47: Pickup/General Use Equipment | D47: 1 | F47: Acre | G47: 2.508196721 | I47: 2.508196721 | J47: =E47*H47 -> 0 | K47: 0 | M47: 0 | N47: =J47*L47 -> 0 | O47: 2.508196721 | P47: =+J47-N47 -> 0 | Q47: 306 | R47: =+J47*E$7 -> 0
C48: Irrigation Equipment | D48: 1 | F48: Acre | G48: 36.36 | I48: 36.36 | J48: 0 | K48: 0 | M48: 0 | N48: 0 | O48: 36.36 | P48: 0 | Q48: 4435.92 | R48: 0
C49: Tractors/Self-Propelled | D49: 1 | F49: Acre | G49: 3.753959231 | I49: 3.753959231 | J49: 0 | K49: 0 | M49: 0 | N49: 0 | O49: 3.753959231 | P49: 0 | Q49: 457.9830262 | R49: 0
C50: Implements | D50: 1 | F50: Acre | G50: 12.5277849 | I50: 12.5277849 | J50: 0 | K50: 0 | M50: 0 | N50: 0 | O50: 12.5277849 | P50: 0 | Q50: 1528.389758 | R50: 0
I51: 0 | J51: 0 | K51: 0 | M51: 0 | N51: 0 | O51: 0 | P51: 0 | Q51: 0 | R51: 0
I52: 0 | J52: 0 | K52: 0 | M52: 0 | N52: 0 | O52: 0 | P52: 0 | Q52: 0 | R52: 0
B53: Interest on Credit Line | G53: 0.0574 | I53: 5.69539497 | J53: =+SUM(J17:J52)/2*H53 -> 0 | M53: 0 | N53: =+SUM(N17:N52)/2*L53 -> 0 | O53: 5.69539497 | P53: =+SUM(P17:P52)/2*L53 -> 0 | Q53: 694.8381864 | R53: =+J53*E$7 -> 0
A54: Total Variable Costs | I54: 254.0964545 | J54: =SUM(J18:J53) -> 0 | M54: 0 | N54: =SUM(N18:N53) -> 0 | O54: 254.0964545 | P54: =SUM(P18:P53) -> 0 | Q54: 30999.76745 | R54: =SUM(R18:R53) -> 0
A55: Planned Returns Above Variable Costs: | I55: 65.90354549 | J55: =+J13-J54 -> 0 | M55: 0 | N55: =+N13-N54 -> 0 | O55: 65.90354549 | P55: =+P13-P54 -> 0 | Q55: 8040.232549 | R55: =+R13-R54 -> 0
B56: Breakeven Price to Cover Variable Costs | G56: 0.3176205681 | H56: =IF(E10=0,"n/a",(YVarExp-(YTotExp+YTotRet-J10))/E10) -> n/a | I56: Pound
Q57: Enterprise | R57: Enterprise
A58: FIXED COSTS | D58: Quantity | E58: Quantity | F58: Units | G58: $/Unit | H58: $/Unit | I58: Total | J58: Total | K58: Share | L58: Share | M58: Landlord | N58: Landlord | O58: Tenant | P58: Tenant | Q58: Total | R58: Total
B59: Machinery Depreciation
C60: Pickup/General Use Equipment | D60: 1 | F60: Acre | G60: 2.633606557 | I60: 2.633606557 | J60: =E60*H60 -> 0 | K60: 0 | M60: 0 | N60: =J60*L60 -> 0 | O60: 2.633606557 | P60: =+J60-N60 -> 0 | Q60: 321.3 | R60: =+J60*E$7 -> 0
C61: Irrigation Equipment | D61: 1 | F61: Acre | G61: 30.73770492 | I61: 30.73770492 | J61: 0 | K61: 0 | M61: 0 | N61: =J61*L61 -> 0 | O61: 30.73770492 | P61: 0 | Q61: 3750 | R61: 0
C62: Tractors/Self-Propelled | D62: 1 | F62: Acre | G62: 3.718948442 | I62: 3.718948442 | J62: 0 | K62: 0 | M62: 0 | N62: =J62*L62 -> 0 | O62: 3.718948442 | P62: 0 | Q62: 453.7117099 | R62: 0
C63: Implements | D63: 1 | F63: Acre | G63: 15.83041457 | I63: 15.83041457 | J63: 0 | K63: 0 | M63: 0 | N63: =J63*L63 -> 0 | O63: 15.83041457 | P63: 0 | Q63: 1931.310578 | R63: 0
B64: Equipment Investment
C65: Pickup/General Use Equipment | D65: 18.18442623 | F65: Dollars | G65: 0.0601 | I65: 1.092884016 | J65: =E65*H65 -> 0 | K65: 0 | M65: 0 | N65: =J65*L65 -> 0 | O65: 1.092884016 | P65: =+J65-N65 -> 0 | Q65: 133.33185 | R65: =+J65*E$7 -> 0
C66: Irrigation Equipment | D66: 450 | F66: Dollars | G66: 0.0601 | I66: 27.045 | J66: 0 | K66: 0 | M66: 0 | N66: =J66*L66 -> 0 | O66: 27.045 | P66: 0 | Q66: 3299.49 | R66: 0
C67: Tractors/Self-Propelled | D67: 28.97180802 | F67: Dollars | G67: 0.0601 | I67: 1.741205662 | J67: 0 | K67: 0 | M67: 0 | N67: =J67*L67 -> 0 | O67: 1.741205662 | P67: 0 | Q67: 212.4270908 | R67: 0
C68: Implements | D68: 67.71899568 | F68: Dollars | G68: 0.0601 | I68: 4.06991164 | J68: 0 | K68: 0 | M68: 0 | N68: =J68*L68 -> 0 | O68: 4.06991164 | P68: 0 | Q68: 496.5292201 | R68: 0
B69: Salaried Labor | D69: 1 | F69: Acre | G69: 0 | I69: 0 | J69: 0 | K69: 0 | M69: 0 | N69: =J69*L69 -> 0 | O69: 0 | P69: =+J69-N69 -> 0 | Q69: 0 | R69: =+J69*E$7 -> 0
B70: Management Fee, Owner/Operator Labor | D70: 1 | F70: Acre | G70: 0 | I70: 0 | J70: 0 | K70: 0 | M70: 0 | N70: 0 | O70: 0 | P70: 0 | Q70: 0 | R70: 0
B71: Allocated Establishment Cost | D71: 1 | F71: Acre | G71: 0 | I71: 0 | J71: 0 | K71: 0 | M71: 0 | N71: 0 | O71: 0 | P71: 0 | Q71: 0 | R71: 0
B72: Cash Rent - Sorghum f | D72: 1 | F72: Acre | G72: 72 | I72: 72 | J72: 0 | K72: 0 | M72: 0 | N72: 0 | O72: 72 | P72: 0 | Q72: 8784 | R72: 0
B73: Property Taxes | D73: 1 | F73: Acre | G73: 0 | I73: 0 | J73: 0 | K73: 0 | M73: 0 | N73: 0 | O73: 0 | P73: 0 | Q73: 0 | R73: 0
B74: Whole Farm Insurance | D74: 1 | F74: Acre | G74: 0 | I74: 0 | J74: 0 | K74: 0 | M74: 0 | N74: 0 | O74: 0 | P74: 0 | Q74: 0 | R74: 0
D75: 1 | G75: 0 | I75: 0 | J75: 0 | K75: 0 | M75: 0 | N75: 0 | O75: 0 | P75: 0 | Q75: 0 | R75: 0
D76: 1 | G76: 0 | I76: 0 | J76: =E76*H76 -> 0 | K76: 0 | M76: 0 | N76: 0 | O76: 0 | P76: 0 | Q76: 0 | R76: 0
A77: Total Fixed Costs | I77: 158.8696758 | J77: =+SUM(J60:J76) -> 0 | M77: 0 | N77: =+SUM(N60:N76) -> 0 | O77: 158.8696758 | P77: =+SUM(P60:P76) -> 0 | Q77: 19382.10045 | R77: =+SUM(R60:R76) -> 0
A78: Total Specified Costs | I78: 412.9661303 | J78: =+J54+J77 -> 0 | M78: 0 | N78: =+N54+N77 -> 0 | O78: 412.9661303 | P78: =+P54+P77 -> 0 | Q78: 50381.8679 | R78: =+R54+R77 -> 0
A80: Returns Above Specified Costs | I80: -92.96613032 | J80: =+J13-J78 -> 0 | M80: 0 | N80: =+N13-N78 -> 0 | O80: -92.96613032 | P80: =+P13-P78 -> 0 | Q80: -11341.8679 | R80: =+R13-R78 -> 0
A82: Breakeven Price to Cover Total Costs | G82: 0.5162076629 | H82: =IF(E10=0,"n/a",(YTotExp-(YTotExp+YTotRet-J10))/E10) -> n/a | I82: Pound
D84: Example Breakeven Prices
B85: Example | C85: Example | D85: To Cover | G85: To Cover
B86: Yield | C86: Yield | D86: Variable | G86: Total
B87: Percent | C87: Pound | D87: Costs | G87: Costs
B88: 0.75 | C88: 600 | D88: 0.4234940909 | G88: 0.6882768839
B89: 0.9 | C89: 720 | D89: 0.3529117424 | G89: 0.5735640699
B90: 1 | C90: 800 | D90: 0.3176205681 | G90: 0.5162076629
B91: 1.1 | C91: 880 | D91: 0.288745971 | G91: 0.4692796936
B92: 1.25 | C92: 1000 | D92: 0.2540964545 | G92: 0.4129661303
D94: Your Breakeven Prices
B95: Your | C95: Your | E95: To Cover | H95: To Cover
B96: Yield | C96: Yield | E96: Variable | H96: Total
B97: Percent | C97: Pound | E97: Costs | H97: Costs
B98: 0.75 | C98: =E10*YPER1 -> 0 | E98: =IF($E$10=0,0,(YVarExp-(YTotExp+YTotRet-J10))/($E$10*YPER1)) -> 0 | H98: =IF($E$10=0,0,(YTotExp-(YTotExp+YTotRet-J10))/($E$10*YPER1)) -> 0
B99: 0.9 | C99: =E10*YPER2 -> 0 | E99: =IF($E$10=0,0,(YVarExp-(YTotExp+YTotRet-J10))/($E$10*YPER2)) -> 0 | H99: =IF($E$10=0,0,(YTotExp-(YTotExp+YTotRet-J10))/($E$10*YPER2)) -> 0
B100: 1 | C100: =+E10 -> 0 | E100: =IF($E$10=0,0,(YVarExp-(YTotExp+YTotRet-J10))/($E$10*YPER3)) -> 0 | H100: =IF($E$10=0,0,(YTotExp-(YTotExp+YTotRet-J10))/($E$10*YPER3)) -> 0
B101: 1.1 | C101: =E10*YPER4 -> 0 | E101: =IF($E$10=0,0,(YVarExp-(YTotExp+YTotRet-J10))/($E$10*YPER4)) -> 0 | H101: =IF($E$10=0,0,(YTotExp-(YTotExp+YTotRet-J10))/($E$10*YPER4)) -> 0
B102: 1.25 | C102: =E10*YPER5 -> 0 | E102: =IF($E$10=0,0,(YVarExp-(YTotExp+YTotRet-J10))/($E$10*YPER5)) -> 0 | H102: =IF($E$10=0,0,(YTotExp-(YTotExp+YTotRet-J10))/($E$10*YPER5)) -> 0
A104: Developed by Steve Amosson, Regents Fellow, Professor and Extension Economist, Texas A&M AgriLife Extension, 806-677-5600.
A106: Information presented is prepared solely as a general guide and not intended to recognize or predict the costs and returns from any one operation. Brand names are mentioned only as examples and imply no endorsement.

Sheet SorghumSilage
A1: Projections for Planning Purposes Only -- Not to be Used without Updating
A2: 2018 Estimated Costs and Returns per Acre
A3: Sorghum Silage, Sprinkler Irrigated
A4: Enter your name for this budget in the cell above.
A5: Enter Your Values in the cells highlighed in MAROON.
E6: Your Acres | R6: Your
C7: Crop Acres | D7: 122 | L7: Your | Q7: Enterprise | R7: Enterprise
E8: Your | H8: Your | I8: Cash | J8: Your | K8: Landlord | L8: Landlord | N8: Your | P8: Your | Q8: Total | R8: Total
A9: REVENUE | D9: Quantity | E9: Quantity | F9: Units | G9: $/Unit | H9: $/Unit | I9: Total | J9: Total | K9: Share | L9: Share | M9: Landlord | N9: Landlord | O9: Tenant | P9: Tenant | Q9: (122 acres) | R9: ="(" & E7 & " acres)" -> ( acres)
B10: Sorghum Silage | D10: 21 | F10: Ton | G10: 32.25 | I10: 677.25 | J10: =E10*H10 -> 0 | K10: 0 | M10: 0 | N10: =J10*L10 -> 0 | O10: 677.25 | P10: =+J10-N10 -> 0 | Q10: 82624.5 | R10: =+J10*E$7 -> 0
D11: 0 | G11: 0 | I11: 0 | J11: 0 | K11: 0 | M11: 0 | N11: 0 | O11: 0 | P11: =+J11-N11 -> 0 | Q11: 0 | R11: 0
D12: 0 | G12: 0 | I12: 0 | J12: 0 | K12: 0 | M12: 0 | N12: 0 | O12: 0 | P12: 0 | Q12: 0 | R12: 0
A13: Total Revenue | I13: 677.25 | J13: =SUM(J10:J12) -> 0 | M13: 0 | N13: =SUM(N10:N12) -> 0 | O13: 677.25 | P13: =SUM(P10:P12) -> 0 | Q13: 82624.5 | R13: =SUM(R10:R12) -> 0
Q14: Enterprise | R14: Enterprise
A15: VARIABLE COSTS | D15: Quantity | E15: Quantity | F15: Units | G15: $/Unit | H15: $/Unit | I15: Total | J15: Total | K15: Share | L15: Share | M15: Landlord | N15: Landlord | O15: Tenant | P15: Tenant | Q15: Total | R15: Total
A16: Production Costs
B17: Fertilizer
C18: Fertilizer (N) - ANH3 | D18: 120 | F18: Pound | G18: 0.24 | I18: 28.8 | J18: =E18*H18 -> 0 | K18: 0 | M18: 0 | N18: =J18*L18 -> 0 | O18: 28.8 | P18: =+J18-N18 -> 0 | Q18: 3513.6 | R18: =+J18*E$7 -> 0
C19: Fertilizer (P) - Dry | D19: 60 | F19: Pound | G19: 0.43 | I19: 25.8 | J19: 0 | K19: 0 | M19: 0 | N19: 0 | O19: 25.8 | P19: 0 | Q19: 3147.6 | R19: 0
C20: Fertilizer (N) - Liquid | D20: 45 | F20: Pound | G20: 0.4 | I20: 18 | J20: 0 | K20: 0 | M20: 0 | N20: 0 | O20: 18 | P20: 0 | Q20: 2196 | R20: 0
B21: Custom
C22: Fertilizer Application - ANH3 | D22: 1 | F22: Acre | G22: 15.36 | I22: 15.36 | J22: 0 | K22: 0 | M22: 0 | N22: 0 | O22: 15.36 | P22: 0 | Q22: 1873.92 | R22: 0
C23: Fertilizer Application | D23: 1 | F23: Acre | G23: 5.12 | I23: 5.12 | J23: 0 | K23: 0 | M23: 0 | N23: 0 | O23: 5.12 | P23: 0 | Q23: 624.64 | R23: 0
C24: Harvest and Haul - Sorghum Silage | D24: 21 | F24: Ton | G24: 9.22 | I24: 193.62 | J24: 0 | K24: 0 | M24: 0 | N24: 0 | O24: 193.62 | P24: 0 | Q24: 23621.64 | R24: 0
B25: Miscellaneous
C26: Crop Insurance Sorghum Silage | D26: 1 | F26: Acre | G26: 33 | I26: 33 | J26: 0 | K26: 0 | M26: 0 | N26: 0 | O26: 33 | P26: 0 | Q26: 4026 | R26: 0
B27: Insecticide
C28: Insecticide Head Worm | D28: 0.33 | F28: Application | G28: 9.93 | I28: 3.2769 | J28: 0 | K28: 0 | M28: 0 | N28: 0 | O28: 3.2769 | P28: 0 | Q28: 399.7818 | R28: 0
C29: Insecticide Sugar Cane Aphid | D29: 1 | F29: Application | G29: 21.27 | I29: 21.27 | J29: 0 | K29: 0 | M29: 0 | N29: 0 | O29: 21.27 | P29: 0 | Q29: 2594.94 | R29: 0
B30: Herbicide
C31: Herbicide and Apply Sorghum Sudan | D31: 1 | F31: Acre | G31: 12.31 | I31: 12.31 | J31: 0 | K31: 0 | M31: 0 | N31: 0 | O31: 12.31 | P31: 0 | Q31: 1501.82 | R31: 0
B32: Seed
C33: Seed - Sorghum | D33: 5 | F33: Pound | G33: 2.2 | I33: 11 | J33: 0 | K33: 0 | M33: 0 | N33: 0 | O33: 11 | P33: 0 | Q33: 1342 | R33: 0
D34: 0 | G34: 0 | I34: 0 | J34: 0 | K34: 0 | M34: 0 | N34: 0 | O34: 0 | P34: 0 | Q34: 0 | R34: 0
D35: 0 | G35: 0 | I35: 0 | J35: 0 | K35: 0 | M35: 0 | N35: 0 | O35: 0 | P35: 0 | Q35: 0 | R35: 0
D36: 0 | G36: 0 | I36: 0 | J36: =E36*H36 -> 0 | K36: 0 | M36: 0 | N36: =J36*L36 -> 0 | O36: 0 | P36: =+J36-N36 -> 0 | Q36: 0 | R36: =+J36*E$7 -> 0
B37: Irrigation
C38: Energy Cost | D38: 14 | F38: AcreInch | G38: 3.5 | I38: 49 | J38: =E38*H38 -> 0 | K38: 0 | M38: 0 | N38: =J38*L38 -> 0 | O38: 49 | P38: =+J38-N38 -> 0 | Q38: 5978 | R38: =+J38*E$7 -> 0
C39: Irrigation Labor | D39: 0.832 | F39: Hour | G39: 12.64 | I39: 10.51648 | J39: 0 | K39: 0 | M39: 0 | N39: 0 | O39: 10.51648 | P39: 0 | Q39: 1283.01056 | R39: 0
B40: Machinery Labor
C41: Tractors/Self-Propelled | D41: 0.37 | F41: Hour | G41: 12.44 | I41: 4.6028 | J41: =E41*H41 -> 0 | K41: 0 | M41: 0 | N41: =J41*L41 -> 0 | O41: 4.6028 | P41: =+J41-N41 -> 0 | Q41: 561.5416 | R41: =+J41*E$7 -> 0
C42: Other Labor | D42: 0.42 | F42: Hour | G42: 12.44 | I42: 5.2248 | J42: =E42*H42 -> 0 | K42: 0 | M42: 0 | N42: =J42*L42 -> 0 | O42: 5.2248 | P42: =+J42-N42 -> 0 | Q42: 637.4256 | R42: =+J42*E$7 -> 0
B44: Diesel Fuel
C45: Pickup/General Use Equipment | D45: 1 | F45: Acre | G45: 0 | I45: 0 | J45: =E45*H45 -> 0 | K45: 0 | M45: 0 | N45: =J45*L45 -> 0 | O45: 0 | P45: =+J45-N45 -> 0 | Q45: 0 | R45: =+J45*E$7 -> 0
C46: Tractors/Self-Propelled | D46: 2.04 | F46: Gallon | G46: 1.99 | I46: 4.0596 | J46: =E46*H46 -> 0 | K46: 0 | M46: 0 | N46: =J46*L46 -> 0 | O46: 4.0596 | P46: =+J46-N46 -> 0 | Q46: 495.2712 | R46: =+J46*E$7 -> 0
B48: Gasoline
C49: Pickup/General Use Equipment | D49: 1 | F49: Acre | G49: 6.454918033 | I49: 6.454918033 | J49: =E49*H49 -> 0 | K49: 0 | M49: 0 | N49: =J49*L49 -> 0 | O49: 6.454918033 | P49: =+J49-N49 -> 0 | Q49: 787.5 | R49: =+J49*E$7 -> 0
C50: Tractors/Self-Propelled | D50: 0 | F50: Gallon | G50: 2.1 | I50: 0 | J50: =E50*H50 -> 0 | K50: 0 | M50: 0 | N50: =J50*L50 -> 0 | O50: 0 | P50: =+J50-N50 -> 0 | Q50: 0 | R50: =+J50*E$7 -> 0
B52: Repairs & Maintenance
C53: Pickup/General Use Equipment | D53: 1 | F53: Acre | G53: 3.762295082 | I53: 3.762295082 | J53: =E53*H53 -> 0 | K53: 0 | M53: 0 | N53: =J53*L53 -> 0 | O53: 3.762295082 | P53: =+J53-N53 -> 0 | Q53: 459 | R53: =+J53*E$7 -> 0
C54: Irrigation Equipment | D54: 1 | F54: Acre | G54: 56.56 | I54: 56.56 | J54: 0 | K54: 0 | M54: 0 | N54: 0 | O54: 56.56 | P54: 0 | Q54: 6900.32 | R54: 0
C55: Tractors/Self-Propelled | D55: 1 | F55: Acre | G55: 3.482605397 | I55: 3.482605397 | J55: 0 | K55: 0 | M55: 0 | N55: 0 | O55: 3.482605397 | P55: 0 | Q55: 424.8778585 | R55: 0
C56: Implements | D56: 1 | F56: Acre | G56: 12.31728074 | I56: 12.31728074 | J56: 0 | K56: 0 | M56: 0 | N56: 0 | O56: 12.31728074 | P56: 0 | Q56: 1502.70825 | R56: 0
I57: 0 | J57: 0 | K57: 0 | M57: 0 | N57: 0 | O57: 0 | P57: 0 | Q57: 0 | R57: 0
I58: 0 | J58: 0 | K58: 0 | M58: 0 | N58: 0 | O58: 0 | P58: 0 | Q58: 0 | R58: 0
B59: Interest on Credit Line | G59: 0.0574 | I59: 7.991048022 | J59: =+SUM(J17:J58)/2*H59 -> 0 | M59: 0 | N59: =+SUM(N17:N58)/2*L59 -> 0 | O59: 7.991048022 | P59: =+SUM(P17:P58)/2*L59 -> 0 | Q59: 974.9078587 | R59: =+J59*E$7 -> 0
A60: Total Variable Costs | I60: 531.5287273 | J60: =SUM(J18:J59) -> 0 | M60: 0 | N60: =SUM(N18:N59) -> 0 | O60: 531.5287273 | P60: =SUM(P18:P59) -> 0 | Q60: 64846.50473 | R60: =SUM(R18:R59) -> 0
A61: Planned Returns Above Variable Costs: | I61: 145.7212727 | J61: =+J13-J60 -> 0 | M61: 0 | N61: =+N13-N60 -> 0 | O61: 145.7212727 | P61: =+P13-P60 -> 0 | Q61: 17777.99527 | R61: =+R13-R60 -> 0
B62: Breakeven Price to Cover Variable Costs | G62: 25.31089177 | H62: =IF(E10=0,"n/a",(YVarExp-(YTotExp+YTotRet-J10))/E10) -> n/a | I62: Ton
Q63: Enterprise | R63: Enterprise
A64: FIXED COSTS | D64: Quantity | E64: Quantity | F64: Units | G64: $/Unit | H64: $/Unit | I64: Total | J64: Total | K64: Share | L64: Share | M64: Landlord | N64: Landlord | O64: Tenant | P64: Tenant | Q64: Total | R64: Total
B65: Machinery Depreciation
C66: Pickup/General Use Equipment | D66: 1 | F66: Acre | G66: 3.950409836 | I66: 3.950409836 | J66: =E66*H66 -> 0 | K66: 0 | M66: 0 | N66: =J66*L66 -> 0 | O66: 3.950409836 | P66: =+J66-N66 -> 0 | Q66: 481.95 | R66: =+J66*E$7 -> 0
C67: Irrigation Equipment | D67: 1 | F67: Acre | G67: 36.2704918 | I67: 36.2704918 | J67: 0 | K67: 0 | M67: 0 | N67: =J67*L67 -> 0 | O67: 36.2704918 | P67: 0 | Q67: 4425 | R67: 0
C68: Tractors/Self-Propelled | D68: 1 | F68: Acre | G68: 3.386296913 | I68: 3.386296913 | J68: 0 | K68: 0 | M68: 0 | N68: =J68*L68 -> 0 | O68: 3.386296913 | P68: 0 | Q68: 413.1282234 | R68: 0
C69: Implements | D69: 1 | F69: Acre | G69: 15.01481407 | I69: 15.01481407 | J69: 0 | K69: 0 | M69: 0 | N69: =J69*L69 -> 0 | O69: 15.01481407 | P69: 0 | Q69: 1831.807316 | R69: 0
B70: Equipment Investment
C71: Pickup/General Use Equipment | D71: 27.27663934 | F71: Dollars | G71: 0.0601 | I71: 1.639326025 | J71: =E71*H71 -> 0 | K71: 0 | M71: 0 | N71: =J71*L71 -> 0 | O71: 1.639326025 | P71: =+J71-N71 -> 0 | Q71: 199.997775 | R71: =+J71*E$7 -> 0
C72: Irrigation Equipment | D72: 490.5737705 | F72: Dollars | G72: 0.0601 | I72: 29.48348361 | J72: 0 | K72: 0 | M72: 0 | N72: =J72*L72 -> 0 | O72: 29.48348361 | P72: 0 | Q72: 3596.985 | R72: 0
C73: Tractors/Self-Propelled | D73: 26.38034531 | F73: Dollars | G73: 0.0601 | I73: 1.585458753 | J73: 0 | K73: 0 | M73: 0 | N73: =J73*L73 -> 0 | O73: 1.585458753 | P73: 0 | Q73: 193.4259679 | R73: 0
C74: Implements | D74: 64.23003796 | F74: Dollars | G74: 0.0601 | I74: 3.860225281 | J74: 0 | K74: 0 | M74: 0 | N74: =J74*L74 -> 0 | O74: 3.860225281 | P74: 0 | Q74: 470.9474843 | R74: 0
B75: Salaried Labor | D75: 1 | F75: Acre | G75: 0 | I75: 0 | J75: 0 | K75: 0 | M75: 0 | N75: =J75*L75 -> 0 | O75: 0 | P75: =+J75-N75 -> 0 | Q75: 0 | R75: =+J75*E$7 -> 0
B76: Management Fee, Owner/Operator Labor | D76: 1 | F76: Acre | G76: 0 | I76: 0 | J76: 0 | K76: 0 | M76: 0 | N76: 0 | O76: 0 | P76: 0 | Q76: 0 | R76: 0
B77: Allocated Establishment Cost | D77: 1 | F77: Acre | G77: 0 | I77: 0 | J77: 0 | K77: 0 | M77: 0 | N77: 0 | O77: 0 | P77: 0 | Q77: 0 | R77: 0
B78: Cash Rent - Sorghum Silage | D78: 1 | F78: Acre | G78: 72 | I78: 72 | J78: 0 | K78: 0 | M78: 0 | N78: 0 | O78: 72 | P78: 0 | Q78: 8784 | R78: 0
B79: Property Taxes | D79: 1 | F79: Acre | G79: 0 | I79: 0 | J79: 0 | K79: 0 | M79: 0 | N79: 0 | O79: 0 | P79: 0 | Q79: 0 | R79: 0
B80: Whole Farm Insurance | D80: 1 | F80: Acre | G80: 0 | I80: 0 | J80: 0 | K80: 0 | M80: 0 | N80: 0 | O80: 0 | P80: 0 | Q80: 0 | R80: 0
D81: 1 | G81: 0 | I81: 0 | J81: 0 | K81: 0 | M81: 0 | N81: 0 | O81: 0 | P81: 0 | Q81: 0 | R81: 0
D82: 1 | G82: 0 | I82: 0 | J82: =E82*H82 -> 0 | K82: 0 | M82: 0 | N82: 0 | O82: 0 | P82: 0 | Q82: 0 | R82: 0
A83: Total Fixed Costs | I83: 167.1905063 | J83: =+SUM(J66:J82) -> 0 | M83: 0 | N83: =+SUM(N66:N82) -> 0 | O83: 167.1905063 | P83: =+SUM(P66:P82) -> 0 | Q83: 20397.24177 | R83: =+SUM(R66:R82) -> 0
A84: Total Specified Costs | I84: 698.7192336 | J84: =+J60+J83 -> 0 | M84: 0 | N84: =+N60+N83 -> 0 | O84: 698.7192336 | P84: =+P60+P83 -> 0 | Q84: 85243.74649 | R84: =+R60+R83 -> 0
A86: Returns Above Specified Costs | I86: -21.46923356 | J86: =+J13-J84 -> 0 | M86: 0 | N86: =+N13-N84 -> 0 | O86: -21.46923356 | P86: =+P13-P84 -> 0 | Q86: -2619.246494 | R86: =+R13-R84 -> 0
A88: Breakeven Price to Cover Total Costs | G88: 33.27234446 | H88: =IF(E10=0,"n/a",(YTotExp-(YTotExp+YTotRet-J10))/E10) -> n/a | I88: Ton
D90: Example Breakeven Prices
B91: Example | C91: Example | D91: To Cover | G91: To Cover
B92: Yield | C92: Yield | D92: Variable | G92: Total
B93: Percent | C93: Ton | D93: Costs | G93: Costs
B94: 0.75 | C94: 15.75 | D94: 33.7478557 | G94: 44.36312594
B95: 0.9 | C95: 18.9 | D95: 28.12321308 | G95: 36.96927162
B96: 1 | C96: 21 | D96: 25.31089177 | G96: 33.27234446
B97: 1.1 | C97: 23.1 | D97: 23.00990161 | G97: 30.24758587
B98: 1.25 | C98: 26.25 | D98: 20.24871342 | G98: 26.61787556
D100: Your Breakeven Prices
B101: Your | C101: Your | E101: To Cover | H101: To Cover
B102: Yield | C102: Yield | E102: Variable | H102: Total
B103: Percent | C103: Ton | E103: Costs | H103: Costs
B104: 0.75 | C104: =E10*YPER1 -> 0 | E104: =IF($E$10=0,0,(YVarExp-(YTotExp+YTotRet-J10))/($E$10*YPER1)) -> 0 | H104: =IF($E$10=0,0,(YTotExp-(YTotExp+YTotRet-J10))/($E$10*YPER1)) -> 0
B105: 0.9 | C105: =E10*YPER2 -> 0 | E105: =IF($E$10=0,0,(YVarExp-(YTotExp+YTotRet-J10))/($E$10*YPER2)) -> 0 | H105: =IF($E$10=0,0,(YTotExp-(YTotExp+YTotRet-J10))/($E$10*YPER2)) -> 0
B106: 1 | C106: =+E10 -> 0 | E106: =IF($E$10=0,0,(YVarExp-(YTotExp+YTotRet-J10))/($E$10*YPER3)) -> 0 | H106: =IF($E$10=0,0,(YTotExp-(YTotExp+YTotRet-J10))/($E$10*YPER3)) -> 0
B107: 1.1 | C107: =E10*YPER4 -> 0 | E107: =IF($E$10=0,0,(YVarExp-(YTotExp+YTotRet-J10))/($E$10*YPER4)) -> 0 | H107: =IF($E$10=0,0,(YTotExp-(YTotExp+YTotRet-J10))/($E$10*YPER4)) -> 0
B108: 1.25 | C108: =E10*YPER5 -> 0 | E108: =IF($E$10=0,0,(YVarExp-(YTotExp+YTotRet-J10))/($E$10*YPER5)) -> 0 | H108: =IF($E$10=0,0,(YTotExp-(YTotExp+YTotRet-J10))/($E$10*YPER5)) -> 0
A110: Developed by Steve Amosson, Regents Fellow, Professor and Extension Economist, Texas A&M AgriLife Extension, 806-677-5600.
A112: Information presented is prepared solely as a general guide and not intended to recognize or predict the costs and returns from any one operation. Brand names are mentioned only as examples and imply no endorsement.

Sheet CanolaDryland
A1: Projections for Planning Purposes Only -- Not to be Used without Updating
A2: 2018 Estimated Costs and Returns per Acre
A3: Roundup Ready Canola, Dryland
A4: Enter your name for this budget in the cell above.
A5: Enter Your Values in the cells highlighed in MAROON.
E6: Your Acres | R6: Your
C7: Crop Acres | D7: 160 | L7: Your | Q7: Enterprise | R7: Enterprise
E8: Your | H8: Your | I8: Cash | J8: Your | K8: Landlord | L8: Landlord | N8: Your | P8: Your | Q8: Total | R8: Total
A9: REVENUE | D9: Quantity | E9: Quantity | F9: Units | G9: $/Unit | H9: $/Unit | I9: Total | J9: Total | K9: Share | L9: Share | M9: Landlord | N9: Landlord | O9: Tenant | P9: Tenant | Q9: (160 acres) | R9: ="(" & E7 & " acres)" -> ( acres)
B10: Canola | D10: 11 | F10: CWT | G10: 16.4 | I10: 180.4 | J10: =E10*H10 -> 0 | K10: 0 | M10: 0 | N10: =J10*L10 -> 0 | O10: 180.4 | P10: =+J10-N10 -> 0 | Q10: 28864 | R10: =+J10*E$7 -> 0
D11: 0 | G11: 0 | I11: 0 | J11: 0 | K11: 0 | M11: 0 | N11: 0 | O11: 0 | P11: =+J11-N11 -> 0 | Q11: 0 | R11: 0
D12: 0 | G12: 0 | I12: 0 | J12: 0 | K12: 0 | M12: 0 | N12: 0 | O12: 0 | P12: 0 | Q12: 0 | R12: 0
A13: Total Revenue | I13: 180.4 | J13: =SUM(J10:J12) -> 0 | M13: 0 | N13: =SUM(N10:N12) -> 0 | O13: 180.4 | P13: =SUM(P10:P12) -> 0 | Q13: 28864 | R13: =SUM(R10:R12) -> 0
Q14: Enterprise | R14: Enterprise
A15: VARIABLE COSTS | D15: Quantity | E15: Quantity | F15: Units | G15: $/Unit | H15: $/Unit | I15: Total | J15: Total | K15: Share | L15: Share | M15: Landlord | N15: Landlord | O15: Tenant | P15: Tenant | Q15: Total | R15: Total
A16: Production Costs
B17: Fertilizer
C18: Fertilizer (N) - Dry | D18: 35 | F18: Pound | G18: 0.32 | I18: 11.2 | J18: =E18*H18 -> 0 | K18: 0 | M18: 0 | N18: =J18*L18 -> 0 | O18: 11.2 | P18: =+J18-N18 -> 0 | Q18: 1792 | R18: =+J18*E$7 -> 0
B19: Custom
C20: Fertilizer Application | D20: 1 | F20: Acre | G20: 5.12 | I20: 5.12 | J20: 0 | K20: 0 | M20: 0 | N20: 0 | O20: 5.12 | P20: 0 | Q20: 819.2 | R20: 0
C21: Custom Harvest - Canola | D21: 1 | F21: Acre | G21: 25.61 | I21: 25.61 | J21: 0 | K21: 0 | M21: 0 | N21: 0 | O21: 25.61 | P21: 0 | Q21: 4097.6 | R21: 0
C22: Custom Haul - Canola | D22: 11 | F22: CWT | G22: 0.46 | I22: 5.06 | J22: 0 | K22: 0 | M22: 0 | N22: 0 | O22: 5.06 | P22: 0 | Q22: 809.6 | R22: 0
B23: Insecticide
C24: Insecticide and Apply Canola | D24: 1 | F24: Acre | G24: 9.67 | I24: 9.67 | J24: 0 | K24: 0 | M24: 0 | N24: 0 | O24: 9.67 | P24: 0 | Q24: 1547.2 | R24: 0
B25: Herbicide
C26: Herbicide and Apply Canola | D26: 1 | F26: Acre | G26: 14.54 | I26: 14.54 | J26: 0 | K26: 0 | M26: 0 | N26: 0 | O26: 14.54 | P26: 0 | Q26: 2326.4 | R26: 0
B27: Seed
C28: Seed - Roundup Ready Canola | D28: 5 | F28: Pound | G28: 6.53 | I28: 32.65 | J28: 0 | K28: 0 | M28: 0 | N28: 0 | O28: 32.65 | P28: 0 | Q28: 5224 | R28: 0
C29: Seed Treatment - Canola | D29: 1 | F29: Acre | G29: 6.71 | I29: 6.71 | J29: 0 | K29: 0 | M29: 0 | N29: 0 | O29: 6.71 | P29: 0 | Q29: 1073.6 | R29: 0
D30: 0 | G30: 0 | I30: 0 | J30: 0 | K30: 0 | M30: 0 | N30: 0 | O30: 0 | P30: 0 | Q30: 0 | R30: 0
D31: 0 | G31: 0 | I31: 0 | J31: 0 | K31: 0 | M31: 0 | N31: 0 | O31: 0 | P31: 0 | Q31: 0 | R31: 0
D32: 0 | G32: 0 | I32: 0 | J32: =E32*H32 -> 0 | K32: 0 | M32: 0 | N32: =J32*L32 -> 0 | O32: 0 | P32: =+J32-N32 -> 0 | Q32: 0 | R32: =+J32*E$7 -> 0
B33: Machinery Labor
C34: Tractors/Self-Propelled | D34: 0.41 | F34: Hour | G34: 12.44 | I34: 5.1004 | J34: =E34*H34 -> 0 | K34: 0 | M34: 0 | N34: =J34*L34 -> 0 | O34: 5.1004 | P34: =+J34-N34 -> 0 | Q34: 816.064 | R34: =+J34*E$7 -> 0
C35: Other Labor | D35: 0.45 | F35: Hour | G35: 12.44 | I35: 5.598 | J35: =E35*H35 -> 0 | K35: 0 | M35: 0 | N35: =J35*L35 -> 0 | O35: 5.598 | P35: =+J35-N35 -> 0 | Q35: 895.68 | R35: =+J35*E$7 -> 0
B37: Diesel Fuel
C38: Pickup/General Use Equipment | D38: 1 | F38: Acre | G38: 0 | I38: 0 | J38: =E38*H38 -> 0 | K38: 0 | M38: 0 | N38: =J38*L38 -> 0 | O38: 0 | P38: =+J38-N38 -> 0 | Q38: 0 | R38: =+J38*E$7 -> 0
C39: Tractors/Self-Propelled | D39: 2.22 | F39: Gallon | G39: 1.99 | I39: 4.4178 | J39: =E39*H39 -> 0 | K39: 0 | M39: 0 | N39: =J39*L39 -> 0 | O39: 4.4178 | P39: =+J39-N39 -> 0 | Q39: 706.848 | R39: =+J39*E$7 -> 0
B41: Gasoline
C42: Pickup/General Use Equipment | D42: 1 | F42: Acre | G42: 4.265625 | I42: 4.265625 | J42: =E42*H42 -> 0 | K42: 0 | M42: 0 | N42: =J42*L42 -> 0 | O42: 4.265625 | P42: =+J42-N42 -> 0 | Q42: 682.5 | R42: =+J42*E$7 -> 0
C43: Tractors/Self-Propelled | D43: 0 | F43: Gallon | G43: 2.1 | I43: 0 | J43: =E43*H43 -> 0 | K43: 0 | M43: 0 | N43: =J43*L43 -> 0 | O43: 0 | P43: =+J43-N43 -> 0 | Q43: 0 | R43: =+J43*E$7 -> 0
B45: Repairs & Maintenance
C46: Pickup/General Use Equipment | D46: 1 | F46: Acre | G46: 2.48625 | I46: 2.48625 | J46: =E46*H46 -> 0 | K46: 0 | M46: 0 | N46: =J46*L46 -> 0 | O46: 2.48625 | P46: =+J46-N46 -> 0 | Q46: 397.8 | R46: =+J46*E$7 -> 0
C47: Irrigation Equipment | D47: 1 | F47: Acre | G47: 0 | I47: 0 | J47: 0 | K47: 0 | M47: 0 | N47: 0 | O47: 0 | P47: 0 | Q47: 0 | R47: 0
C48: Tractors/Self-Propelled | D48: 1 | F48: Acre | G48: 4.184980933 | I48: 4.184980933 | J48: 0 | K48: 0 | M48: 0 | N48: 0 | O48: 4.184980933 | P48: 0 | Q48: 669.5969492 | R48: 0
C49: Implements | D49: 1 | F49: Acre | G49: 11.16840373 | I49: 11.16840373 | J49: 0 | K49: 0 | M49: 0 | N49: 0 | O49: 11.16840373 | P49: 0 | Q49: 1786.944596 | R49: 0
I50: 0 | J50: 0 | K50: 0 | M50: 0 | N50: 0 | O50: 0 | P50: 0 | Q50: 0 | R50: 0
I51: 0 | J51: 0 | K51: 0 | M51: 0 | N51: 0 | O51: 0 | P51: 0 | Q51: 0 | R51: 0
